{"text_format":"1","workbook":"xlsx","n_sheets":40,"sheets":["READ ME!","INDEX","Hide","Data","B&W Products","AF1224_1232","AF3224_3232","AF2228_2232_2238","AF3228_3235_3245","CLX-9201NA","MPC2000_2500_3000","MPC2003_2503","MPC2004 & 3004 & 3504","MPC2030 & 2050","MPC2051 & 2551","MPC2011SP","MPC2530 & 2550","MPC2800 & 3300","MPC300-400","MPC3001 & 3501","MPC3002 & 3502","MPC3003 & 3503","MPC3502","MPC305SPF","MPC306ZSPF","MPC307SPF","MP C3500 & 4500","MP C4000 & 5000","MPC401","MPC4501 & 5501","AF3260C & AFC5560","MPC4502 & 5502","MPC4503, 5503 & 6003","MPC4504, 5504, 6004","MPC6000-7500","MPC6501 & 7501","ProC651EX","MPC6502 & 7502","Pricing Updates","TEMPL FINAL"],"not_rendered":{"charts":0,"images":2,"macros":1,"external_links":0,"defined_names":72,"comments":0,"pivot_tables":0},"unopened":[],"bounds":{"document_bytes":16777216,"sheet_cells":100000,"rows_first":2000,"rows_last":500,"rows_between":2000,"halvings":0,"cell_chars":16384,"cell_head_chars":4096},"cells_cut":0,"cells_raw":0,"read":"whole","date_system":"1900"}

{"sheet":"READ ME!","index":0,"n_rows":0,"n_cols":0,"rows_kept":0,"cut":false,"hidden":false,"merged":[]}

{"sheet":"INDEX","index":1,"n_rows":44,"n_cols":8,"rows_kept":44,"cut":false,"hidden":false,"merged":[[0,0,0,8],[43,7,43,8]]}
["Relocation Template"]
[null,null,null,"Click button below to select option"]
[]
[]
[]
[]
[]
[]
[]
[]
[]
[]
[]
[]
[]
[]
[]
[]
[]
[]
[]
[]
[]
[]
[]
[]
[]
[]
[]
[]
[]
[]
[]
[]
[]
[]
[]
[]
[]
[]
[]
[]
[]
[null,null,null,null,null,null,null,"(ver 2019.07.03)"]

{"sheet":"Hide","index":2,"n_rows":78,"n_cols":5,"rows_kept":78,"cut":false,"hidden":true,"merged":[[60,3,61,3],[25,3,26,3],[45,3,47,3],[35,3,38,3],[39,3,44,3],[57,3,59,3],[55,3,56,3],[27,3,29,3],[30,3,34,3],[70,3,72,3],[73,3,75,3],[48,3,49,3],[50,3,53,3],[1,3,2,3],[3,3,4,3],[5,3,7,3],[8,3,10,3],[11,3,13,3],[66,3,67,3],[68,3,69,3],[14,3,15,3],[16,3,17,3],[18,3,20,3],[21,3,22,3],[23,3,24,3]]}
["Accounting Method",null,"Clr MFP Models",null,"Labour Hours"]
["Prints",null,"AF1224","Uranos"]
["Developments",null,"AF1232",null,0]
[null,null,"AF3224","Themis",0.5]
[null,null,"AF3232",null,1]
["Prints",null,"AF2228","JupitorC1",1.5]
[null,null,"AF2232",null,2]
["CalcType",null,"AF2238",null,2.5]
["-",null,"AF3228","JupitorC2",3]
["Both",null,"AF3235"]
["Col",null,"AF3245"]
[null,null,"MP C2000AD","Athena"]
[null,null,"MP C2500ADFRA"]
[null,null,"MP C3000ADFRA"]
[null,null,"MP C3500ADFRA","Apollon"]
["Consumables",null,"MP C4500ADFRA"]
["Select from List!",null,"AF3260C","VenusC1"]
["Inside machine",null,"AFC5560"]
["Boxed separately",null,"MP C6000","VenusC2"]
["Not sent with machine",null,"MP C7500"]
[null,null,"MP C7500SP"]
[null,null,"MP C4000AD","ApollonC2"]
[null,null,"MP C5000AD"]
[null,null,"MP C6501SP","VenusC3"]
[null,null,"MP C7501SP"]
[null,null,"MP C2030AD","DianaC1_1"]
[null,null,"MP C2050AD"]
[null,null,"MP C2800","AthenaC2"]
[null,null,"MP C2800ADB"]
[null,null,"MP C3300AD"]
[null,null,"MP C300","ZeusC1"]
[null,null,"MP C300B"]
[null,null,"MP C300SR"]
[null,null,"MP C400"]
[null,null,"MP C400SR"]
[null,null,"MP C3001AD","AthenaC2_5"]
[null,null,"MP C3501AD"]
[null,null,"MP C3501ADB"]
[null,null,"MP C3501ADBB"]
[null,null,"MP C4501AD","ApollonC2_5"]
[null,null,"MP C4501ADB"]
[null,null,"MP C4501SPDF"]
[null,null,"MP C5501AD"]
[null,null,"MP C5501ADB"]
[null,null,"MP C5501SPDF"]
[null,null,"MP C2051AD","DianaC1_5"]
[null,null,"MP C2051ADB"]
[null,null,"MP C2551AD"]
[null,null,"MPC3002AD","AthenaC3"]
[null,null,"MPC3502AD"]
[null,null,"MPC4502AD","ApollonC3"]
[null,null,"MP C4502SPDF"]
[null,null,"MP C5502AD"]
[null,null,"MP C5502SPDF"]
[null,null,"MPC305SPF","GriffinC1"]
[null,null,"MP C3003SP","MetisC1ab"]
[null,null,"MP C3503SP"]
[null,null,"MP C4503SP","MetisC1cde"]
[null,null,"MP C5503SP"]
[null,null,"MP C6003SP"]
[null,null,"MP C2003SP","MetisC1yz"]
[null,null,"MP C2503SP"]
[null,null,"MPC401SP","ZeusC2"]
[null,null,"ProC651Ex","Taurus C1a"]
[null,null,"MPC306ZSPF","GriffinC2a"]
[null,null,"MPC2011SP","MetisC1k"]
[null,null,"MPC2530AD","DianaC1_2"]
[null,null,"MPC2550AD"]
[null,null,"MPC6502","CharisC1Office"]
[null,null,"MPC8002SP"]
[null,null,"MPC2004SP","MetisC2ab"]
[null,null,"MPC3004SP"]
[null,null,"MPC3504SP"]
[null,null,"MPC4504SP","MetisC2cde"]
[null,null,"MPC5504SP"]
[null,null,"MPC6004SP"]
[null,null,"CLX9201NA","CLX9201NA"]
[null,null,"MPC307SPF","GriffinC3b"]

{"sheet":"Data","index":3,"n_rows":11,"n_cols":3,"rows_kept":11,"cut":false,"hidden":false,"merged":[]}
[null,"ENTER All data below and SAVE this document to your HDD"]
[]
[null,"Franchise name:   ","Nashua Limpopo"]
[]
[null,"Service Manager name:   ","Danie Fourie"]
[]
[null,"Service Manager email:   ","danief@nashualim.co.za"]
[]
[null,"Fax number:   ","015 590 0319"]
[]
[null,"Labour rate: (per hour)   ",200]

{"sheet":"B&W Products","index":4,"n_rows":45,"n_cols":7,"rows_kept":45,"cut":false,"hidden":false,"merged":[[44,1,44,3],[29,0,29,3],[33,4,33,5],[5,1,5,6],[6,1,6,6],[8,2,8,6],[9,2,9,6],[11,4,11,5]]}
[null,null,null,null,"Service Manager:   ",{"$f":"Data!C5","v":"Danie Fourie"}]
[null,null,null,null,"Email:   ",{"$f":"Data!C7","v":"danief@nashualim.co.za"}]
[{"$f":"Data!C3","v":"Nashua Limpopo"},null,null,null,"Fax:   ",{"$f":"Data!C9","v":"015 590 0319"}]
[]
[]
["Date:"]
["Customer:"]
[]
["Previous Servicing Franchise"]
["Attention Technical Manager"]
[]
["Model:",null,"Current Meter Reading:"]
["Serial No:"]
[null,null,"Labour Rate ",{"$f":"Data!C11","v":200}]
["Parts to be installed"]
["Part ",null,"Expected","M. Reading ","% to","FTP","Pro -Rata"]
["Number","Description","Yield","Last fitted","Charge","Cost","Charge"]
[null,null,null,null,{"$f":"IF($D18=0,0,MIN((($E$12-D18)/C18),1))","v":0},null,{"$f":"IF(E18<0,0,(F18*E18))","v":0}]
[null,null,null,null,{"$f":"IF($D19=0,0,MIN((($E$12-D19)/C19),1))","v":0},null,{"$f":"IF(E19<0,0,(F19*E19))","v":0}]
[null,null,null,null,0,null,0]
[null,null,null,null,0,null,0]
[null,null,null,null,0,null,0]
[null,null,null,null,0,null,0]
[null,null,null,null,0,null,0]
[null,null,null,null,0,null,0]
[null,null,null,null,0,null,0]
[null,null,null,null,0,null,0]
[null,null,null,null,0,null,0]
[null,null,null,null,0,null,0]
["Total Parts",null,null,null,null,null,{"$f":"SUM(G18:G29)","v":0}]
[null,null,"Labour",0,{"$f":"Data!C11","v":200},"Total Labour",{"$f":"D31*E31","v":0}]
[null,null,null,null,"Subtotal",null,{"$f":"SUM(G30:G31)","v":0}]
[null,null,null,null,"VAT",0.15,{"$f":"G32*F33","v":0}]
[null,null,null,null,"TOTAL",null,{"$f":"G33+G32","v":0}]
[]
["Quote prepared by:",null,null,"Quote Accepted by:"]
[]
["Name",null,null,"Name"]
[]
["Signature",null,null,"Signature"]
[]
["Date",null,null,"Date"]
[]
[]
[null,null,null,null,null,null,{"$f":"INDEX!H44","v":"(ver 2019.07.03)"}]

{"sheet":"AF1224_1232","index":5,"n_rows":47,"n_cols":13,"rows_kept":47,"cut":false,"hidden":true,"merged":[[2,1,2,2],[18,4,18,5],[13,2,13,3],[5,2,5,8],[6,2,6,8],[8,4,8,8],[9,4,9,8]]}
[null,null,null,null,null,"Service Manager: ",null,{"$f":"Data!C5","v":"Danie Fourie"}]
[null,null,null,null,null,"Email:",null,{"$f":"Data!C7","v":"danief@nashualim.co.za"}]
[null,{"$f":"Data!C3","v":"Nashua Limpopo"},null,null,null,"Fax:",null,{"$f":"Data!C9","v":"015 590 0319"}]
[]
[]
[null,"Date: "]
[null,"Customer: "]
[]
[null,null,"Previous Servicing Franchise:   "]
[null,null,"Attention Technical Manager:    "]
[]
[]
[null,"Model:   ",null,null,null,null,null,"Black Meter:   "]
[null,"Serial Number:   ",null,null,null,null,null,"Colour Meter:   "]
[null,null,null,null,null,null,null,"Accounting Method:   ","Developments"]
[]
[null,null,{"$f":"IF(C13=\"AF3260C / AFC5560\",\"This quote includes the cost for 4 PCU's and their relevent parts\",\"\")","v":""}]
[]
[null,"Part ",null,"Expected","Last Fitted",null,"% to","FTP","Pro -Rata",null,null,null,"% of Meterreadings"]
[null,"Number","Description","Yield","Black Meter","Colour Meter","Charge","Cost","Charge"]
[1,"B2142302","PCU",120000,null,null,{"$f":"IF(M21>=1,1,M21)","v":0},null,{"$f":"IF(B21=\"\",\"\",$H21*$G21)","v":0},null,null,null,{"$f":"IF(I15=\"Developments\",((I13-E21)+(I14-F21))/D21,((I13-E21)+(4*(I14-F21)))/D21)","v":0}]
[2,"B0523494","Black Dev Unit",120000,null,null,0,null,0,null,null,null,{"$f":"IF(I15=\"Developments\",(I13-E22)/D22,((I13-E21)+(I14-F21))/D22)","v":0}]
[3,"B0523227","Cyan Dev Unit",60000,null,null,0,null,0,null,null,null,{"$f":"IF($I$15=\"Developments\",(($I$14-F23)/3)/D23,($I$14-F23)/D23)","v":0}]
[4,"B0523225","Magenta Dev Unit",60000,null,null,0,null,0,null,null,null,{"$f":"IF($I$15=\"Developments\",(($I$14-F24)/3)/D24,($I$14-F24)/D24)","v":0}]
[5,"B0523226","Yellow Dev Unit",60000,null,null,0,null,0,null,null,null,{"$f":"IF($I$15=\"Developments\",(($I$14-F25)/3)/D25,($I$14-F25)/D25)","v":0}]
[6,"B1544044","Fusing Sub Unit",120000,null,null,0,null,0,null,null,null,{"$f":"IF(I15=\"Developments\",(I13-E26)/D26,((I13-E26)+(I14-F26))/D26)","v":0}]
[null,null,null,null,null,null,null,"Total Parts:    ",{"$f":"SUM(I21:I26)","v":0}]
[null,null,null,null,"Labour ",0,{"$f":"\"@ R\"& Data!C11 &\" p/h\"","v":"@ R200 p/h"},"Total Labour:    ",{"$f":"F28*Data!C11","v":0}]
[null,null,null,null,null,null,null,"Sub Total:    ",{"$f":"I27+I28","v":0}]
[null,null,null,null,null,null,null,"VAT (14%):    ",{"$f":"I29*0.14","v":0}]
[null,null,null,null,null,null,null,"TOTAL:    ",{"$f":"I30+I29","v":0}]
[]
[]
[]
[]
[]
[null,"Quote prepared by:",null,null,null,"Quote accepted by:"]
[]
[]
[null,"Name:   ",null,null,null,"Name:   "]
[]
[]
[null,"Signature:",null,null,null,"Signature:"]
[]
[]
[null,"Date:",null,null,null,"Date:"]
[null,null,null,null,null,null,null,null,{"$f":"INDEX!H44","v":"(ver 2019.07.03)"}]

{"sheet":"AF3224_3232","index":6,"n_rows":55,"n_cols":17,"rows_kept":55,"cut":false,"hidden":true,"merged":[[18,5,18,6],[18,7,19,7],[18,8,19,8],[2,1,2,2],[5,2,5,10],[6,2,6,10],[8,5,8,10],[9,5,9,10],[13,2,13,4]]}
[null,null,null,null,null,null,"Service Manager: ",null,null,{"$f":"Data!C5","v":"Danie Fourie"}]
[null,null,null,null,null,null,"Email:",null,null,{"$f":"Data!C7","v":"danief@nashualim.co.za"}]
[null,{"$f":"Data!C3","v":"Nashua Limpopo"},null,null,null,null,"Fax:",null,null,{"$f":"Data!C9","v":"015 590 0319"}]
[]
[]
[null,"Date: "]
[null,"Customer: "]
[]
[null,null,"Previous Servicing Franchise:   "]
[null,null,"Attention Technical Manager:    "]
[]
[]
[null,"Model:   ",null,null,null,null,null,null,null,"Black Meter:   "]
[null,"Serial Number:   ",null,null,null,null,null,null,null,"Colour Meter:   "]
[null,null,null,null,null,null,null,null,null,"Accounting Method:   ","Developments"]
[]
[null,null,{"$f":"IF(C13=\"AF3260C / AFC5560\",\"This quote includes the cost for 4 PCU's and their relevent parts\",\"\")","v":""}]
[null,null,null,null,null,null,null,null,null,null,null,null,null,"Calc Type"]
[null,"Part ",null,null,"Expected","Last Fitted",null,"Prints \nper part","Pro-Rata % to Charge","FTP","Pro -Rata",null,null,"All / Col",null,"% of Meter readings"]
[null,"Number","Description",null,"Yield","Black Meter","Colour Meter",null,null,"Cost","Charge"]
[1,"B2142302","PCU",null,120000,null,null,{"$f":"IF($K$15=\"Prints\",IF(N21=\"Both\",($K$13-F21)+($K$14-G21),IF(N21=\"Col\",($K$14-G21),\"Calc Type Err\")),\nIF($K$15=\"Developments\",IF(N21=\"Both\",$K$13-F21,IF(N21=\"Col\",($K$14-G21)/3,\"Calc Type Err\")),\"Dev/Print Error\"))","v":0},{"$f":"IF(P21>=1,1,P21)","v":0},null,{"$f":"IF(B21=\"\",\"\",$J21*$I21)","v":0},null,null,"Both",null,{"$f":"H21/E21","v":0},{"$f":"IF(K15=\"Prints\",\n                    IF(N21=\"All\",(K13-F21)+(K14-G21),\n\"\"),\n\"\")","v":""}]
[2,"B1540152","Black Dev Unit",null,120000,null,null,{"$f":"IF($K$15=\"Prints\",IF(N22=\"Both\",($K$13-F22)+($K$14-G22),IF(N22=\"Col\",($K$14-G22),\"Calc Type Err\")),\nIF($K$15=\"Developments\",IF(N22=\"Both\",$K$13-F22,IF(N22=\"Col\",($K$14-G22)/3,\"Calc Type Err\")),\"Dev/Print Error\"))","v":0},0,null,{"$f":"IF(B22=\"\",\"\",$J22*$I22)","v":0},null,null,"Col",null,{"$f":"H22/E22","v":0}]
[3,"B1540155","Cyan Dev Unit",null,60000,null,null,0,0,null,0,null,null,"Col",null,0]
[4,"B1540154","Magenta Dev Unit",null,60000,null,null,0,0,null,0,null,null,"Col",null,0]
[null,"B1540156","Yellow Dev Unit",null,60000,null,null,0,0,null,0,null,null,"Both",null,0]
[5,"B1544009","Fusing Belt Ass'y",null,120000,null,null,0,0,null,0,null,null,"Both",null,0]
[6,"AE020132","Pressure Roller",null,120000,null,null,0,0,null,0,null,null,"Col",null,0]
[7,"B1544218","Fusing Cleaning Roller",null,120000,null,null,0,0,null,0,null,null,"Col",null,0]
[8,"G0704217","Sponge Roller",null,120000,null,null,0,0,null,0,null,null,"Col",null,0]
[9,"B1544302","Oil Supply Pad",null,60000,null,null,0,0,null,0,null,null,"Both",null,0]
[10,null,null,null,null,null,null,0,{"$error":"#DIV/0!"},null,"",null,null,"Both",null,{"$error":"#DIV/0!"}]
[11,null,null,null,null,null,null,0,{"$error":"#DIV/0!"},null,"",null,null,"Both",null,{"$error":"#DIV/0!"}]
[12,null,null,null,null,null,null,0,{"$error":"#DIV/0!"},null,"",null,null,"Both",null,{"$error":"#DIV/0!"}]
[13,null,null,null,null,null,null,0,{"$error":"#DIV/0!"},null,"",null,null,"Both",null,{"$error":"#DIV/0!"}]
[null,null,null,null,null,null,null,null,null,"Total Parts:    ",{"$f":"SUM(K21:K34)","v":0}]
[null,null,null,null,null,"Labour ",0,{"$f":"\"@ R\"& Data!C11 &\" p/h\"","v":"@ R200 p/h"},null,"Total Labour:    ",{"$f":"G36*Data!C11","v":0}]
[null,null,null,null,null,null,null,null,null,"Sub Total:    ",{"$f":"K35+K36","v":0}]
[null,null,null,null,null,null,null,null,null,"VAT (14%):    ",{"$f":"K37*0.14","v":0}]
[null,null,null,null,null,null,null,null,null,"TOTAL:    ",{"$f":"K38+K37","v":0}]
[]
[]
[]
[]
[]
[null,"Quote prepared by:",null,null,null,null,"Quote accepted by:"]
[]
[]
[null,"Name:   ",null,null,null,null,"Name:   "]
[]
[]
[null,"Signature:",null,null,null,null,"Signature:"]
[]
[]
[null,"Date:",null,null,null,null,"Date:"]
[null,null,null,null,null,null,null,null,null,null,{"$f":"INDEX!H44","v":"(ver 2019.07.03)"}]

{"sheet":"AF2228_2232_2238","index":7,"n_rows":53,"n_cols":13,"rows_kept":53,"cut":false,"hidden":true,"merged":[[2,1,2,2],[18,4,18,5],[13,2,13,3],[5,2,5,8],[6,2,6,8],[8,4,8,8],[9,4,9,8]]}
[null,null,null,null,null,"Service Manager: ",null,{"$f":"Data!C5","v":"Danie Fourie"}]
[null,null,null,null,null,"Email:",null,{"$f":"Data!C7","v":"danief@nashualim.co.za"}]
[null,{"$f":"Data!C3","v":"Nashua Limpopo"},null,null,null,"Fax:",null,{"$f":"Data!C9","v":"015 590 0319"}]
[]
[]
[null,"Date: "]
[null,"Customer: "]
[]
[null,null,"Previous Servicing Franchise:   "]
[null,null,"Attention Technical Manager:    "]
[]
[]
[null,"Model:   ",null,null,null,null,null,"Black Meter:   "]
[null,"Serial Number:   ",null,null,null,null,null,"Colour Meter:   "]
[null,null,null,null,null,null,null,"Accounting Method:   ","Developments"]
[]
[null,null,{"$f":"IF(C13=\"AF3260C / AFC5560\",\"This quote includes the cost for 4 PCU's and their relevent parts\",\"\")","v":""}]
[]
[null,"Part ",null,"Expected","Last Fitted",null,"% to","FTP","Pro -Rata",null,null,null,"% of Meter readings"]
[null,"Number","Description","Yield","Black Meter","Colour Meter","Charge","Cost","Charge"]
[1,"B1909510","Black PCU",60000,null,null,{"$f":"IF(M21>=1,1,M21)","v":0},null,{"$f":"IF(B21=\"\",\"\",$H21*$G21)","v":0},null,null,null,{"$f":"IF(I15=\"Developments\",(I13-E21)/D21,((I13-E21)+(I14-F21))/D21)","v":0}]
[2,"B1909510","Cyan PCU",60000,null,null,{"$f":"IF(M22>=1,1,M22)","v":0},null,{"$f":"IF(B22=\"\",\"\",$H22*$G22)","v":0},null,null,null,{"$f":"IF($I$15=\"Developments\",(($I$14-F22)/3)/D22,($I$14-F22)/D22)","v":0}]
[3,"B1909510","Magenta PCU",60000,null,null,0,null,0,null,null,null,{"$f":"IF($I$15=\"Developments\",(($I$14-F23)/3)/D23,($I$14-F23)/D23)","v":0}]
[4,"B1909510","Yellow PCU",60000,null,null,0,null,0,null,null,null,{"$f":"IF($I$15=\"Developments\",(($I$14-F24)/3)/D24,($I$14-F24)/D24)","v":0}]
[5,"B1163011","Black Dev Unit",80000,null,null,0,null,0,null,null,null,{"$f":"IF(I15=\"Developments\",(I13-E25)/D25,((I13-E25)+(I14-F25))/D25)","v":0}]
[6,"B1163012","Cyan Dev Unit",80000,null,null,0,null,0,null,null,null,{"$f":"IF($I$15=\"Developments\",(($I$14-F26)/3)/D26,($I$14-F26)/D26)","v":0}]
[7,"B1163013","Magenta Dev Unit",80000,null,null,0,null,0,null,null,null,{"$f":"IF($I$15=\"Developments\",(($I$14-F27)/3)/D27,($I$14-F27)/D27)","v":0}]
[8,"B1163014","Yellow Dev Unit",80000,null,null,0,null,0,null,null,null,{"$f":"IF($I$15=\"Developments\",(($I$14-F28)/3)/D28,($I$14-F28)/D28)","v":0}]
[9,"B1486239","Fuser Unit",60000,null,null,0,null,0,null,null,null,{"$f":"IF($I$15=\"Developments\",($I$13-E29)/D29,(($I$13-E29)+($I$14-F29))/D29)","v":0}]
[10,"B1164285","Oil Supply Unit",20000,null,null,0,null,0,null,null,null,{"$f":"IF($I$15=\"Developments\",($I$13-E30)/D30,(($I$13-E30)+($I$14-F30))/D30)","v":0}]
[11,"B1013811","Transfer Belt Unit",1000000,null,null,0,null,0,null,null,null,{"$f":"IF($I$15=\"Developments\",($I$13-E31)/D31,(($I$13-E31)+($I$14-F31))/D31)","v":0}]
[12,"G0803830","T/Belt Cleaning Unit",500000,null,null,0,null,0,null,null,null,{"$f":"IF($I$15=\"Developments\",($I$13-E32)/D32,(($I$13-E32)+($I$14-F32))/D32)","v":0}]
[null,null,null,null,null,null,null,"Total Parts:    ",{"$f":"SUM(I21:I32)","v":0}]
[null,null,null,null,"Labour ",0,{"$f":"\"@ R\"& Data!C11 &\" p/h\"","v":"@ R200 p/h"},"Total Labour:    ",{"$f":"F34*Data!C11","v":0}]
[null,null,null,null,null,null,null,"Sub Total:    ",{"$f":"I33+I34","v":0}]
[null,null,null,null,null,null,null,"VAT (14%):    ",{"$f":"I35*0.14","v":0}]
[null,null,null,null,null,null,null,"TOTAL:    ",{"$f":"I36+I35","v":0}]
[]
[]
[]
[]
[]
[null,"Quote prepared by:",null,null,null,"Quote accepted by:"]
[]
[]
[null,"Name:   ",null,null,null,"Name:   "]
[]
[]
[null,"Signature:",null,null,null,"Signature:"]
[]
[]
[null,"Date:",null,null,null,"Date:"]
[null,null,null,null,null,null,null,null,{"$f":"INDEX!H44","v":"(ver 2019.07.03)"}]

{"sheet":"AF3228_3235_3245","index":8,"n_rows":55,"n_cols":13,"rows_kept":55,"cut":false,"hidden":true,"merged":[[2,1,2,2],[18,4,18,5],[13,2,13,3],[5,2,5,8],[6,2,6,8],[8,4,8,8],[9,4,9,8]]}
[null,null,null,null,null,"Service Manager: ",null,{"$f":"Data!C5","v":"Danie Fourie"}]
[null,null,null,null,null,"Email:",null,{"$f":"Data!C7","v":"danief@nashualim.co.za"}]
[null,{"$f":"Data!C3","v":"Nashua Limpopo"},null,null,null,"Fax:",null,{"$f":"Data!C9","v":"015 590 0319"}]
[]
[]
[null,"Date: "]
[null,"Customer: "]
[]
[null,null,"Previous Servicing Franchise:   "]
[null,null,"Attention Technical Manager:    "]
[]
[]
[null,"Model:   ",null,null,null,null,null,"Black Meter:   "]
[null,"Serial Number:   ",null,null,null,null,null,"Colour Meter:   "]
[null,null,null,null,null,null,null,"Accounting Method:   ","Developments"]
[]
[null,null,{"$f":"IF(C13=\"AF3260C / AFC5560\",\"This quote includes the cost for 4 PCU's and their relevent parts\",\"\")","v":""}]
[]
[null,"Part ",null,"Expected","Last Fitted",null,"% to","FTP","Pro -Rata",null,null,null,"% of Meter readings"]
[null,"Number","Description","Yield","Black Meter","Colour Meter","Charge","Cost","Charge"]
[1,"B1809511","PCU (Black)",60000,null,null,{"$f":"IF(M21>=1,1,M21)","v":0},null,{"$f":"IF(B21=\"\",\"\",$H21*$G21)","v":0},null,null,null,{"$f":"IF(I15=\"Developments\",(I13-E21)/D21,((I13-E21)+(I14-F21))/D21)","v":0}]
[2,"B1809511","PCU (Cyan)",60000,null,null,0,null,{"$f":"IF(B22=\"\",\"\",$H22*$G22)","v":0},null,null,null,{"$f":"IF($I$15=\"Developments\",(($I$14-F22)/3)/D22,($I$14-F22)/D22)","v":0}]
[3,"B1809511","PCU (Magenta)",60000,null,null,0,null,0,null,null,null,{"$f":"IF($I$15=\"Developments\",(($I$14-F23)/3)/D23,($I$14-F23)/D23)","v":0}]
[4,"B1809511","PCU (Yellow)",60000,null,null,0,null,0,null,null,null,{"$f":"IF($I$15=\"Developments\",(($I$14-F24)/3)/D24,($I$14-F24)/D24)","v":0}]
[5,"B1803001","Black Dev Unit",60000,null,null,0,null,0,null,null,null,{"$f":"IF(I15=\"Developments\",(I13-E25)/D25,((I13-E25)+(I14-F25))/D25)","v":0}]
[6,"B1803002","Cyan Dev Unit",60000,null,null,0,null,0,null,null,null,{"$f":"IF($I$15=\"Developments\",(($I$14-F26)/3)/D26,($I$14-F26)/D26)","v":0}]
[7,"B1803003","Magenta Dev Unit",60000,null,null,0,null,0,null,null,null,{"$f":"IF($I$15=\"Developments\",(($I$14-F27)/3)/D27,($I$14-F27)/D27)","v":0}]
[8,"B1803004","Yellow Dev Unit",60000,null,null,0,null,0,null,null,null,{"$f":"IF($I$15=\"Developments\",(($I$14-F28)/3)/D28,($I$14-F28)/D28)","v":0}]
[9,"AE020155","Pressure Roller",60000,null,null,0,null,0,null,null,null,{"$f":"IF($I$15=\"Developments\",($I$13-E29)/D29,(($I$13-E29)+($I$14-F29))/D29)","v":0}]
[10,"AE010061","Fusing Roller",60000,null,null,0,null,0,null,null,null,0]
[11,"B1804108","Heat Roller",120000,null,null,0,null,0,null,null,null,0]
[12,"B1804101","Fusing Belt",60000,null,null,0,null,0,null,null,null,0]
[13,"B1803811","Transfer Belt Unit",1000000,null,null,{"$f":"IF(M33>=1,1,M33)","v":0},null,{"$f":"IF(B33=\"\",\"\",$H33*$G33)","v":0},null,null,null,0]
[14,"B2423830","T/Belt Cleaning Unit",250000,null,null,{"$f":"IF(M34>=1,1,M34)","v":0},null,{"$f":"IF(B34=\"\",\"\",$H34*$G34)","v":0},null,null,null,0]
[null,null,null,null,null,null,null,"Total Parts:    ",{"$f":"SUM(I21:I34)","v":0}]
[null,null,null,null,"Labour ",0,{"$f":"\"@ R\"& Data!C11 &\" p/h\"","v":"@ R200 p/h"},"Total Labour:    ",{"$f":"F36*Data!C11","v":0}]
[null,null,null,null,null,null,null,"Sub Total:    ",{"$f":"I35+I36","v":0}]
[null,null,null,null,null,null,null,"VAT (14%):    ",{"$f":"I37*0.14","v":0}]
[null,null,null,null,null,null,null,"TOTAL:    ",{"$f":"I38+I37","v":0}]
[]
[]
[]
[]
[]
[null,"Quote prepared by:",null,null,null,"Quote accepted by:"]
[]
[]
[null,"Name:   ",null,null,null,"Name:   "]
[]
[]
[null,"Signature:",null,null,null,"Signature:"]
[]
[]
[null,"Date:",null,null,null,"Date:"]
[null,null,null,null,null,null,null,null,{"$f":"INDEX!H44","v":"(ver 2019.07.03)"}]

{"sheet":"CLX-9201NA","index":9,"n_rows":91,"n_cols":19,"rows_kept":91,"cut":false,"hidden":false,"merged":[[18,11,19,11],[71,1,78,2],[13,18,18,19],[18,1,19,1],[18,2,19,2],[18,3,19,3],[18,4,19,4],[18,5,19,5],[18,6,18,7],[18,8,19,8],[18,9,19,9],[18,10,19,10],[13,2,13,5],[2,1,2,2],[5,2,5,11],[6,2,6,11],[8,6,8,11],[9,6,9,11]]}
[null,null,null,null,null,null,null,"Service Manager: ",null,null,{"$f":"Data!C5","v":"Danie Fourie"}]
[null,null,null,null,null,null,null,"Email:",null,null,{"$f":"Data!C7","v":"danief@nashualim.co.za"}]
[null,{"$f":"Data!C3","v":"Nashua Limpopo"},null,null,null,null,null,"Fax:",null,null,{"$f":"Data!C9","v":"015 590 0319"}]
[]
[]
[null,"Date: "]
[null,"Customer: "]
[]
[null,null,"Previous Servicing Franchise:   "]
[null,null,"Attention Technical Manager:    "]
[]
[]
[null,"Model:   ","\"COMPLETE!!!\"",null,null,null,null,null,null,null,"Black Meter:   "]
[null,"Serial Number:   ",null,null,null,null,null,null,null,null,"Colour Meter:   ",null,null,null,null,null,null,null,"Copy FTP pricing into Sheet1. Name area \"Pricing\". Superceded numbers"]
[null,null,null,null,null,null,null,null,null,null,"Accounting Method:   ","Prints"]
[null,"CONSUMABLES:   ","Select from List!"]
[null,null,{"$f":"IF(C13=\"AF3260C / AFC5560\",\"This quote includes the cost for 4 PCU's and their relevent parts\",\"\")","v":""}]
[null,null,null,null,null,null,null,null,null,null,null,null,null,null,"Calc Type"]
[null,"Part Number","Description","Qty","Process","Yield","Last Replacement Date",null,"Prints \nper part","Part usage (% of Yield)","FTP Price\n(Rand)","Pro rate Charge",null,null,"All / Col",null,"% of Meter readings"]
[null,null,null,null,null,null,"Black Meter","Colour Meter"]
[1,"JC91-01063A","FUSER;CLX-9201;SEC;WORLD;230V",1,null,150000,null,null,{"$f":"IF($L$15=\"Prints\",IF(O21=\"Both\",($L$13-G21)+($L$14-H21),IF(O21=\"Col\",($L$14-H21),IF(O21=\"-\",\"\",\"Error\"))),\n\nIF($L$15=\"Developments\",IF(O21=\"Both\",$L$13-G21,IF(O21=\"Col\",($L$14-H21)/3,IF(O21=\"-\",\"\",\"Error\"))),\"Dev/Print Error\"))","v":0},{"$f":"IF(B21=\"\",\"\",IF(Q21>=1,1,Q21))","v":0},null,{"$f":"IF(B21=\"\",\"\",$K21*$J21*D21)","v":0},null,null,"Both",null,{"$f":"I21/F21","v":0},{"$f":"IF(L15=\"Prints\",\n                    IF(O21=\"All\",(L13-G21)+(L14-H21),\n\"\"),\n\"\")","v":""},{"$f":"IF(VLOOKUP(B21,Pricing,5,FALSE)=\"\",B21,VLOOKUP(B21,Pricing,5,FALSE))","v":{"$error":"#N/A"}}]
[2,"JC96-06200A","CARTRIDGE SUB-DEVE C KIT",1,null,300000,null,null,{"$f":"IF($L$15=\"Prints\",IF(O22=\"Both\",($L$13-G22)+($L$14-H22),IF(O22=\"Col\",($L$14-H22),IF(O22=\"-\",\"\",\"Error\"))),\n\nIF($L$15=\"Developments\",IF(O22=\"Both\",$L$13-G22,IF(O22=\"Col\",($L$14-H22)/3,IF(O22=\"-\",\"\",\"Error\"))),\"Dev/Print Error\"))","v":0},{"$f":"IF(B22=\"\",\"\",IF(Q22>=1,1,Q22))","v":0},null,0,null,null,"Both",null,{"$f":"I22/F22","v":0},null,{"$error":"#N/A"}]
[3,"JC96-06246A","CARTRIDGE-TRANSFER ITB CLEAN",1,null,150000,null,null,0,0,null,0,null,null,"Both",null,0,null,{"$error":"#N/A"}]
[4,"JC96-06732A","CART-DEVE K:CLX-9301:FRU 300KP",1,null,300000,null,null,0,0,null,0,null,null,"Both",null,0,null,{"$error":"#N/A"}]
[null,"DRMCLT-R809","SAMSUNG UNIVERSAL DRUM",1,"K",50000,null,null,0,0,null,0,null,null,"Both",null,0,null,{"$error":"#N/A"}]
[5,"DRMCLT-R809","SAMSUNG UNIVERSAL DRUM",1,"C",50000,null,null,0,0,null,0,null,null,"Col",null,0,null,{"$error":"#N/A"}]
[6,"DRMCLT-R809","SAMSUNG UNIVERSAL DRUM",1,"M",50000,null,null,0,0,null,0,null,null,"Col",null,0,null,{"$error":"#N/A"}]
[7,"DRMCLT-R809","SAMSUNG UNIVERSAL DRUM",1,"Y",50000,null,null,0,0,null,0,null,null,"Col",null,0,null,{"$error":"#N/A"}]
[null,null,null,null,null,null,null,null,"","",null,"",null,null,"-",null,{"$error":"#VALUE!"},null,{"$error":"#N/A"}]
[null,null,null,null,null,null,null,null,"","",null,"",null,null,"-",null,{"$error":"#VALUE!"},null,{"$error":"#N/A"}]
[null,null,null,null,null,null,null,null,"","",null,"",null,null,"-",null,{"$error":"#VALUE!"},null,{"$error":"#N/A"}]
[null,null,null,null,null,null,null,null,"","",null,"",null,null,"-",null,{"$error":"#VALUE!"},null,{"$error":"#N/A"}]
[null,null,null,null,null,null,null,null,"","",null,"",null,null,"-",null,{"$error":"#VALUE!"},null,{"$error":"#N/A"}]
[null,null,null,null,null,null,null,null,"","",null,"",null,null,"-",null,{"$error":"#VALUE!"},null,{"$error":"#N/A"}]
[null,null,null,null,null,null,null,null,"","",null,"",null,null,"-",null,{"$error":"#VALUE!"},null,{"$error":"#N/A"}]
[null,null,null,null,null,null,null,null,"","",null,"",null,null,"-",null,{"$error":"#VALUE!"},null,{"$error":"#N/A"}]
[null,null,null,null,null,null,null,null,"","",null,"",null,null,"-",null,{"$error":"#VALUE!"},null,{"$error":"#N/A"}]
[null,null,null,null,null,null,null,null,"","",null,"",null,null,"-",null,{"$error":"#VALUE!"},null,{"$error":"#N/A"}]
[null,null,null,null,null,null,null,null,"","",null,"",null,null,"-",null,{"$error":"#VALUE!"},null,{"$error":"#N/A"}]
[null,null,null,null,null,null,null,null,"","",null,"",null,null,"-",null,{"$error":"#VALUE!"},null,{"$error":"#N/A"}]
[null,null,null,null,null,null,null,null,"","",null,"",null,null,"-",null,{"$error":"#VALUE!"},null,{"$error":"#N/A"}]
[null,null,null,null,null,null,null,null,"","",null,"",null,null,"-",null,{"$error":"#VALUE!"},null,{"$error":"#N/A"}]
[null,null,null,null,null,null,null,null,"","",null,"",null,null,"-",null,{"$error":"#VALUE!"},null,{"$error":"#N/A"}]
[null,null,null,null,null,null,null,null,"","",null,"",null,null,"-",null,{"$error":"#VALUE!"},null,{"$error":"#N/A"}]
[null,null,null,null,null,null,null,null,"","",null,"",null,null,"-",null,{"$error":"#VALUE!"},null,{"$error":"#N/A"}]
[null,null,null,null,null,null,null,null,"","",null,"",null,null,"-",null,{"$error":"#VALUE!"},null,{"$error":"#N/A"}]
[null,null,null,null,null,null,null,null,"","",null,"",null,null,"-",null,{"$error":"#VALUE!"},null,{"$error":"#N/A"}]
[8,null,null,null,null,null,null,null,"","",null,"",null,null,"-",null,{"$error":"#VALUE!"},null,{"$error":"#N/A"}]
[null,null,null,null,null,null,null,null,"","",null,"",null,null,"-",null,{"$error":"#VALUE!"},null,{"$error":"#N/A"}]
[null,null,null,null,null,null,null,null,"","",null,"",null,null,"-",null,{"$error":"#VALUE!"},null,{"$error":"#N/A"}]
[null,null,null,null,null,null,null,null,"","",null,"",null,null,"-",null,{"$error":"#VALUE!"},null,{"$error":"#N/A"}]
[null,null,null,null,null,null,null,null,"","",null,"",null,null,"-",null,{"$error":"#VALUE!"},null,{"$error":"#N/A"}]
[9,null,null,null,null,null,null,null,"","",null,"",null,null,"-",null,{"$error":"#VALUE!"},null,{"$error":"#N/A"}]
[10,null,null,null,null,null,null,null,"","",null,"",null,null,"-",null,{"$error":"#VALUE!"},null,{"$error":"#N/A"}]
[11,null,null,null,null,null,null,null,"","",null,"",null,null,"-",null,{"$error":"#VALUE!"},null,{"$error":"#N/A"}]
[null,null,null,null,null,null,null,null,"","",null,"",null,null,"-",null,{"$error":"#VALUE!"},null,{"$error":"#N/A"}]
[null,null,null,null,null,null,null,null,"","",null,"",null,null,"-",null,{"$error":"#VALUE!"},null,{"$error":"#N/A"}]
[null,null,null,null,null,null,null,null,"","",null,"",null,null,"-",null,{"$error":"#VALUE!"},null,{"$error":"#N/A"}]
[null,null,null,null,null,null,null,null,"","",null,"",null,null,"-",null,{"$error":"#VALUE!"},null,{"$error":"#N/A"}]
[null,null,null,null,null,null,null,null,"","",null,"",null,null,"-",null,{"$error":"#VALUE!"},null,{"$error":"#N/A"}]
[null,null,null,null,null,null,null,null,"","",null,"",null,null,"-",null,{"$error":"#VALUE!"},null,{"$error":"#N/A"}]
[null,null,null,null,null,null,null,null,"","",null,"",null,null,"-",null,{"$error":"#VALUE!"},null,{"$error":"#N/A"}]
[null,null,null,null,null,null,null,null,"","",null,"",null,null,"-",null,{"$error":"#VALUE!"},null,{"$error":"#N/A"}]
[null,null,null,null,null,null,null,null,"","",null,"",null,null,"-",null,{"$error":"#VALUE!"},null,{"$error":"#N/A"}]
[null,null,null,null,null,null,null,null,"","",null,"",null,null,"-",null,{"$error":"#VALUE!"},null,{"$error":"#N/A"}]
[null,null,null,null,null,null,null,null,"","",null,"",null,null,"-",null,{"$error":"#VALUE!"},null,{"$error":"#N/A"}]
[null,null,null,null,null,null,null,null,"","",null,"",null,null,"-",null,{"$error":"#VALUE!"},null,{"$error":"#N/A"}]
[null,null,null,null,null,null,null,null,"","",null,"",null,null,"-",null,{"$error":"#VALUE!"},null,{"$error":"#N/A"}]
[12,null,null,null,null,null,null,null,"","",null,"",null,null,"-",null,{"$error":"#VALUE!"},null,{"$error":"#N/A"}]
[13,null,null,null,null,null,null,null,"","",null,"",null,null,"-",null,{"$error":"#VALUE!"},null,{"$error":"#N/A"}]
[null,"Additional Notes:",null,null,null,null,null,null,null,null,"Total Parts:    ",{"$f":"SUM(L21:L70)","v":0},null,null,"-"]
[null,null,null,null,null,null,"Labour ",0,{"$f":"\"@ R\"& Data!C11 &\" p/h\"","v":"@ R200 p/h"},null,"Total Labour:    ",{"$f":"H72*Data!C11","v":0},null,null,"-"]
[null,null,null,null,null,null,null,null,null,null,"Sub Total:    ",{"$f":"L71+L72","v":0}]
[null,null,null,null,null,null,null,null,null,null,"VAT (15%):    ",{"$f":"L73*0.15","v":0}]
[null,null,null,null,null,null,null,null,null,null,"TOTAL:    ",{"$f":"L74+L73","v":0}]
[]
[]
[]
[]
[]
[null,"Quote prepared by:",null,null,null,null,null,"Quote accepted by:"]
[]
[]
[null,"Name:   ",null,null,null,null,null,"Name:   "]
[]
[]
[null,"Signature:",null,null,null,null,null,"Signature:"]
[]
[]
[null,"Date:",null,null,null,null,null,"Date:"]
[null,null,null,null,null,null,null,null,null,null,null,{"$f":"INDEX!H44","v":"(ver 2019.07.03)"}]

{"sheet":"MPC2000_2500_3000","index":10,"n_rows":91,"n_cols":19,"rows_kept":91,"cut":false,"hidden":false,"merged":[[18,11,19,11],[71,1,78,2],[13,18,18,19],[18,1,19,1],[18,2,19,2],[18,3,19,3],[18,4,19,4],[18,5,19,5],[18,6,18,7],[18,8,19,8],[18,9,19,9],[18,10,19,10],[13,2,13,5],[2,1,2,2],[5,2,5,11],[6,2,6,11],[8,6,8,11],[9,6,9,11]]}
[null,null,null,null,null,null,null,"Service Manager: ",null,null,{"$f":"Data!C5","v":"Danie Fourie"}]
[null,null,null,null,null,null,null,"Email:",null,null,{"$f":"Data!C7","v":"danief@nashualim.co.za"}]
[null,{"$f":"Data!C3","v":"Nashua Limpopo"},null,null,null,null,null,"Fax:",null,null,{"$f":"Data!C9","v":"015 590 0319"}]
[]
[]
[null,"Date: "]
[null,"Customer: "]
[]
[null,null,"Previous Servicing Franchise:   "]
[null,null,"Attention Technical Manager:    "]
[]
[]
[null,"Model:   ","\"COMPLETE!!!\"",null,null,null,null,null,null,null,"Black Meter:   "]
[null,"Serial Number:   ",null,null,null,null,null,null,null,null,"Colour Meter:   ",null,null,null,null,null,null,null,"Copy FTP pricing into Sheet1. Name area \"Pricing\". Superceded numbers"]
[null,null,null,null,null,null,null,null,null,null,"Accounting Method:   ","Prints"]
[null,"CONSUMABLES:   ","Select from List!"]
[null,null,{"$f":"IF(C13=\"AF3260C / AFC5560\",\"This quote includes the cost for 4 PCU's and their relevent parts\",\"\")","v":""}]
[null,null,null,null,null,null,null,null,null,null,null,null,null,null,"Calc Type"]
[null,"Part Number","Description","Qty","Process","Yield","Last Replacement Date",null,"Prints \nper part","Part usage (% of Yield)","FTP Price\n(Rand)","Pro rate Charge",null,null,"All / Col",null,"% of Meter readings"]
[null,null,null,null,null,null,"Black Meter","Colour Meter"]
[1,"B2236039","CL UNIT:I/MED TRANS (B2236029)",1,null,160000,null,null,{"$f":"IF($L$15=\"Prints\",IF(O21=\"Both\",($L$13-G21)+($L$14-H21),IF(O21=\"Col\",($L$14-H21),IF(O21=\"-\",\"\",\"Error\"))),\n\nIF($L$15=\"Developments\",IF(O21=\"Both\",$L$13-G21,IF(O21=\"Col\",($L$14-H21)/3,IF(O21=\"-\",\"\",\"Error\"))),\"Dev/Print Error\"))","v":0},{"$f":"IF(B21=\"\",\"\",IF(Q21>=1,1,Q21))","v":0},null,{"$f":"IF(B21=\"\",\"\",$K21*$J21*D21)","v":0},null,null,"Both",null,{"$f":"I21/F21","v":0},{"$f":"IF(L15=\"Prints\",\n                    IF(O21=\"All\",(L13-G21)+(L14-H21),\n\"\"),\n\"\")","v":""},{"$f":"IF(VLOOKUP(B21,Pricing,5,FALSE)=\"\",B21,VLOOKUP(B21,Pricing,5,FALSE))","v":{"$error":"#N/A"}}]
[2,"AE040066","CLEANING ROLLER MPC25/3000",1,null,160000,null,null,{"$f":"IF($L$15=\"Prints\",IF(O22=\"Both\",($L$13-G22)+($L$14-H22),IF(O22=\"Col\",($L$14-H22),IF(O22=\"-\",\"\",\"Error\"))),\n\nIF($L$15=\"Developments\",IF(O22=\"Both\",$L$13-G22,IF(O22=\"Col\",($L$14-H22)/3,IF(O22=\"-\",\"\",\"Error\"))),\"Dev/Print Error\"))","v":0},{"$f":"IF(B22=\"\",\"\",IF(Q22>=1,1,Q22))","v":0},null,0,null,null,"Both",null,{"$f":"I22/F22","v":0},null,{"$error":"#N/A"}]
[3,"B2233014","DEV UNIT:BK MPC2500(B2233013)",1,"K",320000,null,null,0,0,null,0,null,null,"Both",null,0,null,{"$error":"#N/A"}]
[4,"B2242042","DRUM UNIT:BK(B2232042)MPC2500",1,"K",80000,null,null,0,0,null,0,null,null,"Both",null,0,null,{"$error":"#N/A"}]
[null,"B2242027","DRUM UNT:AP:CL:EX:(B2232027)",1,"C",80000,null,null,0,0,null,0,null,null,"Col",null,0,null,{"$error":"#N/A"}]
[5,"B2242027","DRUM UNT:AP:CL:EX:(B2232027)",1,"M",80000,null,null,0,0,null,0,null,null,"Col",null,0,null,{"$error":"#N/A"}]
[6,"B2242027","DRUM UNT:AP:CL:EX:(B2232027)",1,"Y",80000,null,null,0,0,null,0,null,null,"Col",null,0,null,{"$error":"#N/A"}]
[7,"B2384070","FUSING BELT MPC25/3000",1,null,160000,null,null,0,0,null,0,null,null,"Both",null,0,null,{"$error":"#N/A"}]
[null,"AE010054","FUSING ROLLER MPC25/3000",1,null,160000,null,null,0,0,null,0,null,null,"Both",null,0,null,{"$error":"#N/A"}]
[null,"AE012030","HEATING ROLLER MPC25/3000",1,null,160000,null,null,0,0,null,0,null,null,"Both",null,0,null,{"$error":"#N/A"}]
[null,"B2236043","I/MED TRANS SEC (B2236042)",1,null,320000,null,null,0,0,null,0,null,null,"Both",null,0,null,{"$error":"#N/A"}]
[null,"AE040069","OIL SUP ROLL(AE040065)MPC2500",1,null,160000,null,null,0,0,null,0,null,null,"Both",null,0,null,{"$error":"#N/A"}]
[null,"AE020156","PRESSURE ROLLER MPC25/3000",1,null,160000,null,null,0,0,null,0,null,null,"Both",null,0,null,{"$error":"#N/A"}]
[null,"B2376262","TRAN/SEP UNIT:AT:EXP(B2376261)",1,null,240000,null,null,0,0,null,0,null,null,"Both",null,0,null,{"$error":"#N/A"}]
[null,null,null,null,null,null,null,null,"","",null,"",null,null,"-",null,{"$error":"#VALUE!"},null,{"$error":"#N/A"}]
[null,null,null,null,null,null,null,null,"","",null,"",null,null,"-",null,{"$error":"#VALUE!"},null,{"$error":"#N/A"}]
[null,null,null,null,null,null,null,null,"","",null,"",null,null,"-",null,{"$error":"#VALUE!"},null,{"$error":"#N/A"}]
[null,null,null,null,null,null,null,null,"","",null,"",null,null,"-",null,{"$error":"#VALUE!"},null,{"$error":"#N/A"}]
[null,null,null,null,null,null,null,null,"","",null,"",null,null,"-",null,{"$error":"#VALUE!"},null,{"$error":"#N/A"}]
[null,null,null,null,null,null,null,null,"","",null,"",null,null,"-",null,{"$error":"#VALUE!"},null,{"$error":"#N/A"}]
[null,null,null,null,null,null,null,null,"","",null,"",null,null,"-",null,{"$error":"#VALUE!"},null,{"$error":"#N/A"}]
[null,null,null,null,null,null,null,null,"","",null,"",null,null,"-",null,{"$error":"#VALUE!"},null,{"$error":"#N/A"}]
[null,null,null,null,null,null,null,null,"","",null,"",null,null,"-",null,{"$error":"#VALUE!"},null,{"$error":"#N/A"}]
[null,null,null,null,null,null,null,null,"","",null,"",null,null,"-",null,{"$error":"#VALUE!"},null,{"$error":"#N/A"}]
[null,null,null,null,null,null,null,null,"","",null,"",null,null,"-",null,{"$error":"#VALUE!"},null,{"$error":"#N/A"}]
[null,null,null,null,null,null,null,null,"","",null,"",null,null,"-",null,{"$error":"#VALUE!"},null,{"$error":"#N/A"}]
[null,null,null,null,null,null,null,null,"","",null,"",null,null,"-",null,{"$error":"#VALUE!"},null,{"$error":"#N/A"}]
[8,null,null,null,null,null,null,null,"","",null,"",null,null,"-",null,{"$error":"#VALUE!"},null,{"$error":"#N/A"}]
[null,null,null,null,null,null,null,null,"","",null,"",null,null,"-",null,{"$error":"#VALUE!"},null,{"$error":"#N/A"}]
[null,null,null,null,null,null,null,null,"","",null,"",null,null,"-",null,{"$error":"#VALUE!"},null,{"$error":"#N/A"}]
[null,null,null,null,null,null,null,null,"","",null,"",null,null,"-",null,{"$error":"#VALUE!"},null,{"$error":"#N/A"}]
[null,null,null,null,null,null,null,null,"","",null,"",null,null,"-",null,{"$error":"#VALUE!"},null,{"$error":"#N/A"}]
[9,null,null,null,null,null,null,null,"","",null,"",null,null,"-",null,{"$error":"#VALUE!"},null,{"$error":"#N/A"}]
[10,null,null,null,null,null,null,null,"","",null,"",null,null,"-",null,{"$error":"#VALUE!"},null,{"$error":"#N/A"}]
[11,null,null,null,null,null,null,null,"","",null,"",null,null,"-",null,{"$error":"#VALUE!"},null,{"$error":"#N/A"}]
[null,null,null,null,null,null,null,null,"","",null,"",null,null,"-",null,{"$error":"#VALUE!"},null,{"$error":"#N/A"}]
[null,null,null,null,null,null,null,null,"","",null,"",null,null,"-",null,{"$error":"#VALUE!"},null,{"$error":"#N/A"}]
[null,null,null,null,null,null,null,null,"","",null,"",null,null,"-",null,{"$error":"#VALUE!"},null,{"$error":"#N/A"}]
[null,null,null,null,null,null,null,null,"","",null,"",null,null,"-",null,{"$error":"#VALUE!"},null,{"$error":"#N/A"}]
[null,null,null,null,null,null,null,null,"","",null,"",null,null,"-",null,{"$error":"#VALUE!"},null,{"$error":"#N/A"}]
[null,null,null,null,null,null,null,null,"","",null,"",null,null,"-",null,{"$error":"#VALUE!"},null,{"$error":"#N/A"}]
[null,null,null,null,null,null,null,null,"","",null,"",null,null,"-",null,{"$error":"#VALUE!"},null,{"$error":"#N/A"}]
[null,null,null,null,null,null,null,null,"","",null,"",null,null,"-",null,{"$error":"#VALUE!"},null,{"$error":"#N/A"}]
[null,null,null,null,null,null,null,null,"","",null,"",null,null,"-",null,{"$error":"#VALUE!"},null,{"$error":"#N/A"}]
[null,null,null,null,null,null,null,null,"","",null,"",null,null,"-",null,{"$error":"#VALUE!"},null,{"$error":"#N/A"}]
[null,null,null,null,null,null,null,null,"","",null,"",null,null,"-",null,{"$error":"#VALUE!"},null,{"$error":"#N/A"}]
[null,null,null,null,null,null,null,null,"","",null,"",null,null,"-",null,{"$error":"#VALUE!"},null,{"$error":"#N/A"}]
[null,null,null,null,null,null,null,null,"","",null,"",null,null,"-",null,{"$error":"#VALUE!"},null,{"$error":"#N/A"}]
[12,null,null,null,null,null,null,null,"","",null,"",null,null,"-",null,{"$error":"#VALUE!"},null,{"$error":"#N/A"}]
[13,null,null,null,null,null,null,null,"","",null,"",null,null,"-",null,{"$error":"#VALUE!"},null,{"$error":"#N/A"}]
[null,"Additional Notes:",null,null,null,null,null,null,null,null,"Total Parts:    ",{"$f":"SUM(L21:L70)","v":0},null,null,"-"]
[null,null,null,null,null,null,"Labour ",0,{"$f":"\"@ R\"& Data!C11 &\" p/h\"","v":"@ R200 p/h"},null,"Total Labour:    ",{"$f":"H72*Data!C11","v":0},null,null,"-"]
[null,null,null,null,null,null,null,null,null,null,"Sub Total:    ",{"$f":"L71+L72","v":0}]
[null,null,null,null,null,null,null,null,null,null,"VAT (15%):    ",{"$f":"L73*0.15","v":0}]
[null,null,null,null,null,null,null,null,null,null,"TOTAL:    ",{"$f":"L74+L73","v":0}]
[]
[]
[]
[]
[]
[null,"Quote prepared by:",null,null,null,null,null,"Quote accepted by:"]
[]
[]
[null,"Name:   ",null,null,null,null,null,"Name:   "]
[]
[]
[null,"Signature:",null,null,null,null,null,"Signature:"]
[]
[]
[null,"Date:",null,null,null,null,null,"Date:"]
[null,null,null,null,null,null,null,null,null,null,null,{"$f":"INDEX!H44","v":"(ver 2019.07.03)"}]

{"sheet":"MPC2003_2503","index":11,"n_rows":91,"n_cols":19,"rows_kept":91,"cut":false,"hidden":false,"merged":[[18,11,19,11],[71,1,78,2],[13,18,18,19],[18,1,19,1],[18,2,19,2],[18,3,19,3],[18,4,19,4],[18,5,19,5],[18,6,18,7],[18,8,19,8],[18,9,19,9],[18,10,19,10],[13,2,13,5],[2,1,2,2],[5,2,5,11],[6,2,6,11],[8,6,8,11],[9,6,9,11]]}
[null,null,null,null,null,null,null,"Service Manager: ",null,null,{"$f":"Data!C5","v":"Danie Fourie"}]
[null,null,null,null,null,null,null,"Email:",null,null,{"$f":"Data!C7","v":"danief@nashualim.co.za"}]
[null,{"$f":"Data!C3","v":"Nashua Limpopo"},null,null,null,null,null,"Fax:",null,null,{"$f":"Data!C9","v":"015 590 0319"}]
[]
[]
[null,"Date: "]
[null,"Customer: "]
[]
[null,null,"Previous Servicing Franchise:   "]
[null,null,"Attention Technical Manager:    "]
[]
[]
[null,"Model:   ","\"COMPLETE!!!\"",null,null,null,null,null,null,null,"Black Meter:   "]
[null,"Serial Number:   ",null,null,null,null,null,null,null,null,"Colour Meter:   ",null,null,null,null,null,null,null,"Copy FTP pricing into Sheet1. Name area \"Pricing\". Superceded numbers"]
[null,null,null,null,null,null,null,null,null,null,"Accounting Method:   ","Prints"]
[null,"CONSUMABLES:   ","Select from List!"]
[null,null,{"$f":"IF(C13=\"AF3260C / AFC5560\",\"This quote includes the cost for 4 PCU's and their relevent parts\",\"\")","v":""}]
[null,null,null,null,null,null,null,null,null,null,null,null,null,null,"Calc Type"]
[null,"Part Number","Description","Qty","Process","Yield","Last Replacement Date",null,"Prints \nper part","Part usage (% of Yield)","FTP Price\n(Rand)","Pro rate Charge",null,null,"All / Col",null,"% of Meter readings"]
[null,null,null,null,null,null,"Black Meter","Colour Meter"]
[1,"D2416141","BELT CLEAN:I/M TRANS(D1496141)",1,null,240000,null,null,{"$f":"IF($L$15=\"Prints\",IF(O21=\"Both\",($L$13-G21)+($L$14-H21),IF(O21=\"Col\",($L$14-H21),IF(O21=\"-\",\"\",\"Error\"))),\n\nIF($L$15=\"Developments\",IF(O21=\"Both\",$L$13-G21,IF(O21=\"Col\",($L$14-H21)/3,IF(O21=\"-\",\"\",\"Error\"))),\"Dev/Print Error\"))","v":0},{"$f":"IF(B21=\"\",\"\",IF(Q21>=1,1,Q21))","v":0},null,{"$f":"IF(B21=\"\",\"\",$K21*$J21*D21)","v":0},null,null,"Both",null,{"$f":"I21/F21","v":0},{"$f":"IF(L15=\"Prints\",\n                    IF(O21=\"All\",(L13-G21)+(L14-H21),\n\"\"),\n\"\")","v":""},{"$f":"IF(VLOOKUP(B21,Pricing,5,FALSE)=\"\",B21,VLOOKUP(B21,Pricing,5,FALSE))","v":{"$error":"#N/A"}}]
[2,"D1773025","DEV UNIT:SVS PARTS:K(D1773020)",1,"K",120000,null,null,{"$f":"IF($L$15=\"Prints\",IF(O22=\"Both\",($L$13-G22)+($L$14-H22),IF(O22=\"Col\",($L$14-H22),IF(O22=\"-\",\"\",\"Error\"))),\n\nIF($L$15=\"Developments\",IF(O22=\"Both\",$L$13-G22,IF(O22=\"Col\",($L$14-H22)/3,IF(O22=\"-\",\"\",\"Error\"))),\"Dev/Print Error\"))","v":0},{"$f":"IF(B22=\"\",\"\",IF(Q22>=1,1,Q22))","v":0},null,0,null,null,"Both",null,{"$f":"I22/F22","v":0},null,{"$error":"#N/A"}]
[3,"D1882254","PCU:SERVICE PARTS:EX(D1882252)",1,"K",60000,null,null,0,0,null,0,null,null,"Both",null,0,null,{"$error":"#N/A"}]
[4,"AE020247","PRESSURE ROLLER:DIA32:SVS PART",1,null,240000,null,null,0,0,null,0,null,null,"Both",null,0,null,{"$error":"#N/A"}]
[null,"D1764042","SLEEVE:FUS:EU:SERVICE(D1764032",1,null,240000,null,null,0,0,null,0,null,null,"Both",null,0,null,{"$error":"#N/A"}]
[5,"D1496212","TRANS ROLL:2ND:ASS(D1496211)",1,null,240000,null,null,0,0,null,0,null,null,"Both",null,0,null,{"$error":"#N/A"}]
[6,"D1776007","TRANS UNIT:I/MED TR(D1776001)",1,null,240000,null,null,0,0,null,0,null,null,"Both",null,0,null,{"$error":"#N/A"}]
[7,null,null,null,null,null,null,null,"","",null,"",null,null,"-",null,{"$error":"#VALUE!"},null,{"$error":"#N/A"}]
[null,null,null,null,null,null,null,null,"","",null,"",null,null,"-",null,{"$error":"#VALUE!"},null,{"$error":"#N/A"}]
[null,null,null,null,null,null,null,null,"","",null,"",null,null,"-",null,{"$error":"#VALUE!"},null,{"$error":"#N/A"}]
[null,null,null,null,null,null,null,null,"","",null,"",null,null,"-",null,{"$error":"#VALUE!"},null,{"$error":"#N/A"}]
[null,null,null,null,null,null,null,null,"","",null,"",null,null,"-",null,{"$error":"#VALUE!"},null,{"$error":"#N/A"}]
[null,null,null,null,null,null,null,null,"","",null,"",null,null,"-",null,{"$error":"#VALUE!"},null,{"$error":"#N/A"}]
[null,null,null,null,null,null,null,null,"","",null,"",null,null,"-",null,{"$error":"#VALUE!"},null,{"$error":"#N/A"}]
[null,null,null,null,null,null,null,null,"","",null,"",null,null,"-",null,{"$error":"#VALUE!"},null,{"$error":"#N/A"}]
[null,null,null,null,null,null,null,null,"","",null,"",null,null,"-",null,{"$error":"#VALUE!"},null,{"$error":"#N/A"}]
[null,null,null,null,null,null,null,null,"","",null,"",null,null,"-",null,{"$error":"#VALUE!"},null,{"$error":"#N/A"}]
[null,null,null,null,null,null,null,null,"","",null,"",null,null,"-",null,{"$error":"#VALUE!"},null,{"$error":"#N/A"}]
[null,null,null,null,null,null,null,null,"","",null,"",null,null,"-",null,{"$error":"#VALUE!"},null,{"$error":"#N/A"}]
[null,null,null,null,null,null,null,null,"","",null,"",null,null,"-",null,{"$error":"#VALUE!"},null,{"$error":"#N/A"}]
[null,null,null,null,null,null,null,null,"","",null,"",null,null,"-",null,{"$error":"#VALUE!"},null,{"$error":"#N/A"}]
[null,null,null,null,null,null,null,null,"","",null,"",null,null,"-",null,{"$error":"#VALUE!"},null,{"$error":"#N/A"}]
[null,null,null,null,null,null,null,null,"","",null,"",null,null,"-",null,{"$error":"#VALUE!"},null,{"$error":"#N/A"}]
[null,null,null,null,null,null,null,null,"","",null,"",null,null,"-",null,{"$error":"#VALUE!"},null,{"$error":"#N/A"}]
[null,null,null,null,null,null,null,null,"","",null,"",null,null,"-",null,{"$error":"#VALUE!"},null,{"$error":"#N/A"}]
[null,null,null,null,null,null,null,null,"","",null,"",null,null,"-",null,{"$error":"#VALUE!"},null,{"$error":"#N/A"}]
[null,null,null,null,null,null,null,null,"","",null,"",null,null,"-",null,{"$error":"#VALUE!"},null,{"$error":"#N/A"}]
[8,null,null,null,null,null,null,null,"","",null,"",null,null,"-",null,{"$error":"#VALUE!"},null,{"$error":"#N/A"}]
[null,null,null,null,null,null,null,null,"","",null,"",null,null,"-",null,{"$error":"#VALUE!"},null,{"$error":"#N/A"}]
[null,null,null,null,null,null,null,null,"","",null,"",null,null,"-",null,{"$error":"#VALUE!"},null,{"$error":"#N/A"}]
[null,null,null,null,null,null,null,null,"","",null,"",null,null,"-",null,{"$error":"#VALUE!"},null,{"$error":"#N/A"}]
[null,null,null,null,null,null,null,null,"","",null,"",null,null,"-",null,{"$error":"#VALUE!"},null,{"$error":"#N/A"}]
[9,null,null,null,null,null,null,null,"","",null,"",null,null,"-",null,{"$error":"#VALUE!"},null,{"$error":"#N/A"}]
[10,null,null,null,null,null,null,null,"","",null,"",null,null,"-",null,{"$error":"#VALUE!"},null,{"$error":"#N/A"}]
[11,null,null,null,null,null,null,null,"","",null,"",null,null,"-",null,{"$error":"#VALUE!"},null,{"$error":"#N/A"}]
[null,null,null,null,null,null,null,null,"","",null,"",null,null,"-",null,{"$error":"#VALUE!"},null,{"$error":"#N/A"}]
[null,null,null,null,null,null,null,null,"","",null,"",null,null,"-",null,{"$error":"#VALUE!"},null,{"$error":"#N/A"}]
[null,null,null,null,null,null,null,null,"","",null,"",null,null,"-",null,{"$error":"#VALUE!"},null,{"$error":"#N/A"}]
[null,null,null,null,null,null,null,null,"","",null,"",null,null,"-",null,{"$error":"#VALUE!"},null,{"$error":"#N/A"}]
[null,null,null,null,null,null,null,null,"","",null,"",null,null,"-",null,{"$error":"#VALUE!"},null,{"$error":"#N/A"}]
[null,null,null,null,null,null,null,null,"","",null,"",null,null,"-",null,{"$error":"#VALUE!"},null,{"$error":"#N/A"}]
[null,null,null,null,null,null,null,null,"","",null,"",null,null,"-",null,{"$error":"#VALUE!"},null,{"$error":"#N/A"}]
[null,null,null,null,null,null,null,null,"","",null,"",null,null,"-",null,{"$error":"#VALUE!"},null,{"$error":"#N/A"}]
[null,null,null,null,null,null,null,null,"","",null,"",null,null,"-",null,{"$error":"#VALUE!"},null,{"$error":"#N/A"}]
[null,null,null,null,null,null,null,null,"","",null,"",null,null,"-",null,{"$error":"#VALUE!"},null,{"$error":"#N/A"}]
[null,null,null,null,null,null,null,null,"","",null,"",null,null,"-",null,{"$error":"#VALUE!"},null,{"$error":"#N/A"}]
[null,null,null,null,null,null,null,null,"","",null,"",null,null,"-",null,{"$error":"#VALUE!"},null,{"$error":"#N/A"}]
[null,null,null,null,null,null,null,null,"","",null,"",null,null,"-",null,{"$error":"#VALUE!"},null,{"$error":"#N/A"}]
[12,null,null,null,null,null,null,null,"","",null,"",null,null,"-",null,{"$error":"#VALUE!"},null,{"$error":"#N/A"}]
[13,null,null,null,null,null,null,null,"","",null,"",null,null,"-",null,{"$error":"#VALUE!"},null,{"$error":"#N/A"}]
[null,"Additional Notes:",null,null,null,null,null,null,null,null,"Total Parts:    ",{"$f":"SUM(L21:L70)","v":0},null,null,"-"]
[null,null,null,null,null,null,"Labour ",0,{"$f":"\"@ R\"& Data!C11 &\" p/h\"","v":"@ R200 p/h"},null,"Total Labour:    ",{"$f":"H72*Data!C11","v":0},null,null,"-"]
[null,null,null,null,null,null,null,null,null,null,"Sub Total:    ",{"$f":"L71+L72","v":0}]
[null,null,null,null,null,null,null,null,null,null,"VAT (15%):    ",{"$f":"L73*0.15","v":0}]
[null,null,null,null,null,null,null,null,null,null,"TOTAL:    ",{"$f":"L74+L73","v":0}]
[]
[]
[]
[]
[]
[null,"Quote prepared by:",null,null,null,null,null,"Quote accepted by:"]
[]
[]
[null,"Name:   ",null,null,null,null,null,"Name:   "]
[]
[]
[null,"Signature:",null,null,null,null,null,"Signature:"]
[]
[]
[null,"Date:",null,null,null,null,null,"Date:"]
[null,null,null,null,null,null,null,null,null,null,null,{"$f":"INDEX!H44","v":"(ver 2019.07.03)"}]

{"sheet":"MPC2004 & 3004 & 3504","index":12,"n_rows":91,"n_cols":19,"rows_kept":91,"cut":false,"hidden":false,"merged":[[18,11,19,11],[71,1,78,2],[13,18,18,19],[18,1,19,1],[18,2,19,2],[18,3,19,3],[18,4,19,4],[18,5,19,5],[18,6,18,7],[18,8,19,8],[18,9,19,9],[18,10,19,10],[13,2,13,5],[2,1,2,2],[5,2,5,11],[6,2,6,11],[8,6,8,11],[9,6,9,11]]}
[null,null,null,null,null,null,null,"Service Manager: ",null,null,{"$f":"Data!C5","v":"Danie Fourie"}]
[null,null,null,null,null,null,null,"Email:",null,null,{"$f":"Data!C7","v":"danief@nashualim.co.za"}]
[null,{"$f":"Data!C3","v":"Nashua Limpopo"},null,null,null,null,null,"Fax:",null,null,{"$f":"Data!C9","v":"015 590 0319"}]
[]
[]
[null,"Date: "]
[null,"Customer: "]
[]
[null,null,"Previous Servicing Franchise:   "]
[null,null,"Attention Technical Manager:    "]
[]
[]
[null,"Model:   ","\"COMPLETE!!!\"",null,null,null,null,null,null,null,"Black Meter:   "]
[null,"Serial Number:   ",null,null,null,null,null,null,null,null,"Colour Meter:   ",null,null,null,null,null,null,null,"Copy FTP pricing into Sheet1. Name area \"Pricing\". Superceded numbers"]
[null,null,null,null,null,null,null,null,null,null,"Accounting Method:   ","Prints"]
[null,"CONSUMABLES:   ","Select from List!"]
[null,null,{"$f":"IF(C13=\"AF3260C / AFC5560\",\"This quote includes the cost for 4 PCU's and their relevent parts\",\"\")","v":""}]
[null,null,null,null,null,null,null,null,null,null,null,null,null,null,"Calc Type"]
[null,"Part Number","Description","Qty","Process","Yield","Last Replacement Date",null,"Prints \nper part","Part usage (% of Yield)","FTP Price\n(Rand)","Pro rate Charge",null,null,"All / Col",null,"% of Meter readings"]
[null,null,null,null,null,null,"Black Meter","Colour Meter"]
[1,"AE020238","PRESSURE ROLLER:DIA32",1,null,400000,null,null,{"$f":"IF($L$15=\"Prints\",IF(O21=\"Both\",($L$13-G21)+($L$14-H21),IF(O21=\"Col\",($L$14-H21),IF(O21=\"-\",\"\",\"Error\"))),\n\nIF($L$15=\"Developments\",IF(O21=\"Both\",$L$13-G21,IF(O21=\"Col\",($L$14-H21)/3,IF(O21=\"-\",\"\",\"Error\"))),\"Dev/Print Error\"))","v":0},{"$f":"IF(B21=\"\",\"\",IF(Q21>=1,1,Q21))","v":0},null,{"$f":"IF(B21=\"\",\"\",$K21*$J21*D21)","v":0},null,null,"Both",null,{"$f":"I21/F21","v":0},{"$f":"IF(L15=\"Prints\",\n                    IF(O21=\"All\",(L13-G21)+(L14-H21),\n\"\"),\n\"\")","v":""},{"$f":"IF(VLOOKUP(B21,Pricing,5,FALSE)=\"\",B21,VLOOKUP(B21,Pricing,5,FALSE))","v":{"$error":"#N/A"}}]
[2,"D2394042","SLEEVE:FUS:220-240V:C3004-3504",1,null,400000,null,null,{"$f":"IF($L$15=\"Prints\",IF(O22=\"Both\",($L$13-G22)+($L$14-H22),IF(O22=\"Col\",($L$14-H22),IF(O22=\"-\",\"\",\"Error\"))),\n\nIF($L$15=\"Developments\",IF(O22=\"Both\",$L$13-G22,IF(O22=\"Col\",($L$14-H22)/3,IF(O22=\"-\",\"\",\"Error\"))),\"Dev/Print Error\"))","v":0},{"$f":"IF(B22=\"\",\"\",IF(Q22>=1,1,Q22))","v":0},null,0,null,null,"Both",null,{"$f":"I22/F22","v":0},null,{"$error":"#N/A"}]
[3,"D2416141","BELT CLEAN:I/M TRANS(D1496141)",1,null,300000,null,null,0,0,null,0,null,null,"Both",null,0,null,{"$error":"#N/A"}]
[4,"D2416212","TRANSFER ROLLER:SECOND:ASSY",1,null,400000,null,null,0,0,null,0,null,null,"Both",null,0,null,{"$error":"#N/A"}]
[null,"D2392249","PCU:CMY:MPC3004-C3504",3,"CMY",175000,null,null,0,0,null,0,null,null,"Col",null,0,null,{"$error":"#N/A"}]
[5,"D2392242","PCU:K:MPC3004-C6004:EXP",1,"K",400000,null,null,0,0,null,0,null,null,"Both",null,0,null,{"$error":"#N/A"}]
[6,"D2393061","DEVELOP UNIT:C:MPC3004-3504",1,"C",160000,null,null,0,0,null,0,null,null,"Col",null,0,null,{"$error":"#N/A"}]
[7,"D2393062","DEVELOP UNIT:M:MPC3004-3504",1,"M",160000,null,null,0,0,null,0,null,null,"Col",null,0,null,{"$error":"#N/A"}]
[null,"D2393063","DEVELOP UNIT:Y:MPC3004-3504",1,"Y",160000,null,null,0,0,null,0,null,null,"Col",null,0,null,{"$error":"#N/A"}]
[null,null,null,null,null,null,null,null,"","",null,"",null,null,"-",null,{"$error":"#VALUE!"},null,{"$error":"#N/A"}]
[null,null,null,null,null,null,null,null,"","",null,"",null,null,"-",null,{"$error":"#VALUE!"},null,{"$error":"#N/A"}]
[null,null,null,null,null,null,null,null,"","",null,"",null,null,"-",null,{"$error":"#VALUE!"},null,{"$error":"#N/A"}]
[null,null,null,null,null,null,null,null,"","",null,"",null,null,"-",null,{"$error":"#VALUE!"},null,{"$error":"#N/A"}]
[null,null,null,null,null,null,null,null,"","",null,"",null,null,"-",null,{"$error":"#VALUE!"},null,{"$error":"#N/A"}]
[null,null,null,null,null,null,null,null,"","",null,"",null,null,"-",null,{"$error":"#VALUE!"},null,{"$error":"#N/A"}]
[null,null,null,null,null,null,null,null,"","",null,"",null,null,"-",null,{"$error":"#VALUE!"},null,{"$error":"#N/A"}]
[null,null,null,null,null,null,null,null,"","",null,"",null,null,"-",null,{"$error":"#VALUE!"},null,{"$error":"#N/A"}]
[null,null,null,null,null,null,null,null,"","",null,"",null,null,"-",null,{"$error":"#VALUE!"},null,{"$error":"#N/A"}]
[null,null,null,null,null,null,null,null,"","",null,"",null,null,"-",null,{"$error":"#VALUE!"},null,{"$error":"#N/A"}]
[null,null,null,null,null,null,null,null,"","",null,"",null,null,"-",null,{"$error":"#VALUE!"},null,{"$error":"#N/A"}]
[null,null,null,null,null,null,null,null,"","",null,"",null,null,"-",null,{"$error":"#VALUE!"},null,{"$error":"#N/A"}]
[null,null,null,null,null,null,null,null,"","",null,"",null,null,"-",null,{"$error":"#VALUE!"},null,{"$error":"#N/A"}]
[null,null,null,null,null,null,null,null,"","",null,"",null,null,"-",null,{"$error":"#VALUE!"},null,{"$error":"#N/A"}]
[null,null,null,null,null,null,null,null,"","",null,"",null,null,"-",null,{"$error":"#VALUE!"},null,{"$error":"#N/A"}]
[null,null,null,null,null,null,null,null,"","",null,"",null,null,"-",null,{"$error":"#VALUE!"},null,{"$error":"#N/A"}]
[null,null,null,null,null,null,null,null,"","",null,"",null,null,"-",null,{"$error":"#VALUE!"},null,{"$error":"#N/A"}]
[null,null,null,null,null,null,null,null,"","",null,"",null,null,"-",null,{"$error":"#VALUE!"},null,{"$error":"#N/A"}]
[8,null,null,null,null,null,null,null,"","",null,"",null,null,"-",null,{"$error":"#VALUE!"},null,{"$error":"#N/A"}]
[null,null,null,null,null,null,null,null,"","",null,"",null,null,"-",null,{"$error":"#VALUE!"},null,{"$error":"#N/A"}]
[null,null,null,null,null,null,null,null,"","",null,"",null,null,"-",null,{"$error":"#VALUE!"},null,{"$error":"#N/A"}]
[null,null,null,null,null,null,null,null,"","",null,"",null,null,"-",null,{"$error":"#VALUE!"},null,{"$error":"#N/A"}]
[null,null,null,null,null,null,null,null,"","",null,"",null,null,"-",null,{"$error":"#VALUE!"},null,{"$error":"#N/A"}]
[9,null,null,null,null,null,null,null,"","",null,"",null,null,"-",null,{"$error":"#VALUE!"},null,{"$error":"#N/A"}]
[10,null,null,null,null,null,null,null,"","",null,"",null,null,"-",null,{"$error":"#VALUE!"},null,{"$error":"#N/A"}]
[11,null,null,null,null,null,null,null,"","",null,"",null,null,"-",null,{"$error":"#VALUE!"},null,{"$error":"#N/A"}]
[null,null,null,null,null,null,null,null,"","",null,"",null,null,"-",null,{"$error":"#VALUE!"},null,{"$error":"#N/A"}]
[null,null,null,null,null,null,null,null,"","",null,"",null,null,"-",null,{"$error":"#VALUE!"},null,{"$error":"#N/A"}]
[null,null,null,null,null,null,null,null,"","",null,"",null,null,"-",null,{"$error":"#VALUE!"},null,{"$error":"#N/A"}]
[null,null,null,null,null,null,null,null,"","",null,"",null,null,"-",null,{"$error":"#VALUE!"},null,{"$error":"#N/A"}]
[null,null,null,null,null,null,null,null,"","",null,"",null,null,"-",null,{"$error":"#VALUE!"},null,{"$error":"#N/A"}]
[null,null,null,null,null,null,null,null,"","",null,"",null,null,"-",null,{"$error":"#VALUE!"},null,{"$error":"#N/A"}]
[null,null,null,null,null,null,null,null,"","",null,"",null,null,"-",null,{"$error":"#VALUE!"},null,{"$error":"#N/A"}]
[null,null,null,null,null,null,null,null,"","",null,"",null,null,"-",null,{"$error":"#VALUE!"},null,{"$error":"#N/A"}]
[null,null,null,null,null,null,null,null,"","",null,"",null,null,"-",null,{"$error":"#VALUE!"},null,{"$error":"#N/A"}]
[null,null,null,null,null,null,null,null,"","",null,"",null,null,"-",null,{"$error":"#VALUE!"},null,{"$error":"#N/A"}]
[null,null,null,null,null,null,null,null,"","",null,"",null,null,"-",null,{"$error":"#VALUE!"},null,{"$error":"#N/A"}]
[null,null,null,null,null,null,null,null,"","",null,"",null,null,"-",null,{"$error":"#VALUE!"},null,{"$error":"#N/A"}]
[null,null,null,null,null,null,null,null,"","",null,"",null,null,"-",null,{"$error":"#VALUE!"},null,{"$error":"#N/A"}]
[12,null,null,null,null,null,null,null,"","",null,"",null,null,"-",null,{"$error":"#VALUE!"},null,{"$error":"#N/A"}]
[13,null,null,null,null,null,null,null,"","",null,"",null,null,"-",null,{"$error":"#VALUE!"},null,{"$error":"#N/A"}]
[null,"Additional Notes:",null,null,null,null,null,null,null,null,"Total Parts:    ",{"$f":"SUM(L21:L70)","v":0},null,null,"-"]
[null,null,null,null,null,null,"Labour ",0,{"$f":"\"@ R\"& Data!C11 &\" p/h\"","v":"@ R200 p/h"},null,"Total Labour:    ",{"$f":"H72*Data!C11","v":0},null,null,"-"]
[null,null,null,null,null,null,null,null,null,null,"Sub Total:    ",{"$f":"L71+L72","v":0}]
[null,null,null,null,null,null,null,null,null,null,"VAT (15%):    ",{"$f":"L73*0.15","v":0}]
[null,null,null,null,null,null,null,null,null,null,"TOTAL:    ",{"$f":"L74+L73","v":0}]
[]
[]
[]
[]
[]
[null,"Quote prepared by:",null,null,null,null,null,"Quote accepted by:"]
[]
[]
[null,"Name:   ",null,null,null,null,null,"Name:   "]
[]
[]
[null,"Signature:",null,null,null,null,null,"Signature:"]
[]
[]
[null,"Date:",null,null,null,null,null,"Date:"]
[null,null,null,null,null,null,null,null,null,null,null,{"$f":"INDEX!H44","v":"(ver 2019.07.03)"}]

{"sheet":"MPC2030 & 2050","index":13,"n_rows":91,"n_cols":19,"rows_kept":91,"cut":false,"hidden":false,"merged":[[18,11,19,11],[71,1,78,2],[13,18,18,19],[18,1,19,1],[18,2,19,2],[18,3,19,3],[18,4,19,4],[18,5,19,5],[18,6,18,7],[18,8,19,8],[18,9,19,9],[18,10,19,10],[13,2,13,5],[2,1,2,2],[5,2,5,11],[6,2,6,11],[8,6,8,11],[9,6,9,11]]}
[null,null,null,null,null,null,null,"Service Manager: ",null,null,{"$f":"Data!C5","v":"Danie Fourie"}]
[null,null,null,null,null,null,null,"Email:",null,null,{"$f":"Data!C7","v":"danief@nashualim.co.za"}]
[null,{"$f":"Data!C3","v":"Nashua Limpopo"},null,null,null,null,null,"Fax:",null,null,{"$f":"Data!C9","v":"015 590 0319"}]
[]
[]
[null,"Date: "]
[null,"Customer: "]
[]
[null,null,"Previous Servicing Franchise:   "]
[null,null,"Attention Technical Manager:    "]
[]
[]
[null,"Model:   ","\"COMPLETE!!!\"",null,null,null,null,null,null,null,"Black Meter:   "]
[null,"Serial Number:   ",null,null,null,null,null,null,null,null,"Colour Meter:   ",null,null,null,null,null,null,null,"Copy FTP pricing into Sheet1. Name area \"Pricing\". Superceded numbers"]
[null,null,null,null,null,null,null,null,null,null,"Accounting Method:   ","Prints"]
[null,"CONSUMABLES:   ","Select from List!"]
[null,null,{"$f":"IF(C13=\"AF3260C / AFC5560\",\"This quote includes the cost for 4 PCU's and their relevent parts\",\"\")","v":""}]
[null,null,null,null,null,null,null,null,null,null,null,null,null,null,"Calc Type"]
[null,"Part Number","Description","Qty","Process","Yield","Last Replacement Date",null,"Prints \nper part","Part usage (% of Yield)","FTP Price\n(Rand)","Pro rate Charge",null,null,"All / Col",null,"% of Meter readings"]
[null,null,null,null,null,null,"Black Meter","Colour Meter"]
[1,"D1056036","CL UNIT:I/MED TRANS (D0396036)",1,null,60000,null,null,{"$f":"IF($L$15=\"Prints\",IF(O21=\"Both\",($L$13-G21)+($L$14-H21),IF(O21=\"Col\",($L$14-H21),IF(O21=\"-\",\"\",\"Error\"))),\n\nIF($L$15=\"Developments\",IF(O21=\"Both\",$L$13-G21,IF(O21=\"Col\",($L$14-H21)/3,IF(O21=\"-\",\"\",\"Error\"))),\"Dev/Print Error\"))","v":0},{"$f":"IF(B21=\"\",\"\",IF(Q21>=1,1,Q21))","v":0},null,{"$f":"IF(B21=\"\",\"\",$K21*$J21*D21)","v":0},null,null,"Both",null,{"$f":"I21/F21","v":0},{"$f":"IF(L15=\"Prints\",\n                    IF(O21=\"All\",(L13-G21)+(L14-H21),\n\"\"),\n\"\")","v":""},{"$f":"IF(VLOOKUP(B21,Pricing,5,FALSE)=\"\",B21,VLOOKUP(B21,Pricing,5,FALSE))","v":{"$error":"#N/A"}}]
[2,"D8093031","DEV UNIT:BK:SERV MPC2030/2530",1,null,240000,null,null,{"$f":"IF($L$15=\"Prints\",IF(O22=\"Both\",($L$13-G22)+($L$14-H22),IF(O22=\"Col\",($L$14-H22),IF(O22=\"-\",\"\",\"Error\"))),\n\nIF($L$15=\"Developments\",IF(O22=\"Both\",$L$13-G22,IF(O22=\"Col\",($L$14-H22)/3,IF(O22=\"-\",\"\",\"Error\"))),\"Dev/Print Error\"))","v":0},{"$f":"IF(B22=\"\",\"\",IF(Q22>=1,1,Q22))","v":0},null,0,null,null,"Both",null,{"$f":"I22/F22","v":0},null,{"$error":"#N/A"}]
[3,"D0394056","FUSING BELT:DIA50:ASS MPC2030",1,null,150000,null,null,0,0,null,0,null,null,"Both",null,0,null,{"$error":"#N/A"}]
[4,"AE010074","HOT ROLLER:DIA29 MPC20/5530",1,null,150000,null,null,0,0,null,0,null,null,"Both",null,0,null,{"$error":"#N/A"}]
[null,"D0392040","PCU:DIANA:ASS(D0392030)MPC2051",1,"K",60000,null,null,0,0,null,0,null,null,"Both",null,0,null,{"$error":"#N/A"}]
[5,"AE020175","PRESSURE ROLLER:DIA30 MPC2030",1,null,240000,null,null,0,0,null,0,null,null,"Both",null,0,null,{"$error":"#N/A"}]
[6,"D0396029","TRANSFER BELT:ASS'Y MPC2030",1,null,240000,null,null,0,0,null,0,null,null,"Both",null,0,null,{"$error":"#N/A"}]
[7,null,null,null,null,null,null,null,"","",null,"",null,null,"-",null,{"$error":"#VALUE!"},null,{"$error":"#N/A"}]
[null,null,null,null,null,null,null,null,"","",null,"",null,null,"-",null,{"$error":"#VALUE!"},null,{"$error":"#N/A"}]
[null,null,null,null,null,null,null,null,"","",null,"",null,null,"-",null,{"$error":"#VALUE!"},null,{"$error":"#N/A"}]
[null,null,null,null,null,null,null,null,"","",null,"",null,null,"-",null,{"$error":"#VALUE!"},null,{"$error":"#N/A"}]
[null,null,null,null,null,null,null,null,"","",null,"",null,null,"-",null,{"$error":"#VALUE!"},null,{"$error":"#N/A"}]
[null,null,null,null,null,null,null,null,"","",null,"",null,null,"-",null,{"$error":"#VALUE!"},null,{"$error":"#N/A"}]
[null,null,null,null,null,null,null,null,"","",null,"",null,null,"-",null,{"$error":"#VALUE!"},null,{"$error":"#N/A"}]
[null,null,null,null,null,null,null,null,"","",null,"",null,null,"-",null,{"$error":"#VALUE!"},null,{"$error":"#N/A"}]
[null,null,null,null,null,null,null,null,"","",null,"",null,null,"-",null,{"$error":"#VALUE!"},null,{"$error":"#N/A"}]
[null,null,null,null,null,null,null,null,"","",null,"",null,null,"-",null,{"$error":"#VALUE!"},null,{"$error":"#N/A"}]
[null,null,null,null,null,null,null,null,"","",null,"",null,null,"-",null,{"$error":"#VALUE!"},null,{"$error":"#N/A"}]
[null,null,null,null,null,null,null,null,"","",null,"",null,null,"-",null,{"$error":"#VALUE!"},null,{"$error":"#N/A"}]
[null,null,null,null,null,null,null,null,"","",null,"",null,null,"-",null,{"$error":"#VALUE!"},null,{"$error":"#N/A"}]
[null,null,null,null,null,null,null,null,"","",null,"",null,null,"-",null,{"$error":"#VALUE!"},null,{"$error":"#N/A"}]
[null,null,null,null,null,null,null,null,"","",null,"",null,null,"-",null,{"$error":"#VALUE!"},null,{"$error":"#N/A"}]
[null,null,null,null,null,null,null,null,"","",null,"",null,null,"-",null,{"$error":"#VALUE!"},null,{"$error":"#N/A"}]
[null,null,null,null,null,null,null,null,"","",null,"",null,null,"-",null,{"$error":"#VALUE!"},null,{"$error":"#N/A"}]
[null,null,null,null,null,null,null,null,"","",null,"",null,null,"-",null,{"$error":"#VALUE!"},null,{"$error":"#N/A"}]
[null,null,null,null,null,null,null,null,"","",null,"",null,null,"-",null,{"$error":"#VALUE!"},null,{"$error":"#N/A"}]
[null,null,null,null,null,null,null,null,"","",null,"",null,null,"-",null,{"$error":"#VALUE!"},null,{"$error":"#N/A"}]
[8,null,null,null,null,null,null,null,"","",null,"",null,null,"-",null,{"$error":"#VALUE!"},null,{"$error":"#N/A"}]
[null,null,null,null,null,null,null,null,"","",null,"",null,null,"-",null,{"$error":"#VALUE!"},null,{"$error":"#N/A"}]
[null,null,null,null,null,null,null,null,"","",null,"",null,null,"-",null,{"$error":"#VALUE!"},null,{"$error":"#N/A"}]
[null,null,null,null,null,null,null,null,"","",null,"",null,null,"-",null,{"$error":"#VALUE!"},null,{"$error":"#N/A"}]
[null,null,null,null,null,null,null,null,"","",null,"",null,null,"-",null,{"$error":"#VALUE!"},null,{"$error":"#N/A"}]
[9,null,null,null,null,null,null,null,"","",null,"",null,null,"-",null,{"$error":"#VALUE!"},null,{"$error":"#N/A"}]
[10,null,null,null,null,null,null,null,"","",null,"",null,null,"-",null,{"$error":"#VALUE!"},null,{"$error":"#N/A"}]
[11,null,null,null,null,null,null,null,"","",null,"",null,null,"-",null,{"$error":"#VALUE!"},null,{"$error":"#N/A"}]
[null,null,null,null,null,null,null,null,"","",null,"",null,null,"-",null,{"$error":"#VALUE!"},null,{"$error":"#N/A"}]
[null,null,null,null,null,null,null,null,"","",null,"",null,null,"-",null,{"$error":"#VALUE!"},null,{"$error":"#N/A"}]
[null,null,null,null,null,null,null,null,"","",null,"",null,null,"-",null,{"$error":"#VALUE!"},null,{"$error":"#N/A"}]
[null,null,null,null,null,null,null,null,"","",null,"",null,null,"-",null,{"$error":"#VALUE!"},null,{"$error":"#N/A"}]
[null,null,null,null,null,null,null,null,"","",null,"",null,null,"-",null,{"$error":"#VALUE!"},null,{"$error":"#N/A"}]
[null,null,null,null,null,null,null,null,"","",null,"",null,null,"-",null,{"$error":"#VALUE!"},null,{"$error":"#N/A"}]
[null,null,null,null,null,null,null,null,"","",null,"",null,null,"-",null,{"$error":"#VALUE!"},null,{"$error":"#N/A"}]
[null,null,null,null,null,null,null,null,"","",null,"",null,null,"-",null,{"$error":"#VALUE!"},null,{"$error":"#N/A"}]
[null,null,null,null,null,null,null,null,"","",null,"",null,null,"-",null,{"$error":"#VALUE!"},null,{"$error":"#N/A"}]
[null,null,null,null,null,null,null,null,"","",null,"",null,null,"-",null,{"$error":"#VALUE!"},null,{"$error":"#N/A"}]
[null,null,null,null,null,null,null,null,"","",null,"",null,null,"-",null,{"$error":"#VALUE!"},null,{"$error":"#N/A"}]
[null,null,null,null,null,null,null,null,"","",null,"",null,null,"-",null,{"$error":"#VALUE!"},null,{"$error":"#N/A"}]
[null,null,null,null,null,null,null,null,"","",null,"",null,null,"-",null,{"$error":"#VALUE!"},null,{"$error":"#N/A"}]
[12,null,null,null,null,null,null,null,"","",null,"",null,null,"-",null,{"$error":"#VALUE!"},null,{"$error":"#N/A"}]
[13,null,null,null,null,null,null,null,"","",null,"",null,null,"-",null,{"$error":"#VALUE!"},null,{"$error":"#N/A"}]
[null,"Additional Notes:",null,null,null,null,null,null,null,null,"Total Parts:    ",{"$f":"SUM(L21:L70)","v":0},null,null,"-"]
[null,null,null,null,null,null,"Labour ",0,{"$f":"\"@ R\"& Data!C11 &\" p/h\"","v":"@ R200 p/h"},null,"Total Labour:    ",{"$f":"H72*Data!C11","v":0},null,null,"-"]
[null,null,null,null,null,null,null,null,null,null,"Sub Total:    ",{"$f":"L71+L72","v":0}]
[null,null,null,null,null,null,null,null,null,null,"VAT (15%):    ",{"$f":"L73*0.15","v":0}]
[null,null,null,null,null,null,null,null,null,null,"TOTAL:    ",{"$f":"L74+L73","v":0}]
[]
[]
[]
[]
[]
[null,"Quote prepared by:",null,null,null,null,null,"Quote accepted by:"]
[]
[]
[null,"Name:   ",null,null,null,null,null,"Name:   "]
[]
[]
[null,"Signature:",null,null,null,null,null,"Signature:"]
[]
[]
[null,"Date:",null,null,null,null,null,"Date:"]
[null,null,null,null,null,null,null,null,null,null,null,{"$f":"INDEX!H44","v":"(ver 2019.07.03)"}]

{"sheet":"MPC2051 & 2551","index":14,"n_rows":91,"n_cols":19,"rows_kept":91,"cut":false,"hidden":false,"merged":[[18,11,19,11],[71,1,78,2],[13,18,18,19],[18,1,19,1],[18,2,19,2],[18,3,19,3],[18,4,19,4],[18,5,19,5],[18,6,18,7],[18,8,19,8],[18,9,19,9],[18,10,19,10],[13,2,13,5],[2,1,2,2],[5,2,5,11],[6,2,6,11],[8,6,8,11],[9,6,9,11]]}
[null,null,null,null,null,null,null,"Service Manager: ",null,null,{"$f":"Data!C5","v":"Danie Fourie"}]
[null,null,null,null,null,null,null,"Email:",null,null,{"$f":"Data!C7","v":"danief@nashualim.co.za"}]
[null,{"$f":"Data!C3","v":"Nashua Limpopo"},null,null,null,null,null,"Fax:",null,null,{"$f":"Data!C9","v":"015 590 0319"}]
[]
[]
[null,"Date: "]
[null,"Customer: "]
[]
[null,null,"Previous Servicing Franchise:   "]
[null,null,"Attention Technical Manager:    "]
[]
[]
[null,"Model:   ","\"COMPLETE!!!\"",null,null,null,null,null,null,null,"Black Meter:   "]
[null,"Serial Number:   ",null,null,null,null,null,null,null,null,"Colour Meter:   ",null,null,null,null,null,null,null,"Copy FTP pricing into Sheet1. Name area \"Pricing\". Superceded numbers"]
[null,null,null,null,null,null,null,null,null,null,"Accounting Method:   ","Prints"]
[null,"CONSUMABLES:   ","Select from List!"]
[null,null,{"$f":"IF(C13=\"AF3260C / AFC5560\",\"This quote includes the cost for 4 PCU's and their relevent parts\",\"\")","v":""}]
[null,null,null,null,null,null,null,null,null,null,null,null,null,null,"Calc Type"]
[null,"Part Number","Description","Qty","Process","Yield","Last Replacement Date",null,"Prints \nper part","Part usage (% of Yield)","FTP Price\n(Rand)","Pro rate Charge",null,null,"All / Col",null,"% of Meter readings"]
[null,null,null,null,null,null,"Black Meter","Colour Meter"]
[1,"D1056036","CL UNIT:I/MED TRANS (D0396036)",1,null,60000,null,null,{"$f":"IF($L$15=\"Prints\",IF(O21=\"Both\",($L$13-G21)+($L$14-H21),IF(O21=\"Col\",($L$14-H21),IF(O21=\"-\",\"\",\"Error\"))),\n\nIF($L$15=\"Developments\",IF(O21=\"Both\",$L$13-G21,IF(O21=\"Col\",($L$14-H21)/3,IF(O21=\"-\",\"\",\"Error\"))),\"Dev/Print Error\"))","v":0},{"$f":"IF(B21=\"\",\"\",IF(Q21>=1,1,Q21))","v":0},null,{"$f":"IF(B21=\"\",\"\",$K21*$J21*D21)","v":0},null,null,"Both",null,{"$f":"I21/F21","v":0},{"$f":"IF(L15=\"Prints\",\n                    IF(O21=\"All\",(L13-G21)+(L14-H21),\n\"\"),\n\"\")","v":""},{"$f":"IF(VLOOKUP(B21,Pricing,5,FALSE)=\"\",B21,VLOOKUP(B21,Pricing,5,FALSE))","v":{"$error":"#N/A"}}]
[2,"D8303001","DEV UNIT:D-C1.5:BK:SER MPC2551",1,"K",240000,null,null,{"$f":"IF($L$15=\"Prints\",IF(O22=\"Both\",($L$13-G22)+($L$14-H22),IF(O22=\"Col\",($L$14-H22),IF(O22=\"-\",\"\",\"Error\"))),\n\nIF($L$15=\"Developments\",IF(O22=\"Both\",$L$13-G22,IF(O22=\"Col\",($L$14-H22)/3,IF(O22=\"-\",\"\",\"Error\"))),\"Dev/Print Error\"))","v":0},{"$f":"IF(B22=\"\",\"\",IF(Q22>=1,1,Q22))","v":0},null,0,null,null,"Both",null,{"$f":"I22/F22","v":0},null,{"$error":"#N/A"}]
[3,"D1064006","FUSING UNIT:EU:ASS (D1064002)",1,null,240000,null,null,0,0,null,0,null,null,"Both",null,0,null,{"$error":"#N/A"}]
[4,"D0392040","PCU:DIANA:ASS(D0392030)MPC2051",1,"K",60000,null,null,0,0,null,0,null,null,"Both",null,0,null,{"$error":"#N/A"}]
[null,"D0396210","TRAN/SEP UNIT:2ND:ASS MPC2030",1,null,240000,null,null,0,0,null,0,null,null,"Both",null,0,null,{"$error":"#N/A"}]
[5,"D0396029","TRANSFER BELT:ASS'Y MPC2030",1,null,240000,null,null,0,0,null,0,null,null,"Both",null,0,null,{"$error":"#N/A"}]
[6,null,null,null,null,null,null,null,"","",null,"",null,null,"-",null,{"$error":"#VALUE!"},null,{"$error":"#N/A"}]
[7,null,null,null,null,null,null,null,"","",null,"",null,null,"-",null,{"$error":"#VALUE!"},null,{"$error":"#N/A"}]
[null,null,null,null,null,null,null,null,"","",null,"",null,null,"-",null,{"$error":"#VALUE!"},null,{"$error":"#N/A"}]
[null,null,null,null,null,null,null,null,"","",null,"",null,null,"-",null,{"$error":"#VALUE!"},null,{"$error":"#N/A"}]
[null,null,null,null,null,null,null,null,"","",null,"",null,null,"-",null,{"$error":"#VALUE!"},null,{"$error":"#N/A"}]
[null,null,null,null,null,null,null,null,"","",null,"",null,null,"-",null,{"$error":"#VALUE!"},null,{"$error":"#N/A"}]
[null,null,null,null,null,null,null,null,"","",null,"",null,null,"-",null,{"$error":"#VALUE!"},null,{"$error":"#N/A"}]
[null,null,null,null,null,null,null,null,"","",null,"",null,null,"-",null,{"$error":"#VALUE!"},null,{"$error":"#N/A"}]
[null,null,null,null,null,null,null,null,"","",null,"",null,null,"-",null,{"$error":"#VALUE!"},null,{"$error":"#N/A"}]
[null,null,null,null,null,null,null,null,"","",null,"",null,null,"-",null,{"$error":"#VALUE!"},null,{"$error":"#N/A"}]
[null,null,null,null,null,null,null,null,"","",null,"",null,null,"-",null,{"$error":"#VALUE!"},null,{"$error":"#N/A"}]
[null,null,null,null,null,null,null,null,"","",null,"",null,null,"-",null,{"$error":"#VALUE!"},null,{"$error":"#N/A"}]
[null,null,null,null,null,null,null,null,"","",null,"",null,null,"-",null,{"$error":"#VALUE!"},null,{"$error":"#N/A"}]
[null,null,null,null,null,null,null,null,"","",null,"",null,null,"-",null,{"$error":"#VALUE!"},null,{"$error":"#N/A"}]
[null,null,null,null,null,null,null,null,"","",null,"",null,null,"-",null,{"$error":"#VALUE!"},null,{"$error":"#N/A"}]
[null,null,null,null,null,null,null,null,"","",null,"",null,null,"-",null,{"$error":"#VALUE!"},null,{"$error":"#N/A"}]
[null,null,null,null,null,null,null,null,"","",null,"",null,null,"-",null,{"$error":"#VALUE!"},null,{"$error":"#N/A"}]
[null,null,null,null,null,null,null,null,"","",null,"",null,null,"-",null,{"$error":"#VALUE!"},null,{"$error":"#N/A"}]
[null,null,null,null,null,null,null,null,"","",null,"",null,null,"-",null,{"$error":"#VALUE!"},null,{"$error":"#N/A"}]
[null,null,null,null,null,null,null,null,"","",null,"",null,null,"-",null,{"$error":"#VALUE!"},null,{"$error":"#N/A"}]
[null,null,null,null,null,null,null,null,"","",null,"",null,null,"-",null,{"$error":"#VALUE!"},null,{"$error":"#N/A"}]
[8,null,null,null,null,null,null,null,"","",null,"",null,null,"-",null,{"$error":"#VALUE!"},null,{"$error":"#N/A"}]
[null,null,null,null,null,null,null,null,"","",null,"",null,null,"-",null,{"$error":"#VALUE!"},null,{"$error":"#N/A"}]
[null,null,null,null,null,null,null,null,"","",null,"",null,null,"-",null,{"$error":"#VALUE!"},null,{"$error":"#N/A"}]
[null,null,null,null,null,null,null,null,"","",null,"",null,null,"-",null,{"$error":"#VALUE!"},null,{"$error":"#N/A"}]
[null,null,null,null,null,null,null,null,"","",null,"",null,null,"-",null,{"$error":"#VALUE!"},null,{"$error":"#N/A"}]
[9,null,null,null,null,null,null,null,"","",null,"",null,null,"-",null,{"$error":"#VALUE!"},null,{"$error":"#N/A"}]
[10,null,null,null,null,null,null,null,"","",null,"",null,null,"-",null,{"$error":"#VALUE!"},null,{"$error":"#N/A"}]
[11,null,null,null,null,null,null,null,"","",null,"",null,null,"-",null,{"$error":"#VALUE!"},null,{"$error":"#N/A"}]
[null,null,null,null,null,null,null,null,"","",null,"",null,null,"-",null,{"$error":"#VALUE!"},null,{"$error":"#N/A"}]
[null,null,null,null,null,null,null,null,"","",null,"",null,null,"-",null,{"$error":"#VALUE!"},null,{"$error":"#N/A"}]
[null,null,null,null,null,null,null,null,"","",null,"",null,null,"-",null,{"$error":"#VALUE!"},null,{"$error":"#N/A"}]
[null,null,null,null,null,null,null,null,"","",null,"",null,null,"-",null,{"$error":"#VALUE!"},null,{"$error":"#N/A"}]
[null,null,null,null,null,null,null,null,"","",null,"",null,null,"-",null,{"$error":"#VALUE!"},null,{"$error":"#N/A"}]
[null,null,null,null,null,null,null,null,"","",null,"",null,null,"-",null,{"$error":"#VALUE!"},null,{"$error":"#N/A"}]
[null,null,null,null,null,null,null,null,"","",null,"",null,null,"-",null,{"$error":"#VALUE!"},null,{"$error":"#N/A"}]
[null,null,null,null,null,null,null,null,"","",null,"",null,null,"-",null,{"$error":"#VALUE!"},null,{"$error":"#N/A"}]
[null,null,null,null,null,null,null,null,"","",null,"",null,null,"-",null,{"$error":"#VALUE!"},null,{"$error":"#N/A"}]
[null,null,null,null,null,null,null,null,"","",null,"",null,null,"-",null,{"$error":"#VALUE!"},null,{"$error":"#N/A"}]
[null,null,null,null,null,null,null,null,"","",null,"",null,null,"-",null,{"$error":"#VALUE!"},null,{"$error":"#N/A"}]
[null,null,null,null,null,null,null,null,"","",null,"",null,null,"-",null,{"$error":"#VALUE!"},null,{"$error":"#N/A"}]
[null,null,null,null,null,null,null,null,"","",null,"",null,null,"-",null,{"$error":"#VALUE!"},null,{"$error":"#N/A"}]
[12,null,null,null,null,null,null,null,"","",null,"",null,null,"-",null,{"$error":"#VALUE!"},null,{"$error":"#N/A"}]
[13,null,null,null,null,null,null,null,"","",null,"",null,null,"-",null,{"$error":"#VALUE!"},null,{"$error":"#N/A"}]
[null,"Additional Notes:",null,null,null,null,null,null,null,null,"Total Parts:    ",{"$f":"SUM(L21:L70)","v":0},null,null,"-"]
[null,null,null,null,null,null,"Labour ",0,{"$f":"\"@ R\"& Data!C11 &\" p/h\"","v":"@ R200 p/h"},null,"Total Labour:    ",{"$f":"H72*Data!C11","v":0},null,null,"-"]
[null,null,null,null,null,null,null,null,null,null,"Sub Total:    ",{"$f":"L71+L72","v":0}]
[null,null,null,null,null,null,null,null,null,null,"VAT (15%):    ",{"$f":"L73*0.15","v":0}]
[null,null,null,null,null,null,null,null,null,null,"TOTAL:    ",{"$f":"L74+L73","v":0}]
[]
[]
[]
[]
[]
[null,"Quote prepared by:",null,null,null,null,null,"Quote accepted by:"]
[]
[]
[null,"Name:   ",null,null,null,null,null,"Name:   "]
[]
[]
[null,"Signature:",null,null,null,null,null,"Signature:"]
[]
[]
[null,"Date:",null,null,null,null,null,"Date:"]
[null,null,null,null,null,null,null,null,null,null,null,{"$f":"INDEX!H44","v":"(ver 2019.07.03)"}]

{"sheet":"MPC2011SP","index":15,"n_rows":91,"n_cols":19,"rows_kept":91,"cut":false,"hidden":false,"merged":[[18,11,19,11],[71,1,78,2],[13,18,18,19],[18,1,19,1],[18,2,19,2],[18,3,19,3],[18,4,19,4],[18,5,19,5],[18,6,18,7],[18,8,19,8],[18,9,19,9],[18,10,19,10],[13,2,13,5],[2,1,2,2],[5,2,5,11],[6,2,6,11],[8,6,8,11],[9,6,9,11]]}
[null,null,null,null,null,null,null,"Service Manager: ",null,null,{"$f":"Data!C5","v":"Danie Fourie"}]
[null,null,null,null,null,null,null,"Email:",null,null,{"$f":"Data!C7","v":"danief@nashualim.co.za"}]
[null,{"$f":"Data!C3","v":"Nashua Limpopo"},null,null,null,null,null,"Fax:",null,null,{"$f":"Data!C9","v":"015 590 0319"}]
[]
[]
[null,"Date: "]
[null,"Customer: "]
[]
[null,null,"Previous Servicing Franchise:   "]
[null,null,"Attention Technical Manager:    "]
[]
[]
[null,"Model:   ","\"COMPLETE!!!\"",null,null,null,null,null,null,null,"Black Meter:   "]
[null,"Serial Number:   ",null,null,null,null,null,null,null,null,"Colour Meter:   ",null,null,null,null,null,null,null,"Copy FTP pricing into Sheet1. Name area \"Pricing\". Superceded numbers"]
[null,null,null,null,null,null,null,null,null,null,"Accounting Method:   ","Prints"]
[null,"CONSUMABLES:   ","Select from List!"]
[null,null,{"$f":"IF(C13=\"AF3260C / AFC5560\",\"This quote includes the cost for 4 PCU's and their relevent parts\",\"\")","v":""}]
[null,null,null,null,null,null,null,null,null,null,null,null,null,null,"Calc Type"]
[null,"Part Number","Description","Qty","Process","Yield","Last Replacement Date",null,"Prints \nper part","Part usage (% of Yield)","FTP Price\n(Rand)","Pro rate Charge",null,null,"All / Col",null,"% of Meter readings"]
[null,null,null,null,null,null,"Black Meter","Colour Meter"]
[1,"D2416141","BELT CLEAN:I/M TRANS(D1496141)",1,null,240000,null,null,{"$f":"IF($L$15=\"Prints\",IF(O21=\"Both\",($L$13-G21)+($L$14-H21),IF(O21=\"Col\",($L$14-H21),IF(O21=\"-\",\"\",\"Error\"))),\n\nIF($L$15=\"Developments\",IF(O21=\"Both\",$L$13-G21,IF(O21=\"Col\",($L$14-H21)/3,IF(O21=\"-\",\"\",\"Error\"))),\"Dev/Print Error\"))","v":0},{"$f":"IF(B21=\"\",\"\",IF(Q21>=1,1,Q21))","v":0},null,{"$f":"IF(B21=\"\",\"\",$K21*$J21*D21)","v":0},null,null,"Both",null,{"$f":"I21/F21","v":0},{"$f":"IF(L15=\"Prints\",\n                    IF(O21=\"All\",(L13-G21)+(L14-H21),\n\"\"),\n\"\")","v":""},{"$f":"IF(VLOOKUP(B21,Pricing,5,FALSE)=\"\",B21,VLOOKUP(B21,Pricing,5,FALSE))","v":{"$error":"#N/A"}}]
[2,"D1773025","DEV UNIT:SVS PARTS:K(D1773020)",1,"K",120000,null,null,{"$f":"IF($L$15=\"Prints\",IF(O22=\"Both\",($L$13-G22)+($L$14-H22),IF(O22=\"Col\",($L$14-H22),IF(O22=\"-\",\"\",\"Error\"))),\n\nIF($L$15=\"Developments\",IF(O22=\"Both\",$L$13-G22,IF(O22=\"Col\",($L$14-H22)/3,IF(O22=\"-\",\"\",\"Error\"))),\"Dev/Print Error\"))","v":0},{"$f":"IF(B22=\"\",\"\",IF(Q22>=1,1,Q22))","v":0},null,0,null,null,"Both",null,{"$f":"I22/F22","v":0},null,{"$error":"#N/A"}]
[3,"D1882254","PCU:SERVICE PARTS:EX(D1882252)",1,"K",60000,null,null,0,0,null,0,null,null,"Both",null,0,null,{"$error":"#N/A"}]
[4,"AE020247","PRESSURE ROLLER:DIA32:SVS PART",1,null,240000,null,null,0,0,null,0,null,null,"Both",null,0,null,{"$error":"#N/A"}]
[null,"D1764042","SLEEVE:FUS:EU:SERVICE(D1764032",1,null,240000,null,null,0,0,null,0,null,null,"Both",null,0,null,{"$error":"#N/A"}]
[5,"D1496212","TRANS ROLL:2ND:ASS(D1496211)",1,null,240000,null,null,0,0,null,0,null,null,"Both",null,0,null,{"$error":"#N/A"}]
[6,"D1776007","TRANS UNIT:I/MED TR(D1776001)",1,null,240000,null,null,0,0,null,0,null,null,"Both",null,0,null,{"$error":"#N/A"}]
[7,null,null,null,null,null,null,null,"","",null,"",null,null,"-",null,{"$error":"#VALUE!"},null,{"$error":"#N/A"}]
[null,null,null,null,null,null,null,null,"","",null,"",null,null,"-",null,{"$error":"#VALUE!"},null,{"$error":"#N/A"}]
[null,null,null,null,null,null,null,null,"","",null,"",null,null,"-",null,{"$error":"#VALUE!"},null,{"$error":"#N/A"}]
[null,null,null,null,null,null,null,null,"","",null,"",null,null,"-",null,{"$error":"#VALUE!"},null,{"$error":"#N/A"}]
[null,null,null,null,null,null,null,null,"","",null,"",null,null,"-",null,{"$error":"#VALUE!"},null,{"$error":"#N/A"}]
[null,null,null,null,null,null,null,null,"","",null,"",null,null,"-",null,{"$error":"#VALUE!"},null,{"$error":"#N/A"}]
[null,null,null,null,null,null,null,null,"","",null,"",null,null,"-",null,{"$error":"#VALUE!"},null,{"$error":"#N/A"}]
[null,null,null,null,null,null,null,null,"","",null,"",null,null,"-",null,{"$error":"#VALUE!"},null,{"$error":"#N/A"}]
[null,null,null,null,null,null,null,null,"","",null,"",null,null,"-",null,{"$error":"#VALUE!"},null,{"$error":"#N/A"}]
[null,null,null,null,null,null,null,null,"","",null,"",null,null,"-",null,{"$error":"#VALUE!"},null,{"$error":"#N/A"}]
[null,null,null,null,null,null,null,null,"","",null,"",null,null,"-",null,{"$error":"#VALUE!"},null,{"$error":"#N/A"}]
[null,null,null,null,null,null,null,null,"","",null,"",null,null,"-",null,{"$error":"#VALUE!"},null,{"$error":"#N/A"}]
[null,null,null,null,null,null,null,null,"","",null,"",null,null,"-",null,{"$error":"#VALUE!"},null,{"$error":"#N/A"}]
[null,null,null,null,null,null,null,null,"","",null,"",null,null,"-",null,{"$error":"#VALUE!"},null,{"$error":"#N/A"}]
[null,null,null,null,null,null,null,null,"","",null,"",null,null,"-",null,{"$error":"#VALUE!"},null,{"$error":"#N/A"}]
[null,null,null,null,null,null,null,null,"","",null,"",null,null,"-",null,{"$error":"#VALUE!"},null,{"$error":"#N/A"}]
[null,null,null,null,null,null,null,null,"","",null,"",null,null,"-",null,{"$error":"#VALUE!"},null,{"$error":"#N/A"}]
[null,null,null,null,null,null,null,null,"","",null,"",null,null,"-",null,{"$error":"#VALUE!"},null,{"$error":"#N/A"}]
[null,null,null,null,null,null,null,null,"","",null,"",null,null,"-",null,{"$error":"#VALUE!"},null,{"$error":"#N/A"}]
[null,null,null,null,null,null,null,null,"","",null,"",null,null,"-",null,{"$error":"#VALUE!"},null,{"$error":"#N/A"}]
[8,null,null,null,null,null,null,null,"","",null,"",null,null,"-",null,{"$error":"#VALUE!"},null,{"$error":"#N/A"}]
[null,null,null,null,null,null,null,null,"","",null,"",null,null,"-",null,{"$error":"#VALUE!"},null,{"$error":"#N/A"}]
[null,null,null,null,null,null,null,null,"","",null,"",null,null,"-",null,{"$error":"#VALUE!"},null,{"$error":"#N/A"}]
[null,null,null,null,null,null,null,null,"","",null,"",null,null,"-",null,{"$error":"#VALUE!"},null,{"$error":"#N/A"}]
[null,null,null,null,null,null,null,null,"","",null,"",null,null,"-",null,{"$error":"#VALUE!"},null,{"$error":"#N/A"}]
[9,null,null,null,null,null,null,null,"","",null,"",null,null,"-",null,{"$error":"#VALUE!"},null,{"$error":"#N/A"}]
[10,null,null,null,null,null,null,null,"","",null,"",null,null,"-",null,{"$error":"#VALUE!"},null,{"$error":"#N/A"}]
[11,null,null,null,null,null,null,null,"","",null,"",null,null,"-",null,{"$error":"#VALUE!"},null,{"$error":"#N/A"}]
[null,null,null,null,null,null,null,null,"","",null,"",null,null,"-",null,{"$error":"#VALUE!"},null,{"$error":"#N/A"}]
[null,null,null,null,null,null,null,null,"","",null,"",null,null,"-",null,{"$error":"#VALUE!"},null,{"$error":"#N/A"}]
[null,null,null,null,null,null,null,null,"","",null,"",null,null,"-",null,{"$error":"#VALUE!"},null,{"$error":"#N/A"}]
[null,null,null,null,null,null,null,null,"","",null,"",null,null,"-",null,{"$error":"#VALUE!"},null,{"$error":"#N/A"}]
[null,null,null,null,null,null,null,null,"","",null,"",null,null,"-",null,{"$error":"#VALUE!"},null,{"$error":"#N/A"}]
[null,null,null,null,null,null,null,null,"","",null,"",null,null,"-",null,{"$error":"#VALUE!"},null,{"$error":"#N/A"}]
[null,null,null,null,null,null,null,null,"","",null,"",null,null,"-",null,{"$error":"#VALUE!"},null,{"$error":"#N/A"}]
[null,null,null,null,null,null,null,null,"","",null,"",null,null,"-",null,{"$error":"#VALUE!"},null,{"$error":"#N/A"}]
[null,null,null,null,null,null,null,null,"","",null,"",null,null,"-",null,{"$error":"#VALUE!"},null,{"$error":"#N/A"}]
[null,null,null,null,null,null,null,null,"","",null,"",null,null,"-",null,{"$error":"#VALUE!"},null,{"$error":"#N/A"}]
[null,null,null,null,null,null,null,null,"","",null,"",null,null,"-",null,{"$error":"#VALUE!"},null,{"$error":"#N/A"}]
[null,null,null,null,null,null,null,null,"","",null,"",null,null,"-",null,{"$error":"#VALUE!"},null,{"$error":"#N/A"}]
[null,null,null,null,null,null,null,null,"","",null,"",null,null,"-",null,{"$error":"#VALUE!"},null,{"$error":"#N/A"}]
[12,null,null,null,null,null,null,null,"","",null,"",null,null,"-",null,{"$error":"#VALUE!"},null,{"$error":"#N/A"}]
[13,null,null,null,null,null,null,null,"","",null,"",null,null,"-",null,{"$error":"#VALUE!"},null,{"$error":"#N/A"}]
[null,"Additional Notes:",null,null,null,null,null,null,null,null,"Total Parts:    ",{"$f":"SUM(L21:L70)","v":0},null,null,"-"]
[null,null,null,null,null,null,"Labour ",0,{"$f":"\"@ R\"& Data!C11 &\" p/h\"","v":"@ R200 p/h"},null,"Total Labour:    ",{"$f":"H72*Data!C11","v":0},null,null,"-"]
[null,null,null,null,null,null,null,null,null,null,"Sub Total:    ",{"$f":"L71+L72","v":0}]
[null,null,null,null,null,null,null,null,null,null,"VAT (15%):    ",{"$f":"L73*0.15","v":0}]
[null,null,null,null,null,null,null,null,null,null,"TOTAL:    ",{"$f":"L74+L73","v":0}]
[]
[]
[]
[]
[]
[null,"Quote prepared by:",null,null,null,null,null,"Quote accepted by:"]
[]
[]
[null,"Name:   ",null,null,null,null,null,"Name:   "]
[]
[]
[null,"Signature:",null,null,null,null,null,"Signature:"]
[]
[]
[null,"Date:",null,null,null,null,null,"Date:"]
[null,null,null,null,null,null,null,null,null,null,null,{"$f":"INDEX!H44","v":"(ver 2019.07.03)"}]

{"sheet":"MPC2530 & 2550","index":16,"n_rows":91,"n_cols":19,"rows_kept":91,"cut":false,"hidden":false,"merged":[[18,11,19,11],[71,1,78,2],[13,18,18,19],[18,1,19,1],[18,2,19,2],[18,3,19,3],[18,4,19,4],[18,5,19,5],[18,6,18,7],[18,8,19,8],[18,9,19,9],[18,10,19,10],[13,2,13,5],[2,1,2,2],[5,2,5,11],[6,2,6,11],[8,6,8,11],[9,6,9,11]]}
[null,null,null,null,null,null,null,"Service Manager: ",null,null,{"$f":"Data!C5","v":"Danie Fourie"}]
[null,null,null,null,null,null,null,"Email:",null,null,{"$f":"Data!C7","v":"danief@nashualim.co.za"}]
[null,{"$f":"Data!C3","v":"Nashua Limpopo"},null,null,null,null,null,"Fax:",null,null,{"$f":"Data!C9","v":"015 590 0319"}]
[]
[]
[null,"Date: "]
[null,"Customer: "]
[]
[null,null,"Previous Servicing Franchise:   "]
[null,null,"Attention Technical Manager:    "]
[]
[]
[null,"Model:   ","\"COMPLETE!!!\"",null,null,null,null,null,null,null,"Black Meter:   "]
[null,"Serial Number:   ",null,null,null,null,null,null,null,null,"Colour Meter:   ",null,null,null,null,null,null,null,"Copy FTP pricing into Sheet1. Name area \"Pricing\". Superceded numbers"]
[null,null,null,null,null,null,null,null,null,null,"Accounting Method:   ","Prints"]
[null,"CONSUMABLES:   ","Select from List!"]
[null,null,{"$f":"IF(C13=\"AF3260C / AFC5560\",\"This quote includes the cost for 4 PCU's and their relevent parts\",\"\")","v":""}]
[null,null,null,null,null,null,null,null,null,null,null,null,null,null,"Calc Type"]
[null,"Part Number","Description","Qty","Process","Yield","Last Replacement Date",null,"Prints \nper part","Part usage (% of Yield)","FTP Price\n(Rand)","Pro rate Charge",null,null,"All / Col",null,"% of Meter readings"]
[null,null,null,null,null,null,"Black Meter","Colour Meter"]
[1,"D1056036","CL UNIT:I/MED TRANS (D0396036)",1,null,60000,null,null,{"$f":"IF($L$15=\"Prints\",IF(O21=\"Both\",($L$13-G21)+($L$14-H21),IF(O21=\"Col\",($L$14-H21),IF(O21=\"-\",\"\",\"Error\"))),\n\nIF($L$15=\"Developments\",IF(O21=\"Both\",$L$13-G21,IF(O21=\"Col\",($L$14-H21)/3,IF(O21=\"-\",\"\",\"Error\"))),\"Dev/Print Error\"))","v":0},{"$f":"IF(B21=\"\",\"\",IF(Q21>=1,1,Q21))","v":0},null,{"$f":"IF(B21=\"\",\"\",$K21*$J21*D21)","v":0},null,null,"Both",null,{"$f":"I21/F21","v":0},{"$f":"IF(L15=\"Prints\",\n                    IF(O21=\"All\",(L13-G21)+(L14-H21),\n\"\"),\n\"\")","v":""},{"$f":"IF(VLOOKUP(B21,Pricing,5,FALSE)=\"\",B21,VLOOKUP(B21,Pricing,5,FALSE))","v":{"$error":"#N/A"}}]
[2,"D8093031","DEV UNIT:BK:SERV MPC2030/2530",1,"K",240000,null,null,{"$f":"IF($L$15=\"Prints\",IF(O22=\"Both\",($L$13-G22)+($L$14-H22),IF(O22=\"Col\",($L$14-H22),IF(O22=\"-\",\"\",\"Error\"))),\n\nIF($L$15=\"Developments\",IF(O22=\"Both\",$L$13-G22,IF(O22=\"Col\",($L$14-H22)/3,IF(O22=\"-\",\"\",\"Error\"))),\"Dev/Print Error\"))","v":0},{"$f":"IF(B22=\"\",\"\",IF(Q22>=1,1,Q22))","v":0},null,0,null,null,"Both",null,{"$f":"I22/F22","v":0},null,{"$error":"#N/A"}]
[3,"D0394056","FUSING BELT:DIA50:ASS MPC2030",1,null,150000,null,null,0,0,null,0,null,null,"Both",null,0,null,{"$error":"#N/A"}]
[4,"AE010074","HOT ROLLER:DIA29 MPC20/5530",1,null,150000,null,null,0,0,null,0,null,null,"Both",null,0,null,{"$error":"#N/A"}]
[null,"D0392040","PCU:DIANA:ASS(D0392030)MPC2051",1,"K",60000,null,null,0,0,null,0,null,null,"Both",null,0,null,{"$error":"#N/A"}]
[5,"AE020175","PRESSURE ROLLER:DIA30 MPC2030",1,null,240000,null,null,0,0,null,0,null,null,"Both",null,0,null,{"$error":"#N/A"}]
[6,"D0396029","TRANSFER BELT:ASS'Y MPC2030",1,null,240000,null,null,0,0,null,0,null,null,"Both",null,0,null,{"$error":"#N/A"}]
[7,null,null,null,null,null,null,null,"","",null,"",null,null,"-",null,{"$error":"#VALUE!"},null,{"$error":"#N/A"}]
[null,null,null,null,null,null,null,null,"","",null,"",null,null,"-",null,{"$error":"#VALUE!"},null,{"$error":"#N/A"}]
[null,null,null,null,null,null,null,null,"","",null,"",null,null,"-",null,{"$error":"#VALUE!"},null,{"$error":"#N/A"}]
[null,null,null,null,null,null,null,null,"","",null,"",null,null,"-",null,{"$error":"#VALUE!"},null,{"$error":"#N/A"}]
[null,null,null,null,null,null,null,null,"","",null,"",null,null,"-",null,{"$error":"#VALUE!"},null,{"$error":"#N/A"}]
[null,null,null,null,null,null,null,null,"","",null,"",null,null,"-",null,{"$error":"#VALUE!"},null,{"$error":"#N/A"}]
[null,null,null,null,null,null,null,null,"","",null,"",null,null,"-",null,{"$error":"#VALUE!"},null,{"$error":"#N/A"}]
[null,null,null,null,null,null,null,null,"","",null,"",null,null,"-",null,{"$error":"#VALUE!"},null,{"$error":"#N/A"}]
[null,null,null,null,null,null,null,null,"","",null,"",null,null,"-",null,{"$error":"#VALUE!"},null,{"$error":"#N/A"}]
[null,null,null,null,null,null,null,null,"","",null,"",null,null,"-",null,{"$error":"#VALUE!"},null,{"$error":"#N/A"}]
[null,null,null,null,null,null,null,null,"","",null,"",null,null,"-",null,{"$error":"#VALUE!"},null,{"$error":"#N/A"}]
[null,null,null,null,null,null,null,null,"","",null,"",null,null,"-",null,{"$error":"#VALUE!"},null,{"$error":"#N/A"}]
[null,null,null,null,null,null,null,null,"","",null,"",null,null,"-",null,{"$error":"#VALUE!"},null,{"$error":"#N/A"}]
[null,null,null,null,null,null,null,null,"","",null,"",null,null,"-",null,{"$error":"#VALUE!"},null,{"$error":"#N/A"}]
[null,null,null,null,null,null,null,null,"","",null,"",null,null,"-",null,{"$error":"#VALUE!"},null,{"$error":"#N/A"}]
[null,null,null,null,null,null,null,null,"","",null,"",null,null,"-",null,{"$error":"#VALUE!"},null,{"$error":"#N/A"}]
[null,null,null,null,null,null,null,null,"","",null,"",null,null,"-",null,{"$error":"#VALUE!"},null,{"$error":"#N/A"}]
[null,null,null,null,null,null,null,null,"","",null,"",null,null,"-",null,{"$error":"#VALUE!"},null,{"$error":"#N/A"}]
[null,null,null,null,null,null,null,null,"","",null,"",null,null,"-",null,{"$error":"#VALUE!"},null,{"$error":"#N/A"}]
[null,null,null,null,null,null,null,null,"","",null,"",null,null,"-",null,{"$error":"#VALUE!"},null,{"$error":"#N/A"}]
[8,null,null,null,null,null,null,null,"","",null,"",null,null,"-",null,{"$error":"#VALUE!"},null,{"$error":"#N/A"}]
[null,null,null,null,null,null,null,null,"","",null,"",null,null,"-",null,{"$error":"#VALUE!"},null,{"$error":"#N/A"}]
[null,null,null,null,null,null,null,null,"","",null,"",null,null,"-",null,{"$error":"#VALUE!"},null,{"$error":"#N/A"}]
[null,null,null,null,null,null,null,null,"","",null,"",null,null,"-",null,{"$error":"#VALUE!"},null,{"$error":"#N/A"}]
[null,null,null,null,null,null,null,null,"","",null,"",null,null,"-",null,{"$error":"#VALUE!"},null,{"$error":"#N/A"}]
[9,null,null,null,null,null,null,null,"","",null,"",null,null,"-",null,{"$error":"#VALUE!"},null,{"$error":"#N/A"}]
[10,null,null,null,null,null,null,null,"","",null,"",null,null,"-",null,{"$error":"#VALUE!"},null,{"$error":"#N/A"}]
[11,null,null,null,null,null,null,null,"","",null,"",null,null,"-",null,{"$error":"#VALUE!"},null,{"$error":"#N/A"}]
[null,null,null,null,null,null,null,null,"","",null,"",null,null,"-",null,{"$error":"#VALUE!"},null,{"$error":"#N/A"}]
[null,null,null,null,null,null,null,null,"","",null,"",null,null,"-",null,{"$error":"#VALUE!"},null,{"$error":"#N/A"}]
[null,null,null,null,null,null,null,null,"","",null,"",null,null,"-",null,{"$error":"#VALUE!"},null,{"$error":"#N/A"}]
[null,null,null,null,null,null,null,null,"","",null,"",null,null,"-",null,{"$error":"#VALUE!"},null,{"$error":"#N/A"}]
[null,null,null,null,null,null,null,null,"","",null,"",null,null,"-",null,{"$error":"#VALUE!"},null,{"$error":"#N/A"}]
[null,null,null,null,null,null,null,null,"","",null,"",null,null,"-",null,{"$error":"#VALUE!"},null,{"$error":"#N/A"}]
[null,null,null,null,null,null,null,null,"","",null,"",null,null,"-",null,{"$error":"#VALUE!"},null,{"$error":"#N/A"}]
[null,null,null,null,null,null,null,null,"","",null,"",null,null,"-",null,{"$error":"#VALUE!"},null,{"$error":"#N/A"}]
[null,null,null,null,null,null,null,null,"","",null,"",null,null,"-",null,{"$error":"#VALUE!"},null,{"$error":"#N/A"}]
[null,null,null,null,null,null,null,null,"","",null,"",null,null,"-",null,{"$error":"#VALUE!"},null,{"$error":"#N/A"}]
[null,null,null,null,null,null,null,null,"","",null,"",null,null,"-",null,{"$error":"#VALUE!"},null,{"$error":"#N/A"}]
[null,null,null,null,null,null,null,null,"","",null,"",null,null,"-",null,{"$error":"#VALUE!"},null,{"$error":"#N/A"}]
[null,null,null,null,null,null,null,null,"","",null,"",null,null,"-",null,{"$error":"#VALUE!"},null,{"$error":"#N/A"}]
[12,null,null,null,null,null,null,null,"","",null,"",null,null,"-",null,{"$error":"#VALUE!"},null,{"$error":"#N/A"}]
[13,null,null,null,null,null,null,null,"","",null,"",null,null,"-",null,{"$error":"#VALUE!"},null,{"$error":"#N/A"}]
[null,"Additional Notes:",null,null,null,null,null,null,null,null,"Total Parts:    ",{"$f":"SUM(L21:L70)","v":0},null,null,"-"]
[null,null,null,null,null,null,"Labour ",0,{"$f":"\"@ R\"& Data!C11 &\" p/h\"","v":"@ R200 p/h"},null,"Total Labour:    ",{"$f":"H72*Data!C11","v":0},null,null,"-"]
[null,null,null,null,null,null,null,null,null,null,"Sub Total:    ",{"$f":"L71+L72","v":0}]
[null,null,null,null,null,null,null,null,null,null,"VAT (15%):    ",{"$f":"L73*0.15","v":0}]
[null,null,null,null,null,null,null,null,null,null,"TOTAL:    ",{"$f":"L74+L73","v":0}]
[]
[]
[]
[]
[]
[null,"Quote prepared by:",null,null,null,null,null,"Quote accepted by:"]
[]
[]
[null,"Name:   ",null,null,null,null,null,"Name:   "]
[]
[]
[null,"Signature:",null,null,null,null,null,"Signature:"]
[]
[]
[null,"Date:",null,null,null,null,null,"Date:"]
[null,null,null,null,null,null,null,null,null,null,null,{"$f":"INDEX!H44","v":"(ver 2019.07.03)"}]

{"sheet":"MPC2800 & 3300","index":17,"n_rows":91,"n_cols":19,"rows_kept":91,"cut":false,"hidden":false,"merged":[[18,11,19,11],[71,1,78,2],[13,18,18,19],[18,1,19,1],[18,2,19,2],[18,3,19,3],[18,4,19,4],[18,5,19,5],[18,6,18,7],[18,8,19,8],[18,9,19,9],[18,10,19,10],[13,2,13,5],[2,1,2,2],[5,2,5,11],[6,2,6,11],[8,6,8,11],[9,6,9,11]]}
[null,null,null,null,null,null,null,"Service Manager: ",null,null,{"$f":"Data!C5","v":"Danie Fourie"}]
[null,null,null,null,null,null,null,"Email:",null,null,{"$f":"Data!C7","v":"danief@nashualim.co.za"}]
[null,{"$f":"Data!C3","v":"Nashua Limpopo"},null,null,null,null,null,"Fax:",null,null,{"$f":"Data!C9","v":"015 590 0319"}]
[]
[]
[null,"Date: "]
[null,"Customer: "]
[]
[null,null,"Previous Servicing Franchise:   "]
[null,null,"Attention Technical Manager:    "]
[]
[]
[null,"Model:   ","\"COMPLETE!!!\"",null,null,null,null,null,null,null,"Black Meter:   "]
[null,"Serial Number:   ",null,null,null,null,null,null,null,null,"Colour Meter:   ",null,null,null,null,null,null,null,"Copy FTP pricing into Sheet1. Name area \"Pricing\". Superceded numbers"]
[null,null,null,null,null,null,null,null,null,null,"Accounting Method:   ","Prints"]
[null,"CONSUMABLES:   ","Select from List!"]
[null,null,{"$f":"IF(C13=\"AF3260C / AFC5560\",\"This quote includes the cost for 4 PCU's and their relevent parts\",\"\")","v":""}]
[null,null,null,null,null,null,null,null,null,null,null,null,null,null,"Calc Type"]
[null,"Part Number","Description","Qty","Process","Yield","Last Replacement Date",null,"Prints \nper part","Part usage (% of Yield)","FTP Price\n(Rand)","Pro rate Charge",null,null,"All / Col",null,"% of Meter readings"]
[null,null,null,null,null,null,"Black Meter","Colour Meter"]
[1,"D0896022","CL UNIT:I/M TRANS (D0896021)",1,null,240000,null,null,{"$f":"IF($L$15=\"Prints\",IF(O21=\"Both\",($L$13-G21)+($L$14-H21),IF(O21=\"Col\",($L$14-H21),IF(O21=\"-\",\"\",\"Error\"))),\n\nIF($L$15=\"Developments\",IF(O21=\"Both\",$L$13-G21,IF(O21=\"Col\",($L$14-H21)/3,IF(O21=\"-\",\"\",\"Error\"))),\"Dev/Print Error\"))","v":0},{"$f":"IF(B21=\"\",\"\",IF(Q21>=1,1,Q21))","v":0},null,{"$f":"IF(B21=\"\",\"\",$K21*$J21*D21)","v":0},null,null,"Both",null,{"$f":"I21/F21","v":0},{"$f":"IF(L15=\"Prints\",\n                    IF(O21=\"All\",(L13-G21)+(L14-H21),\n\"\"),\n\"\")","v":""},{"$f":"IF(VLOOKUP(B21,Pricing,5,FALSE)=\"\",B21,VLOOKUP(B21,Pricing,5,FALSE))","v":{"$error":"#N/A"}}]
[2,"D0293015","DEV UNIT:BK:C2:EXP:AS MPC4/500",1,null,480000,null,null,{"$f":"IF($L$15=\"Prints\",IF(O22=\"Both\",($L$13-G22)+($L$14-H22),IF(O22=\"Col\",($L$14-H22),IF(O22=\"-\",\"\",\"Error\"))),\n\nIF($L$15=\"Developments\",IF(O22=\"Both\",$L$13-G22,IF(O22=\"Col\",($L$14-H22)/3,IF(O22=\"-\",\"\",\"Error\"))),\"Dev/Print Error\"))","v":0},{"$f":"IF(B22=\"\",\"\",IF(Q22>=1,1,Q22))","v":0},null,0,null,null,"Both",null,{"$f":"I22/F22","v":0},null,{"$error":"#N/A"}]
[3,"B2384070","FUSING BELT MPC25/3000",1,null,240000,null,null,0,0,null,0,null,null,"Both",null,0,null,{"$error":"#N/A"}]
[4,"AE012030","HEATING ROLLER MPC25/3000",1,null,240000,null,null,0,0,null,0,null,null,"Both",null,0,null,{"$error":"#N/A"}]
[null,"AE010067","HOT ROLLER:DIA35 MPC28/3300",1,null,240000,null,null,0,0,null,0,null,null,"Both",null,0,null,{"$error":"#N/A"}]
[5,"D0292256","PCU:BK:UV:ASS(D0292252)MPC2800",1,"K",120000,null,null,0,0,null,0,null,null,"Both",null,0,null,{"$error":"#N/A"}]
[6,"D0292251","PCU:COLLAR:ASS'Y MPC28/3300",1,"C",120000,null,null,0,0,null,0,null,null,"Col",null,0,null,{"$error":"#N/A"}]
[7,"D0292251","PCU:COLLAR:ASS'Y MPC28/3300",1,"M",120000,null,null,0,0,null,0,null,null,"Col",null,0,null,{"$error":"#N/A"}]
[null,"D0292251","PCU:COLLAR:ASS'Y MPC28/3300",1,"Y",120000,null,null,0,0,null,0,null,null,"Col",null,0,null,{"$error":"#N/A"}]
[null,"AE020169","PRESS ROLLER:DIA30 MPC28/3300",1,null,240000,null,null,0,0,null,0,null,null,"Both",null,0,null,{"$error":"#N/A"}]
[null,"D0876202","TRANS/SEP UNIT:AT:DO(D0256202)",1,null,360000,null,null,0,0,null,0,null,null,"Both",null,0,null,{"$error":"#N/A"}]
[null,null,null,null,null,null,null,null,"","",null,"",null,null,"-",null,{"$error":"#VALUE!"},null,{"$error":"#N/A"}]
[null,null,null,null,null,null,null,null,"","",null,"",null,null,"-",null,{"$error":"#VALUE!"},null,{"$error":"#N/A"}]
[null,null,null,null,null,null,null,null,"","",null,"",null,null,"-",null,{"$error":"#VALUE!"},null,{"$error":"#N/A"}]
[null,null,null,null,null,null,null,null,"","",null,"",null,null,"-",null,{"$error":"#VALUE!"},null,{"$error":"#N/A"}]
[null,null,null,null,null,null,null,null,"","",null,"",null,null,"-",null,{"$error":"#VALUE!"},null,{"$error":"#N/A"}]
[null,null,null,null,null,null,null,null,"","",null,"",null,null,"-",null,{"$error":"#VALUE!"},null,{"$error":"#N/A"}]
[null,null,null,null,null,null,null,null,"","",null,"",null,null,"-",null,{"$error":"#VALUE!"},null,{"$error":"#N/A"}]
[null,null,null,null,null,null,null,null,"","",null,"",null,null,"-",null,{"$error":"#VALUE!"},null,{"$error":"#N/A"}]
[null,null,null,null,null,null,null,null,"","",null,"",null,null,"-",null,{"$error":"#VALUE!"},null,{"$error":"#N/A"}]
[null,null,null,null,null,null,null,null,"","",null,"",null,null,"-",null,{"$error":"#VALUE!"},null,{"$error":"#N/A"}]
[null,null,null,null,null,null,null,null,"","",null,"",null,null,"-",null,{"$error":"#VALUE!"},null,{"$error":"#N/A"}]
[null,null,null,null,null,null,null,null,"","",null,"",null,null,"-",null,{"$error":"#VALUE!"},null,{"$error":"#N/A"}]
[null,null,null,null,null,null,null,null,"","",null,"",null,null,"-",null,{"$error":"#VALUE!"},null,{"$error":"#N/A"}]
[null,null,null,null,null,null,null,null,"","",null,"",null,null,"-",null,{"$error":"#VALUE!"},null,{"$error":"#N/A"}]
[null,null,null,null,null,null,null,null,"","",null,"",null,null,"-",null,{"$error":"#VALUE!"},null,{"$error":"#N/A"}]
[null,null,null,null,null,null,null,null,"","",null,"",null,null,"-",null,{"$error":"#VALUE!"},null,{"$error":"#N/A"}]
[8,null,null,null,null,null,null,null,"","",null,"",null,null,"-",null,{"$error":"#VALUE!"},null,{"$error":"#N/A"}]
[null,null,null,null,null,null,null,null,"","",null,"",null,null,"-",null,{"$error":"#VALUE!"},null,{"$error":"#N/A"}]
[null,null,null,null,null,null,null,null,"","",null,"",null,null,"-",null,{"$error":"#VALUE!"},null,{"$error":"#N/A"}]
[null,null,null,null,null,null,null,null,"","",null,"",null,null,"-",null,{"$error":"#VALUE!"},null,{"$error":"#N/A"}]
[null,null,null,null,null,null,null,null,"","",null,"",null,null,"-",null,{"$error":"#VALUE!"},null,{"$error":"#N/A"}]
[9,null,null,null,null,null,null,null,"","",null,"",null,null,"-",null,{"$error":"#VALUE!"},null,{"$error":"#N/A"}]
[10,null,null,null,null,null,null,null,"","",null,"",null,null,"-",null,{"$error":"#VALUE!"},null,{"$error":"#N/A"}]
[11,null,null,null,null,null,null,null,"","",null,"",null,null,"-",null,{"$error":"#VALUE!"},null,{"$error":"#N/A"}]
[null,null,null,null,null,null,null,null,"","",null,"",null,null,"-",null,{"$error":"#VALUE!"},null,{"$error":"#N/A"}]
[null,null,null,null,null,null,null,null,"","",null,"",null,null,"-",null,{"$error":"#VALUE!"},null,{"$error":"#N/A"}]
[null,null,null,null,null,null,null,null,"","",null,"",null,null,"-",null,{"$error":"#VALUE!"},null,{"$error":"#N/A"}]
[null,null,null,null,null,null,null,null,"","",null,"",null,null,"-",null,{"$error":"#VALUE!"},null,{"$error":"#N/A"}]
[null,null,null,null,null,null,null,null,"","",null,"",null,null,"-",null,{"$error":"#VALUE!"},null,{"$error":"#N/A"}]
[null,null,null,null,null,null,null,null,"","",null,"",null,null,"-",null,{"$error":"#VALUE!"},null,{"$error":"#N/A"}]
[null,null,null,null,null,null,null,null,"","",null,"",null,null,"-",null,{"$error":"#VALUE!"},null,{"$error":"#N/A"}]
[null,null,null,null,null,null,null,null,"","",null,"",null,null,"-",null,{"$error":"#VALUE!"},null,{"$error":"#N/A"}]
[null,null,null,null,null,null,null,null,"","",null,"",null,null,"-",null,{"$error":"#VALUE!"},null,{"$error":"#N/A"}]
[null,null,null,null,null,null,null,null,"","",null,"",null,null,"-",null,{"$error":"#VALUE!"},null,{"$error":"#N/A"}]
[null,null,null,null,null,null,null,null,"","",null,"",null,null,"-",null,{"$error":"#VALUE!"},null,{"$error":"#N/A"}]
[null,null,null,null,null,null,null,null,"","",null,"",null,null,"-",null,{"$error":"#VALUE!"},null,{"$error":"#N/A"}]
[null,null,null,null,null,null,null,null,"","",null,"",null,null,"-",null,{"$error":"#VALUE!"},null,{"$error":"#N/A"}]
[12,null,null,null,null,null,null,null,"","",null,"",null,null,"-",null,{"$error":"#VALUE!"},null,{"$error":"#N/A"}]
[13,null,null,null,null,null,null,null,"","",null,"",null,null,"-",null,{"$error":"#VALUE!"},null,{"$error":"#N/A"}]
[null,"Additional Notes:",null,null,null,null,null,null,null,null,"Total Parts:    ",{"$f":"SUM(L21:L70)","v":0},null,null,"-"]
[null,null,null,null,null,null,"Labour ",0,{"$f":"\"@ R\"& Data!C11 &\" p/h\"","v":"@ R200 p/h"},null,"Total Labour:    ",{"$f":"H72*Data!C11","v":0},null,null,"-"]
[null,null,null,null,null,null,null,null,null,null,"Sub Total:    ",{"$f":"L71+L72","v":0}]
[null,null,null,null,null,null,null,null,null,null,"VAT (15%):    ",{"$f":"L73*0.15","v":0}]
[null,null,null,null,null,null,null,null,null,null,"TOTAL:    ",{"$f":"L74+L73","v":0}]
[]
[]
[]
[]
[]
[null,"Quote prepared by:",null,null,null,null,null,"Quote accepted by:"]
[]
[]
[null,"Name:   ",null,null,null,null,null,"Name:   "]
[]
[]
[null,"Signature:",null,null,null,null,null,"Signature:"]
[]
[]
[null,"Date:",null,null,null,null,null,"Date:"]
[null,null,null,null,null,null,null,null,null,null,null,{"$f":"INDEX!H44","v":"(ver 2019.07.03)"}]

{"sheet":"MPC300-400","index":18,"n_rows":91,"n_cols":19,"rows_kept":91,"cut":false,"hidden":false,"merged":[[18,11,19,11],[71,1,78,2],[13,18,18,19],[18,1,19,1],[18,2,19,2],[18,3,19,3],[18,4,19,4],[18,5,19,5],[18,6,18,7],[18,8,19,8],[18,9,19,9],[18,10,19,10],[13,2,13,5],[2,1,2,2],[5,2,5,11],[6,2,6,11],[8,6,8,11],[9,6,9,11]]}
[null,null,null,null,null,null,null,"Service Manager: ",null,null,{"$f":"Data!C5","v":"Danie Fourie"}]
[null,null,null,null,null,null,null,"Email:",null,null,{"$f":"Data!C7","v":"danief@nashualim.co.za"}]
[null,{"$f":"Data!C3","v":"Nashua Limpopo"},null,null,null,null,null,"Fax:",null,null,{"$f":"Data!C9","v":"015 590 0319"}]
[]
[]
[null,"Date: "]
[null,"Customer: "]
[]
[null,null,"Previous Servicing Franchise:   "]
[null,null,"Attention Technical Manager:    "]
[]
[]
[null,"Model:   ","\"COMPLETE!!!\"",null,null,null,null,null,null,null,"Black Meter:   "]
[null,"Serial Number:   ",null,null,null,null,null,null,null,null,"Colour Meter:   ",null,null,null,null,null,null,null,"Copy FTP pricing into Sheet1. Name area \"Pricing\". Superceded numbers"]
[null,null,null,null,null,null,null,null,null,null,"Accounting Method:   ","Prints"]
[null,"CONSUMABLES:   ","Select from List!"]
[null,null,{"$f":"IF(C13=\"AF3260C / AFC5560\",\"This quote includes the cost for 4 PCU's and their relevent parts\",\"\")","v":""}]
[null,null,null,null,null,null,null,null,null,null,null,null,null,null,"Calc Type"]
[null,"Part Number","Description","Qty","Process","Yield","Last Replacement Date",null,"Prints \nper part","Part usage (% of Yield)","FTP Price\n(Rand)","Pro rate Charge",null,null,"All / Col",null,"% of Meter readings"]
[null,null,null,null,null,null,"Black Meter","Colour Meter"]
[1,"AE042087","CL ROLL:O/SUP ROLL MPC3/400/SR",1,null,120000,null,null,{"$f":"IF($L$15=\"Prints\",IF(O21=\"Both\",($L$13-G21)+($L$14-H21),IF(O21=\"Col\",($L$14-H21),IF(O21=\"-\",\"\",\"Error\"))),\n\nIF($L$15=\"Developments\",IF(O21=\"Both\",$L$13-G21,IF(O21=\"Col\",($L$14-H21)/3,IF(O21=\"-\",\"\",\"Error\"))),\"Dev/Print Error\"))","v":0},{"$f":"IF(B21=\"\",\"\",IF(Q21>=1,1,Q21))","v":0},null,{"$f":"IF(B21=\"\",\"\",$K21*$J21*D21)","v":0},null,null,"Both",null,{"$f":"I21/F21","v":0},{"$f":"IF(L15=\"Prints\",\n                    IF(O21=\"All\",(L13-G21)+(L14-H21),\n\"\"),\n\"\")","v":""},{"$f":"IF(VLOOKUP(B21,Pricing,5,FALSE)=\"\",B21,VLOOKUP(B21,Pricing,5,FALSE))","v":{"$error":"#N/A"}}]
[2,"M0263800","CL UNIT:ITB MPC/400/SR",1,null,180000,null,null,{"$f":"IF($L$15=\"Prints\",IF(O22=\"Both\",($L$13-G22)+($L$14-H22),IF(O22=\"Col\",($L$14-H22),IF(O22=\"-\",\"\",\"Error\"))),\n\nIF($L$15=\"Developments\",IF(O22=\"Both\",$L$13-G22,IF(O22=\"Col\",($L$14-H22)/3,IF(O22=\"-\",\"\",\"Error\"))),\"Dev/Print Error\"))","v":0},{"$f":"IF(B22=\"\",\"\",IF(Q22>=1,1,Q22))","v":0},null,0,null,null,"Both",null,{"$f":"I22/F22","v":0},null,{"$error":"#N/A"}]
[3,"M0263030","DEV UNIT:BK MPC300(M0263021)",1,"K",60000,null,null,0,0,null,0,null,null,"Both",null,0,null,{"$error":"#N/A"}]
[4,"M0263031","DEV UNIT:C (M0263022) MPC300",1,"C",60000,null,null,0,0,null,0,null,null,"Col",null,0,null,{"$error":"#N/A"}]
[null,"M0263032","DEV UNIT:M (M0263023) MPC300",1,"M",60000,null,null,0,0,null,0,null,null,"Col",null,0,null,{"$error":"#N/A"}]
[5,"M0263033","DEV UNIT:Y(M0263024)MPC300/SR",1,"Y",60000,null,null,0,0,null,0,null,null,"Col",null,0,null,{"$error":"#N/A"}]
[6,"M0264106","FUSING BELT MPC3/400/SR",1,null,120000,null,null,0,0,null,0,null,null,"Both",null,0,null,{"$error":"#N/A"}]
[7,"AE010076","HOT ROLLER MPC3/400/SR",1,null,120000,null,null,0,0,null,0,null,null,"Both",null,0,null,{"$error":"#N/A"}]
[null,"AE040074","OIL SUPPLY ROLLER:D18 MPC3/400",1,null,120000,null,null,0,0,null,0,null,null,"Both",null,0,null,{"$error":"#N/A"}]
[null,"M0262014","PCU:BK:ASS'Y MPC3/400/SR",1,"K",60000,null,null,0,0,null,0,null,null,"Both",null,0,null,{"$error":"#N/A"}]
[null,"M0262015","PCU:CMY:ASS'Y MPC3/400/SR",1,"C",60000,null,null,0,0,null,0,null,null,"Col",null,0,null,{"$error":"#N/A"}]
[null,"M0262015","PCU:CMY:ASS'Y MPC3/400/SR",1,"M",60000,null,null,0,0,null,0,null,null,"Col",null,0,null,{"$error":"#N/A"}]
[null,"M0262015","PCU:CMY:ASS'Y MPC3/400/SR",1,"Y",60000,null,null,0,0,null,0,null,null,"Col",null,0,null,{"$error":"#N/A"}]
[null,"AE020179","PRESSURE ROLLER MPC3/400/SR",1,null,120000,null,null,0,0,null,0,null,null,"Both",null,0,null,{"$error":"#N/A"}]
[null,"M0266010","TRANS UNIT MPC3/400 (M0266000)",1,null,240000,null,null,0,0,null,0,null,null,"Both",null,0,null,{"$error":"#N/A"}]
[null,"M0266200","TRANS/SEP UNIT MPC3/400/SR",1,null,180000,null,null,0,0,null,0,null,null,"Both",null,0,null,{"$error":"#N/A"}]
[null,null,null,null,null,null,null,null,"","",null,"",null,null,"-",null,{"$error":"#VALUE!"},null,{"$error":"#N/A"}]
[null,null,null,null,null,null,null,null,"","",null,"",null,null,"-",null,{"$error":"#VALUE!"},null,{"$error":"#N/A"}]
[null,null,null,null,null,null,null,null,"","",null,"",null,null,"-",null,{"$error":"#VALUE!"},null,{"$error":"#N/A"}]
[null,null,null,null,null,null,null,null,"","",null,"",null,null,"-",null,{"$error":"#VALUE!"},null,{"$error":"#N/A"}]
[null,null,null,null,null,null,null,null,"","",null,"",null,null,"-",null,{"$error":"#VALUE!"},null,{"$error":"#N/A"}]
[null,null,null,null,null,null,null,null,"","",null,"",null,null,"-",null,{"$error":"#VALUE!"},null,{"$error":"#N/A"}]
[null,null,null,null,null,null,null,null,"","",null,"",null,null,"-",null,{"$error":"#VALUE!"},null,{"$error":"#N/A"}]
[null,null,null,null,null,null,null,null,"","",null,"",null,null,"-",null,{"$error":"#VALUE!"},null,{"$error":"#N/A"}]
[null,null,null,null,null,null,null,null,"","",null,"",null,null,"-",null,{"$error":"#VALUE!"},null,{"$error":"#N/A"}]
[null,null,null,null,null,null,null,null,"","",null,"",null,null,"-",null,{"$error":"#VALUE!"},null,{"$error":"#N/A"}]
[null,null,null,null,null,null,null,null,"","",null,"",null,null,"-",null,{"$error":"#VALUE!"},null,{"$error":"#N/A"}]
[8,null,null,null,null,null,null,null,"","",null,"",null,null,"-",null,{"$error":"#VALUE!"},null,{"$error":"#N/A"}]
[null,null,null,null,null,null,null,null,"","",null,"",null,null,"-",null,{"$error":"#VALUE!"},null,{"$error":"#N/A"}]
[null,null,null,null,null,null,null,null,"","",null,"",null,null,"-",null,{"$error":"#VALUE!"},null,{"$error":"#N/A"}]
[null,null,null,null,null,null,null,null,"","",null,"",null,null,"-",null,{"$error":"#VALUE!"},null,{"$error":"#N/A"}]
[null,null,null,null,null,null,null,null,"","",null,"",null,null,"-",null,{"$error":"#VALUE!"},null,{"$error":"#N/A"}]
[9,null,null,null,null,null,null,null,"","",null,"",null,null,"-",null,{"$error":"#VALUE!"},null,{"$error":"#N/A"}]
[10,null,null,null,null,null,null,null,"","",null,"",null,null,"-",null,{"$error":"#VALUE!"},null,{"$error":"#N/A"}]
[11,null,null,null,null,null,null,null,"","",null,"",null,null,"-",null,{"$error":"#VALUE!"},null,{"$error":"#N/A"}]
[null,null,null,null,null,null,null,null,"","",null,"",null,null,"-",null,{"$error":"#VALUE!"},null,{"$error":"#N/A"}]
[null,null,null,null,null,null,null,null,"","",null,"",null,null,"-",null,{"$error":"#VALUE!"},null,{"$error":"#N/A"}]
[null,null,null,null,null,null,null,null,"","",null,"",null,null,"-",null,{"$error":"#VALUE!"},null,{"$error":"#N/A"}]
[null,null,null,null,null,null,null,null,"","",null,"",null,null,"-",null,{"$error":"#VALUE!"},null,{"$error":"#N/A"}]
[null,null,null,null,null,null,null,null,"","",null,"",null,null,"-",null,{"$error":"#VALUE!"},null,{"$error":"#N/A"}]
[null,null,null,null,null,null,null,null,"","",null,"",null,null,"-",null,{"$error":"#VALUE!"},null,{"$error":"#N/A"}]
[null,null,null,null,null,null,null,null,"","",null,"",null,null,"-",null,{"$error":"#VALUE!"},null,{"$error":"#N/A"}]
[null,null,null,null,null,null,null,null,"","",null,"",null,null,"-",null,{"$error":"#VALUE!"},null,{"$error":"#N/A"}]
[null,null,null,null,null,null,null,null,"","",null,"",null,null,"-",null,{"$error":"#VALUE!"},null,{"$error":"#N/A"}]
[null,null,null,null,null,null,null,null,"","",null,"",null,null,"-",null,{"$error":"#VALUE!"},null,{"$error":"#N/A"}]
[null,null,null,null,null,null,null,null,"","",null,"",null,null,"-",null,{"$error":"#VALUE!"},null,{"$error":"#N/A"}]
[null,null,null,null,null,null,null,null,"","",null,"",null,null,"-",null,{"$error":"#VALUE!"},null,{"$error":"#N/A"}]
[null,null,null,null,null,null,null,null,"","",null,"",null,null,"-",null,{"$error":"#VALUE!"},null,{"$error":"#N/A"}]
[12,null,null,null,null,null,null,null,"","",null,"",null,null,"-",null,{"$error":"#VALUE!"},null,{"$error":"#N/A"}]
[13,null,null,null,null,null,null,null,"","",null,"",null,null,"-",null,{"$error":"#VALUE!"},null,{"$error":"#N/A"}]
[null,"Additional Notes:",null,null,null,null,null,null,null,null,"Total Parts:    ",{"$f":"SUM(L21:L70)","v":0},null,null,"-"]
[null,null,null,null,null,null,"Labour ",0,{"$f":"\"@ R\"& Data!C11 &\" p/h\"","v":"@ R200 p/h"},null,"Total Labour:    ",{"$f":"H72*Data!C11","v":0},null,null,"-"]
[null,null,null,null,null,null,null,null,null,null,"Sub Total:    ",{"$f":"L71+L72","v":0}]
[null,null,null,null,null,null,null,null,null,null,"VAT (15%):    ",{"$f":"L73*0.15","v":0}]
[null,null,null,null,null,null,null,null,null,null,"TOTAL:    ",{"$f":"L74+L73","v":0}]
[]
[]
[]
[]
[]
[null,"Quote prepared by:",null,null,null,null,null,"Quote accepted by:"]
[]
[]
[null,"Name:   ",null,null,null,null,null,"Name:   "]
[]
[]
[null,"Signature:",null,null,null,null,null,"Signature:"]
[]
[]
[null,"Date:",null,null,null,null,null,"Date:"]
[null,null,null,null,null,null,null,null,null,null,null,{"$f":"INDEX!H44","v":"(ver 2019.07.03)"}]

{"sheet":"MPC3001 & 3501","index":19,"n_rows":91,"n_cols":19,"rows_kept":91,"cut":false,"hidden":false,"merged":[[18,11,19,11],[71,1,78,2],[13,18,18,19],[18,1,19,1],[18,2,19,2],[18,3,19,3],[18,4,19,4],[18,5,19,5],[18,6,18,7],[18,8,19,8],[18,9,19,9],[18,10,19,10],[13,2,13,5],[2,1,2,2],[5,2,5,11],[6,2,6,11],[8,6,8,11],[9,6,9,11]]}
[null,null,null,null,null,null,null,"Service Manager: ",null,null,{"$f":"Data!C5","v":"Danie Fourie"}]
[null,null,null,null,null,null,null,"Email:",null,null,{"$f":"Data!C7","v":"danief@nashualim.co.za"}]
[null,{"$f":"Data!C3","v":"Nashua Limpopo"},null,null,null,null,null,"Fax:",null,null,{"$f":"Data!C9","v":"015 590 0319"}]
[]
[]
[null,"Date: "]
[null,"Customer: "]
[]
[null,null,"Previous Servicing Franchise:   "]
[null,null,"Attention Technical Manager:    "]
[]
[]
[null,"Model:   ","\"COMPLETE!!!\"",null,null,null,null,null,null,null,"Black Meter:   "]
[null,"Serial Number:   ",null,null,null,null,null,null,null,null,"Colour Meter:   ",null,null,null,null,null,null,null,"Copy FTP pricing into Sheet1. Name area \"Pricing\". Superceded numbers"]
[null,null,null,null,null,null,null,null,null,null,"Accounting Method:   ","Prints"]
[null,"CONSUMABLES:   ","Select from List!"]
[null,null,{"$f":"IF(C13=\"AF3260C / AFC5560\",\"This quote includes the cost for 4 PCU's and their relevent parts\",\"\")","v":""}]
[null,null,null,null,null,null,null,null,null,null,null,null,null,null,"Calc Type"]
[null,"Part Number","Description","Qty","Process","Yield","Last Replacement Date",null,"Prints \nper part","Part usage (% of Yield)","FTP Price\n(Rand)","Pro rate Charge",null,null,"All / Col",null,"% of Meter readings"]
[null,null,null,null,null,null,"Black Meter","Colour Meter"]
[1,"D0896022","CL UNIT:I/M TRANS (D0896021)",1,null,200000,null,null,{"$f":"IF($L$15=\"Prints\",IF(O21=\"Both\",($L$13-G21)+($L$14-H21),IF(O21=\"Col\",($L$14-H21),IF(O21=\"-\",\"\",\"Error\"))),\n\nIF($L$15=\"Developments\",IF(O21=\"Both\",$L$13-G21,IF(O21=\"Col\",($L$14-H21)/3,IF(O21=\"-\",\"\",\"Error\"))),\"Dev/Print Error\"))","v":0},{"$f":"IF(B21=\"\",\"\",IF(Q21>=1,1,Q21))","v":0},null,{"$f":"IF(B21=\"\",\"\",$K21*$J21*D21)","v":0},null,null,"Both",null,{"$f":"I21/F21","v":0},{"$f":"IF(L15=\"Prints\",\n                    IF(O21=\"All\",(L13-G21)+(L14-H21),\n\"\"),\n\"\")","v":""},{"$f":"IF(VLOOKUP(B21,Pricing,5,FALSE)=\"\",B21,VLOOKUP(B21,Pricing,5,FALSE))","v":{"$error":"#N/A"}}]
[2,"D0892250","DRUM UNIT:BK MPC45/5501",1,"K",200000,null,null,{"$f":"IF($L$15=\"Prints\",IF(O22=\"Both\",($L$13-G22)+($L$14-H22),IF(O22=\"Col\",($L$14-H22),IF(O22=\"-\",\"\",\"Error\"))),\n\nIF($L$15=\"Developments\",IF(O22=\"Both\",$L$13-G22,IF(O22=\"Col\",($L$14-H22)/3,IF(O22=\"-\",\"\",\"Error\"))),\"Dev/Print Error\"))","v":0},{"$f":"IF(B22=\"\",\"\",IF(Q22>=1,1,Q22))","v":0},null,0,null,null,"Both",null,{"$f":"I22/F22","v":0},null,{"$error":"#N/A"}]
[3,"D0892251","DRUM UNIT:CMY MPC45/5501",1,"C",120000,null,null,0,0,null,0,null,null,"Col",null,0,null,{"$error":"#N/A"}]
[4,"D0892251","DRUM UNIT:CMY MPC45/5501",1,"M",120000,null,null,0,0,null,0,null,null,"Col",null,0,null,{"$error":"#N/A"}]
[null,"D0892251","DRUM UNIT:CMY MPC45/5501",1,"Y",120000,null,null,0,0,null,0,null,null,"Col",null,0,null,{"$error":"#N/A"}]
[5,"AE010088","HOT ROLLER MPC3/3501",1,null,300000,null,null,0,0,null,0,null,null,"Both",null,0,null,{"$error":"#N/A"}]
[6,"D0896204","P/TRAN ROLLER UNIT(D0896203)",1,null,360000,null,null,0,0,null,0,null,null,"Both",null,0,null,{"$error":"#N/A"}]
[7,"AE020189","PRESS ROLLER MPC3001(AE020187)",1,null,300000,null,null,0,0,null,0,null,null,"Both",null,0,null,{"$error":"#N/A"}]
[null,null,null,null,null,null,null,null,"","",null,"",null,null,"-",null,{"$error":"#VALUE!"},null,{"$error":"#N/A"}]
[null,null,null,null,null,null,null,null,"","",null,"",null,null,"-",null,{"$error":"#VALUE!"},null,{"$error":"#N/A"}]
[null,null,null,null,null,null,null,null,"","",null,"",null,null,"-",null,{"$error":"#VALUE!"},null,{"$error":"#N/A"}]
[null,null,null,null,null,null,null,null,"","",null,"",null,null,"-",null,{"$error":"#VALUE!"},null,{"$error":"#N/A"}]
[null,null,null,null,null,null,null,null,"","",null,"",null,null,"-",null,{"$error":"#VALUE!"},null,{"$error":"#N/A"}]
[null,null,null,null,null,null,null,null,"","",null,"",null,null,"-",null,{"$error":"#VALUE!"},null,{"$error":"#N/A"}]
[null,null,null,null,null,null,null,null,"","",null,"",null,null,"-",null,{"$error":"#VALUE!"},null,{"$error":"#N/A"}]
[null,null,null,null,null,null,null,null,"","",null,"",null,null,"-",null,{"$error":"#VALUE!"},null,{"$error":"#N/A"}]
[null,null,null,null,null,null,null,null,"","",null,"",null,null,"-",null,{"$error":"#VALUE!"},null,{"$error":"#N/A"}]
[null,null,null,null,null,null,null,null,"","",null,"",null,null,"-",null,{"$error":"#VALUE!"},null,{"$error":"#N/A"}]
[null,null,null,null,null,null,null,null,"","",null,"",null,null,"-",null,{"$error":"#VALUE!"},null,{"$error":"#N/A"}]
[null,null,null,null,null,null,null,null,"","",null,"",null,null,"-",null,{"$error":"#VALUE!"},null,{"$error":"#N/A"}]
[null,null,null,null,null,null,null,null,"","",null,"",null,null,"-",null,{"$error":"#VALUE!"},null,{"$error":"#N/A"}]
[null,null,null,null,null,null,null,null,"","",null,"",null,null,"-",null,{"$error":"#VALUE!"},null,{"$error":"#N/A"}]
[null,null,null,null,null,null,null,null,"","",null,"",null,null,"-",null,{"$error":"#VALUE!"},null,{"$error":"#N/A"}]
[null,null,null,null,null,null,null,null,"","",null,"",null,null,"-",null,{"$error":"#VALUE!"},null,{"$error":"#N/A"}]
[null,null,null,null,null,null,null,null,"","",null,"",null,null,"-",null,{"$error":"#VALUE!"},null,{"$error":"#N/A"}]
[null,null,null,null,null,null,null,null,"","",null,"",null,null,"-",null,{"$error":"#VALUE!"},null,{"$error":"#N/A"}]
[null,null,null,null,null,null,null,null,"","",null,"",null,null,"-",null,{"$error":"#VALUE!"},null,{"$error":"#N/A"}]
[8,null,null,null,null,null,null,null,"","",null,"",null,null,"-",null,{"$error":"#VALUE!"},null,{"$error":"#N/A"}]
[null,null,null,null,null,null,null,null,"","",null,"",null,null,"-",null,{"$error":"#VALUE!"},null,{"$error":"#N/A"}]
[null,null,null,null,null,null,null,null,"","",null,"",null,null,"-",null,{"$error":"#VALUE!"},null,{"$error":"#N/A"}]
[null,null,null,null,null,null,null,null,"","",null,"",null,null,"-",null,{"$error":"#VALUE!"},null,{"$error":"#N/A"}]
[null,null,null,null,null,null,null,null,"","",null,"",null,null,"-",null,{"$error":"#VALUE!"},null,{"$error":"#N/A"}]
[9,null,null,null,null,null,null,null,"","",null,"",null,null,"-",null,{"$error":"#VALUE!"},null,{"$error":"#N/A"}]
[10,null,null,null,null,null,null,null,"","",null,"",null,null,"-",null,{"$error":"#VALUE!"},null,{"$error":"#N/A"}]
[11,null,null,null,null,null,null,null,"","",null,"",null,null,"-",null,{"$error":"#VALUE!"},null,{"$error":"#N/A"}]
[null,null,null,null,null,null,null,null,"","",null,"",null,null,"-",null,{"$error":"#VALUE!"},null,{"$error":"#N/A"}]
[null,null,null,null,null,null,null,null,"","",null,"",null,null,"-",null,{"$error":"#VALUE!"},null,{"$error":"#N/A"}]
[null,null,null,null,null,null,null,null,"","",null,"",null,null,"-",null,{"$error":"#VALUE!"},null,{"$error":"#N/A"}]
[null,null,null,null,null,null,null,null,"","",null,"",null,null,"-",null,{"$error":"#VALUE!"},null,{"$error":"#N/A"}]
[null,null,null,null,null,null,null,null,"","",null,"",null,null,"-",null,{"$error":"#VALUE!"},null,{"$error":"#N/A"}]
[null,null,null,null,null,null,null,null,"","",null,"",null,null,"-",null,{"$error":"#VALUE!"},null,{"$error":"#N/A"}]
[null,null,null,null,null,null,null,null,"","",null,"",null,null,"-",null,{"$error":"#VALUE!"},null,{"$error":"#N/A"}]
[null,null,null,null,null,null,null,null,"","",null,"",null,null,"-",null,{"$error":"#VALUE!"},null,{"$error":"#N/A"}]
[null,null,null,null,null,null,null,null,"","",null,"",null,null,"-",null,{"$error":"#VALUE!"},null,{"$error":"#N/A"}]
[null,null,null,null,null,null,null,null,"","",null,"",null,null,"-",null,{"$error":"#VALUE!"},null,{"$error":"#N/A"}]
[null,null,null,null,null,null,null,null,"","",null,"",null,null,"-",null,{"$error":"#VALUE!"},null,{"$error":"#N/A"}]
[null,null,null,null,null,null,null,null,"","",null,"",null,null,"-",null,{"$error":"#VALUE!"},null,{"$error":"#N/A"}]
[null,null,null,null,null,null,null,null,"","",null,"",null,null,"-",null,{"$error":"#VALUE!"},null,{"$error":"#N/A"}]
[12,null,null,null,null,null,null,null,"","",null,"",null,null,"-",null,{"$error":"#VALUE!"},null,{"$error":"#N/A"}]
[13,null,null,null,null,null,null,null,"","",null,"",null,null,"-",null,{"$error":"#VALUE!"},null,{"$error":"#N/A"}]
[null,"Additional Notes:",null,null,null,null,null,null,null,null,"Total Parts:    ",{"$f":"SUM(L21:L70)","v":0},null,null,"-"]
[null,null,null,null,null,null,"Labour ",0,{"$f":"\"@ R\"& Data!C11 &\" p/h\"","v":"@ R200 p/h"},null,"Total Labour:    ",{"$f":"H72*Data!C11","v":0},null,null,"-"]
[null,null,null,null,null,null,null,null,null,null,"Sub Total:    ",{"$f":"L71+L72","v":0}]
[null,null,null,null,null,null,null,null,null,null,"VAT (15%):    ",{"$f":"L73*0.15","v":0}]
[null,null,null,null,null,null,null,null,null,null,"TOTAL:    ",{"$f":"L74+L73","v":0}]
[]
[]
[]
[]
[]
[null,"Quote prepared by:",null,null,null,null,null,"Quote accepted by:"]
[]
[]
[null,"Name:   ",null,null,null,null,null,"Name:   "]
[]
[]
[null,"Signature:",null,null,null,null,null,"Signature:"]
[]
[]
[null,"Date:",null,null,null,null,null,"Date:"]
[null,null,null,null,null,null,null,null,null,null,null,{"$f":"INDEX!H44","v":"(ver 2019.07.03)"}]

{"sheet":"MPC3002 & 3502","index":20,"n_rows":91,"n_cols":19,"rows_kept":91,"cut":false,"hidden":false,"merged":[[18,11,19,11],[71,1,78,2],[13,18,18,19],[18,1,19,1],[18,2,19,2],[18,3,19,3],[18,4,19,4],[18,5,19,5],[18,6,18,7],[18,8,19,8],[18,9,19,9],[18,10,19,10],[13,2,13,5],[2,1,2,2],[5,2,5,11],[6,2,6,11],[8,6,8,11],[9,6,9,11]]}
[null,null,null,null,null,null,null,"Service Manager: ",null,null,{"$f":"Data!C5","v":"Danie Fourie"}]
[null,null,null,null,null,null,null,"Email:",null,null,{"$f":"Data!C7","v":"danief@nashualim.co.za"}]
[null,{"$f":"Data!C3","v":"Nashua Limpopo"},null,null,null,null,null,"Fax:",null,null,{"$f":"Data!C9","v":"015 590 0319"}]
[]
[]
[null,"Date: "]
[null,"Customer: "]
[]
[null,null,"Previous Servicing Franchise:   "]
[null,null,"Attention Technical Manager:    "]
[]
[]
[null,"Model:   ","\"COMPLETE!!!\"",null,null,null,null,null,null,null,"Black Meter:   "]
[null,"Serial Number:   ",null,null,null,null,null,null,null,null,"Colour Meter:   ",null,null,null,null,null,null,null,"Copy FTP pricing into Sheet1. Name area \"Pricing\". Superceded numbers"]
[null,null,null,null,null,null,null,null,null,null,"Accounting Method:   ","Prints"]
[null,"CONSUMABLES:   ","Select from List!"]
[null,null,{"$f":"IF(C13=\"AF3260C / AFC5560\",\"This quote includes the cost for 4 PCU's and their relevent parts\",\"\")","v":""}]
[null,null,null,null,null,null,null,null,null,null,null,null,null,null,"Calc Type"]
[null,"Part Number","Description","Qty","Process","Yield","Last Replacement Date",null,"Prints \nper part","Part usage (% of Yield)","FTP Price\n(Rand)","Pro rate Charge",null,null,"All / Col",null,"% of Meter readings"]
[null,null,null,null,null,null,"Black Meter","Colour Meter"]
[1,"D1442253","DRUM UNIT CMY (D1442252)",1,"C",150000,null,null,{"$f":"IF($L$15=\"Prints\",IF(O21=\"Both\",($L$13-G21)+($L$14-H21),IF(O21=\"Col\",($L$14-H21),IF(O21=\"-\",\"\",\"Error\"))),\n\nIF($L$15=\"Developments\",IF(O21=\"Both\",$L$13-G21,IF(O21=\"Col\",($L$14-H21)/3,IF(O21=\"-\",\"\",\"Error\"))),\"Dev/Print Error\"))","v":0},{"$f":"IF(B21=\"\",\"\",IF(Q21>=1,1,Q21))","v":0},null,{"$f":"IF(B21=\"\",\"\",$K21*$J21*D21)","v":0},null,null,"Col",null,{"$f":"I21/F21","v":0},{"$f":"IF(L15=\"Prints\",\n                    IF(O21=\"All\",(L13-G21)+(L14-H21),\n\"\"),\n\"\")","v":""},{"$f":"IF(VLOOKUP(B21,Pricing,5,FALSE)=\"\",B21,VLOOKUP(B21,Pricing,5,FALSE))","v":{"$error":"#N/A"}}]
[2,"D1442253","DRUM UNIT CMY (D1442252)",1,"M",150000,null,null,{"$f":"IF($L$15=\"Prints\",IF(O22=\"Both\",($L$13-G22)+($L$14-H22),IF(O22=\"Col\",($L$14-H22),IF(O22=\"-\",\"\",\"Error\"))),\n\nIF($L$15=\"Developments\",IF(O22=\"Both\",$L$13-G22,IF(O22=\"Col\",($L$14-H22)/3,IF(O22=\"-\",\"\",\"Error\"))),\"Dev/Print Error\"))","v":0},{"$f":"IF(B22=\"\",\"\",IF(Q22>=1,1,Q22))","v":0},null,0,null,null,"Col",null,{"$f":"I22/F22","v":0},null,{"$error":"#N/A"}]
[3,"D1442253","DRUM UNIT CMY (D1442252)",1,"Y",150000,null,null,0,0,null,0,null,null,"Col",null,0,null,{"$error":"#N/A"}]
[4,"D1442251","DRUM UNIT K (D1442250)",1,"K",300000,null,null,0,0,null,0,null,null,"Both",null,0,null,{"$error":"#N/A"}]
[null,"D1440622","ITB CLEANING UNIT(D1440621)",1,null,300000,null,null,0,0,null,0,null,null,"Both",null,0,null,{"$error":"#N/A"}]
[5,"D1444057","PRESSURE ROLLER",1,null,300000,null,null,0,0,null,0,null,null,"Both",null,0,null,{"$error":"#N/A"}]
[6,"D1446207","PTR UNIT (D1446206)",1,null,300000,null,null,0,0,null,0,null,null,"Both",null,0,null,{"$error":"#N/A"}]
[7,"D1424273","SLEEVE:FUSING:EU:ACC(D1424046)",1,null,300000,null,null,0,0,null,0,null,null,"Both",null,0,null,{"$error":"#N/A"}]
[null,null,null,null,null,null,null,null,"","",null,"",null,null,"-",null,{"$error":"#VALUE!"},null,{"$error":"#N/A"}]
[null,null,null,null,null,null,null,null,"","",null,"",null,null,"-",null,{"$error":"#VALUE!"},null,{"$error":"#N/A"}]
[null,null,null,null,null,null,null,null,"","",null,"",null,null,"-",null,{"$error":"#VALUE!"},null,{"$error":"#N/A"}]
[null,null,null,null,null,null,null,null,"","",null,"",null,null,"-",null,{"$error":"#VALUE!"},null,{"$error":"#N/A"}]
[null,null,null,null,null,null,null,null,"","",null,"",null,null,"-",null,{"$error":"#VALUE!"},null,{"$error":"#N/A"}]
[null,null,null,null,null,null,null,null,"","",null,"",null,null,"-",null,{"$error":"#VALUE!"},null,{"$error":"#N/A"}]
[null,null,null,null,null,null,null,null,"","",null,"",null,null,"-",null,{"$error":"#VALUE!"},null,{"$error":"#N/A"}]
[null,null,null,null,null,null,null,null,"","",null,"",null,null,"-",null,{"$error":"#VALUE!"},null,{"$error":"#N/A"}]
[null,null,null,null,null,null,null,null,"","",null,"",null,null,"-",null,{"$error":"#VALUE!"},null,{"$error":"#N/A"}]
[null,null,null,null,null,null,null,null,"","",null,"",null,null,"-",null,{"$error":"#VALUE!"},null,{"$error":"#N/A"}]
[null,null,null,null,null,null,null,null,"","",null,"",null,null,"-",null,{"$error":"#VALUE!"},null,{"$error":"#N/A"}]
[null,null,null,null,null,null,null,null,"","",null,"",null,null,"-",null,{"$error":"#VALUE!"},null,{"$error":"#N/A"}]
[null,null,null,null,null,null,null,null,"","",null,"",null,null,"-",null,{"$error":"#VALUE!"},null,{"$error":"#N/A"}]
[null,null,null,null,null,null,null,null,"","",null,"",null,null,"-",null,{"$error":"#VALUE!"},null,{"$error":"#N/A"}]
[null,null,null,null,null,null,null,null,"","",null,"",null,null,"-",null,{"$error":"#VALUE!"},null,{"$error":"#N/A"}]
[null,null,null,null,null,null,null,null,"","",null,"",null,null,"-",null,{"$error":"#VALUE!"},null,{"$error":"#N/A"}]
[null,null,null,null,null,null,null,null,"","",null,"",null,null,"-",null,{"$error":"#VALUE!"},null,{"$error":"#N/A"}]
[null,null,null,null,null,null,null,null,"","",null,"",null,null,"-",null,{"$error":"#VALUE!"},null,{"$error":"#N/A"}]
[null,null,null,null,null,null,null,null,"","",null,"",null,null,"-",null,{"$error":"#VALUE!"},null,{"$error":"#N/A"}]
[8,null,null,null,null,null,null,null,"","",null,"",null,null,"-",null,{"$error":"#VALUE!"},null,{"$error":"#N/A"}]
[null,null,null,null,null,null,null,null,"","",null,"",null,null,"-",null,{"$error":"#VALUE!"},null,{"$error":"#N/A"}]
[null,null,null,null,null,null,null,null,"","",null,"",null,null,"-",null,{"$error":"#VALUE!"},null,{"$error":"#N/A"}]
[null,null,null,null,null,null,null,null,"","",null,"",null,null,"-",null,{"$error":"#VALUE!"},null,{"$error":"#N/A"}]
[null,null,null,null,null,null,null,null,"","",null,"",null,null,"-",null,{"$error":"#VALUE!"},null,{"$error":"#N/A"}]
[9,null,null,null,null,null,null,null,"","",null,"",null,null,"-",null,{"$error":"#VALUE!"},null,{"$error":"#N/A"}]
[10,null,null,null,null,null,null,null,"","",null,"",null,null,"-",null,{"$error":"#VALUE!"},null,{"$error":"#N/A"}]
[11,null,null,null,null,null,null,null,"","",null,"",null,null,"-",null,{"$error":"#VALUE!"},null,{"$error":"#N/A"}]
[null,null,null,null,null,null,null,null,"","",null,"",null,null,"-",null,{"$error":"#VALUE!"},null,{"$error":"#N/A"}]
[null,null,null,null,null,null,null,null,"","",null,"",null,null,"-",null,{"$error":"#VALUE!"},null,{"$error":"#N/A"}]
[null,null,null,null,null,null,null,null,"","",null,"",null,null,"-",null,{"$error":"#VALUE!"},null,{"$error":"#N/A"}]
[null,null,null,null,null,null,null,null,"","",null,"",null,null,"-",null,{"$error":"#VALUE!"},null,{"$error":"#N/A"}]
[null,null,null,null,null,null,null,null,"","",null,"",null,null,"-",null,{"$error":"#VALUE!"},null,{"$error":"#N/A"}]
[null,null,null,null,null,null,null,null,"","",null,"",null,null,"-",null,{"$error":"#VALUE!"},null,{"$error":"#N/A"}]
[null,null,null,null,null,null,null,null,"","",null,"",null,null,"-",null,{"$error":"#VALUE!"},null,{"$error":"#N/A"}]
[null,null,null,null,null,null,null,null,"","",null,"",null,null,"-",null,{"$error":"#VALUE!"},null,{"$error":"#N/A"}]
[null,null,null,null,null,null,null,null,"","",null,"",null,null,"-",null,{"$error":"#VALUE!"},null,{"$error":"#N/A"}]
[null,null,null,null,null,null,null,null,"","",null,"",null,null,"-",null,{"$error":"#VALUE!"},null,{"$error":"#N/A"}]
[null,null,null,null,null,null,null,null,"","",null,"",null,null,"-",null,{"$error":"#VALUE!"},null,{"$error":"#N/A"}]
[null,null,null,null,null,null,null,null,"","",null,"",null,null,"-",null,{"$error":"#VALUE!"},null,{"$error":"#N/A"}]
[null,null,null,null,null,null,null,null,"","",null,"",null,null,"-",null,{"$error":"#VALUE!"},null,{"$error":"#N/A"}]
[12,null,null,null,null,null,null,null,"","",null,"",null,null,"-",null,{"$error":"#VALUE!"},null,{"$error":"#N/A"}]
[13,null,null,null,null,null,null,null,"","",null,"",null,null,"-",null,{"$error":"#VALUE!"},null,{"$error":"#N/A"}]
[null,"Additional Notes:",null,null,null,null,null,null,null,null,"Total Parts:    ",{"$f":"SUM(L21:L70)","v":0},null,null,"-"]
[null,null,null,null,null,null,"Labour ",0,{"$f":"\"@ R\"& Data!C11 &\" p/h\"","v":"@ R200 p/h"},null,"Total Labour:    ",{"$f":"H72*Data!C11","v":0},null,null,"-"]
[null,null,null,null,null,null,null,null,null,null,"Sub Total:    ",{"$f":"L71+L72","v":0}]
[null,null,null,null,null,null,null,null,null,null,"VAT (15%):    ",{"$f":"L73*0.15","v":0}]
[null,null,null,null,null,null,null,null,null,null,"TOTAL:    ",{"$f":"L74+L73","v":0}]
[]
[]
[]
[]
[]
[null,"Quote prepared by:",null,null,null,null,null,"Quote accepted by:"]
[]
[]
[null,"Name:   ",null,null,null,null,null,"Name:   "]
[]
[]
[null,"Signature:",null,null,null,null,null,"Signature:"]
[]
[]
[null,"Date:",null,null,null,null,null,"Date:"]
[null,null,null,null,null,null,null,null,null,null,null,{"$f":"INDEX!H44","v":"(ver 2019.07.03)"}]

{"sheet":"MPC3003 & 3503","index":21,"n_rows":91,"n_cols":19,"rows_kept":91,"cut":false,"hidden":false,"merged":[[18,11,19,11],[71,1,78,2],[13,18,18,19],[18,1,19,1],[18,2,19,2],[18,3,19,3],[18,4,19,4],[18,5,19,5],[18,6,18,7],[18,8,19,8],[18,9,19,9],[18,10,19,10],[13,2,13,5],[2,1,2,2],[5,2,5,11],[6,2,6,11],[8,6,8,11],[9,6,9,11]]}
[null,null,null,null,null,null,null,"Service Manager: ",null,null,{"$f":"Data!C5","v":"Danie Fourie"}]
[null,null,null,null,null,null,null,"Email:",null,null,{"$f":"Data!C7","v":"danief@nashualim.co.za"}]
[null,{"$f":"Data!C3","v":"Nashua Limpopo"},null,null,null,null,null,"Fax:",null,null,{"$f":"Data!C9","v":"015 590 0319"}]
[]
[]
[null,"Date: "]
[null,"Customer: "]
[]
[null,null,"Previous Servicing Franchise:   "]
[null,null,"Attention Technical Manager:    "]
[]
[]
[null,"Model:   ","\"COMPLETE!!!\"",null,null,null,null,null,null,null,"Black Meter:   "]
[null,"Serial Number:   ",null,null,null,null,null,null,null,null,"Colour Meter:   ",null,null,null,null,null,null,null,"Copy FTP pricing into Sheet1. Name area \"Pricing\". Superceded numbers"]
[null,null,null,null,null,null,null,null,null,null,"Accounting Method:   ","Prints"]
[null,"CONSUMABLES:   ","Select from List!"]
[null,null,{"$f":"IF(C13=\"AF3260C / AFC5560\",\"This quote includes the cost for 4 PCU's and their relevent parts\",\"\")","v":""}]
[null,null,null,null,null,null,null,null,null,null,null,null,null,null,"Calc Type"]
[null,"Part Number","Description","Qty","Process","Yield","Last Replacement Date",null,"Prints \nper part","Part usage (% of Yield)","FTP Price\n(Rand)","Pro rate Charge",null,null,"All / Col",null,"% of Meter readings"]
[null,null,null,null,null,null,"Black Meter","Colour Meter"]
[1,"D2416141","BELT CLEAN:I/M TRANS(D1496141)",1,null,300000,null,null,{"$f":"IF($L$15=\"Prints\",IF(O21=\"Both\",($L$13-G21)+($L$14-H21),IF(O21=\"Col\",($L$14-H21),IF(O21=\"-\",\"\",\"Error\"))),\n\nIF($L$15=\"Developments\",IF(O21=\"Both\",$L$13-G21,IF(O21=\"Col\",($L$14-H21)/3,IF(O21=\"-\",\"\",\"Error\"))),\"Dev/Print Error\"))","v":0},{"$f":"IF(B21=\"\",\"\",IF(Q21>=1,1,Q21))","v":0},null,{"$f":"IF(B21=\"\",\"\",$K21*$J21*D21)","v":0},null,null,"Both",null,{"$f":"I21/F21","v":0},{"$f":"IF(L15=\"Prints\",\n                    IF(O21=\"All\",(L13-G21)+(L14-H21),\n\"\"),\n\"\")","v":""},{"$f":"IF(VLOOKUP(B21,Pricing,5,FALSE)=\"\",B21,VLOOKUP(B21,Pricing,5,FALSE))","v":{"$error":"#N/A"}}]
[2,"D1862228","PCU:BLCK:SERV PRT:EXP(D1862208",1,"K",400000,null,null,{"$f":"IF($L$15=\"Prints\",IF(O22=\"Both\",($L$13-G22)+($L$14-H22),IF(O22=\"Col\",($L$14-H22),IF(O22=\"-\",\"\",\"Error\"))),\n\nIF($L$15=\"Developments\",IF(O22=\"Both\",$L$13-G22,IF(O22=\"Col\",($L$14-H22)/3,IF(O22=\"-\",\"\",\"Error\"))),\"Dev/Print Error\"))","v":0},{"$f":"IF(B22=\"\",\"\",IF(Q22>=1,1,Q22))","v":0},null,0,null,null,"Both",null,{"$f":"I22/F22","v":0},null,{"$error":"#N/A"}]
[3,"AE020247","PRESSURE ROLLER:DIA32:SVS PART",1,null,400000,null,null,0,0,null,0,null,null,"Both",null,0,null,{"$error":"#N/A"}]
[4,"D1464042","SLEEVE:FUS:EU/AP/CHN(D1464036)",1,null,400000,null,null,0,0,null,0,null,null,"Both",null,0,null,{"$error":"#N/A"}]
[null,"D1496212","TRANS ROLL:2ND:ASS(D1496211)",1,null,400000,null,null,0,0,null,0,null,null,"Both",null,0,null,{"$error":"#N/A"}]
[5,null,null,null,null,null,null,null,"","",null,"",null,null,"-",null,{"$error":"#VALUE!"},null,{"$error":"#N/A"}]
[6,null,null,null,null,null,null,null,"","",null,"",null,null,"-",null,{"$error":"#VALUE!"},null,{"$error":"#N/A"}]
[7,null,null,null,null,null,null,null,"","",null,"",null,null,"-",null,{"$error":"#VALUE!"},null,{"$error":"#N/A"}]
[null,null,null,null,null,null,null,null,"","",null,"",null,null,"-",null,{"$error":"#VALUE!"},null,{"$error":"#N/A"}]
[null,null,null,null,null,null,null,null,"","",null,"",null,null,"-",null,{"$error":"#VALUE!"},null,{"$error":"#N/A"}]
[null,null,null,null,null,null,null,null,"","",null,"",null,null,"-",null,{"$error":"#VALUE!"},null,{"$error":"#N/A"}]
[null,null,null,null,null,null,null,null,"","",null,"",null,null,"-",null,{"$error":"#VALUE!"},null,{"$error":"#N/A"}]
[null,null,null,null,null,null,null,null,"","",null,"",null,null,"-",null,{"$error":"#VALUE!"},null,{"$error":"#N/A"}]
[null,null,null,null,null,null,null,null,"","",null,"",null,null,"-",null,{"$error":"#VALUE!"},null,{"$error":"#N/A"}]
[null,null,null,null,null,null,null,null,"","",null,"",null,null,"-",null,{"$error":"#VALUE!"},null,{"$error":"#N/A"}]
[null,null,null,null,null,null,null,null,"","",null,"",null,null,"-",null,{"$error":"#VALUE!"},null,{"$error":"#N/A"}]
[null,null,null,null,null,null,null,null,"","",null,"",null,null,"-",null,{"$error":"#VALUE!"},null,{"$error":"#N/A"}]
[null,null,null,null,null,null,null,null,"","",null,"",null,null,"-",null,{"$error":"#VALUE!"},null,{"$error":"#N/A"}]
[null,null,null,null,null,null,null,null,"","",null,"",null,null,"-",null,{"$error":"#VALUE!"},null,{"$error":"#N/A"}]
[null,null,null,null,null,null,null,null,"","",null,"",null,null,"-",null,{"$error":"#VALUE!"},null,{"$error":"#N/A"}]
[null,null,null,null,null,null,null,null,"","",null,"",null,null,"-",null,{"$error":"#VALUE!"},null,{"$error":"#N/A"}]
[null,null,null,null,null,null,null,null,"","",null,"",null,null,"-",null,{"$error":"#VALUE!"},null,{"$error":"#N/A"}]
[null,null,null,null,null,null,null,null,"","",null,"",null,null,"-",null,{"$error":"#VALUE!"},null,{"$error":"#N/A"}]
[null,null,null,null,null,null,null,null,"","",null,"",null,null,"-",null,{"$error":"#VALUE!"},null,{"$error":"#N/A"}]
[null,null,null,null,null,null,null,null,"","",null,"",null,null,"-",null,{"$error":"#VALUE!"},null,{"$error":"#N/A"}]
[null,null,null,null,null,null,null,null,"","",null,"",null,null,"-",null,{"$error":"#VALUE!"},null,{"$error":"#N/A"}]
[null,null,null,null,null,null,null,null,"","",null,"",null,null,"-",null,{"$error":"#VALUE!"},null,{"$error":"#N/A"}]
[8,null,null,null,null,null,null,null,"","",null,"",null,null,"-",null,{"$error":"#VALUE!"},null,{"$error":"#N/A"}]
[null,null,null,null,null,null,null,null,"","",null,"",null,null,"-",null,{"$error":"#VALUE!"},null,{"$error":"#N/A"}]
[null,null,null,null,null,null,null,null,"","",null,"",null,null,"-",null,{"$error":"#VALUE!"},null,{"$error":"#N/A"}]
[null,null,null,null,null,null,null,null,"","",null,"",null,null,"-",null,{"$error":"#VALUE!"},null,{"$error":"#N/A"}]
[null,null,null,null,null,null,null,null,"","",null,"",null,null,"-",null,{"$error":"#VALUE!"},null,{"$error":"#N/A"}]
[9,null,null,null,null,null,null,null,"","",null,"",null,null,"-",null,{"$error":"#VALUE!"},null,{"$error":"#N/A"}]
[10,null,null,null,null,null,null,null,"","",null,"",null,null,"-",null,{"$error":"#VALUE!"},null,{"$error":"#N/A"}]
[11,null,null,null,null,null,null,null,"","",null,"",null,null,"-",null,{"$error":"#VALUE!"},null,{"$error":"#N/A"}]
[null,null,null,null,null,null,null,null,"","",null,"",null,null,"-",null,{"$error":"#VALUE!"},null,{"$error":"#N/A"}]
[null,null,null,null,null,null,null,null,"","",null,"",null,null,"-",null,{"$error":"#VALUE!"},null,{"$error":"#N/A"}]
[null,null,null,null,null,null,null,null,"","",null,"",null,null,"-",null,{"$error":"#VALUE!"},null,{"$error":"#N/A"}]
[null,null,null,null,null,null,null,null,"","",null,"",null,null,"-",null,{"$error":"#VALUE!"},null,{"$error":"#N/A"}]
[null,null,null,null,null,null,null,null,"","",null,"",null,null,"-",null,{"$error":"#VALUE!"},null,{"$error":"#N/A"}]
[null,null,null,null,null,null,null,null,"","",null,"",null,null,"-",null,{"$error":"#VALUE!"},null,{"$error":"#N/A"}]
[null,null,null,null,null,null,null,null,"","",null,"",null,null,"-",null,{"$error":"#VALUE!"},null,{"$error":"#N/A"}]
[null,null,null,null,null,null,null,null,"","",null,"",null,null,"-",null,{"$error":"#VALUE!"},null,{"$error":"#N/A"}]
[null,null,null,null,null,null,null,null,"","",null,"",null,null,"-",null,{"$error":"#VALUE!"},null,{"$error":"#N/A"}]
[null,null,null,null,null,null,null,null,"","",null,"",null,null,"-",null,{"$error":"#VALUE!"},null,{"$error":"#N/A"}]
[null,null,null,null,null,null,null,null,"","",null,"",null,null,"-",null,{"$error":"#VALUE!"},null,{"$error":"#N/A"}]
[null,null,null,null,null,null,null,null,"","",null,"",null,null,"-",null,{"$error":"#VALUE!"},null,{"$error":"#N/A"}]
[null,null,null,null,null,null,null,null,"","",null,"",null,null,"-",null,{"$error":"#VALUE!"},null,{"$error":"#N/A"}]
[12,null,null,null,null,null,null,null,"","",null,"",null,null,"-",null,{"$error":"#VALUE!"},null,{"$error":"#N/A"}]
[13,null,null,null,null,null,null,null,"","",null,"",null,null,"-",null,{"$error":"#VALUE!"},null,{"$error":"#N/A"}]
[null,"Additional Notes:",null,null,null,null,null,null,null,null,"Total Parts:    ",{"$f":"SUM(L21:L70)","v":0},null,null,"-"]
[null,null,null,null,null,null,"Labour ",0,{"$f":"\"@ R\"& Data!C11 &\" p/h\"","v":"@ R200 p/h"},null,"Total Labour:    ",{"$f":"H72*Data!C11","v":0},null,null,"-"]
[null,null,null,null,null,null,null,null,null,null,"Sub Total:    ",{"$f":"L71+L72","v":0}]
[null,null,null,null,null,null,null,null,null,null,"VAT (15%):    ",{"$f":"L73*0.15","v":0}]
[null,null,null,null,null,null,null,null,null,null,"TOTAL:    ",{"$f":"L74+L73","v":0}]
[]
[]
[]
[]
[]
[null,"Quote prepared by:",null,null,null,null,null,"Quote accepted by:"]
[]
[]
[null,"Name:   ",null,null,null,null,null,"Name:   "]
[]
[]
[null,"Signature:",null,null,null,null,null,"Signature:"]
[]
[]
[null,"Date:",null,null,null,null,null,"Date:"]
[null,null,null,null,null,null,null,null,null,null,null,{"$f":"INDEX!H44","v":"(ver 2019.07.03)"}]

{"sheet":"MPC3502","index":22,"n_rows":91,"n_cols":19,"rows_kept":91,"cut":false,"hidden":false,"merged":[[18,11,19,11],[71,1,78,2],[13,18,18,19],[18,1,19,1],[18,2,19,2],[18,3,19,3],[18,4,19,4],[18,5,19,5],[18,6,18,7],[18,8,19,8],[18,9,19,9],[18,10,19,10],[13,2,13,5],[2,1,2,2],[5,2,5,11],[6,2,6,11],[8,6,8,11],[9,6,9,11]]}
[null,null,null,null,null,null,null,"Service Manager: ",null,null,{"$f":"Data!C5","v":"Danie Fourie"}]
[null,null,null,null,null,null,null,"Email:",null,null,{"$f":"Data!C7","v":"danief@nashualim.co.za"}]
[null,{"$f":"Data!C3","v":"Nashua Limpopo"},null,null,null,null,null,"Fax:",null,null,{"$f":"Data!C9","v":"015 590 0319"}]
[]
[]
[null,"Date: "]
[null,"Customer: "]
[]
[null,null,"Previous Servicing Franchise:   "]
[null,null,"Attention Technical Manager:    "]
[]
[]
[null,"Model:   ","\"COMPLETE!!!\"",null,null,null,null,null,null,null,"Black Meter:   "]
[null,"Serial Number:   ",null,null,null,null,null,null,null,null,"Colour Meter:   ",null,null,null,null,null,null,null,"Copy FTP pricing into Sheet1. Name area \"Pricing\". Superceded numbers"]
[null,null,null,null,null,null,null,null,null,null,"Accounting Method:   ","Prints"]
[null,"CONSUMABLES:   ","Select from List!"]
[null,null,{"$f":"IF(C13=\"AF3260C / AFC5560\",\"This quote includes the cost for 4 PCU's and their relevent parts\",\"\")","v":""}]
[null,null,null,null,null,null,null,null,null,null,null,null,null,null,"Calc Type"]
[null,"Part Number","Description","Qty","Process","Yield","Last Replacement Date",null,"Prints \nper part","Part usage (% of Yield)","FTP Price\n(Rand)","Pro rate Charge",null,null,"All / Col",null,"% of Meter readings"]
[null,null,null,null,null,null,"Black Meter","Colour Meter"]
[1,"D1424273","SLEEVE:FUSING:EU:ACC(D1424033)",1,null,300000,null,null,{"$f":"IF($L$15=\"Prints\",IF(O21=\"Both\",($L$13-G21)+($L$14-H21),IF(O21=\"Col\",($L$14-H21),IF(O21=\"-\",\"\",\"Error\"))),\n\nIF($L$15=\"Developments\",IF(O21=\"Both\",$L$13-G21,IF(O21=\"Col\",($L$14-H21)/3,IF(O21=\"-\",\"\",\"Error\"))),\"Dev/Print Error\"))","v":0},{"$f":"IF(B21=\"\",\"\",IF(Q21>=1,1,Q21))","v":0},null,{"$f":"IF(B21=\"\",\"\",$K21*$J21*D21)","v":0},null,null,"Both",null,{"$f":"I21/F21","v":0},{"$f":"IF(L15=\"Prints\",\n                    IF(O21=\"All\",(L13-G21)+(L14-H21),\n\"\"),\n\"\")","v":""},{"$f":"IF(VLOOKUP(B21,Pricing,5,FALSE)=\"\",B21,VLOOKUP(B21,Pricing,5,FALSE))","v":{"$error":"#N/A"}}]
[2,"D1440622","ITB CLEANING UNIT(D1440621)",1,null,300000,null,null,{"$f":"IF($L$15=\"Prints\",IF(O22=\"Both\",($L$13-G22)+($L$14-H22),IF(O22=\"Col\",($L$14-H22),IF(O22=\"-\",\"\",\"Error\"))),\n\nIF($L$15=\"Developments\",IF(O22=\"Both\",$L$13-G22,IF(O22=\"Col\",($L$14-H22)/3,IF(O22=\"-\",\"\",\"Error\"))),\"Dev/Print Error\"))","v":0},{"$f":"IF(B22=\"\",\"\",IF(Q22>=1,1,Q22))","v":0},null,0,null,null,"Both",null,{"$f":"I22/F22","v":0},null,{"$error":"#N/A"}]
[3,"D1444057","PRESSURE ROLLER",1,null,300000,null,null,0,0,null,0,null,null,"Both",null,0,null,{"$error":"#N/A"}]
[4,"D1446207","PTR UNIT (D1446206)",1,null,300000,null,null,0,0,null,0,null,null,"Both",null,0,null,{"$error":"#N/A"}]
[null,"D1442251","DRUM UNIT K (D1442250)",1,null,300000,null,null,0,0,null,0,null,null,"Both",null,0,null,{"$error":"#N/A"}]
[5,"D1442253","DRUM UNIT CMY (D1442252)",3,null,150000,null,null,0,0,null,0,null,null,"Col",null,0,null,{"$error":"#N/A"}]
[6,null,null,null,null,null,null,null,"","",null,"",null,null,"-",null,{"$error":"#VALUE!"},null,{"$error":"#N/A"}]
[7,null,null,null,null,null,null,null,"","",null,"",null,null,"-",null,{"$error":"#VALUE!"},null,{"$error":"#N/A"}]
[null,null,null,null,null,null,null,null,"","",null,"",null,null,"-",null,{"$error":"#VALUE!"},null,{"$error":"#N/A"}]
[null,null,null,null,null,null,null,null,"","",null,"",null,null,"-",null,{"$error":"#VALUE!"},null,{"$error":"#N/A"}]
[null,null,null,null,null,null,null,null,"","",null,"",null,null,"-",null,{"$error":"#VALUE!"},null,{"$error":"#N/A"}]
[null,null,null,null,null,null,null,null,"","",null,"",null,null,"-",null,{"$error":"#VALUE!"},null,{"$error":"#N/A"}]
[null,null,null,null,null,null,null,null,"","",null,"",null,null,"-",null,{"$error":"#VALUE!"},null,{"$error":"#N/A"}]
[null,null,null,null,null,null,null,null,"","",null,"",null,null,"-",null,{"$error":"#VALUE!"},null,{"$error":"#N/A"}]
[null,null,null,null,null,null,null,null,"","",null,"",null,null,"-",null,{"$error":"#VALUE!"},null,{"$error":"#N/A"}]
[null,null,null,null,null,null,null,null,"","",null,"",null,null,"-",null,{"$error":"#VALUE!"},null,{"$error":"#N/A"}]
[null,null,null,null,null,null,null,null,"","",null,"",null,null,"-",null,{"$error":"#VALUE!"},null,{"$error":"#N/A"}]
[null,null,null,null,null,null,null,null,"","",null,"",null,null,"-",null,{"$error":"#VALUE!"},null,{"$error":"#N/A"}]
[null,null,null,null,null,null,null,null,"","",null,"",null,null,"-",null,{"$error":"#VALUE!"},null,{"$error":"#N/A"}]
[null,null,null,null,null,null,null,null,"","",null,"",null,null,"-",null,{"$error":"#VALUE!"},null,{"$error":"#N/A"}]
[null,null,null,null,null,null,null,null,"","",null,"",null,null,"-",null,{"$error":"#VALUE!"},null,{"$error":"#N/A"}]
[null,null,null,null,null,null,null,null,"","",null,"",null,null,"-",null,{"$error":"#VALUE!"},null,{"$error":"#N/A"}]
[null,null,null,null,null,null,null,null,"","",null,"",null,null,"-",null,{"$error":"#VALUE!"},null,{"$error":"#N/A"}]
[null,null,null,null,null,null,null,null,"","",null,"",null,null,"-",null,{"$error":"#VALUE!"},null,{"$error":"#N/A"}]
[null,null,null,null,null,null,null,null,"","",null,"",null,null,"-",null,{"$error":"#VALUE!"},null,{"$error":"#N/A"}]
[null,null,null,null,null,null,null,null,"","",null,"",null,null,"-",null,{"$error":"#VALUE!"},null,{"$error":"#N/A"}]
[null,null,null,null,null,null,null,null,"","",null,"",null,null,"-",null,{"$error":"#VALUE!"},null,{"$error":"#N/A"}]
[8,null,null,null,null,null,null,null,"","",null,"",null,null,"-",null,{"$error":"#VALUE!"},null,{"$error":"#N/A"}]
[null,null,null,null,null,null,null,null,"","",null,"",null,null,"-",null,{"$error":"#VALUE!"},null,{"$error":"#N/A"}]
[null,null,null,null,null,null,null,null,"","",null,"",null,null,"-",null,{"$error":"#VALUE!"},null,{"$error":"#N/A"}]
[null,null,null,null,null,null,null,null,"","",null,"",null,null,"-",null,{"$error":"#VALUE!"},null,{"$error":"#N/A"}]
[null,null,null,null,null,null,null,null,"","",null,"",null,null,"-",null,{"$error":"#VALUE!"},null,{"$error":"#N/A"}]
[9,null,null,null,null,null,null,null,"","",null,"",null,null,"-",null,{"$error":"#VALUE!"},null,{"$error":"#N/A"}]
[10,null,null,null,null,null,null,null,"","",null,"",null,null,"-",null,{"$error":"#VALUE!"},null,{"$error":"#N/A"}]
[11,null,null,null,null,null,null,null,"","",null,"",null,null,"-",null,{"$error":"#VALUE!"},null,{"$error":"#N/A"}]
[null,null,null,null,null,null,null,null,"","",null,"",null,null,"-",null,{"$error":"#VALUE!"},null,{"$error":"#N/A"}]
[null,null,null,null,null,null,null,null,"","",null,"",null,null,"-",null,{"$error":"#VALUE!"},null,{"$error":"#N/A"}]
[null,null,null,null,null,null,null,null,"","",null,"",null,null,"-",null,{"$error":"#VALUE!"},null,{"$error":"#N/A"}]
[null,null,null,null,null,null,null,null,"","",null,"",null,null,"-",null,{"$error":"#VALUE!"},null,{"$error":"#N/A"}]
[null,null,null,null,null,null,null,null,"","",null,"",null,null,"-",null,{"$error":"#VALUE!"},null,{"$error":"#N/A"}]
[null,null,null,null,null,null,null,null,"","",null,"",null,null,"-",null,{"$error":"#VALUE!"},null,{"$error":"#N/A"}]
[null,null,null,null,null,null,null,null,"","",null,"",null,null,"-",null,{"$error":"#VALUE!"},null,{"$error":"#N/A"}]
[null,null,null,null,null,null,null,null,"","",null,"",null,null,"-",null,{"$error":"#VALUE!"},null,{"$error":"#N/A"}]
[null,null,null,null,null,null,null,null,"","",null,"",null,null,"-",null,{"$error":"#VALUE!"},null,{"$error":"#N/A"}]
[null,null,null,null,null,null,null,null,"","",null,"",null,null,"-",null,{"$error":"#VALUE!"},null,{"$error":"#N/A"}]
[null,null,null,null,null,null,null,null,"","",null,"",null,null,"-",null,{"$error":"#VALUE!"},null,{"$error":"#N/A"}]
[null,null,null,null,null,null,null,null,"","",null,"",null,null,"-",null,{"$error":"#VALUE!"},null,{"$error":"#N/A"}]
[null,null,null,null,null,null,null,null,"","",null,"",null,null,"-",null,{"$error":"#VALUE!"},null,{"$error":"#N/A"}]
[12,null,null,null,null,null,null,null,"","",null,"",null,null,"-",null,{"$error":"#VALUE!"},null,{"$error":"#N/A"}]
[13,null,null,null,null,null,null,null,"","",null,"",null,null,"-",null,{"$error":"#VALUE!"},null,{"$error":"#N/A"}]
[null,"Additional Notes:",null,null,null,null,null,null,null,null,"Total Parts:    ",{"$f":"SUM(L21:L70)","v":0},null,null,"-"]
[null,null,null,null,null,null,"Labour ",0,{"$f":"\"@ R\"& Data!C11 &\" p/h\"","v":"@ R200 p/h"},null,"Total Labour:    ",{"$f":"H72*Data!C11","v":0},null,null,"-"]
[null,null,null,null,null,null,null,null,null,null,"Sub Total:    ",{"$f":"L71+L72","v":0}]
[null,null,null,null,null,null,null,null,null,null,"VAT (15%):    ",{"$f":"L73*0.15","v":0}]
[null,null,null,null,null,null,null,null,null,null,"TOTAL:    ",{"$f":"L74+L73","v":0}]
[]
[]
[]
[]
[]
[null,"Quote prepared by:",null,null,null,null,null,"Quote accepted by:"]
[]
[]
[null,"Name:   ",null,null,null,null,null,"Name:   "]
[]
[]
[null,"Signature:",null,null,null,null,null,"Signature:"]
[]
[]
[null,"Date:",null,null,null,null,null,"Date:"]
[null,null,null,null,null,null,null,null,null,null,null,{"$f":"INDEX!H44","v":"(ver 2019.07.03)"}]

{"sheet":"MPC305SPF","index":23,"n_rows":91,"n_cols":19,"rows_kept":91,"cut":false,"hidden":false,"merged":[[18,11,19,11],[71,1,78,2],[13,18,18,19],[18,1,19,1],[18,2,19,2],[18,3,19,3],[18,4,19,4],[18,5,19,5],[18,6,18,7],[18,8,19,8],[18,9,19,9],[18,10,19,10],[13,2,13,5],[2,1,2,2],[5,2,5,11],[6,2,6,11],[8,6,8,11],[9,6,9,11]]}
[null,null,null,null,null,null,null,"Service Manager: ",null,null,{"$f":"Data!C5","v":"Danie Fourie"}]
[null,null,null,null,null,null,null,"Email:",null,null,{"$f":"Data!C7","v":"danief@nashualim.co.za"}]
[null,{"$f":"Data!C3","v":"Nashua Limpopo"},null,null,null,null,null,"Fax:",null,null,{"$f":"Data!C9","v":"015 590 0319"}]
[]
[]
[null,"Date: "]
[null,"Customer: "]
[]
[null,null,"Previous Servicing Franchise:   "]
[null,null,"Attention Technical Manager:    "]
[]
[]
[null,"Model:   ","\"COMPLETE!!!\"",null,null,null,null,null,null,null,"Black Meter:   "]
[null,"Serial Number:   ",null,null,null,null,null,null,null,null,"Colour Meter:   ",null,null,null,null,null,null,null,"Copy FTP pricing into Sheet1. Name area \"Pricing\". Superceded numbers"]
[null,null,null,null,null,null,null,null,null,null,"Accounting Method:   ","Prints"]
[null,"CONSUMABLES:   ","Select from List!"]
[null,null,{"$f":"IF(C13=\"AF3260C / AFC5560\",\"This quote includes the cost for 4 PCU's and their relevent parts\",\"\")","v":""}]
[null,null,null,null,null,null,null,null,null,null,null,null,null,null,"Calc Type"]
[null,"Part Number","Description","Qty","Process","Yield","Last Replacement Date",null,"Prints \nper part","Part usage (% of Yield)","FTP Price\n(Rand)","Pro rate Charge",null,null,"All / Col",null,"% of Meter readings"]
[null,null,null,null,null,null,"Black Meter","Colour Meter"]
[1,"D1170126","DRUM UNIT - C (D1170122)",1,"C",24000,null,null,{"$f":"IF($L$15=\"Prints\",IF(O21=\"Both\",($L$13-G21)+($L$14-H21),IF(O21=\"Col\",($L$14-H21),IF(O21=\"-\",\"\",\"Error\"))),\n\nIF($L$15=\"Developments\",IF(O21=\"Both\",$L$13-G21,IF(O21=\"Col\",($L$14-H21)/3,IF(O21=\"-\",\"\",\"Error\"))),\"Dev/Print Error\"))","v":0},{"$f":"IF(B21=\"\",\"\",IF(Q21>=1,1,Q21))","v":0},null,{"$f":"IF(B21=\"\",\"\",$K21*$J21*D21)","v":0},null,null,"Col",null,{"$f":"I21/F21","v":0},{"$f":"IF(L15=\"Prints\",\n                    IF(O21=\"All\",(L13-G21)+(L14-H21),\n\"\"),\n\"\")","v":""},{"$f":"IF(VLOOKUP(B21,Pricing,5,FALSE)=\"\",B21,VLOOKUP(B21,Pricing,5,FALSE))","v":{"$error":"#N/A"}}]
[2,"D1170125","DRUM UNIT - K (D1170121)",1,"K",60000,null,null,{"$f":"IF($L$15=\"Prints\",IF(O22=\"Both\",($L$13-G22)+($L$14-H22),IF(O22=\"Col\",($L$14-H22),IF(O22=\"-\",\"\",\"Error\"))),\n\nIF($L$15=\"Developments\",IF(O22=\"Both\",$L$13-G22,IF(O22=\"Col\",($L$14-H22)/3,IF(O22=\"-\",\"\",\"Error\"))),\"Dev/Print Error\"))","v":0},{"$f":"IF(B22=\"\",\"\",IF(Q22>=1,1,Q22))","v":0},null,0,null,null,"Both",null,{"$f":"I22/F22","v":0},null,{"$error":"#N/A"}]
[3,"D1170127","DRUM UNIT - M (D1170123)",1,"M",24000,null,null,0,0,null,0,null,null,"Col",null,0,null,{"$error":"#N/A"}]
[4,"D1170128","DRUM UNIT - Y (D1170124)",1,"Y",24000,null,null,0,0,null,0,null,null,"Col",null,0,null,{"$error":"#N/A"}]
[null,"D1174096","FUSING UNIT",1,null,120000,null,null,0,0,null,0,null,null,"Col",null,0,null,{"$error":"#N/A"}]
[5,"D1176002","ITB UNIT",1,null,120000,null,null,0,0,null,0,null,null,"Both",null,0,null,{"$error":"#N/A"}]
[6,"D1186204","TR/SEP UNIT:SEC:DOM(D1176203)",1,null,120000,null,null,0,0,null,0,null,null,"Both",null,0,null,{"$error":"#N/A"}]
[7,null,null,null,null,null,null,null,"","",null,"",null,null,"-",null,{"$error":"#VALUE!"},null,{"$error":"#N/A"}]
[null,null,null,null,null,null,null,null,"","",null,"",null,null,"-",null,{"$error":"#VALUE!"},null,{"$error":"#N/A"}]
[null,null,null,null,null,null,null,null,"","",null,"",null,null,"-",null,{"$error":"#VALUE!"},null,{"$error":"#N/A"}]
[null,null,null,null,null,null,null,null,"","",null,"",null,null,"-",null,{"$error":"#VALUE!"},null,{"$error":"#N/A"}]
[null,null,null,null,null,null,null,null,"","",null,"",null,null,"-",null,{"$error":"#VALUE!"},null,{"$error":"#N/A"}]
[null,null,null,null,null,null,null,null,"","",null,"",null,null,"-",null,{"$error":"#VALUE!"},null,{"$error":"#N/A"}]
[null,null,null,null,null,null,null,null,"","",null,"",null,null,"-",null,{"$error":"#VALUE!"},null,{"$error":"#N/A"}]
[null,null,null,null,null,null,null,null,"","",null,"",null,null,"-",null,{"$error":"#VALUE!"},null,{"$error":"#N/A"}]
[null,null,null,null,null,null,null,null,"","",null,"",null,null,"-",null,{"$error":"#VALUE!"},null,{"$error":"#N/A"}]
[null,null,null,null,null,null,null,null,"","",null,"",null,null,"-",null,{"$error":"#VALUE!"},null,{"$error":"#N/A"}]
[null,null,null,null,null,null,null,null,"","",null,"",null,null,"-",null,{"$error":"#VALUE!"},null,{"$error":"#N/A"}]
[null,null,null,null,null,null,null,null,"","",null,"",null,null,"-",null,{"$error":"#VALUE!"},null,{"$error":"#N/A"}]
[null,null,null,null,null,null,null,null,"","",null,"",null,null,"-",null,{"$error":"#VALUE!"},null,{"$error":"#N/A"}]
[null,null,null,null,null,null,null,null,"","",null,"",null,null,"-",null,{"$error":"#VALUE!"},null,{"$error":"#N/A"}]
[null,null,null,null,null,null,null,null,"","",null,"",null,null,"-",null,{"$error":"#VALUE!"},null,{"$error":"#N/A"}]
[null,null,null,null,null,null,null,null,"","",null,"",null,null,"-",null,{"$error":"#VALUE!"},null,{"$error":"#N/A"}]
[null,null,null,null,null,null,null,null,"","",null,"",null,null,"-",null,{"$error":"#VALUE!"},null,{"$error":"#N/A"}]
[null,null,null,null,null,null,null,null,"","",null,"",null,null,"-",null,{"$error":"#VALUE!"},null,{"$error":"#N/A"}]
[null,null,null,null,null,null,null,null,"","",null,"",null,null,"-",null,{"$error":"#VALUE!"},null,{"$error":"#N/A"}]
[null,null,null,null,null,null,null,null,"","",null,"",null,null,"-",null,{"$error":"#VALUE!"},null,{"$error":"#N/A"}]
[8,null,null,null,null,null,null,null,"","",null,"",null,null,"-",null,{"$error":"#VALUE!"},null,{"$error":"#N/A"}]
[null,null,null,null,null,null,null,null,"","",null,"",null,null,"-",null,{"$error":"#VALUE!"},null,{"$error":"#N/A"}]
[null,null,null,null,null,null,null,null,"","",null,"",null,null,"-",null,{"$error":"#VALUE!"},null,{"$error":"#N/A"}]
[null,null,null,null,null,null,null,null,"","",null,"",null,null,"-",null,{"$error":"#VALUE!"},null,{"$error":"#N/A"}]
[null,null,null,null,null,null,null,null,"","",null,"",null,null,"-",null,{"$error":"#VALUE!"},null,{"$error":"#N/A"}]
[9,null,null,null,null,null,null,null,"","",null,"",null,null,"-",null,{"$error":"#VALUE!"},null,{"$error":"#N/A"}]
[10,null,null,null,null,null,null,null,"","",null,"",null,null,"-",null,{"$error":"#VALUE!"},null,{"$error":"#N/A"}]
[11,null,null,null,null,null,null,null,"","",null,"",null,null,"-",null,{"$error":"#VALUE!"},null,{"$error":"#N/A"}]
[null,null,null,null,null,null,null,null,"","",null,"",null,null,"-",null,{"$error":"#VALUE!"},null,{"$error":"#N/A"}]
[null,null,null,null,null,null,null,null,"","",null,"",null,null,"-",null,{"$error":"#VALUE!"},null,{"$error":"#N/A"}]
[null,null,null,null,null,null,null,null,"","",null,"",null,null,"-",null,{"$error":"#VALUE!"},null,{"$error":"#N/A"}]
[null,null,null,null,null,null,null,null,"","",null,"",null,null,"-",null,{"$error":"#VALUE!"},null,{"$error":"#N/A"}]
[null,null,null,null,null,null,null,null,"","",null,"",null,null,"-",null,{"$error":"#VALUE!"},null,{"$error":"#N/A"}]
[null,null,null,null,null,null,null,null,"","",null,"",null,null,"-",null,{"$error":"#VALUE!"},null,{"$error":"#N/A"}]
[null,null,null,null,null,null,null,null,"","",null,"",null,null,"-",null,{"$error":"#VALUE!"},null,{"$error":"#N/A"}]
[null,null,null,null,null,null,null,null,"","",null,"",null,null,"-",null,{"$error":"#VALUE!"},null,{"$error":"#N/A"}]
[null,null,null,null,null,null,null,null,"","",null,"",null,null,"-",null,{"$error":"#VALUE!"},null,{"$error":"#N/A"}]
[null,null,null,null,null,null,null,null,"","",null,"",null,null,"-",null,{"$error":"#VALUE!"},null,{"$error":"#N/A"}]
[null,null,null,null,null,null,null,null,"","",null,"",null,null,"-",null,{"$error":"#VALUE!"},null,{"$error":"#N/A"}]
[null,null,null,null,null,null,null,null,"","",null,"",null,null,"-",null,{"$error":"#VALUE!"},null,{"$error":"#N/A"}]
[null,null,null,null,null,null,null,null,"","",null,"",null,null,"-",null,{"$error":"#VALUE!"},null,{"$error":"#N/A"}]
[12,null,null,null,null,null,null,null,"","",null,"",null,null,"-",null,{"$error":"#VALUE!"},null,{"$error":"#N/A"}]
[13,null,null,null,null,null,null,null,"","",null,"",null,null,"-",null,{"$error":"#VALUE!"},null,{"$error":"#N/A"}]
[null,"Additional Notes:",null,null,null,null,null,null,null,null,"Total Parts:    ",{"$f":"SUM(L21:L70)","v":0},null,null,"-"]
[null,null,null,null,null,null,"Labour ",0,{"$f":"\"@ R\"& Data!C11 &\" p/h\"","v":"@ R200 p/h"},null,"Total Labour:    ",{"$f":"H72*Data!C11","v":0},null,null,"-"]
[null,null,null,null,null,null,null,null,null,null,"Sub Total:    ",{"$f":"L71+L72","v":0}]
[null,null,null,null,null,null,null,null,null,null,"VAT (15%):    ",{"$f":"L73*0.15","v":0}]
[null,null,null,null,null,null,null,null,null,null,"TOTAL:    ",{"$f":"L74+L73","v":0}]
[]
[]
[]
[]
[]
[null,"Quote prepared by:",null,null,null,null,null,"Quote accepted by:"]
[]
[]
[null,"Name:   ",null,null,null,null,null,"Name:   "]
[]
[]
[null,"Signature:",null,null,null,null,null,"Signature:"]
[]
[]
[null,"Date:",null,null,null,null,null,"Date:"]
[null,null,null,null,null,null,null,null,null,null,null,{"$f":"INDEX!H44","v":"(ver 2019.07.03)"}]

{"sheet":"MPC306ZSPF","index":24,"n_rows":91,"n_cols":19,"rows_kept":91,"cut":false,"hidden":false,"merged":[[18,11,19,11],[71,1,78,2],[13,18,18,19],[18,1,19,1],[18,2,19,2],[18,3,19,3],[18,4,19,4],[18,5,19,5],[18,6,18,7],[18,8,19,8],[18,9,19,9],[18,10,19,10],[13,2,13,5],[2,1,2,2],[5,2,5,11],[6,2,6,11],[8,6,8,11],[9,6,9,11]]}
[null,null,null,null,null,null,null,"Service Manager: ",null,null,{"$f":"Data!C5","v":"Danie Fourie"}]
[null,null,null,null,null,null,null,"Email:",null,null,{"$f":"Data!C7","v":"danief@nashualim.co.za"}]
[null,{"$f":"Data!C3","v":"Nashua Limpopo"},null,null,null,null,null,"Fax:",null,null,{"$f":"Data!C9","v":"015 590 0319"}]
[]
[]
[null,"Date: "]
[null,"Customer: "]
[]
[null,null,"Previous Servicing Franchise:   "]
[null,null,"Attention Technical Manager:    "]
[]
[]
[null,"Model:   ","\"COMPLETE!!!\"",null,null,null,null,null,null,null,"Black Meter:   "]
[null,"Serial Number:   ",null,null,null,null,null,null,null,null,"Colour Meter:   ",null,null,null,null,null,null,null,"Copy FTP pricing into Sheet1. Name area \"Pricing\". Superceded numbers"]
[null,null,null,null,null,null,null,null,null,null,"Accounting Method:   ","Prints"]
[null,"CONSUMABLES:   ","Select from List!"]
[null,null,{"$f":"IF(C13=\"AF3260C / AFC5560\",\"This quote includes the cost for 4 PCU's and their relevent parts\",\"\")","v":""}]
[null,null,null,null,null,null,null,null,null,null,null,null,null,null,"Calc Type"]
[null,"Part Number","Description","Qty","Process","Yield","Last Replacement Date",null,"Prints \nper part","Part usage (% of Yield)","FTP Price\n(Rand)","Pro rate Charge",null,null,"All / Col",null,"% of Meter readings"]
[null,null,null,null,null,null,"Black Meter","Colour Meter"]
[1,"D1964035","FUSING UNIT-EU/AA/CHN",1,null,120000,null,null,{"$f":"IF($L$15=\"Prints\",IF(O21=\"Both\",($L$13-G21)+($L$14-H21),IF(O21=\"Col\",($L$14-H21),IF(O21=\"-\",\"\",\"Error\"))),\n\nIF($L$15=\"Developments\",IF(O21=\"Both\",$L$13-G21,IF(O21=\"Col\",($L$14-H21)/3,IF(O21=\"-\",\"\",\"Error\"))),\"Dev/Print Error\"))","v":0},{"$f":"IF(B21=\"\",\"\",IF(Q21>=1,1,Q21))","v":0},null,{"$f":"IF(B21=\"\",\"\",$K21*$J21*D21)","v":0},null,null,"Both",null,{"$f":"I21/F21","v":0},{"$f":"IF(L15=\"Prints\",\n                    IF(O21=\"All\",(L13-G21)+(L14-H21),\n\"\"),\n\"\")","v":""},{"$f":"IF(VLOOKUP(B21,Pricing,5,FALSE)=\"\",B21,VLOOKUP(B21,Pricing,5,FALSE))","v":{"$error":"#N/A"}}]
[2,"D1966002","ITB UNIT",1,null,120000,null,null,{"$f":"IF($L$15=\"Prints\",IF(O22=\"Both\",($L$13-G22)+($L$14-H22),IF(O22=\"Col\",($L$14-H22),IF(O22=\"-\",\"\",\"Error\"))),\n\nIF($L$15=\"Developments\",IF(O22=\"Both\",$L$13-G22,IF(O22=\"Col\",($L$14-H22)/3,IF(O22=\"-\",\"\",\"Error\"))),\"Dev/Print Error\"))","v":0},{"$f":"IF(B22=\"\",\"\",IF(Q22>=1,1,Q22))","v":0},null,0,null,null,"Both",null,{"$f":"I22/F22","v":0},null,{"$error":"#N/A"}]
[3,"D2960122","PCDU-C",1,"C",36000,null,null,0,0,null,0,null,null,"Col",null,0,null,{"$error":"#N/A"}]
[4,"D2970121","PCDU-K (C2a)",1,"K",60000,null,null,0,0,null,0,null,null,"Both",null,0,null,{"$error":"#N/A"}]
[null,"D2960123","PCDU-M",1,"M",36000,null,null,0,0,null,0,null,null,"Col",null,0,null,{"$error":"#N/A"}]
[5,"D2960124","PCDU-Y",1,"Y",36000,null,null,0,0,null,0,null,null,"Col",null,0,null,{"$error":"#N/A"}]
[6,"D1966201","PTR UNIT",1,null,120000,null,null,0,0,null,0,null,null,"Both",null,0,null,{"$error":"#N/A"}]
[7,null,null,null,null,null,null,null,"","",null,"",null,null,"-",null,{"$error":"#VALUE!"},null,{"$error":"#N/A"}]
[null,null,null,null,null,null,null,null,"","",null,"",null,null,"-",null,{"$error":"#VALUE!"},null,{"$error":"#N/A"}]
[null,null,null,null,null,null,null,null,"","",null,"",null,null,"-",null,{"$error":"#VALUE!"},null,{"$error":"#N/A"}]
[null,null,null,null,null,null,null,null,"","",null,"",null,null,"-",null,{"$error":"#VALUE!"},null,{"$error":"#N/A"}]
[null,null,null,null,null,null,null,null,"","",null,"",null,null,"-",null,{"$error":"#VALUE!"},null,{"$error":"#N/A"}]
[null,null,null,null,null,null,null,null,"","",null,"",null,null,"-",null,{"$error":"#VALUE!"},null,{"$error":"#N/A"}]
[null,null,null,null,null,null,null,null,"","",null,"",null,null,"-",null,{"$error":"#VALUE!"},null,{"$error":"#N/A"}]
[null,null,null,null,null,null,null,null,"","",null,"",null,null,"-",null,{"$error":"#VALUE!"},null,{"$error":"#N/A"}]
[null,null,null,null,null,null,null,null,"","",null,"",null,null,"-",null,{"$error":"#VALUE!"},null,{"$error":"#N/A"}]
[null,null,null,null,null,null,null,null,"","",null,"",null,null,"-",null,{"$error":"#VALUE!"},null,{"$error":"#N/A"}]
[null,null,null,null,null,null,null,null,"","",null,"",null,null,"-",null,{"$error":"#VALUE!"},null,{"$error":"#N/A"}]
[null,null,null,null,null,null,null,null,"","",null,"",null,null,"-",null,{"$error":"#VALUE!"},null,{"$error":"#N/A"}]
[null,null,null,null,null,null,null,null,"","",null,"",null,null,"-",null,{"$error":"#VALUE!"},null,{"$error":"#N/A"}]
[null,null,null,null,null,null,null,null,"","",null,"",null,null,"-",null,{"$error":"#VALUE!"},null,{"$error":"#N/A"}]
[null,null,null,null,null,null,null,null,"","",null,"",null,null,"-",null,{"$error":"#VALUE!"},null,{"$error":"#N/A"}]
[null,null,null,null,null,null,null,null,"","",null,"",null,null,"-",null,{"$error":"#VALUE!"},null,{"$error":"#N/A"}]
[null,null,null,null,null,null,null,null,"","",null,"",null,null,"-",null,{"$error":"#VALUE!"},null,{"$error":"#N/A"}]
[null,null,null,null,null,null,null,null,"","",null,"",null,null,"-",null,{"$error":"#VALUE!"},null,{"$error":"#N/A"}]
[null,null,null,null,null,null,null,null,"","",null,"",null,null,"-",null,{"$error":"#VALUE!"},null,{"$error":"#N/A"}]
[null,null,null,null,null,null,null,null,"","",null,"",null,null,"-",null,{"$error":"#VALUE!"},null,{"$error":"#N/A"}]
[8,null,null,null,null,null,null,null,"","",null,"",null,null,"-",null,{"$error":"#VALUE!"},null,{"$error":"#N/A"}]
[null,null,null,null,null,null,null,null,"","",null,"",null,null,"-",null,{"$error":"#VALUE!"},null,{"$error":"#N/A"}]
[null,null,null,null,null,null,null,null,"","",null,"",null,null,"-",null,{"$error":"#VALUE!"},null,{"$error":"#N/A"}]
[null,null,null,null,null,null,null,null,"","",null,"",null,null,"-",null,{"$error":"#VALUE!"},null,{"$error":"#N/A"}]
[null,null,null,null,null,null,null,null,"","",null,"",null,null,"-",null,{"$error":"#VALUE!"},null,{"$error":"#N/A"}]
[9,null,null,null,null,null,null,null,"","",null,"",null,null,"-",null,{"$error":"#VALUE!"},null,{"$error":"#N/A"}]
[10,null,null,null,null,null,null,null,"","",null,"",null,null,"-",null,{"$error":"#VALUE!"},null,{"$error":"#N/A"}]
[11,null,null,null,null,null,null,null,"","",null,"",null,null,"-",null,{"$error":"#VALUE!"},null,{"$error":"#N/A"}]
[null,null,null,null,null,null,null,null,"","",null,"",null,null,"-",null,{"$error":"#VALUE!"},null,{"$error":"#N/A"}]
[null,null,null,null,null,null,null,null,"","",null,"",null,null,"-",null,{"$error":"#VALUE!"},null,{"$error":"#N/A"}]
[null,null,null,null,null,null,null,null,"","",null,"",null,null,"-",null,{"$error":"#VALUE!"},null,{"$error":"#N/A"}]
[null,null,null,null,null,null,null,null,"","",null,"",null,null,"-",null,{"$error":"#VALUE!"},null,{"$error":"#N/A"}]
[null,null,null,null,null,null,null,null,"","",null,"",null,null,"-",null,{"$error":"#VALUE!"},null,{"$error":"#N/A"}]
[null,null,null,null,null,null,null,null,"","",null,"",null,null,"-",null,{"$error":"#VALUE!"},null,{"$error":"#N/A"}]
[null,null,null,null,null,null,null,null,"","",null,"",null,null,"-",null,{"$error":"#VALUE!"},null,{"$error":"#N/A"}]
[null,null,null,null,null,null,null,null,"","",null,"",null,null,"-",null,{"$error":"#VALUE!"},null,{"$error":"#N/A"}]
[null,null,null,null,null,null,null,null,"","",null,"",null,null,"-",null,{"$error":"#VALUE!"},null,{"$error":"#N/A"}]
[null,null,null,null,null,null,null,null,"","",null,"",null,null,"-",null,{"$error":"#VALUE!"},null,{"$error":"#N/A"}]
[null,null,null,null,null,null,null,null,"","",null,"",null,null,"-",null,{"$error":"#VALUE!"},null,{"$error":"#N/A"}]
[null,null,null,null,null,null,null,null,"","",null,"",null,null,"-",null,{"$error":"#VALUE!"},null,{"$error":"#N/A"}]
[null,null,null,null,null,null,null,null,"","",null,"",null,null,"-",null,{"$error":"#VALUE!"},null,{"$error":"#N/A"}]
[12,null,null,null,null,null,null,null,"","",null,"",null,null,"-",null,{"$error":"#VALUE!"},null,{"$error":"#N/A"}]
[13,null,null,null,null,null,null,null,"","",null,"",null,null,"-",null,{"$error":"#VALUE!"},null,{"$error":"#N/A"}]
[null,"Additional Notes:",null,null,null,null,null,null,null,null,"Total Parts:    ",{"$f":"SUM(L21:L70)","v":0},null,null,"-"]
[null,null,null,null,null,null,"Labour ",0,{"$f":"\"@ R\"& Data!C11 &\" p/h\"","v":"@ R200 p/h"},null,"Total Labour:    ",{"$f":"H72*Data!C11","v":0},null,null,"-"]
[null,null,null,null,null,null,null,null,null,null,"Sub Total:    ",{"$f":"L71+L72","v":0}]
[null,null,null,null,null,null,null,null,null,null,"VAT (15%):    ",{"$f":"L73*0.15","v":0}]
[null,null,null,null,null,null,null,null,null,null,"TOTAL:    ",{"$f":"L74+L73","v":0}]
[]
[]
[]
[]
[]
[null,"Quote prepared by:",null,null,null,null,null,"Quote accepted by:"]
[]
[]
[null,"Name:   ",null,null,null,null,null,"Name:   "]
[]
[]
[null,"Signature:",null,null,null,null,null,"Signature:"]
[]
[]
[null,"Date:",null,null,null,null,null,"Date:"]
[null,null,null,null,null,null,null,null,null,null,null,{"$f":"INDEX!H44","v":"(ver 2019.07.03)"}]

{"sheet":"MPC307SPF","index":25,"n_rows":91,"n_cols":19,"rows_kept":91,"cut":false,"hidden":false,"merged":[[18,11,19,11],[71,1,78,2],[13,18,18,19],[18,1,19,1],[18,2,19,2],[18,3,19,3],[18,4,19,4],[18,5,19,5],[18,6,18,7],[18,8,19,8],[18,9,19,9],[18,10,19,10],[13,2,13,5],[2,1,2,2],[5,2,5,11],[6,2,6,11],[8,6,8,11],[9,6,9,11]]}
[null,null,null,null,null,null,null,"Service Manager: ",null,null,{"$f":"Data!C5","v":"Danie Fourie"}]
[null,null,null,null,null,null,null,"Email:",null,null,{"$f":"Data!C7","v":"danief@nashualim.co.za"}]
[null,{"$f":"Data!C3","v":"Nashua Limpopo"},null,null,null,null,null,"Fax:",null,null,{"$f":"Data!C9","v":"015 590 0319"}]
[]
[]
[null,"Date: "]
[null,"Customer: "]
[]
[null,null,"Previous Servicing Franchise:   "]
[null,null,"Attention Technical Manager:    "]
[]
[]
[null,"Model:   ","\"COMPLETE!!!\"",null,null,null,null,null,null,null,"Black Meter:   "]
[null,"Serial Number:   ",null,null,null,null,null,null,null,null,"Colour Meter:   ",null,null,null,null,null,null,null,"Copy FTP pricing into Sheet1. Name area \"Pricing\". Superceded numbers"]
[null,null,null,null,null,null,null,null,null,null,"Accounting Method:   ","Prints"]
[null,"CONSUMABLES:   ","Select from List!"]
[null,null,{"$f":"IF(C13=\"AF3260C / AFC5560\",\"This quote includes the cost for 4 PCU's and their relevent parts\",\"\")","v":""}]
[null,null,null,null,null,null,null,null,null,null,null,null,null,null,"Calc Type"]
[null,"Part Number","Description","Qty","Process","Yield","Last Replacement Date",null,"Prints \nper part","Part usage (% of Yield)","FTP Price\n(Rand)","Pro rate Charge",null,null,"All / Col",null,"% of Meter readings"]
[null,null,null,null,null,null,"Black Meter","Colour Meter"]
[1,"D2970121","PCDU-K (C2a)",1,null,60000,null,null,{"$f":"IF($L$15=\"Prints\",IF(O21=\"Both\",($L$13-G21)+($L$14-H21),IF(O21=\"Col\",($L$14-H21),IF(O21=\"-\",\"\",\"Error\"))),\n\nIF($L$15=\"Developments\",IF(O21=\"Both\",$L$13-G21,IF(O21=\"Col\",($L$14-H21)/3,IF(O21=\"-\",\"\",\"Error\"))),\"Dev/Print Error\"))","v":0},{"$f":"IF(B21=\"\",\"\",IF(Q21>=1,1,Q21))","v":0},null,{"$f":"IF(B21=\"\",\"\",$K21*$J21*D21)","v":0},null,null,"Both",null,{"$f":"I21/F21","v":0},{"$f":"IF(L15=\"Prints\",\n                    IF(O21=\"All\",(L13-G21)+(L14-H21),\n\"\"),\n\"\")","v":""},{"$f":"IF(VLOOKUP(B21,Pricing,5,FALSE)=\"\",B21,VLOOKUP(B21,Pricing,5,FALSE))","v":{"$error":"#N/A"}}]
[2,"D2960122","PCDU-C",1,null,36000,null,null,{"$f":"IF($L$15=\"Prints\",IF(O22=\"Both\",($L$13-G22)+($L$14-H22),IF(O22=\"Col\",($L$14-H22),IF(O22=\"-\",\"\",\"Error\"))),\n\nIF($L$15=\"Developments\",IF(O22=\"Both\",$L$13-G22,IF(O22=\"Col\",($L$14-H22)/3,IF(O22=\"-\",\"\",\"Error\"))),\"Dev/Print Error\"))","v":0},{"$f":"IF(B22=\"\",\"\",IF(Q22>=1,1,Q22))","v":0},null,0,null,null,"Col",null,{"$f":"I22/F22","v":0},null,{"$error":"#N/A"}]
[3,"D2960123","PCDU-M",1,null,36000,null,null,0,0,null,0,null,null,"Col",null,0,null,{"$error":"#N/A"}]
[4,"D2960124","PCDU-Y",1,null,36000,null,null,0,0,null,0,null,null,"Col",null,0,null,{"$error":"#N/A"}]
[null,"D1966002","ITB UNIT",1,null,120000,null,null,0,0,null,0,null,null,"Both",null,0,null,{"$error":"#N/A"}]
[5,"D1966201","PTR UNIT",1,null,120000,null,null,0,0,null,0,null,null,"Both",null,0,null,{"$error":"#N/A"}]
[6,"D2964032","FUSING UNIT:EU/AA/CHN SVS PRTS",1,null,120000,null,null,0,0,null,0,null,null,"Both",null,0,null,{"$error":"#N/A"}]
[7,null,null,null,null,null,null,null,"","",null,"",null,null,"-",null,{"$error":"#VALUE!"},null,{"$error":"#N/A"}]
[null,null,null,null,null,null,null,null,"","",null,"",null,null,"-",null,{"$error":"#VALUE!"},null,{"$error":"#N/A"}]
[null,null,null,null,null,null,null,null,"","",null,"",null,null,"-",null,{"$error":"#VALUE!"},null,{"$error":"#N/A"}]
[null,null,null,null,null,null,null,null,"","",null,"",null,null,"-",null,{"$error":"#VALUE!"},null,{"$error":"#N/A"}]
[null,null,null,null,null,null,null,null,"","",null,"",null,null,"-",null,{"$error":"#VALUE!"},null,{"$error":"#N/A"}]
[null,null,null,null,null,null,null,null,"","",null,"",null,null,"-",null,{"$error":"#VALUE!"},null,{"$error":"#N/A"}]
[null,null,null,null,null,null,null,null,"","",null,"",null,null,"-",null,{"$error":"#VALUE!"},null,{"$error":"#N/A"}]
[null,null,null,null,null,null,null,null,"","",null,"",null,null,"-",null,{"$error":"#VALUE!"},null,{"$error":"#N/A"}]
[null,null,null,null,null,null,null,null,"","",null,"",null,null,"-",null,{"$error":"#VALUE!"},null,{"$error":"#N/A"}]
[null,null,null,null,null,null,null,null,"","",null,"",null,null,"-",null,{"$error":"#VALUE!"},null,{"$error":"#N/A"}]
[null,null,null,null,null,null,null,null,"","",null,"",null,null,"-",null,{"$error":"#VALUE!"},null,{"$error":"#N/A"}]
[null,null,null,null,null,null,null,null,"","",null,"",null,null,"-",null,{"$error":"#VALUE!"},null,{"$error":"#N/A"}]
[null,null,null,null,null,null,null,null,"","",null,"",null,null,"-",null,{"$error":"#VALUE!"},null,{"$error":"#N/A"}]
[null,null,null,null,null,null,null,null,"","",null,"",null,null,"-",null,{"$error":"#VALUE!"},null,{"$error":"#N/A"}]
[null,null,null,null,null,null,null,null,"","",null,"",null,null,"-",null,{"$error":"#VALUE!"},null,{"$error":"#N/A"}]
[null,null,null,null,null,null,null,null,"","",null,"",null,null,"-",null,{"$error":"#VALUE!"},null,{"$error":"#N/A"}]
[null,null,null,null,null,null,null,null,"","",null,"",null,null,"-",null,{"$error":"#VALUE!"},null,{"$error":"#N/A"}]
[null,null,null,null,null,null,null,null,"","",null,"",null,null,"-",null,{"$error":"#VALUE!"},null,{"$error":"#N/A"}]
[null,null,null,null,null,null,null,null,"","",null,"",null,null,"-",null,{"$error":"#VALUE!"},null,{"$error":"#N/A"}]
[null,null,null,null,null,null,null,null,"","",null,"",null,null,"-",null,{"$error":"#VALUE!"},null,{"$error":"#N/A"}]
[8,null,null,null,null,null,null,null,"","",null,"",null,null,"-",null,{"$error":"#VALUE!"},null,{"$error":"#N/A"}]
[null,null,null,null,null,null,null,null,"","",null,"",null,null,"-",null,{"$error":"#VALUE!"},null,{"$error":"#N/A"}]
[null,null,null,null,null,null,null,null,"","",null,"",null,null,"-",null,{"$error":"#VALUE!"},null,{"$error":"#N/A"}]
[null,null,null,null,null,null,null,null,"","",null,"",null,null,"-",null,{"$error":"#VALUE!"},null,{"$error":"#N/A"}]
[null,null,null,null,null,null,null,null,"","",null,"",null,null,"-",null,{"$error":"#VALUE!"},null,{"$error":"#N/A"}]
[9,null,null,null,null,null,null,null,"","",null,"",null,null,"-",null,{"$error":"#VALUE!"},null,{"$error":"#N/A"}]
[10,null,null,null,null,null,null,null,"","",null,"",null,null,"-",null,{"$error":"#VALUE!"},null,{"$error":"#N/A"}]
[11,null,null,null,null,null,null,null,"","",null,"",null,null,"-",null,{"$error":"#VALUE!"},null,{"$error":"#N/A"}]
[null,null,null,null,null,null,null,null,"","",null,"",null,null,"-",null,{"$error":"#VALUE!"},null,{"$error":"#N/A"}]
[null,null,null,null,null,null,null,null,"","",null,"",null,null,"-",null,{"$error":"#VALUE!"},null,{"$error":"#N/A"}]
[null,null,null,null,null,null,null,null,"","",null,"",null,null,"-",null,{"$error":"#VALUE!"},null,{"$error":"#N/A"}]
[null,null,null,null,null,null,null,null,"","",null,"",null,null,"-",null,{"$error":"#VALUE!"},null,{"$error":"#N/A"}]
[null,null,null,null,null,null,null,null,"","",null,"",null,null,"-",null,{"$error":"#VALUE!"},null,{"$error":"#N/A"}]
[null,null,null,null,null,null,null,null,"","",null,"",null,null,"-",null,{"$error":"#VALUE!"},null,{"$error":"#N/A"}]
[null,null,null,null,null,null,null,null,"","",null,"",null,null,"-",null,{"$error":"#VALUE!"},null,{"$error":"#N/A"}]
[null,null,null,null,null,null,null,null,"","",null,"",null,null,"-",null,{"$error":"#VALUE!"},null,{"$error":"#N/A"}]
[null,null,null,null,null,null,null,null,"","",null,"",null,null,"-",null,{"$error":"#VALUE!"},null,{"$error":"#N/A"}]
[null,null,null,null,null,null,null,null,"","",null,"",null,null,"-",null,{"$error":"#VALUE!"},null,{"$error":"#N/A"}]
[null,null,null,null,null,null,null,null,"","",null,"",null,null,"-",null,{"$error":"#VALUE!"},null,{"$error":"#N/A"}]
[null,null,null,null,null,null,null,null,"","",null,"",null,null,"-",null,{"$error":"#VALUE!"},null,{"$error":"#N/A"}]
[null,null,null,null,null,null,null,null,"","",null,"",null,null,"-",null,{"$error":"#VALUE!"},null,{"$error":"#N/A"}]
[12,null,null,null,null,null,null,null,"","",null,"",null,null,"-",null,{"$error":"#VALUE!"},null,{"$error":"#N/A"}]
[13,null,null,null,null,null,null,null,"","",null,"",null,null,"-",null,{"$error":"#VALUE!"},null,{"$error":"#N/A"}]
[null,"Additional Notes:",null,null,null,null,null,null,null,null,"Total Parts:    ",{"$f":"SUM(L21:L70)","v":0},null,null,"-"]
[null,null,null,null,null,null,"Labour ",0,{"$f":"\"@ R\"& Data!C11 &\" p/h\"","v":"@ R200 p/h"},null,"Total Labour:    ",{"$f":"H72*Data!C11","v":0},null,null,"-"]
[null,null,null,null,null,null,null,null,null,null,"Sub Total:    ",{"$f":"L71+L72","v":0}]
[null,null,null,null,null,null,null,null,null,null,"VAT (15%):    ",{"$f":"L73*0.15","v":0}]
[null,null,null,null,null,null,null,null,null,null,"TOTAL:    ",{"$f":"L74+L73","v":0}]
[]
[]
[]
[]
[]
[null,"Quote prepared by:",null,null,null,null,null,"Quote accepted by:"]
[]
[]
[null,"Name:   ",null,null,null,null,null,"Name:   "]
[]
[]
[null,"Signature:",null,null,null,null,null,"Signature:"]
[]
[]
[null,"Date:",null,null,null,null,null,"Date:"]
[null,null,null,null,null,null,null,null,null,null,null,{"$f":"INDEX!H44","v":"(ver 2019.07.03)"}]

{"sheet":"MP C3500 & 4500","index":26,"n_rows":91,"n_cols":19,"rows_kept":91,"cut":false,"hidden":false,"merged":[[18,11,19,11],[71,1,78,2],[13,18,18,19],[18,1,19,1],[18,2,19,2],[18,3,19,3],[18,4,19,4],[18,5,19,5],[18,6,18,7],[18,8,19,8],[18,9,19,9],[18,10,19,10],[13,2,13,5],[2,1,2,2],[5,2,5,11],[6,2,6,11],[8,6,8,11],[9,6,9,11]]}
[null,null,null,null,null,null,null,"Service Manager: ",null,null,{"$f":"Data!C5","v":"Danie Fourie"}]
[null,null,null,null,null,null,null,"Email:",null,null,{"$f":"Data!C7","v":"danief@nashualim.co.za"}]
[null,{"$f":"Data!C3","v":"Nashua Limpopo"},null,null,null,null,null,"Fax:",null,null,{"$f":"Data!C9","v":"015 590 0319"}]
[]
[]
[null,"Date: "]
[null,"Customer: "]
[]
[null,null,"Previous Servicing Franchise:   "]
[null,null,"Attention Technical Manager:    "]
[]
[]
[null,"Model:   ","\"COMPLETE!!!\"",null,null,null,null,null,null,null,"Black Meter:   "]
[null,"Serial Number:   ",null,null,null,null,null,null,null,null,"Colour Meter:   ",null,null,null,null,null,null,null,"Copy FTP pricing into Sheet1. Name area \"Pricing\". Superceded numbers"]
[null,null,null,null,null,null,null,null,null,null,"Accounting Method:   ","Prints"]
[null,"CONSUMABLES:   ","Select from List!"]
[null,null,{"$f":"IF(C13=\"AF3260C / AFC5560\",\"This quote includes the cost for 4 PCU's and their relevent parts\",\"\")","v":""}]
[null,null,null,null,null,null,null,null,null,null,null,null,null,null,"Calc Type"]
[null,"Part Number","Description","Qty","Process","Yield","Last Replacement Date",null,"Prints \nper part","Part usage (% of Yield)","FTP Price\n(Rand)","Pro rate Charge",null,null,"All / Col",null,"% of Meter readings"]
[null,null,null,null,null,null,"Black Meter","Colour Meter"]
[1,"B2236039","CL UNIT:I/MED TRANS (B2236029)",1,null,160000,null,null,{"$f":"IF($L$15=\"Prints\",IF(O21=\"Both\",($L$13-G21)+($L$14-H21),IF(O21=\"Col\",($L$14-H21),IF(O21=\"-\",\"\",\"Error\"))),\n\nIF($L$15=\"Developments\",IF(O21=\"Both\",$L$13-G21,IF(O21=\"Col\",($L$14-H21)/3,IF(O21=\"-\",\"\",\"Error\"))),\"Dev/Print Error\"))","v":0},{"$f":"IF(B21=\"\",\"\",IF(Q21>=1,1,Q21))","v":0},null,{"$f":"IF(B21=\"\",\"\",$K21*$J21*D21)","v":0},null,null,"Both",null,{"$f":"I21/F21","v":0},{"$f":"IF(L15=\"Prints\",\n                    IF(O21=\"All\",(L13-G21)+(L14-H21),\n\"\"),\n\"\")","v":""},{"$f":"IF(VLOOKUP(B21,Pricing,5,FALSE)=\"\",B21,VLOOKUP(B21,Pricing,5,FALSE))","v":{"$error":"#N/A"}}]
[2,"AE040066","CLEANING ROLLER MPC25/3000",1,null,160000,null,null,{"$f":"IF($L$15=\"Prints\",IF(O22=\"Both\",($L$13-G22)+($L$14-H22),IF(O22=\"Col\",($L$14-H22),IF(O22=\"-\",\"\",\"Error\"))),\n\nIF($L$15=\"Developments\",IF(O22=\"Both\",$L$13-G22,IF(O22=\"Col\",($L$14-H22)/3,IF(O22=\"-\",\"\",\"Error\"))),\"Dev/Print Error\"))","v":0},{"$f":"IF(B22=\"\",\"\",IF(Q22>=1,1,Q22))","v":0},null,0,null,null,"Both",null,{"$f":"I22/F22","v":0},null,{"$error":"#N/A"}]
[3,"B2233014","DEV UNIT:BK MPC2500(B2233013)",1,"K",320000,null,null,0,0,null,0,null,null,"Both",null,0,null,{"$error":"#N/A"}]
[4,"B2233034","DEV UNIT:C MPC25/3000(B2233033",1,"C",320000,null,null,0,0,null,0,null,null,"Col",null,0,null,{"$error":"#N/A"}]
[null,"B2233024","DEV UNIT:M MPC25/3000(B2233023",1,"M",320000,null,null,0,0,null,0,null,null,"Col",null,0,null,{"$error":"#N/A"}]
[5,"B2233044","DEV UNIT:Y MPC2500 (B2233043)",1,"Y",320000,null,null,0,0,null,0,null,null,"Col",null,0,null,{"$error":"#N/A"}]
[6,"B2242042","DRUM UNIT:BK(B2232042)MPC2500",1,"K",80000,null,null,0,0,null,0,null,null,"Both",null,0,null,{"$error":"#N/A"}]
[7,"B2242027","DRUM UNT:AP:CL:EX:(B2232027)",1,"V",80000,null,null,0,0,null,0,null,null,"Col",null,0,null,{"$error":"#N/A"}]
[null,"B2242027","DRUM UNT:AP:CL:EX:(B2232027)",1,"M",80000,null,null,0,0,null,0,null,null,"Col",null,0,null,{"$error":"#N/A"}]
[null,"B2242027","DRUM UNT:AP:CL:EX:(B2232027)",1,"Y",80000,null,null,0,0,null,0,null,null,"Col",null,0,null,{"$error":"#N/A"}]
[null,"B2234217","FUS BELT:D60:ADH (B2234221)",1,null,160000,null,null,0,0,null,0,null,null,"Both",null,0,null,{"$error":"#N/A"}]
[null,"AE010059","FUSING ROLLER MPC35/4500",1,null,160000,null,null,0,0,null,0,null,null,"Both",null,0,null,{"$error":"#N/A"}]
[null,"B2236043","I/MED TRANS SEC (B2236042)",1,null,320000,null,null,0,0,null,0,null,null,"Both",null,0,null,{"$error":"#N/A"}]
[null,"AE040069","OIL SUP ROLL(AE040065)MPC2500",1,null,160000,null,null,0,0,null,0,null,null,"Both",null,0,null,{"$error":"#N/A"}]
[null,"AE020115","PRESSURE ROLLER MPC35/4500",1,null,160000,null,null,0,0,null,0,null,null,"Both",null,0,null,{"$error":"#N/A"}]
[null,"B2236264","TRANS/SEP UNIT (B2236263)",1,null,240000,null,null,0,0,null,0,null,null,"Both",null,0,null,{"$error":"#N/A"}]
[null,null,null,null,null,null,null,null,"","",null,"",null,null,"-",null,{"$error":"#VALUE!"},null,{"$error":"#N/A"}]
[null,null,null,null,null,null,null,null,"","",null,"",null,null,"-",null,{"$error":"#VALUE!"},null,{"$error":"#N/A"}]
[null,null,null,null,null,null,null,null,"","",null,"",null,null,"-",null,{"$error":"#VALUE!"},null,{"$error":"#N/A"}]
[null,null,null,null,null,null,null,null,"","",null,"",null,null,"-",null,{"$error":"#VALUE!"},null,{"$error":"#N/A"}]
[null,null,null,null,null,null,null,null,"","",null,"",null,null,"-",null,{"$error":"#VALUE!"},null,{"$error":"#N/A"}]
[null,null,null,null,null,null,null,null,"","",null,"",null,null,"-",null,{"$error":"#VALUE!"},null,{"$error":"#N/A"}]
[null,null,null,null,null,null,null,null,"","",null,"",null,null,"-",null,{"$error":"#VALUE!"},null,{"$error":"#N/A"}]
[null,null,null,null,null,null,null,null,"","",null,"",null,null,"-",null,{"$error":"#VALUE!"},null,{"$error":"#N/A"}]
[null,null,null,null,null,null,null,null,"","",null,"",null,null,"-",null,{"$error":"#VALUE!"},null,{"$error":"#N/A"}]
[null,null,null,null,null,null,null,null,"","",null,"",null,null,"-",null,{"$error":"#VALUE!"},null,{"$error":"#N/A"}]
[null,null,null,null,null,null,null,null,"","",null,"",null,null,"-",null,{"$error":"#VALUE!"},null,{"$error":"#N/A"}]
[8,null,null,null,null,null,null,null,"","",null,"",null,null,"-",null,{"$error":"#VALUE!"},null,{"$error":"#N/A"}]
[null,null,null,null,null,null,null,null,"","",null,"",null,null,"-",null,{"$error":"#VALUE!"},null,{"$error":"#N/A"}]
[null,null,null,null,null,null,null,null,"","",null,"",null,null,"-",null,{"$error":"#VALUE!"},null,{"$error":"#N/A"}]
[null,null,null,null,null,null,null,null,"","",null,"",null,null,"-",null,{"$error":"#VALUE!"},null,{"$error":"#N/A"}]
[null,null,null,null,null,null,null,null,"","",null,"",null,null,"-",null,{"$error":"#VALUE!"},null,{"$error":"#N/A"}]
[9,null,null,null,null,null,null,null,"","",null,"",null,null,"-",null,{"$error":"#VALUE!"},null,{"$error":"#N/A"}]
[10,null,null,null,null,null,null,null,"","",null,"",null,null,"-",null,{"$error":"#VALUE!"},null,{"$error":"#N/A"}]
[11,null,null,null,null,null,null,null,"","",null,"",null,null,"-",null,{"$error":"#VALUE!"},null,{"$error":"#N/A"}]
[null,null,null,null,null,null,null,null,"","",null,"",null,null,"-",null,{"$error":"#VALUE!"},null,{"$error":"#N/A"}]
[null,null,null,null,null,null,null,null,"","",null,"",null,null,"-",null,{"$error":"#VALUE!"},null,{"$error":"#N/A"}]
[null,null,null,null,null,null,null,null,"","",null,"",null,null,"-",null,{"$error":"#VALUE!"},null,{"$error":"#N/A"}]
[null,null,null,null,null,null,null,null,"","",null,"",null,null,"-",null,{"$error":"#VALUE!"},null,{"$error":"#N/A"}]
[null,null,null,null,null,null,null,null,"","",null,"",null,null,"-",null,{"$error":"#VALUE!"},null,{"$error":"#N/A"}]
[null,null,null,null,null,null,null,null,"","",null,"",null,null,"-",null,{"$error":"#VALUE!"},null,{"$error":"#N/A"}]
[null,null,null,null,null,null,null,null,"","",null,"",null,null,"-",null,{"$error":"#VALUE!"},null,{"$error":"#N/A"}]
[null,null,null,null,null,null,null,null,"","",null,"",null,null,"-",null,{"$error":"#VALUE!"},null,{"$error":"#N/A"}]
[null,null,null,null,null,null,null,null,"","",null,"",null,null,"-",null,{"$error":"#VALUE!"},null,{"$error":"#N/A"}]
[null,null,null,null,null,null,null,null,"","",null,"",null,null,"-",null,{"$error":"#VALUE!"},null,{"$error":"#N/A"}]
[null,null,null,null,null,null,null,null,"","",null,"",null,null,"-",null,{"$error":"#VALUE!"},null,{"$error":"#N/A"}]
[null,null,null,null,null,null,null,null,"","",null,"",null,null,"-",null,{"$error":"#VALUE!"},null,{"$error":"#N/A"}]
[null,null,null,null,null,null,null,null,"","",null,"",null,null,"-",null,{"$error":"#VALUE!"},null,{"$error":"#N/A"}]
[12,null,null,null,null,null,null,null,"","",null,"",null,null,"-",null,{"$error":"#VALUE!"},null,{"$error":"#N/A"}]
[13,null,null,null,null,null,null,null,"","",null,"",null,null,"-",null,{"$error":"#VALUE!"},null,{"$error":"#N/A"}]
[null,"Additional Notes:",null,null,null,null,null,null,null,null,"Total Parts:    ",{"$f":"SUM(L21:L70)","v":0},null,null,"-"]
[null,null,null,null,null,null,"Labour ",0,{"$f":"\"@ R\"& Data!C11 &\" p/h\"","v":"@ R200 p/h"},null,"Total Labour:    ",{"$f":"H72*Data!C11","v":0},null,null,"-"]
[null,null,null,null,null,null,null,null,null,null,"Sub Total:    ",{"$f":"L71+L72","v":0}]
[null,null,null,null,null,null,null,null,null,null,"VAT (15%):    ",{"$f":"L73*0.15","v":0}]
[null,null,null,null,null,null,null,null,null,null,"TOTAL:    ",{"$f":"L74+L73","v":0}]
[]
[]
[]
[]
[]
[null,"Quote prepared by:",null,null,null,null,null,"Quote accepted by:"]
[]
[]
[null,"Name:   ",null,null,null,null,null,"Name:   "]
[]
[]
[null,"Signature:",null,null,null,null,null,"Signature:"]
[]
[]
[null,"Date:",null,null,null,null,null,"Date:"]
[null,null,null,null,null,null,null,null,null,null,null,{"$f":"INDEX!H44","v":"(ver 2019.07.03)"}]

{"sheet":"MP C4000 & 5000","index":27,"n_rows":91,"n_cols":19,"rows_kept":91,"cut":false,"hidden":false,"merged":[[18,11,19,11],[71,1,78,2],[13,18,18,19],[18,1,19,1],[18,2,19,2],[18,3,19,3],[18,4,19,4],[18,5,19,5],[18,6,18,7],[18,8,19,8],[18,9,19,9],[18,10,19,10],[13,2,13,5],[2,1,2,2],[5,2,5,11],[6,2,6,11],[8,6,8,11],[9,6,9,11]]}
[null,null,null,null,null,null,null,"Service Manager: ",null,null,{"$f":"Data!C5","v":"Danie Fourie"}]
[null,null,null,null,null,null,null,"Email:",null,null,{"$f":"Data!C7","v":"danief@nashualim.co.za"}]
[null,{"$f":"Data!C3","v":"Nashua Limpopo"},null,null,null,null,null,"Fax:",null,null,{"$f":"Data!C9","v":"015 590 0319"}]
[]
[]
[null,"Date: "]
[null,"Customer: "]
[]
[null,null,"Previous Servicing Franchise:   "]
[null,null,"Attention Technical Manager:    "]
[]
[]
[null,"Model:   ","\"COMPLETE!!!\"",null,null,null,null,null,null,null,"Black Meter:   "]
[null,"Serial Number:   ",null,null,null,null,null,null,null,null,"Colour Meter:   ",null,null,null,null,null,null,null,"Copy FTP pricing into Sheet1. Name area \"Pricing\". Superceded numbers"]
[null,null,null,null,null,null,null,null,null,null,"Accounting Method:   ","Prints"]
[null,"CONSUMABLES:   ","Select from List!"]
[null,null,{"$f":"IF(C13=\"AF3260C / AFC5560\",\"This quote includes the cost for 4 PCU's and their relevent parts\",\"\")","v":""}]
[null,null,null,null,null,null,null,null,null,null,null,null,null,null,"Calc Type"]
[null,"Part Number","Description","Qty","Process","Yield","Last Replacement Date",null,"Prints \nper part","Part usage (% of Yield)","FTP Price\n(Rand)","Pro rate Charge",null,null,"All / Col",null,"% of Meter readings"]
[null,null,null,null,null,null,"Black Meter","Colour Meter"]
[1,"D0896022","CL UNIT:I/M TRANS (D0896021)",1,null,240000,null,null,{"$f":"IF($L$15=\"Prints\",IF(O21=\"Both\",($L$13-G21)+($L$14-H21),IF(O21=\"Col\",($L$14-H21),IF(O21=\"-\",\"\",\"Error\"))),\n\nIF($L$15=\"Developments\",IF(O21=\"Both\",$L$13-G21,IF(O21=\"Col\",($L$14-H21)/3,IF(O21=\"-\",\"\",\"Error\"))),\"Dev/Print Error\"))","v":0},{"$f":"IF(B21=\"\",\"\",IF(Q21>=1,1,Q21))","v":0},null,{"$f":"IF(B21=\"\",\"\",$K21*$J21*D21)","v":0},null,null,"Both",null,{"$f":"I21/F21","v":0},{"$f":"IF(L15=\"Prints\",\n                    IF(O21=\"All\",(L13-G21)+(L14-H21),\n\"\"),\n\"\")","v":""},{"$f":"IF(VLOOKUP(B21,Pricing,5,FALSE)=\"\",B21,VLOOKUP(B21,Pricing,5,FALSE))","v":{"$error":"#N/A"}}]
[2,"D0293015","DEV UNIT:BK:C2:EXP:AS MPC4/500",1,"K",480000,null,null,{"$f":"IF($L$15=\"Prints\",IF(O22=\"Both\",($L$13-G22)+($L$14-H22),IF(O22=\"Col\",($L$14-H22),IF(O22=\"-\",\"\",\"Error\"))),\n\nIF($L$15=\"Developments\",IF(O22=\"Both\",$L$13-G22,IF(O22=\"Col\",($L$14-H22)/3,IF(O22=\"-\",\"\",\"Error\"))),\"Dev/Print Error\"))","v":0},{"$f":"IF(B22=\"\",\"\",IF(Q22>=1,1,Q22))","v":0},null,0,null,null,"Both",null,{"$f":"I22/F22","v":0},null,{"$error":"#N/A"}]
[3,"AE010068","HOT ROLLER:DIA40:ADH MPC4/5000",1,null,240000,null,null,0,0,null,0,null,null,"Both",null,0,null,{"$error":"#N/A"}]
[4,"D0292256","PCU:BK:UV:ASS(D0292252)MPC2800",1,"K",120000,null,null,0,0,null,0,null,null,"Both",null,0,null,{"$error":"#N/A"}]
[null,"D0292251","PCU:COLLAR:ASS'Y MPC28/3300",1,"C",120000,null,null,0,0,null,0,null,null,"Col",null,0,null,{"$error":"#N/A"}]
[5,"D0292251","PCU:COLLAR:ASS'Y MPC28/3300",1,"M",120000,null,null,0,0,null,0,null,null,"Col",null,0,null,{"$error":"#N/A"}]
[6,"D0292251","PCU:COLLAR:ASS'Y MPC28/3300",1,"Y",120000,null,null,0,0,null,0,null,null,"Col",null,0,null,{"$error":"#N/A"}]
[7,"AE020171","PRESSURE ROLLER:DIA40 MPC4/500",1,null,240000,null,null,0,0,null,0,null,null,"Both",null,0,null,{"$error":"#N/A"}]
[null,"D0896011","TR/UNIT:I/M TRAN CL(D0896010)",1,null,600000,null,null,0,0,null,0,null,null,"Both",null,0,null,{"$error":"#N/A"}]
[null,"D0876202","TRANS/SEP UNIT:AT:DO(D0256202)",1,null,360000,null,null,0,0,null,0,null,null,"Both",null,0,null,{"$error":"#N/A"}]
[null,null,null,null,null,null,null,null,"","",null,"",null,null,"-",null,{"$error":"#VALUE!"},null,{"$error":"#N/A"}]
[null,null,null,null,null,null,null,null,"","",null,"",null,null,"-",null,{"$error":"#VALUE!"},null,{"$error":"#N/A"}]
[null,null,null,null,null,null,null,null,"","",null,"",null,null,"-",null,{"$error":"#VALUE!"},null,{"$error":"#N/A"}]
[null,null,null,null,null,null,null,null,"","",null,"",null,null,"-",null,{"$error":"#VALUE!"},null,{"$error":"#N/A"}]
[null,null,null,null,null,null,null,null,"","",null,"",null,null,"-",null,{"$error":"#VALUE!"},null,{"$error":"#N/A"}]
[null,null,null,null,null,null,null,null,"","",null,"",null,null,"-",null,{"$error":"#VALUE!"},null,{"$error":"#N/A"}]
[null,null,null,null,null,null,null,null,"","",null,"",null,null,"-",null,{"$error":"#VALUE!"},null,{"$error":"#N/A"}]
[null,null,null,null,null,null,null,null,"","",null,"",null,null,"-",null,{"$error":"#VALUE!"},null,{"$error":"#N/A"}]
[null,null,null,null,null,null,null,null,"","",null,"",null,null,"-",null,{"$error":"#VALUE!"},null,{"$error":"#N/A"}]
[null,null,null,null,null,null,null,null,"","",null,"",null,null,"-",null,{"$error":"#VALUE!"},null,{"$error":"#N/A"}]
[null,null,null,null,null,null,null,null,"","",null,"",null,null,"-",null,{"$error":"#VALUE!"},null,{"$error":"#N/A"}]
[null,null,null,null,null,null,null,null,"","",null,"",null,null,"-",null,{"$error":"#VALUE!"},null,{"$error":"#N/A"}]
[null,null,null,null,null,null,null,null,"","",null,"",null,null,"-",null,{"$error":"#VALUE!"},null,{"$error":"#N/A"}]
[null,null,null,null,null,null,null,null,"","",null,"",null,null,"-",null,{"$error":"#VALUE!"},null,{"$error":"#N/A"}]
[null,null,null,null,null,null,null,null,"","",null,"",null,null,"-",null,{"$error":"#VALUE!"},null,{"$error":"#N/A"}]
[null,null,null,null,null,null,null,null,"","",null,"",null,null,"-",null,{"$error":"#VALUE!"},null,{"$error":"#N/A"}]
[null,null,null,null,null,null,null,null,"","",null,"",null,null,"-",null,{"$error":"#VALUE!"},null,{"$error":"#N/A"}]
[8,null,null,null,null,null,null,null,"","",null,"",null,null,"-",null,{"$error":"#VALUE!"},null,{"$error":"#N/A"}]
[null,null,null,null,null,null,null,null,"","",null,"",null,null,"-",null,{"$error":"#VALUE!"},null,{"$error":"#N/A"}]
[null,null,null,null,null,null,null,null,"","",null,"",null,null,"-",null,{"$error":"#VALUE!"},null,{"$error":"#N/A"}]
[null,null,null,null,null,null,null,null,"","",null,"",null,null,"-",null,{"$error":"#VALUE!"},null,{"$error":"#N/A"}]
[null,null,null,null,null,null,null,null,"","",null,"",null,null,"-",null,{"$error":"#VALUE!"},null,{"$error":"#N/A"}]
[9,null,null,null,null,null,null,null,"","",null,"",null,null,"-",null,{"$error":"#VALUE!"},null,{"$error":"#N/A"}]
[10,null,null,null,null,null,null,null,"","",null,"",null,null,"-",null,{"$error":"#VALUE!"},null,{"$error":"#N/A"}]
[11,null,null,null,null,null,null,null,"","",null,"",null,null,"-",null,{"$error":"#VALUE!"},null,{"$error":"#N/A"}]
[null,null,null,null,null,null,null,null,"","",null,"",null,null,"-",null,{"$error":"#VALUE!"},null,{"$error":"#N/A"}]
[null,null,null,null,null,null,null,null,"","",null,"",null,null,"-",null,{"$error":"#VALUE!"},null,{"$error":"#N/A"}]
[null,null,null,null,null,null,null,null,"","",null,"",null,null,"-",null,{"$error":"#VALUE!"},null,{"$error":"#N/A"}]
[null,null,null,null,null,null,null,null,"","",null,"",null,null,"-",null,{"$error":"#VALUE!"},null,{"$error":"#N/A"}]
[null,null,null,null,null,null,null,null,"","",null,"",null,null,"-",null,{"$error":"#VALUE!"},null,{"$error":"#N/A"}]
[null,null,null,null,null,null,null,null,"","",null,"",null,null,"-",null,{"$error":"#VALUE!"},null,{"$error":"#N/A"}]
[null,null,null,null,null,null,null,null,"","",null,"",null,null,"-",null,{"$error":"#VALUE!"},null,{"$error":"#N/A"}]
[null,null,null,null,null,null,null,null,"","",null,"",null,null,"-",null,{"$error":"#VALUE!"},null,{"$error":"#N/A"}]
[null,null,null,null,null,null,null,null,"","",null,"",null,null,"-",null,{"$error":"#VALUE!"},null,{"$error":"#N/A"}]
[null,null,null,null,null,null,null,null,"","",null,"",null,null,"-",null,{"$error":"#VALUE!"},null,{"$error":"#N/A"}]
[null,null,null,null,null,null,null,null,"","",null,"",null,null,"-",null,{"$error":"#VALUE!"},null,{"$error":"#N/A"}]
[null,null,null,null,null,null,null,null,"","",null,"",null,null,"-",null,{"$error":"#VALUE!"},null,{"$error":"#N/A"}]
[null,null,null,null,null,null,null,null,"","",null,"",null,null,"-",null,{"$error":"#VALUE!"},null,{"$error":"#N/A"}]
[12,null,null,null,null,null,null,null,"","",null,"",null,null,"-",null,{"$error":"#VALUE!"},null,{"$error":"#N/A"}]
[13,null,null,null,null,null,null,null,"","",null,"",null,null,"-",null,{"$error":"#VALUE!"},null,{"$error":"#N/A"}]
[null,"Additional Notes:",null,null,null,null,null,null,null,null,"Total Parts:    ",{"$f":"SUM(L21:L70)","v":0},null,null,"-"]
[null,null,null,null,null,null,"Labour ",0,{"$f":"\"@ R\"& Data!C11 &\" p/h\"","v":"@ R200 p/h"},null,"Total Labour:    ",{"$f":"H72*Data!C11","v":0},null,null,"-"]
[null,null,null,null,null,null,null,null,null,null,"Sub Total:    ",{"$f":"L71+L72","v":0}]
[null,null,null,null,null,null,null,null,null,null,"VAT (15%):    ",{"$f":"L73*0.15","v":0}]
[null,null,null,null,null,null,null,null,null,null,"TOTAL:    ",{"$f":"L74+L73","v":0}]
[]
[]
[]
[]
[]
[null,"Quote prepared by:",null,null,null,null,null,"Quote accepted by:"]
[]
[]
[null,"Name:   ",null,null,null,null,null,"Name:   "]
[]
[]
[null,"Signature:",null,null,null,null,null,"Signature:"]
[]
[]
[null,"Date:",null,null,null,null,null,"Date:"]
[null,null,null,null,null,null,null,null,null,null,null,{"$f":"INDEX!H44","v":"(ver 2019.07.03)"}]

{"sheet":"MPC401","index":28,"n_rows":91,"n_cols":19,"rows_kept":91,"cut":false,"hidden":false,"merged":[[18,11,19,11],[71,1,78,2],[13,18,18,19],[18,1,19,1],[18,2,19,2],[18,3,19,3],[18,4,19,4],[18,5,19,5],[18,6,18,7],[18,8,19,8],[18,9,19,9],[18,10,19,10],[13,2,13,5],[2,1,2,2],[5,2,5,11],[6,2,6,11],[8,6,8,11],[9,6,9,11]]}
[null,null,null,null,null,null,null,"Service Manager: ",null,null,{"$f":"Data!C5","v":"Danie Fourie"}]
[null,null,null,null,null,null,null,"Email:",null,null,{"$f":"Data!C7","v":"danief@nashualim.co.za"}]
[null,{"$f":"Data!C3","v":"Nashua Limpopo"},null,null,null,null,null,"Fax:",null,null,{"$f":"Data!C9","v":"015 590 0319"}]
[]
[]
[null,"Date: "]
[null,"Customer: "]
[]
[null,null,"Previous Servicing Franchise:   "]
[null,null,"Attention Technical Manager:    "]
[]
[]
[null,"Model:   ","\"COMPLETE!!!\"",null,null,null,null,null,null,null,"Black Meter:   "]
[null,"Serial Number:   ",null,null,null,null,null,null,null,null,"Colour Meter:   ",null,null,null,null,null,null,null,"Copy FTP pricing into Sheet1. Name area \"Pricing\". Superceded numbers"]
[null,null,null,null,null,null,null,null,null,null,"Accounting Method:   ","Prints"]
[null,"CONSUMABLES:   ","Select from List!"]
[null,null,{"$f":"IF(C13=\"AF3260C / AFC5560\",\"This quote includes the cost for 4 PCU's and their relevent parts\",\"\")","v":""}]
[null,null,null,null,null,null,null,null,null,null,null,null,null,null,"Calc Type"]
[null,"Part Number","Description","Qty","Process","Yield","Last Replacement Date",null,"Prints \nper part","Part usage (% of Yield)","FTP Price\n(Rand)","Pro rate Charge",null,null,"All / Col",null,"% of Meter readings"]
[null,null,null,null,null,null,"Black Meter","Colour Meter"]
[1,"AE042087","CL ROLL:O/SUP ROLL MPC3/400/SR",1,null,120000,null,null,{"$f":"IF($L$15=\"Prints\",IF(O21=\"Both\",($L$13-G21)+($L$14-H21),IF(O21=\"Col\",($L$14-H21),IF(O21=\"-\",\"\",\"Error\"))),\n\nIF($L$15=\"Developments\",IF(O21=\"Both\",$L$13-G21,IF(O21=\"Col\",($L$14-H21)/3,IF(O21=\"-\",\"\",\"Error\"))),\"Dev/Print Error\"))","v":0},{"$f":"IF(B21=\"\",\"\",IF(Q21>=1,1,Q21))","v":0},null,{"$f":"IF(B21=\"\",\"\",$K21*$J21*D21)","v":0},null,null,"Both",null,{"$f":"I21/F21","v":0},{"$f":"IF(L15=\"Prints\",\n                    IF(O21=\"All\",(L13-G21)+(L14-H21),\n\"\"),\n\"\")","v":""},{"$f":"IF(VLOOKUP(B21,Pricing,5,FALSE)=\"\",B21,VLOOKUP(B21,Pricing,5,FALSE))","v":{"$error":"#N/A"}}]
[2,"M0263800","CL UNIT:ITB MPC/400/SR",1,null,180000,null,null,{"$f":"IF($L$15=\"Prints\",IF(O22=\"Both\",($L$13-G22)+($L$14-H22),IF(O22=\"Col\",($L$14-H22),IF(O22=\"-\",\"\",\"Error\"))),\n\nIF($L$15=\"Developments\",IF(O22=\"Both\",$L$13-G22,IF(O22=\"Col\",($L$14-H22)/3,IF(O22=\"-\",\"\",\"Error\"))),\"Dev/Print Error\"))","v":0},{"$f":"IF(B22=\"\",\"\",IF(Q22>=1,1,Q22))","v":0},null,0,null,null,"Both",null,{"$f":"I22/F22","v":0},null,{"$error":"#N/A"}]
[3,"M0263030","DEV UNIT:BK MPC300(M0263021)",1,"K",60000,null,null,0,0,null,0,null,null,"Both",null,0,null,{"$error":"#N/A"}]
[4,"M0263031","DEV UNIT:C (M0263022) MPC300",1,"C",60000,null,null,0,0,null,0,null,null,"Col",null,0,null,{"$error":"#N/A"}]
[null,"M0263032","DEV UNIT:M (M0263023) MPC300",1,"M",60000,null,null,0,0,null,0,null,null,"Col",null,0,null,{"$error":"#N/A"}]
[5,"M0263033","DEV UNIT:Y(M0263024)MPC300/SR",1,"Y",60000,null,null,0,0,null,0,null,null,"Col",null,0,null,{"$error":"#N/A"}]
[6,"M0264106","FUSING BELT MPC3/400/SR",1,null,120000,null,null,0,0,null,0,null,null,"Both",null,0,null,{"$error":"#N/A"}]
[7,"AE010076","HOT ROLLER MPC3/400/SR",1,null,120000,null,null,0,0,null,0,null,null,"Both",null,0,null,{"$error":"#N/A"}]
[null,"AE040074","OIL SUPPLY ROLLER:D18 MPC3/400",1,null,120000,null,null,0,0,null,0,null,null,"Both",null,0,null,{"$error":"#N/A"}]
[null,"M0262014","PCU:BK:ASS'Y MPC3/400/SR",1,"K",60000,null,null,0,0,null,0,null,null,"Both",null,0,null,{"$error":"#N/A"}]
[null,"M0262015","PCU:CMY:ASS'Y MPC3/400/SR",1,"C",60000,null,null,0,0,null,0,null,null,"Col",null,0,null,{"$error":"#N/A"}]
[null,"M0262015","PCU:CMY:ASS'Y MPC3/400/SR",1,"M",60000,null,null,0,0,null,0,null,null,"Col",null,0,null,{"$error":"#N/A"}]
[null,"M0262015","PCU:CMY:ASS'Y MPC3/400/SR",1,"Y",60000,null,null,0,0,null,0,null,null,"Col",null,0,null,{"$error":"#N/A"}]
[null,"AE020179","PRESSURE ROLLER MPC3/400/SR",1,null,120000,null,null,0,0,null,0,null,null,"Both",null,0,null,{"$error":"#N/A"}]
[null,"M0266010","TRANS UNIT MPC3/400 (M0266000)",1,null,240000,null,null,0,0,null,0,null,null,"Both",null,0,null,{"$error":"#N/A"}]
[null,"M0266200","TRANS/SEP UNIT MPC3/400/SR",1,null,180000,null,null,0,0,null,0,null,null,"Both",null,0,null,{"$error":"#N/A"}]
[null,null,null,null,null,null,null,null,"","",null,"",null,null,"-",null,{"$error":"#VALUE!"},null,{"$error":"#N/A"}]
[null,null,null,null,null,null,null,null,"","",null,"",null,null,"-",null,{"$error":"#VALUE!"},null,{"$error":"#N/A"}]
[null,null,null,null,null,null,null,null,"","",null,"",null,null,"-",null,{"$error":"#VALUE!"},null,{"$error":"#N/A"}]
[null,null,null,null,null,null,null,null,"","",null,"",null,null,"-",null,{"$error":"#VALUE!"},null,{"$error":"#N/A"}]
[null,null,null,null,null,null,null,null,"","",null,"",null,null,"-",null,{"$error":"#VALUE!"},null,{"$error":"#N/A"}]
[null,null,null,null,null,null,null,null,"","",null,"",null,null,"-",null,{"$error":"#VALUE!"},null,{"$error":"#N/A"}]
[null,null,null,null,null,null,null,null,"","",null,"",null,null,"-",null,{"$error":"#VALUE!"},null,{"$error":"#N/A"}]
[null,null,null,null,null,null,null,null,"","",null,"",null,null,"-",null,{"$error":"#VALUE!"},null,{"$error":"#N/A"}]
[null,null,null,null,null,null,null,null,"","",null,"",null,null,"-",null,{"$error":"#VALUE!"},null,{"$error":"#N/A"}]
[null,null,null,null,null,null,null,null,"","",null,"",null,null,"-",null,{"$error":"#VALUE!"},null,{"$error":"#N/A"}]
[null,null,null,null,null,null,null,null,"","",null,"",null,null,"-",null,{"$error":"#VALUE!"},null,{"$error":"#N/A"}]
[8,null,null,null,null,null,null,null,"","",null,"",null,null,"-",null,{"$error":"#VALUE!"},null,{"$error":"#N/A"}]
[null,null,null,null,null,null,null,null,"","",null,"",null,null,"-",null,{"$error":"#VALUE!"},null,{"$error":"#N/A"}]
[null,null,null,null,null,null,null,null,"","",null,"",null,null,"-",null,{"$error":"#VALUE!"},null,{"$error":"#N/A"}]
[null,null,null,null,null,null,null,null,"","",null,"",null,null,"-",null,{"$error":"#VALUE!"},null,{"$error":"#N/A"}]
[null,null,null,null,null,null,null,null,"","",null,"",null,null,"-",null,{"$error":"#VALUE!"},null,{"$error":"#N/A"}]
[9,null,null,null,null,null,null,null,"","",null,"",null,null,"-",null,{"$error":"#VALUE!"},null,{"$error":"#N/A"}]
[10,null,null,null,null,null,null,null,"","",null,"",null,null,"-",null,{"$error":"#VALUE!"},null,{"$error":"#N/A"}]
[11,null,null,null,null,null,null,null,"","",null,"",null,null,"-",null,{"$error":"#VALUE!"},null,{"$error":"#N/A"}]
[null,null,null,null,null,null,null,null,"","",null,"",null,null,"-",null,{"$error":"#VALUE!"},null,{"$error":"#N/A"}]
[null,null,null,null,null,null,null,null,"","",null,"",null,null,"-",null,{"$error":"#VALUE!"},null,{"$error":"#N/A"}]
[null,null,null,null,null,null,null,null,"","",null,"",null,null,"-",null,{"$error":"#VALUE!"},null,{"$error":"#N/A"}]
[null,null,null,null,null,null,null,null,"","",null,"",null,null,"-",null,{"$error":"#VALUE!"},null,{"$error":"#N/A"}]
[null,null,null,null,null,null,null,null,"","",null,"",null,null,"-",null,{"$error":"#VALUE!"},null,{"$error":"#N/A"}]
[null,null,null,null,null,null,null,null,"","",null,"",null,null,"-",null,{"$error":"#VALUE!"},null,{"$error":"#N/A"}]
[null,null,null,null,null,null,null,null,"","",null,"",null,null,"-",null,{"$error":"#VALUE!"},null,{"$error":"#N/A"}]
[null,null,null,null,null,null,null,null,"","",null,"",null,null,"-",null,{"$error":"#VALUE!"},null,{"$error":"#N/A"}]
[null,null,null,null,null,null,null,null,"","",null,"",null,null,"-",null,{"$error":"#VALUE!"},null,{"$error":"#N/A"}]
[null,null,null,null,null,null,null,null,"","",null,"",null,null,"-",null,{"$error":"#VALUE!"},null,{"$error":"#N/A"}]
[null,null,null,null,null,null,null,null,"","",null,"",null,null,"-",null,{"$error":"#VALUE!"},null,{"$error":"#N/A"}]
[null,null,null,null,null,null,null,null,"","",null,"",null,null,"-",null,{"$error":"#VALUE!"},null,{"$error":"#N/A"}]
[null,null,null,null,null,null,null,null,"","",null,"",null,null,"-",null,{"$error":"#VALUE!"},null,{"$error":"#N/A"}]
[12,null,null,null,null,null,null,null,"","",null,"",null,null,"-",null,{"$error":"#VALUE!"},null,{"$error":"#N/A"}]
[13,null,null,null,null,null,null,null,"","",null,"",null,null,"-",null,{"$error":"#VALUE!"},null,{"$error":"#N/A"}]
[null,"Additional Notes:",null,null,null,null,null,null,null,null,"Total Parts:    ",{"$f":"SUM(L21:L70)","v":0},null,null,"-"]
[null,null,null,null,null,null,"Labour ",0,{"$f":"\"@ R\"& Data!C11 &\" p/h\"","v":"@ R200 p/h"},null,"Total Labour:    ",{"$f":"H72*Data!C11","v":0},null,null,"-"]
[null,null,null,null,null,null,null,null,null,null,"Sub Total:    ",{"$f":"L71+L72","v":0}]
[null,null,null,null,null,null,null,null,null,null,"VAT (15%):    ",{"$f":"L73*0.15","v":0}]
[null,null,null,null,null,null,null,null,null,null,"TOTAL:    ",{"$f":"L74+L73","v":0}]
[]
[]
[]
[]
[]
[null,"Quote prepared by:",null,null,null,null,null,"Quote accepted by:"]
[]
[]
[null,"Name:   ",null,null,null,null,null,"Name:   "]
[]
[]
[null,"Signature:",null,null,null,null,null,"Signature:"]
[]
[]
[null,"Date:",null,null,null,null,null,"Date:"]
[null,null,null,null,null,null,null,null,null,null,null,{"$f":"INDEX!H44","v":"(ver 2019.07.03)"}]

{"sheet":"MPC4501 & 5501","index":29,"n_rows":91,"n_cols":19,"rows_kept":91,"cut":false,"hidden":false,"merged":[[18,11,19,11],[71,1,78,2],[13,18,18,19],[18,1,19,1],[18,2,19,2],[18,3,19,3],[18,4,19,4],[18,5,19,5],[18,6,18,7],[18,8,19,8],[18,9,19,9],[18,10,19,10],[13,2,13,5],[2,1,2,2],[5,2,5,11],[6,2,6,11],[8,6,8,11],[9,6,9,11]]}
[null,null,null,null,null,null,null,"Service Manager: ",null,null,{"$f":"Data!C5","v":"Danie Fourie"}]
[null,null,null,null,null,null,null,"Email:",null,null,{"$f":"Data!C7","v":"danief@nashualim.co.za"}]
[null,{"$f":"Data!C3","v":"Nashua Limpopo"},null,null,null,null,null,"Fax:",null,null,{"$f":"Data!C9","v":"015 590 0319"}]
[]
[]
[null,"Date: "]
[null,"Customer: "]
[]
[null,null,"Previous Servicing Franchise:   "]
[null,null,"Attention Technical Manager:    "]
[]
[]
[null,"Model:   ","\"COMPLETE!!!\"",null,null,null,null,null,null,null,"Black Meter:   "]
[null,"Serial Number:   ",null,null,null,null,null,null,null,null,"Colour Meter:   ",null,null,null,null,null,null,null,"Copy FTP pricing into Sheet1. Name area \"Pricing\". Superceded numbers"]
[null,null,null,null,null,null,null,null,null,null,"Accounting Method:   ","Prints"]
[null,"CONSUMABLES:   ","Select from List!"]
[null,null,{"$f":"IF(C13=\"AF3260C / AFC5560\",\"This quote includes the cost for 4 PCU's and their relevent parts\",\"\")","v":""}]
[null,null,null,null,null,null,null,null,null,null,null,null,null,null,"Calc Type"]
[null,"Part Number","Description","Qty","Process","Yield","Last Replacement Date",null,"Prints \nper part","Part usage (% of Yield)","FTP Price\n(Rand)","Pro rate Charge",null,null,"All / Col",null,"% of Meter readings"]
[null,null,null,null,null,null,"Black Meter","Colour Meter"]
[1,"D0896022","CL UNIT:I/M TRANS (D0896021)",1,null,200000,null,null,{"$f":"IF($L$15=\"Prints\",IF(O21=\"Both\",($L$13-G21)+($L$14-H21),IF(O21=\"Col\",($L$14-H21),IF(O21=\"-\",\"\",\"Error\"))),\n\nIF($L$15=\"Developments\",IF(O21=\"Both\",$L$13-G21,IF(O21=\"Col\",($L$14-H21)/3,IF(O21=\"-\",\"\",\"Error\"))),\"Dev/Print Error\"))","v":0},{"$f":"IF(B21=\"\",\"\",IF(Q21>=1,1,Q21))","v":0},null,{"$f":"IF(B21=\"\",\"\",$K21*$J21*D21)","v":0},null,null,"Both",null,{"$f":"I21/F21","v":0},{"$f":"IF(L15=\"Prints\",\n                    IF(O21=\"All\",(L13-G21)+(L14-H21),\n\"\"),\n\"\")","v":""},{"$f":"IF(VLOOKUP(B21,Pricing,5,FALSE)=\"\",B21,VLOOKUP(B21,Pricing,5,FALSE))","v":{"$error":"#N/A"}}]
[2,"D0893070","DEV UNIT:K MPC45/5501",1,"K",600000,null,null,{"$f":"IF($L$15=\"Prints\",IF(O22=\"Both\",($L$13-G22)+($L$14-H22),IF(O22=\"Col\",($L$14-H22),IF(O22=\"-\",\"\",\"Error\"))),\n\nIF($L$15=\"Developments\",IF(O22=\"Both\",$L$13-G22,IF(O22=\"Col\",($L$14-H22)/3,IF(O22=\"-\",\"\",\"Error\"))),\"Dev/Print Error\"))","v":0},{"$f":"IF(B22=\"\",\"\",IF(Q22>=1,1,Q22))","v":0},null,0,null,null,"Both",null,{"$f":"I22/F22","v":0},null,{"$error":"#N/A"}]
[3,"D0892250","DRUM UNIT:BK MPC45/5501",1,"K",200000,null,null,0,0,null,0,null,null,"Both",null,0,null,{"$error":"#N/A"}]
[4,"D0892251","DRUM UNIT:CMY MPC45/5501",1,"C",120000,null,null,0,0,null,0,null,null,"Col",null,0,null,{"$error":"#N/A"}]
[null,"D0892251","DRUM UNIT:CMY MPC45/5501",1,"M",120000,null,null,0,0,null,0,null,null,"Col",null,0,null,{"$error":"#N/A"}]
[5,"D0892251","DRUM UNIT:CMY MPC45/5501",1,"Y",120000,null,null,0,0,null,0,null,null,"Col",null,0,null,{"$error":"#N/A"}]
[6,"AE010079","HOT ROLLER MPC45/5501",1,null,300000,null,null,0,0,null,0,null,null,"Both",null,0,null,{"$error":"#N/A"}]
[7,"D0896204","P/TRAN ROLLER UNIT(D0896203)",1,null,360000,null,null,0,0,null,0,null,null,"Both",null,0,null,{"$error":"#N/A"}]
[null,"AE020183","PRESSURE ROLLER MP45/5501",1,null,300000,null,null,0,0,null,0,null,null,"Both",null,0,null,{"$error":"#N/A"}]
[null,"D0294169","PROOF MATERIAL:FUS MPC4/5000",1,null,300000,null,null,0,0,null,0,null,null,"Both",null,0,null,{"$error":"#N/A"}]
[null,"D0896011","TR/UNIT:I/M TRAN CL(D0896010)",1,null,600000,null,null,0,0,null,0,null,null,"Both",null,0,null,{"$error":"#N/A"}]
[null,null,null,null,null,null,null,null,"","",null,"",null,null,"-",null,{"$error":"#VALUE!"},null,{"$error":"#N/A"}]
[null,null,null,null,null,null,null,null,"","",null,"",null,null,"-",null,{"$error":"#VALUE!"},null,{"$error":"#N/A"}]
[null,null,null,null,null,null,null,null,"","",null,"",null,null,"-",null,{"$error":"#VALUE!"},null,{"$error":"#N/A"}]
[null,null,null,null,null,null,null,null,"","",null,"",null,null,"-",null,{"$error":"#VALUE!"},null,{"$error":"#N/A"}]
[null,null,null,null,null,null,null,null,"","",null,"",null,null,"-",null,{"$error":"#VALUE!"},null,{"$error":"#N/A"}]
[null,null,null,null,null,null,null,null,"","",null,"",null,null,"-",null,{"$error":"#VALUE!"},null,{"$error":"#N/A"}]
[null,null,null,null,null,null,null,null,"","",null,"",null,null,"-",null,{"$error":"#VALUE!"},null,{"$error":"#N/A"}]
[null,null,null,null,null,null,null,null,"","",null,"",null,null,"-",null,{"$error":"#VALUE!"},null,{"$error":"#N/A"}]
[null,null,null,null,null,null,null,null,"","",null,"",null,null,"-",null,{"$error":"#VALUE!"},null,{"$error":"#N/A"}]
[null,null,null,null,null,null,null,null,"","",null,"",null,null,"-",null,{"$error":"#VALUE!"},null,{"$error":"#N/A"}]
[null,null,null,null,null,null,null,null,"","",null,"",null,null,"-",null,{"$error":"#VALUE!"},null,{"$error":"#N/A"}]
[null,null,null,null,null,null,null,null,"","",null,"",null,null,"-",null,{"$error":"#VALUE!"},null,{"$error":"#N/A"}]
[null,null,null,null,null,null,null,null,"","",null,"",null,null,"-",null,{"$error":"#VALUE!"},null,{"$error":"#N/A"}]
[null,null,null,null,null,null,null,null,"","",null,"",null,null,"-",null,{"$error":"#VALUE!"},null,{"$error":"#N/A"}]
[null,null,null,null,null,null,null,null,"","",null,"",null,null,"-",null,{"$error":"#VALUE!"},null,{"$error":"#N/A"}]
[null,null,null,null,null,null,null,null,"","",null,"",null,null,"-",null,{"$error":"#VALUE!"},null,{"$error":"#N/A"}]
[8,null,null,null,null,null,null,null,"","",null,"",null,null,"-",null,{"$error":"#VALUE!"},null,{"$error":"#N/A"}]
[null,null,null,null,null,null,null,null,"","",null,"",null,null,"-",null,{"$error":"#VALUE!"},null,{"$error":"#N/A"}]
[null,null,null,null,null,null,null,null,"","",null,"",null,null,"-",null,{"$error":"#VALUE!"},null,{"$error":"#N/A"}]
[null,null,null,null,null,null,null,null,"","",null,"",null,null,"-",null,{"$error":"#VALUE!"},null,{"$error":"#N/A"}]
[null,null,null,null,null,null,null,null,"","",null,"",null,null,"-",null,{"$error":"#VALUE!"},null,{"$error":"#N/A"}]
[9,null,null,null,null,null,null,null,"","",null,"",null,null,"-",null,{"$error":"#VALUE!"},null,{"$error":"#N/A"}]
[10,null,null,null,null,null,null,null,"","",null,"",null,null,"-",null,{"$error":"#VALUE!"},null,{"$error":"#N/A"}]
[11,null,null,null,null,null,null,null,"","",null,"",null,null,"-",null,{"$error":"#VALUE!"},null,{"$error":"#N/A"}]
[null,null,null,null,null,null,null,null,"","",null,"",null,null,"-",null,{"$error":"#VALUE!"},null,{"$error":"#N/A"}]
[null,null,null,null,null,null,null,null,"","",null,"",null,null,"-",null,{"$error":"#VALUE!"},null,{"$error":"#N/A"}]
[null,null,null,null,null,null,null,null,"","",null,"",null,null,"-",null,{"$error":"#VALUE!"},null,{"$error":"#N/A"}]
[null,null,null,null,null,null,null,null,"","",null,"",null,null,"-",null,{"$error":"#VALUE!"},null,{"$error":"#N/A"}]
[null,null,null,null,null,null,null,null,"","",null,"",null,null,"-",null,{"$error":"#VALUE!"},null,{"$error":"#N/A"}]
[null,null,null,null,null,null,null,null,"","",null,"",null,null,"-",null,{"$error":"#VALUE!"},null,{"$error":"#N/A"}]
[null,null,null,null,null,null,null,null,"","",null,"",null,null,"-",null,{"$error":"#VALUE!"},null,{"$error":"#N/A"}]
[null,null,null,null,null,null,null,null,"","",null,"",null,null,"-",null,{"$error":"#VALUE!"},null,{"$error":"#N/A"}]
[null,null,null,null,null,null,null,null,"","",null,"",null,null,"-",null,{"$error":"#VALUE!"},null,{"$error":"#N/A"}]
[null,null,null,null,null,null,null,null,"","",null,"",null,null,"-",null,{"$error":"#VALUE!"},null,{"$error":"#N/A"}]
[null,null,null,null,null,null,null,null,"","",null,"",null,null,"-",null,{"$error":"#VALUE!"},null,{"$error":"#N/A"}]
[null,null,null,null,null,null,null,null,"","",null,"",null,null,"-",null,{"$error":"#VALUE!"},null,{"$error":"#N/A"}]
[null,null,null,null,null,null,null,null,"","",null,"",null,null,"-",null,{"$error":"#VALUE!"},null,{"$error":"#N/A"}]
[12,null,null,null,null,null,null,null,"","",null,"",null,null,"-",null,{"$error":"#VALUE!"},null,{"$error":"#N/A"}]
[13,null,null,null,null,null,null,null,"","",null,"",null,null,"-",null,{"$error":"#VALUE!"},null,{"$error":"#N/A"}]
[null,"Additional Notes:",null,null,null,null,null,null,null,null,"Total Parts:    ",{"$f":"SUM(L21:L70)","v":0},null,null,"-"]
[null,null,null,null,null,null,"Labour ",0,{"$f":"\"@ R\"& Data!C11 &\" p/h\"","v":"@ R200 p/h"},null,"Total Labour:    ",{"$f":"H72*Data!C11","v":0},null,null,"-"]
[null,null,null,null,null,null,null,null,null,null,"Sub Total:    ",{"$f":"L71+L72","v":0}]
[null,null,null,null,null,null,null,null,null,null,"VAT (15%):    ",{"$f":"L73*0.15","v":0}]
[null,null,null,null,null,null,null,null,null,null,"TOTAL:    ",{"$f":"L74+L73","v":0}]
[]
[]
[]
[]
[]
[null,"Quote prepared by:",null,null,null,null,null,"Quote accepted by:"]
[]
[]
[null,"Name:   ",null,null,null,null,null,"Name:   "]
[]
[]
[null,"Signature:",null,null,null,null,null,"Signature:"]
[]
[]
[null,"Date:",null,null,null,null,null,"Date:"]
[null,null,null,null,null,null,null,null,null,null,null,{"$f":"INDEX!H44","v":"(ver 2019.07.03)"}]

{"sheet":"AF3260C & AFC5560","index":30,"n_rows":78,"n_cols":19,"rows_kept":78,"cut":false,"hidden":true,"merged":[[2,1,2,2],[5,2,5,11],[6,2,6,11],[8,6,8,11],[9,6,9,11],[18,11,19,11],[58,1,65,2],[13,18,18,19],[18,1,19,1],[18,2,19,2],[18,3,19,3],[18,4,19,4],[18,5,19,5],[18,6,18,7],[18,8,19,8],[18,9,19,9],[18,10,19,10],[13,2,13,5]]}
[null,null,null,null,null,null,null,"Service Manager: ",null,null,{"$f":"Data!C5","v":"Danie Fourie"}]
[null,null,null,null,null,null,null,"Email:",null,null,{"$f":"Data!C7","v":"danief@nashualim.co.za"}]
[null,{"$f":"Data!C3","v":"Nashua Limpopo"},null,null,null,null,null,"Fax:",null,null,{"$f":"Data!C9","v":"015 590 0319"}]
[]
[]
[null,"Date: "]
[null,"Customer: "]
[]
[null,null,"Previous Servicing Franchise:   "]
[null,null,"Attention Technical Manager:    "]
[]
[]
[null,"Model:   ","\"COMPLETE!!!\"",null,null,null,null,null,null,null,"Black Meter:   "]
[null,"Serial Number:   ",null,null,null,null,null,null,null,null,"Colour Meter:   ",null,null,null,null,null,null,null,"Copy FTP pricing into Sheet1. Name area \"Pricing\". Superceded numbers"]
[null,null,null,null,null,null,null,null,null,null,"Accounting Method:   ","Prints"]
[null,"CONSUMABLES:   ","Select from List!"]
[null,null,{"$f":"IF(C13=\"AF3260C / AFC5560\",\"This quote includes the cost for 4 PCU's and their relevent parts\",\"\")","v":""}]
[null,null,null,null,null,null,null,null,null,null,null,null,null,null,"Calc Type"]
[null,"Part Number","Description","Qty","Process","Yield","Last Replacement Date",null,"Prints \nper part","Part usage (% of Yield)","FTP Price\n(Rand)","Pro rate Charge",null,null,"All / Col",null,"% of Meter readings"]
[null,null,null,null,null,null,"Black Meter","Colour Meter"]
[1,"B1329510","OPC Drum",1,"K",300000,null,null,{"$f":"IF($L$15=\"Prints\",IF(O21=\"Both\",($L$13-G21)+($L$14-H21),IF(O21=\"Col\",($L$14-H21),IF(O21=\"-\",\"\",\"Error\"))),\n\nIF($L$15=\"Developments\",IF(O21=\"Both\",$L$13-G21,IF(O21=\"Col\",($L$14-H21)/3,IF(O21=\"-\",\"\",\"Error\"))),\"Dev/Print Error\"))","v":0},{"$f":"IF(B21=\"\",\"\",IF(Q21>=1,1,Q21))","v":0},null,{"$f":"IF(B21=\"\",\"\",$K21*$J21*D21)","v":0},null,null,"Both",null,{"$f":"I21/F21","v":0},{"$f":"IF(L15=\"Prints\",\n                    IF(O21=\"All\",(L13-G21)+(L14-H21),\n\"\"),\n\"\")","v":""},{"$f":"IF(VLOOKUP(B21,Pricing,5,FALSE)=\"\",B21,VLOOKUP(B21,Pricing,5,FALSE))","v":{"$error":"#N/A"}}]
[2,"B1329510","OPC Drum",1,"C",300000,null,null,{"$f":"IF($L$15=\"Prints\",IF(O22=\"Both\",($L$13-G22)+($L$14-H22),IF(O22=\"Col\",($L$14-H22),IF(O22=\"-\",\"\",\"Error\"))),\n\nIF($L$15=\"Developments\",IF(O22=\"Both\",$L$13-G22,IF(O22=\"Col\",($L$14-H22)/3,IF(O22=\"-\",\"\",\"Error\"))),\"Dev/Print Error\"))","v":0},{"$f":"IF(B22=\"\",\"\",IF(Q22>=1,1,Q22))","v":0},null,0,null,null,"Col",null,{"$f":"I22/F22","v":0},null,{"$error":"#N/A"}]
[3,"B1329510","OPC Drum",1,"M",300000,null,null,0,0,null,0,null,null,"Col",null,0,null,{"$error":"#N/A"}]
[4,"B1329510","OPC Drum",1,"Y",300000,null,null,0,0,null,0,null,null,"Col",null,0,null,{"$error":"#N/A"}]
[null,"B1322271","Charge Roller Unit",1,"K",150000,null,null,0,0,null,0,null,null,"Both",null,0,null,{"$error":"#N/A"}]
[5,"B1322271","Charge Roller Unit",1,"C",150000,null,null,0,0,null,0,null,null,"Both",null,0,null,{"$error":"#N/A"}]
[6,"B1322271","Charge Roller Unit",1,"M",150000,null,null,0,0,null,0,null,null,"Both",null,0,null,{"$error":"#N/A"}]
[7,"B1322271","Charge Roller Unit",1,"Y",150000,null,null,0,0,null,0,null,null,"Both",null,0,null,{"$error":"#N/A"}]
[null,"B1323560","Drum Cleaning Blade",1,"K",150000,null,null,0,0,null,0,null,null,"Both",null,0,null,{"$error":"#N/A"}]
[null,"B1323560","Drum Cleaning Blade",1,"C",150000,null,null,0,0,null,0,null,null,"Both",null,0,null,{"$error":"#N/A"}]
[null,"B1323560","Drum Cleaning Blade",1,"M",150000,null,null,0,0,null,0,null,null,"Both",null,0,null,{"$error":"#N/A"}]
[null,"B1323560","Drum Cleaning Blade",1,"Y",150000,null,null,0,0,null,0,null,null,"Both",null,0,null,{"$error":"#N/A"}]
[null,"B1323573","Lubricant Bar",1,"K",150000,null,null,0,0,null,0,null,null,"Both",null,0,null,{"$error":"#N/A"}]
[null,"B1323573","Lubricant Bar",1,"C",150000,null,null,0,0,null,0,null,null,"Both",null,0,null,{"$error":"#N/A"}]
[null,"B1323573","Lubricant Bar",1,"M",150000,null,null,0,0,null,0,null,null,"Both",null,0,null,{"$error":"#N/A"}]
[null,"B1323573","Lubricant Bar",1,"Y",150000,null,null,0,0,null,0,null,null,"Both",null,0,null,{"$error":"#N/A"}]
[null,"B1323555","Drum Cleaning Brush Assy",1,"K",300000,null,null,0,0,null,0,null,null,"Both",null,0,null,{"$error":"#N/A"}]
[null,"B1323555","Drum Cleaning Brush Assy",1,"C",300000,null,null,0,0,null,0,null,null,"Both",null,0,null,{"$error":"#N/A"}]
[null,"B1323555","Drum Cleaning Brush Assy",1,"M",300000,null,null,0,0,null,0,null,null,"Both",null,0,null,{"$error":"#N/A"}]
[null,"B1323555","Drum Cleaning Brush Assy",1,"Y",300000,null,null,0,0,null,0,null,null,"Both",null,0,null,{"$error":"#N/A"}]
[null,"AE020155","Pressure Roller",1,null,60000,null,null,0,0,null,0,null,null,"Both",null,0,null,{"$error":"#N/A"}]
[null,"AE010061","Fusing Roller",1,null,60000,null,null,0,0,null,0,null,null,"Both",null,0,null,{"$error":"#N/A"}]
[null,"B1804108","Heat Roller",1,null,120000,null,null,0,0,null,0,null,null,"Both",null,0,null,{"$error":"#N/A"}]
[null,"B1804101","Fusing Belt",1,null,60000,null,null,0,0,null,0,null,null,"Both",null,0,null,{"$error":"#N/A"}]
[null,"B1803811","Transfer Belt Unit",1,null,1000000,null,null,0,0,null,0,null,null,"Both",null,0,null,{"$error":"#N/A"}]
[null,"B2423830","T/Belt Cleaning Unit",1,null,250000,null,null,0,0,null,0,null,null,"Both",null,0,null,{"$error":"#N/A"}]
[null,null,null,null,null,null,null,null,"","",null,"",null,null,"-",null,{"$error":"#VALUE!"},null,{"$error":"#N/A"}]
[8,null,null,null,null,null,null,null,"","",null,"",null,null,"-",null,{"$error":"#VALUE!"},null,{"$error":"#N/A"}]
[null,null,null,null,null,null,null,null,"","",null,"",null,null,"-",null,{"$error":"#VALUE!"},null,{"$error":"#N/A"}]
[null,null,null,null,null,null,null,null,"","",null,"",null,null,"-",null,{"$error":"#VALUE!"},null,{"$error":"#N/A"}]
[null,null,null,null,null,null,null,null,"","",null,"",null,null,"-",null,{"$error":"#VALUE!"},null,{"$error":"#N/A"}]
[null,null,null,null,null,null,null,null,"","",null,"",null,null,"-",null,{"$error":"#VALUE!"},null,{"$error":"#N/A"}]
[9,null,null,null,null,null,null,null,"","",null,"",null,null,"-",null,{"$error":"#VALUE!"},null,{"$error":"#N/A"}]
[10,null,null,null,null,null,null,null,"","",null,"",null,null,"-",null,{"$error":"#VALUE!"},null,{"$error":"#N/A"}]
[11,null,null,null,null,null,null,null,"","",null,"",null,null,"-",null,{"$error":"#VALUE!"},null,{"$error":"#N/A"}]
[12,null,null,null,null,null,null,null,"","",null,"",null,null,"-",null,{"$error":"#VALUE!"},null,{"$error":"#N/A"}]
[13,null,null,null,null,null,null,null,"","",null,"",null,null,"-",null,{"$error":"#VALUE!"},null,{"$error":"#N/A"}]
[null,"Additional Notes:",null,null,null,null,null,null,null,null,"Total Parts:    ",{"$f":"SUM(L21:L57)","v":0}]
[null,null,null,null,null,null,"Labour ",0,{"$f":"\"@ R\"& Data!C11 &\" p/h\"","v":"@ R200 p/h"},null,"Total Labour:    ",{"$f":"H59*Data!C11","v":0}]
[null,null,null,null,null,null,null,null,null,null,"Sub Total:    ",{"$f":"L58+L59","v":0}]
[null,null,null,null,null,null,null,null,null,null,"VAT (14%):    ",{"$f":"L60*0.14","v":0}]
[null,null,null,null,null,null,null,null,null,null,"TOTAL:    ",{"$f":"L61+L60","v":0}]
[]
[]
[]
[]
[]
[null,"Quote prepared by:",null,null,null,null,null,"Quote accepted by:"]
[]
[]
[null,"Name:   ",null,null,null,null,null,"Name:   "]
[]
[]
[null,"Signature:",null,null,null,null,null,"Signature:"]
[]
[]
[null,"Date:",null,null,null,null,null,"Date:"]
[null,null,null,null,null,null,null,null,null,null,null,{"$f":"INDEX!H44","v":"(ver 2019.07.03)"}]

{"sheet":"MPC4502 & 5502","index":31,"n_rows":91,"n_cols":19,"rows_kept":91,"cut":false,"hidden":false,"merged":[[18,11,19,11],[71,1,78,2],[13,18,18,19],[18,1,19,1],[18,2,19,2],[18,3,19,3],[18,4,19,4],[18,5,19,5],[18,6,18,7],[18,8,19,8],[18,9,19,9],[18,10,19,10],[13,2,13,5],[2,1,2,2],[5,2,5,11],[6,2,6,11],[8,6,8,11],[9,6,9,11]]}
[null,null,null,null,null,null,null,"Service Manager: ",null,null,{"$f":"Data!C5","v":"Danie Fourie"}]
[null,null,null,null,null,null,null,"Email:",null,null,{"$f":"Data!C7","v":"danief@nashualim.co.za"}]
[null,{"$f":"Data!C3","v":"Nashua Limpopo"},null,null,null,null,null,"Fax:",null,null,{"$f":"Data!C9","v":"015 590 0319"}]
[]
[]
[null,"Date: "]
[null,"Customer: "]
[]
[null,null,"Previous Servicing Franchise:   "]
[null,null,"Attention Technical Manager:    "]
[]
[]
[null,"Model:   ","\"COMPLETE!!!\"",null,null,null,null,null,null,null,"Black Meter:   "]
[null,"Serial Number:   ",null,null,null,null,null,null,null,null,"Colour Meter:   ",null,null,null,null,null,null,null,"Copy FTP pricing into Sheet1. Name area \"Pricing\". Superceded numbers"]
[null,null,null,null,null,null,null,null,null,null,"Accounting Method:   ","Prints"]
[null,"CONSUMABLES:   ","Select from List!"]
[null,null,{"$f":"IF(C13=\"AF3260C / AFC5560\",\"This quote includes the cost for 4 PCU's and their relevent parts\",\"\")","v":""}]
[null,null,null,null,null,null,null,null,null,null,null,null,null,null,"Calc Type"]
[null,"Part Number","Description","Qty","Process","Yield","Last Replacement Date",null,"Prints \nper part","Part usage (% of Yield)","FTP Price\n(Rand)","Pro rate Charge",null,null,"All / Col",null,"% of Meter readings"]
[null,null,null,null,null,null,"Black Meter","Colour Meter"]
[1,"D1442253","DRUM UNIT CMY (D1442252)",1,"C",150000,null,null,{"$f":"IF($L$15=\"Prints\",IF(O21=\"Both\",($L$13-G21)+($L$14-H21),IF(O21=\"Col\",($L$14-H21),IF(O21=\"-\",\"\",\"Error\"))),\n\nIF($L$15=\"Developments\",IF(O21=\"Both\",$L$13-G21,IF(O21=\"Col\",($L$14-H21)/3,IF(O21=\"-\",\"\",\"Error\"))),\"Dev/Print Error\"))","v":0},{"$f":"IF(B21=\"\",\"\",IF(Q21>=1,1,Q21))","v":0},null,{"$f":"IF(B21=\"\",\"\",$K21*$J21*D21)","v":0},null,null,"Col",null,{"$f":"I21/F21","v":0},{"$f":"IF(L15=\"Prints\",\n                    IF(O21=\"All\",(L13-G21)+(L14-H21),\n\"\"),\n\"\")","v":""},{"$f":"IF(VLOOKUP(B21,Pricing,5,FALSE)=\"\",B21,VLOOKUP(B21,Pricing,5,FALSE))","v":{"$error":"#N/A"}}]
[2,"D1442253","DRUM UNIT CMY (D1442252)",1,"M",150000,null,null,{"$f":"IF($L$15=\"Prints\",IF(O22=\"Both\",($L$13-G22)+($L$14-H22),IF(O22=\"Col\",($L$14-H22),IF(O22=\"-\",\"\",\"Error\"))),\n\nIF($L$15=\"Developments\",IF(O22=\"Both\",$L$13-G22,IF(O22=\"Col\",($L$14-H22)/3,IF(O22=\"-\",\"\",\"Error\"))),\"Dev/Print Error\"))","v":0},{"$f":"IF(B22=\"\",\"\",IF(Q22>=1,1,Q22))","v":0},null,0,null,null,"Col",null,{"$f":"I22/F22","v":0},null,{"$error":"#N/A"}]
[3,"D1442253","DRUM UNIT CMY (D1442252)",1,"Y",150000,null,null,0,0,null,0,null,null,"Col",null,0,null,{"$error":"#N/A"}]
[4,"D1442251","DRUM UNIT K (D1442250)",1,"K",300000,null,null,0,0,null,0,null,null,"Both",null,0,null,{"$error":"#N/A"}]
[null,"D1440622","ITB CLEANING UNIT(D1440621)",1,null,300000,null,null,0,0,null,0,null,null,"Both",null,0,null,{"$error":"#N/A"}]
[5,"D1446012","ITB UNIT (D1446011)",1,null,600000,null,null,0,0,null,0,null,null,"Both",null,0,null,{"$error":"#N/A"}]
[6,"D1444057","PRESSURE ROLLER",1,null,300000,null,null,0,0,null,0,null,null,"Both",null,0,null,{"$error":"#N/A"}]
[7,"D1446207","PTR UNIT (D1446206)",1,null,300000,null,null,0,0,null,0,null,null,"Both",null,0,null,{"$error":"#N/A"}]
[null,"D1444273","SLEEVE:FUS:EU:ACCESS(D1444046)",1,null,300000,null,null,0,0,null,0,null,null,"Both",null,0,null,{"$error":"#N/A"}]
[null,null,null,null,null,null,null,null,"","",null,"",null,null,"-",null,{"$error":"#VALUE!"},null,{"$error":"#N/A"}]
[null,null,null,null,null,null,null,null,"","",null,"",null,null,"-",null,{"$error":"#VALUE!"},null,{"$error":"#N/A"}]
[null,null,null,null,null,null,null,null,"","",null,"",null,null,"-",null,{"$error":"#VALUE!"},null,{"$error":"#N/A"}]
[null,null,null,null,null,null,null,null,"","",null,"",null,null,"-",null,{"$error":"#VALUE!"},null,{"$error":"#N/A"}]
[null,null,null,null,null,null,null,null,"","",null,"",null,null,"-",null,{"$error":"#VALUE!"},null,{"$error":"#N/A"}]
[null,null,null,null,null,null,null,null,"","",null,"",null,null,"-",null,{"$error":"#VALUE!"},null,{"$error":"#N/A"}]
[null,null,null,null,null,null,null,null,"","",null,"",null,null,"-",null,{"$error":"#VALUE!"},null,{"$error":"#N/A"}]
[null,null,null,null,null,null,null,null,"","",null,"",null,null,"-",null,{"$error":"#VALUE!"},null,{"$error":"#N/A"}]
[null,null,null,null,null,null,null,null,"","",null,"",null,null,"-",null,{"$error":"#VALUE!"},null,{"$error":"#N/A"}]
[null,null,null,null,null,null,null,null,"","",null,"",null,null,"-",null,{"$error":"#VALUE!"},null,{"$error":"#N/A"}]
[null,null,null,null,null,null,null,null,"","",null,"",null,null,"-",null,{"$error":"#VALUE!"},null,{"$error":"#N/A"}]
[null,null,null,null,null,null,null,null,"","",null,"",null,null,"-",null,{"$error":"#VALUE!"},null,{"$error":"#N/A"}]
[null,null,null,null,null,null,null,null,"","",null,"",null,null,"-",null,{"$error":"#VALUE!"},null,{"$error":"#N/A"}]
[null,null,null,null,null,null,null,null,"","",null,"",null,null,"-",null,{"$error":"#VALUE!"},null,{"$error":"#N/A"}]
[null,null,null,null,null,null,null,null,"","",null,"",null,null,"-",null,{"$error":"#VALUE!"},null,{"$error":"#N/A"}]
[null,null,null,null,null,null,null,null,"","",null,"",null,null,"-",null,{"$error":"#VALUE!"},null,{"$error":"#N/A"}]
[null,null,null,null,null,null,null,null,"","",null,"",null,null,"-",null,{"$error":"#VALUE!"},null,{"$error":"#N/A"}]
[null,null,null,null,null,null,null,null,"","",null,"",null,null,"-",null,{"$error":"#VALUE!"},null,{"$error":"#N/A"}]
[8,null,null,null,null,null,null,null,"","",null,"",null,null,"-",null,{"$error":"#VALUE!"},null,{"$error":"#N/A"}]
[null,null,null,null,null,null,null,null,"","",null,"",null,null,"-",null,{"$error":"#VALUE!"},null,{"$error":"#N/A"}]
[null,null,null,null,null,null,null,null,"","",null,"",null,null,"-",null,{"$error":"#VALUE!"},null,{"$error":"#N/A"}]
[null,null,null,null,null,null,null,null,"","",null,"",null,null,"-",null,{"$error":"#VALUE!"},null,{"$error":"#N/A"}]
[null,null,null,null,null,null,null,null,"","",null,"",null,null,"-",null,{"$error":"#VALUE!"},null,{"$error":"#N/A"}]
[9,null,null,null,null,null,null,null,"","",null,"",null,null,"-",null,{"$error":"#VALUE!"},null,{"$error":"#N/A"}]
[10,null,null,null,null,null,null,null,"","",null,"",null,null,"-",null,{"$error":"#VALUE!"},null,{"$error":"#N/A"}]
[11,null,null,null,null,null,null,null,"","",null,"",null,null,"-",null,{"$error":"#VALUE!"},null,{"$error":"#N/A"}]
[null,null,null,null,null,null,null,null,"","",null,"",null,null,"-",null,{"$error":"#VALUE!"},null,{"$error":"#N/A"}]
[null,null,null,null,null,null,null,null,"","",null,"",null,null,"-",null,{"$error":"#VALUE!"},null,{"$error":"#N/A"}]
[null,null,null,null,null,null,null,null,"","",null,"",null,null,"-",null,{"$error":"#VALUE!"},null,{"$error":"#N/A"}]
[null,null,null,null,null,null,null,null,"","",null,"",null,null,"-",null,{"$error":"#VALUE!"},null,{"$error":"#N/A"}]
[null,null,null,null,null,null,null,null,"","",null,"",null,null,"-",null,{"$error":"#VALUE!"},null,{"$error":"#N/A"}]
[null,null,null,null,null,null,null,null,"","",null,"",null,null,"-",null,{"$error":"#VALUE!"},null,{"$error":"#N/A"}]
[null,null,null,null,null,null,null,null,"","",null,"",null,null,"-",null,{"$error":"#VALUE!"},null,{"$error":"#N/A"}]
[null,null,null,null,null,null,null,null,"","",null,"",null,null,"-",null,{"$error":"#VALUE!"},null,{"$error":"#N/A"}]
[null,null,null,null,null,null,null,null,"","",null,"",null,null,"-",null,{"$error":"#VALUE!"},null,{"$error":"#N/A"}]
[null,null,null,null,null,null,null,null,"","",null,"",null,null,"-",null,{"$error":"#VALUE!"},null,{"$error":"#N/A"}]
[null,null,null,null,null,null,null,null,"","",null,"",null,null,"-",null,{"$error":"#VALUE!"},null,{"$error":"#N/A"}]
[null,null,null,null,null,null,null,null,"","",null,"",null,null,"-",null,{"$error":"#VALUE!"},null,{"$error":"#N/A"}]
[null,null,null,null,null,null,null,null,"","",null,"",null,null,"-",null,{"$error":"#VALUE!"},null,{"$error":"#N/A"}]
[12,null,null,null,null,null,null,null,"","",null,"",null,null,"-",null,{"$error":"#VALUE!"},null,{"$error":"#N/A"}]
[13,null,null,null,null,null,null,null,"","",null,"",null,null,"-",null,{"$error":"#VALUE!"},null,{"$error":"#N/A"}]
[null,"Additional Notes:",null,null,null,null,null,null,null,null,"Total Parts:    ",{"$f":"SUM(L21:L70)","v":0},null,null,"-"]
[null,null,null,null,null,null,"Labour ",0,{"$f":"\"@ R\"& Data!C11 &\" p/h\"","v":"@ R200 p/h"},null,"Total Labour:    ",{"$f":"H72*Data!C11","v":0},null,null,"-"]
[null,null,null,null,null,null,null,null,null,null,"Sub Total:    ",{"$f":"L71+L72","v":0}]
[null,null,null,null,null,null,null,null,null,null,"VAT (15%):    ",{"$f":"L73*0.15","v":0}]
[null,null,null,null,null,null,null,null,null,null,"TOTAL:    ",{"$f":"L74+L73","v":0}]
[]
[]
[]
[]
[]
[null,"Quote prepared by:",null,null,null,null,null,"Quote accepted by:"]
[]
[]
[null,"Name:   ",null,null,null,null,null,"Name:   "]
[]
[]
[null,"Signature:",null,null,null,null,null,"Signature:"]
[]
[]
[null,"Date:",null,null,null,null,null,"Date:"]
[null,null,null,null,null,null,null,null,null,null,null,{"$f":"INDEX!H44","v":"(ver 2019.07.03)"}]

{"sheet":"MPC4503, 5503 & 6003","index":32,"n_rows":91,"n_cols":19,"rows_kept":91,"cut":false,"hidden":false,"merged":[[18,11,19,11],[71,1,78,2],[13,18,18,19],[18,1,19,1],[18,2,19,2],[18,3,19,3],[18,4,19,4],[18,5,19,5],[18,6,18,7],[18,8,19,8],[18,9,19,9],[18,10,19,10],[13,2,13,5],[2,1,2,2],[5,2,5,11],[6,2,6,11],[8,6,8,11],[9,6,9,11]]}
[null,null,null,null,null,null,null,"Service Manager: ",null,null,{"$f":"Data!C5","v":"Danie Fourie"}]
[null,null,null,null,null,null,null,"Email:",null,null,{"$f":"Data!C7","v":"danief@nashualim.co.za"}]
[null,{"$f":"Data!C3","v":"Nashua Limpopo"},null,null,null,null,null,"Fax:",null,null,{"$f":"Data!C9","v":"015 590 0319"}]
[]
[]
[null,"Date: "]
[null,"Customer: "]
[]
[null,null,"Previous Servicing Franchise:   "]
[null,null,"Attention Technical Manager:    "]
[]
[]
[null,"Model:   ","\"COMPLETE!!!\"",null,null,null,null,null,null,null,"Black Meter:   "]
[null,"Serial Number:   ",null,null,null,null,null,null,null,null,"Colour Meter:   ",null,null,null,null,null,null,null,"Copy FTP pricing into Sheet1. Name area \"Pricing\". Superceded numbers"]
[null,null,null,null,null,null,null,null,null,null,"Accounting Method:   ","Prints"]
[null,"CONSUMABLES:   ","Select from List!"]
[null,null,{"$f":"IF(C13=\"AF3260C / AFC5560\",\"This quote includes the cost for 4 PCU's and their relevent parts\",\"\")","v":""}]
[null,null,null,null,null,null,null,null,null,null,null,null,null,null,"Calc Type"]
[null,"Part Number","Description","Qty","Process","Yield","Last Replacement Date",null,"Prints \nper part","Part usage (% of Yield)","FTP Price\n(Rand)","Pro rate Charge",null,null,"All / Col",null,"% of Meter readings"]
[null,null,null,null,null,null,"Black Meter","Colour Meter"]
[1,"D2416141","BELT CLEAN:I/M TRANS(D1496141)",1,null,300000,null,null,{"$f":"IF($L$15=\"Prints\",IF(O21=\"Both\",($L$13-G21)+($L$14-H21),IF(O21=\"Col\",($L$14-H21),IF(O21=\"-\",\"\",\"Error\"))),\n\nIF($L$15=\"Developments\",IF(O21=\"Both\",$L$13-G21,IF(O21=\"Col\",($L$14-H21)/3,IF(O21=\"-\",\"\",\"Error\"))),\"Dev/Print Error\"))","v":0},{"$f":"IF(B21=\"\",\"\",IF(Q21>=1,1,Q21))","v":0},null,{"$f":"IF(B21=\"\",\"\",$K21*$J21*D21)","v":0},null,null,"Both",null,{"$f":"I21/F21","v":0},{"$f":"IF(L15=\"Prints\",\n                    IF(O21=\"All\",(L13-G21)+(L14-H21),\n\"\"),\n\"\")","v":""},{"$f":"IF(VLOOKUP(B21,Pricing,5,FALSE)=\"\",B21,VLOOKUP(B21,Pricing,5,FALSE))","v":{"$error":"#N/A"}}]
[2,"D1862228","PCU:BLCK:SERV PRT:EXP(D1862208",1,"K",400000,null,null,{"$f":"IF($L$15=\"Prints\",IF(O22=\"Both\",($L$13-G22)+($L$14-H22),IF(O22=\"Col\",($L$14-H22),IF(O22=\"-\",\"\",\"Error\"))),\n\nIF($L$15=\"Developments\",IF(O22=\"Both\",$L$13-G22,IF(O22=\"Col\",($L$14-H22)/3,IF(O22=\"-\",\"\",\"Error\"))),\"Dev/Print Error\"))","v":0},{"$f":"IF(B22=\"\",\"\",IF(Q22>=1,1,Q22))","v":0},null,0,null,null,"Both",null,{"$f":"I22/F22","v":0},null,{"$error":"#N/A"}]
[3,"D1862229","PCU:COL:SVS PRTS:EXP(D1862209)",1,"C",270000,null,null,0,0,null,0,null,null,"Col",null,0,null,{"$error":"#N/A"}]
[4,"D1862229","PCU:COL:SVS PRTS:EXP(D1862209)",1,"M",270000,null,null,0,0,null,0,null,null,"Col",null,0,null,{"$error":"#N/A"}]
[null,"D1862229","PCU:COL:SVS PRTS:EXP(D1862209)",1,"Y",270000,null,null,0,0,null,0,null,null,"Col",null,0,null,{"$error":"#N/A"}]
[5,"AE020247","PRESSURE ROLLER:DIA32:SVS PART",1,null,400000,null,null,0,0,null,0,null,null,"Both",null,0,null,{"$error":"#N/A"}]
[6,"D1464042","SLEEVE:FUS:EU/AP/CHN(D1464036)",1,null,400000,null,null,0,0,null,0,null,null,"Both",null,0,null,{"$error":"#N/A"}]
[7,"D1496212","TRANS ROLL:2ND:ASS(D1496211)",1,null,400000,null,null,0,0,null,0,null,null,"Both",null,0,null,{"$error":"#N/A"}]
[null,"D1496006","TRSF UNIT:INT/TRSF(D1496001/05",1,null,600000,null,null,0,0,null,0,null,null,"Both",null,0,null,{"$error":"#N/A"}]
[null,null,null,null,null,null,null,null,"","",null,"",null,null,"-",null,{"$error":"#VALUE!"},null,{"$error":"#N/A"}]
[null,null,null,null,null,null,null,null,"","",null,"",null,null,"-",null,{"$error":"#VALUE!"},null,{"$error":"#N/A"}]
[null,null,null,null,null,null,null,null,"","",null,"",null,null,"-",null,{"$error":"#VALUE!"},null,{"$error":"#N/A"}]
[null,null,null,null,null,null,null,null,"","",null,"",null,null,"-",null,{"$error":"#VALUE!"},null,{"$error":"#N/A"}]
[null,null,null,null,null,null,null,null,"","",null,"",null,null,"-",null,{"$error":"#VALUE!"},null,{"$error":"#N/A"}]
[null,null,null,null,null,null,null,null,"","",null,"",null,null,"-",null,{"$error":"#VALUE!"},null,{"$error":"#N/A"}]
[null,null,null,null,null,null,null,null,"","",null,"",null,null,"-",null,{"$error":"#VALUE!"},null,{"$error":"#N/A"}]
[null,null,null,null,null,null,null,null,"","",null,"",null,null,"-",null,{"$error":"#VALUE!"},null,{"$error":"#N/A"}]
[null,null,null,null,null,null,null,null,"","",null,"",null,null,"-",null,{"$error":"#VALUE!"},null,{"$error":"#N/A"}]
[null,null,null,null,null,null,null,null,"","",null,"",null,null,"-",null,{"$error":"#VALUE!"},null,{"$error":"#N/A"}]
[null,null,null,null,null,null,null,null,"","",null,"",null,null,"-",null,{"$error":"#VALUE!"},null,{"$error":"#N/A"}]
[null,null,null,null,null,null,null,null,"","",null,"",null,null,"-",null,{"$error":"#VALUE!"},null,{"$error":"#N/A"}]
[null,null,null,null,null,null,null,null,"","",null,"",null,null,"-",null,{"$error":"#VALUE!"},null,{"$error":"#N/A"}]
[null,null,null,null,null,null,null,null,"","",null,"",null,null,"-",null,{"$error":"#VALUE!"},null,{"$error":"#N/A"}]
[null,null,null,null,null,null,null,null,"","",null,"",null,null,"-",null,{"$error":"#VALUE!"},null,{"$error":"#N/A"}]
[null,null,null,null,null,null,null,null,"","",null,"",null,null,"-",null,{"$error":"#VALUE!"},null,{"$error":"#N/A"}]
[null,null,null,null,null,null,null,null,"","",null,"",null,null,"-",null,{"$error":"#VALUE!"},null,{"$error":"#N/A"}]
[null,null,null,null,null,null,null,null,"","",null,"",null,null,"-",null,{"$error":"#VALUE!"},null,{"$error":"#N/A"}]
[8,null,null,null,null,null,null,null,"","",null,"",null,null,"-",null,{"$error":"#VALUE!"},null,{"$error":"#N/A"}]
[null,null,null,null,null,null,null,null,"","",null,"",null,null,"-",null,{"$error":"#VALUE!"},null,{"$error":"#N/A"}]
[null,null,null,null,null,null,null,null,"","",null,"",null,null,"-",null,{"$error":"#VALUE!"},null,{"$error":"#N/A"}]
[null,null,null,null,null,null,null,null,"","",null,"",null,null,"-",null,{"$error":"#VALUE!"},null,{"$error":"#N/A"}]
[null,null,null,null,null,null,null,null,"","",null,"",null,null,"-",null,{"$error":"#VALUE!"},null,{"$error":"#N/A"}]
[9,null,null,null,null,null,null,null,"","",null,"",null,null,"-",null,{"$error":"#VALUE!"},null,{"$error":"#N/A"}]
[10,null,null,null,null,null,null,null,"","",null,"",null,null,"-",null,{"$error":"#VALUE!"},null,{"$error":"#N/A"}]
[11,null,null,null,null,null,null,null,"","",null,"",null,null,"-",null,{"$error":"#VALUE!"},null,{"$error":"#N/A"}]
[null,null,null,null,null,null,null,null,"","",null,"",null,null,"-",null,{"$error":"#VALUE!"},null,{"$error":"#N/A"}]
[null,null,null,null,null,null,null,null,"","",null,"",null,null,"-",null,{"$error":"#VALUE!"},null,{"$error":"#N/A"}]
[null,null,null,null,null,null,null,null,"","",null,"",null,null,"-",null,{"$error":"#VALUE!"},null,{"$error":"#N/A"}]
[null,null,null,null,null,null,null,null,"","",null,"",null,null,"-",null,{"$error":"#VALUE!"},null,{"$error":"#N/A"}]
[null,null,null,null,null,null,null,null,"","",null,"",null,null,"-",null,{"$error":"#VALUE!"},null,{"$error":"#N/A"}]
[null,null,null,null,null,null,null,null,"","",null,"",null,null,"-",null,{"$error":"#VALUE!"},null,{"$error":"#N/A"}]
[null,null,null,null,null,null,null,null,"","",null,"",null,null,"-",null,{"$error":"#VALUE!"},null,{"$error":"#N/A"}]
[null,null,null,null,null,null,null,null,"","",null,"",null,null,"-",null,{"$error":"#VALUE!"},null,{"$error":"#N/A"}]
[null,null,null,null,null,null,null,null,"","",null,"",null,null,"-",null,{"$error":"#VALUE!"},null,{"$error":"#N/A"}]
[null,null,null,null,null,null,null,null,"","",null,"",null,null,"-",null,{"$error":"#VALUE!"},null,{"$error":"#N/A"}]
[null,null,null,null,null,null,null,null,"","",null,"",null,null,"-",null,{"$error":"#VALUE!"},null,{"$error":"#N/A"}]
[null,null,null,null,null,null,null,null,"","",null,"",null,null,"-",null,{"$error":"#VALUE!"},null,{"$error":"#N/A"}]
[null,null,null,null,null,null,null,null,"","",null,"",null,null,"-",null,{"$error":"#VALUE!"},null,{"$error":"#N/A"}]
[12,null,null,null,null,null,null,null,"","",null,"",null,null,"-",null,{"$error":"#VALUE!"},null,{"$error":"#N/A"}]
[13,null,null,null,null,null,null,null,"","",null,"",null,null,"-",null,{"$error":"#VALUE!"},null,{"$error":"#N/A"}]
[null,"Additional Notes:",null,null,null,null,null,null,null,null,"Total Parts:    ",{"$f":"SUM(L21:L70)","v":0},null,null,"-"]
[null,null,null,null,null,null,"Labour ",0,{"$f":"\"@ R\"& Data!C11 &\" p/h\"","v":"@ R200 p/h"},null,"Total Labour:    ",{"$f":"H72*Data!C11","v":0},null,null,"-"]
[null,null,null,null,null,null,null,null,null,null,"Sub Total:    ",{"$f":"L71+L72","v":0}]
[null,null,null,null,null,null,null,null,null,null,"VAT (15%):    ",{"$f":"L73*0.15","v":0}]
[null,null,null,null,null,null,null,null,null,null,"TOTAL:    ",{"$f":"L74+L73","v":0}]
[]
[]
[]
[]
[]
[null,"Quote prepared by:",null,null,null,null,null,"Quote accepted by:"]
[]
[]
[null,"Name:   ",null,null,null,null,null,"Name:   "]
[]
[]
[null,"Signature:",null,null,null,null,null,"Signature:"]
[]
[]
[null,"Date:",null,null,null,null,null,"Date:"]
[null,null,null,null,null,null,null,null,null,null,null,{"$f":"INDEX!H44","v":"(ver 2019.07.03)"}]

{"sheet":"MPC4504, 5504, 6004","index":33,"n_rows":91,"n_cols":19,"rows_kept":91,"cut":false,"hidden":false,"merged":[[18,11,19,11],[71,1,78,2],[13,18,18,19],[18,1,19,1],[18,2,19,2],[18,3,19,3],[18,4,19,4],[18,5,19,5],[18,6,18,7],[18,8,19,8],[18,9,19,9],[18,10,19,10],[13,2,13,5],[2,1,2,2],[5,2,5,11],[6,2,6,11],[8,6,8,11],[9,6,9,11]]}
[null,null,null,null,null,null,null,"Service Manager: ",null,null,{"$f":"Data!C5","v":"Danie Fourie"}]
[null,null,null,null,null,null,null,"Email:",null,null,{"$f":"Data!C7","v":"danief@nashualim.co.za"}]
[null,{"$f":"Data!C3","v":"Nashua Limpopo"},null,null,null,null,null,"Fax:",null,null,{"$f":"Data!C9","v":"015 590 0319"}]
[]
[]
[null,"Date: "]
[null,"Customer: "]
[]
[null,null,"Previous Servicing Franchise:   "]
[null,null,"Attention Technical Manager:    "]
[]
[]
[null,"Model:   ","\"COMPLETE!!!\"",null,null,null,null,null,null,null,"Black Meter:   "]
[null,"Serial Number:   ",null,null,null,null,null,null,null,null,"Colour Meter:   ",null,null,null,null,null,null,null,"Copy FTP pricing into Sheet1. Name area \"Pricing\". Superceded numbers"]
[null,null,null,null,null,null,null,null,null,null,"Accounting Method:   ","Prints"]
[null,"CONSUMABLES:   ","Select from List!"]
[null,null,{"$f":"IF(C13=\"AF3260C / AFC5560\",\"This quote includes the cost for 4 PCU's and their relevent parts\",\"\")","v":""}]
[null,null,null,null,null,null,null,null,null,null,null,null,null,null,"Calc Type"]
[null,"Part Number","Description","Qty","Process","Yield","Last Replacement Date",null,"Prints \nper part","Part usage (% of Yield)","FTP Price\n(Rand)","Pro rate Charge",null,null,"All / Col",null,"% of Meter readings"]
[null,null,null,null,null,null,"Black Meter","Colour Meter"]
[1,"AE020238","PRESSURE ROLLER:DIA32",1,null,400000,null,null,{"$f":"IF($L$15=\"Prints\",IF(O21=\"Both\",($L$13-G21)+($L$14-H21),IF(O21=\"Col\",($L$14-H21),IF(O21=\"-\",\"\",\"Error\"))),\n\nIF($L$15=\"Developments\",IF(O21=\"Both\",$L$13-G21,IF(O21=\"Col\",($L$14-H21)/3,IF(O21=\"-\",\"\",\"Error\"))),\"Dev/Print Error\"))","v":0},{"$f":"IF(B21=\"\",\"\",IF(Q21>=1,1,Q21))","v":0},null,{"$f":"IF(B21=\"\",\"\",$K21*$J21*D21)","v":0},null,null,"Both",null,{"$f":"I21/F21","v":0},{"$f":"IF(L15=\"Prints\",\n                    IF(O21=\"All\",(L13-G21)+(L14-H21),\n\"\"),\n\"\")","v":""},{"$f":"IF(VLOOKUP(B21,Pricing,5,FALSE)=\"\",B21,VLOOKUP(B21,Pricing,5,FALSE))","v":{"$error":"#N/A"}}]
[2,"D2394042","SLEEVE:FUS:220-240V:C3004-3504",1,null,400000,null,null,{"$f":"IF($L$15=\"Prints\",IF(O22=\"Both\",($L$13-G22)+($L$14-H22),IF(O22=\"Col\",($L$14-H22),IF(O22=\"-\",\"\",\"Error\"))),\n\nIF($L$15=\"Developments\",IF(O22=\"Both\",$L$13-G22,IF(O22=\"Col\",($L$14-H22)/3,IF(O22=\"-\",\"\",\"Error\"))),\"Dev/Print Error\"))","v":0},{"$f":"IF(B22=\"\",\"\",IF(Q22>=1,1,Q22))","v":0},null,0,null,null,"Both",null,{"$f":"I22/F22","v":0},null,{"$error":"#N/A"}]
[3,"D2416141","BELT CLEAN:I/M TRANS(D1496141)",1,null,300000,null,null,0,0,null,0,null,null,"Both",null,0,null,{"$error":"#N/A"}]
[4,"D2416212","TRANSFER ROLLER:SECOND:ASSY",1,null,400000,null,null,0,0,null,0,null,null,"Both",null,0,null,{"$error":"#N/A"}]
[null,"D2392242","PCU:K:MPC3004-C6004:EXP",1,"K",400000,null,null,0,0,null,0,null,null,"Both",null,0,null,{"$error":"#N/A"}]
[5,"D2393061","DEVELOP UNIT:C:MPC3004-3504",1,"V",160000,null,null,0,0,null,0,null,null,"Col",null,0,null,{"$error":"#N/A"}]
[6,"D2393062","DEVELOP UNIT:M:MPC3004-3504",1,"M",160000,null,null,0,0,null,0,null,null,"Col",null,0,null,{"$error":"#N/A"}]
[7,"D2393063","DEVELOP UNIT:Y:MPC3004-3504",1,"Y",160000,null,null,0,0,null,0,null,null,"Col",null,0,null,{"$error":"#N/A"}]
[null,null,null,null,null,null,null,null,"","",null,"",null,null,"-",null,{"$error":"#VALUE!"},null,{"$error":"#N/A"}]
[null,null,null,null,null,null,null,null,"","",null,"",null,null,"-",null,{"$error":"#VALUE!"},null,{"$error":"#N/A"}]
[null,null,null,null,null,null,null,null,"","",null,"",null,null,"-",null,{"$error":"#VALUE!"},null,{"$error":"#N/A"}]
[null,null,null,null,null,null,null,null,"","",null,"",null,null,"-",null,{"$error":"#VALUE!"},null,{"$error":"#N/A"}]
[null,null,null,null,null,null,null,null,"","",null,"",null,null,"-",null,{"$error":"#VALUE!"},null,{"$error":"#N/A"}]
[null,null,null,null,null,null,null,null,"","",null,"",null,null,"-",null,{"$error":"#VALUE!"},null,{"$error":"#N/A"}]
[null,null,null,null,null,null,null,null,"","",null,"",null,null,"-",null,{"$error":"#VALUE!"},null,{"$error":"#N/A"}]
[null,null,null,null,null,null,null,null,"","",null,"",null,null,"-",null,{"$error":"#VALUE!"},null,{"$error":"#N/A"}]
[null,null,null,null,null,null,null,null,"","",null,"",null,null,"-",null,{"$error":"#VALUE!"},null,{"$error":"#N/A"}]
[null,null,null,null,null,null,null,null,"","",null,"",null,null,"-",null,{"$error":"#VALUE!"},null,{"$error":"#N/A"}]
[null,null,null,null,null,null,null,null,"","",null,"",null,null,"-",null,{"$error":"#VALUE!"},null,{"$error":"#N/A"}]
[null,null,null,null,null,null,null,null,"","",null,"",null,null,"-",null,{"$error":"#VALUE!"},null,{"$error":"#N/A"}]
[null,null,null,null,null,null,null,null,"","",null,"",null,null,"-",null,{"$error":"#VALUE!"},null,{"$error":"#N/A"}]
[null,null,null,null,null,null,null,null,"","",null,"",null,null,"-",null,{"$error":"#VALUE!"},null,{"$error":"#N/A"}]
[null,null,null,null,null,null,null,null,"","",null,"",null,null,"-",null,{"$error":"#VALUE!"},null,{"$error":"#N/A"}]
[null,null,null,null,null,null,null,null,"","",null,"",null,null,"-",null,{"$error":"#VALUE!"},null,{"$error":"#N/A"}]
[null,null,null,null,null,null,null,null,"","",null,"",null,null,"-",null,{"$error":"#VALUE!"},null,{"$error":"#N/A"}]
[null,null,null,null,null,null,null,null,"","",null,"",null,null,"-",null,{"$error":"#VALUE!"},null,{"$error":"#N/A"}]
[null,null,null,null,null,null,null,null,"","",null,"",null,null,"-",null,{"$error":"#VALUE!"},null,{"$error":"#N/A"}]
[8,null,null,null,null,null,null,null,"","",null,"",null,null,"-",null,{"$error":"#VALUE!"},null,{"$error":"#N/A"}]
[null,null,null,null,null,null,null,null,"","",null,"",null,null,"-",null,{"$error":"#VALUE!"},null,{"$error":"#N/A"}]
[null,null,null,null,null,null,null,null,"","",null,"",null,null,"-",null,{"$error":"#VALUE!"},null,{"$error":"#N/A"}]
[null,null,null,null,null,null,null,null,"","",null,"",null,null,"-",null,{"$error":"#VALUE!"},null,{"$error":"#N/A"}]
[null,null,null,null,null,null,null,null,"","",null,"",null,null,"-",null,{"$error":"#VALUE!"},null,{"$error":"#N/A"}]
[9,null,null,null,null,null,null,null,"","",null,"",null,null,"-",null,{"$error":"#VALUE!"},null,{"$error":"#N/A"}]
[10,null,null,null,null,null,null,null,"","",null,"",null,null,"-",null,{"$error":"#VALUE!"},null,{"$error":"#N/A"}]
[11,null,null,null,null,null,null,null,"","",null,"",null,null,"-",null,{"$error":"#VALUE!"},null,{"$error":"#N/A"}]
[null,null,null,null,null,null,null,null,"","",null,"",null,null,"-",null,{"$error":"#VALUE!"},null,{"$error":"#N/A"}]
[null,null,null,null,null,null,null,null,"","",null,"",null,null,"-",null,{"$error":"#VALUE!"},null,{"$error":"#N/A"}]
[null,null,null,null,null,null,null,null,"","",null,"",null,null,"-",null,{"$error":"#VALUE!"},null,{"$error":"#N/A"}]
[null,null,null,null,null,null,null,null,"","",null,"",null,null,"-",null,{"$error":"#VALUE!"},null,{"$error":"#N/A"}]
[null,null,null,null,null,null,null,null,"","",null,"",null,null,"-",null,{"$error":"#VALUE!"},null,{"$error":"#N/A"}]
[null,null,null,null,null,null,null,null,"","",null,"",null,null,"-",null,{"$error":"#VALUE!"},null,{"$error":"#N/A"}]
[null,null,null,null,null,null,null,null,"","",null,"",null,null,"-",null,{"$error":"#VALUE!"},null,{"$error":"#N/A"}]
[null,null,null,null,null,null,null,null,"","",null,"",null,null,"-",null,{"$error":"#VALUE!"},null,{"$error":"#N/A"}]
[null,null,null,null,null,null,null,null,"","",null,"",null,null,"-",null,{"$error":"#VALUE!"},null,{"$error":"#N/A"}]
[null,null,null,null,null,null,null,null,"","",null,"",null,null,"-",null,{"$error":"#VALUE!"},null,{"$error":"#N/A"}]
[null,null,null,null,null,null,null,null,"","",null,"",null,null,"-",null,{"$error":"#VALUE!"},null,{"$error":"#N/A"}]
[null,null,null,null,null,null,null,null,"","",null,"",null,null,"-",null,{"$error":"#VALUE!"},null,{"$error":"#N/A"}]
[null,null,null,null,null,null,null,null,"","",null,"",null,null,"-",null,{"$error":"#VALUE!"},null,{"$error":"#N/A"}]
[12,null,null,null,null,null,null,null,"","",null,"",null,null,"-",null,{"$error":"#VALUE!"},null,{"$error":"#N/A"}]
[13,null,null,null,null,null,null,null,"","",null,"",null,null,"-",null,{"$error":"#VALUE!"},null,{"$error":"#N/A"}]
[null,"Additional Notes:",null,null,null,null,null,null,null,null,"Total Parts:    ",{"$f":"SUM(L21:L70)","v":0},null,null,"-"]
[null,null,null,null,null,null,"Labour ",0,{"$f":"\"@ R\"& Data!C11 &\" p/h\"","v":"@ R200 p/h"},null,"Total Labour:    ",{"$f":"H72*Data!C11","v":0},null,null,"-"]
[null,null,null,null,null,null,null,null,null,null,"Sub Total:    ",{"$f":"L71+L72","v":0}]
[null,null,null,null,null,null,null,null,null,null,"VAT (15%):    ",{"$f":"L73*0.15","v":0}]
[null,null,null,null,null,null,null,null,null,null,"TOTAL:    ",{"$f":"L74+L73","v":0}]
[]
[]
[]
[]
[]
[null,"Quote prepared by:",null,null,null,null,null,"Quote accepted by:"]
[]
[]
[null,"Name:   ",null,null,null,null,null,"Name:   "]
[]
[]
[null,"Signature:",null,null,null,null,null,"Signature:"]
[]
[]
[null,"Date:",null,null,null,null,null,"Date:"]
[null,null,null,null,null,null,null,null,null,null,null,{"$f":"INDEX!H44","v":"(ver 2019.07.03)"}]

{"sheet":"MPC6000-7500","index":34,"n_rows":91,"n_cols":19,"rows_kept":91,"cut":false,"hidden":false,"merged":[[18,11,19,11],[71,1,78,2],[13,18,18,19],[18,1,19,1],[18,2,19,2],[18,3,19,3],[18,4,19,4],[18,5,19,5],[18,6,18,7],[18,8,19,8],[18,9,19,9],[18,10,19,10],[13,2,13,5],[2,1,2,2],[5,2,5,11],[6,2,6,11],[8,6,8,11],[9,6,9,11]]}
[null,null,null,null,null,null,null,"Service Manager: ",null,null,{"$f":"Data!C5","v":"Danie Fourie"}]
[null,null,null,null,null,null,null,"Email:",null,null,{"$f":"Data!C7","v":"danief@nashualim.co.za"}]
[null,{"$f":"Data!C3","v":"Nashua Limpopo"},null,null,null,null,null,"Fax:",null,null,{"$f":"Data!C9","v":"015 590 0319"}]
[]
[]
[null,"Date: "]
[null,"Customer: "]
[]
[null,null,"Previous Servicing Franchise:   "]
[null,null,"Attention Technical Manager:    "]
[]
[]
[null,"Model:   ","\"COMPLETE!!!\"",null,null,null,null,null,null,null,"Black Meter:   "]
[null,"Serial Number:   ",null,null,null,null,null,null,null,null,"Colour Meter:   ",null,null,null,null,null,null,null,"Copy FTP pricing into Sheet1. Name area \"Pricing\". Superceded numbers"]
[null,null,null,null,null,null,null,null,null,null,"Accounting Method:   ","Prints"]
[null,"CONSUMABLES:   ","Select from List!"]
[null,null,{"$f":"IF(C13=\"AF3260C / AFC5560\",\"This quote includes the cost for 4 PCU's and their relevent parts\",\"\")","v":""}]
[null,null,null,null,null,null,null,null,null,null,null,null,null,null,"Calc Type"]
[null,"Part Number","Description","Qty","Process","Yield","Last Replacement Date",null,"Prints \nper part","Part usage (% of Yield)","FTP Price\n(Rand)","Pro rate Charge",null,null,"All / Col",null,"% of Meter readings"]
[null,null,null,null,null,null,"Black Meter","Colour Meter"]
[1,"D0142335","BRUSH ROLLER:APPLY MPC60/7500",1,"K",400000,null,null,{"$f":"IF($L$15=\"Prints\",IF(O21=\"Both\",($L$13-G21)+($L$14-H21),IF(O21=\"Col\",($L$14-H21),IF(O21=\"-\",\"\",\"Error\"))),\n\nIF($L$15=\"Developments\",IF(O21=\"Both\",$L$13-G21,IF(O21=\"Col\",($L$14-H21)/3,IF(O21=\"-\",\"\",\"Error\"))),\"Dev/Print Error\"))","v":0},{"$f":"IF(B21=\"\",\"\",IF(Q21>=1,1,Q21))","v":0},null,{"$f":"IF(B21=\"\",\"\",$K21*$J21*D21)","v":0},null,null,"Both",null,{"$f":"I21/F21","v":0},{"$f":"IF(L15=\"Prints\",\n                    IF(O21=\"All\",(L13-G21)+(L14-H21),\n\"\"),\n\"\")","v":""},{"$f":"IF(VLOOKUP(B21,Pricing,5,FALSE)=\"\",B21,VLOOKUP(B21,Pricing,5,FALSE))","v":{"$error":"#N/A"}}]
[2,"D0142335","BRUSH ROLLER:APPLY MPC60/7500",1,"C",300000,null,null,{"$f":"IF($L$15=\"Prints\",IF(O22=\"Both\",($L$13-G22)+($L$14-H22),IF(O22=\"Col\",($L$14-H22),IF(O22=\"-\",\"\",\"Error\"))),\n\nIF($L$15=\"Developments\",IF(O22=\"Both\",$L$13-G22,IF(O22=\"Col\",($L$14-H22)/3,IF(O22=\"-\",\"\",\"Error\"))),\"Dev/Print Error\"))","v":0},{"$f":"IF(B22=\"\",\"\",IF(Q22>=1,1,Q22))","v":0},null,0,null,null,"Col",null,{"$f":"I22/F22","v":0},null,{"$error":"#N/A"}]
[3,"D0142335","BRUSH ROLLER:APPLY MPC60/7501",1,"M",300000,null,null,0,0,null,0,null,null,"Col",null,0,null,{"$error":"#N/A"}]
[4,"D0142335","BRUSH ROLLER:APPLY MPC60/7502",1,"Y",300000,null,null,0,0,null,0,null,null,"Col",null,0,null,{"$error":"#N/A"}]
[null,"D0146463","BRUSH:APPLY MPC60/7500",1,null,300000,null,null,0,0,null,0,null,null,"Both",null,0,null,{"$error":"#N/A"}]
[5,"D0142391","CHARGE CORONA UNIT MPC60/7500",1,"K",200000,null,null,0,0,null,0,null,null,"Both",null,0,null,{"$error":"#N/A"}]
[6,"D0142441","CHARGE ROLLER UNIT MPC60/7500",1,"C",150000,null,null,0,0,null,0,null,null,"Col",null,0,null,{"$error":"#N/A"}]
[7,"D0142441","CHARGE ROLLER UNIT MPC60/7500",1,"M",150000,null,null,0,0,null,0,null,null,"Col",null,0,null,{"$error":"#N/A"}]
[null,"D0142441","CHARGE ROLLER UNIT MPC60/7500",1,"Y",150000,null,null,0,0,null,0,null,null,"Col",null,0,null,{"$error":"#N/A"}]
[null,"D0146507","CLEANING BL:APPLY MPC60/7500",1,null,300000,null,null,0,0,null,0,null,null,"Both",null,0,null,{"$error":"#N/A"}]
[null,"D0142352","CLEANING BLADE MP60/7500",1,"K",200000,null,null,0,0,null,0,null,null,"Both",null,0,null,{"$error":"#N/A"}]
[null,"D0142352","CLEANING BLADE MP60/7500",1,"C",150000,null,null,0,0,null,0,null,null,"Col",null,0,null,{"$error":"#N/A"}]
[null,"D0142352","CLEANING BLADE MP60/7500",1,"M",150000,null,null,0,0,null,0,null,null,"Col",null,0,null,{"$error":"#N/A"}]
[null,"D0142352","CLEANING BLADE MP60/7500",1,"Y",150000,null,null,0,0,null,0,null,null,"Col",null,0,null,{"$error":"#N/A"}]
[null,"D0142368","CLEANING BLADE:ASS MP60/7500",1,"K",200000,null,null,0,0,null,0,null,null,"Both",null,0,null,{"$error":"#N/A"}]
[null,"D0142368","CLEANING BLADE:ASS MP60/7500",1,"C",150000,null,null,0,0,null,0,null,null,"Col",null,0,null,{"$error":"#N/A"}]
[null,"D0142368","CLEANING BLADE:ASS MP60/7500",1,"M",150000,null,null,0,0,null,0,null,null,"Col",null,0,null,{"$error":"#N/A"}]
[null,"D0142368","CLEANING BLADE:ASS MP60/7500",1,"Y",150000,null,null,0,0,null,0,null,null,"Col",null,0,null,{"$error":"#N/A"}]
[null,"D0146455","CLEANING BLADE:BELT MPC60/7500",1,null,300000,null,null,0,0,null,0,null,null,"Both",null,0,null,{"$error":"#N/A"}]
[null,"AE042080","CLEANING ROLLER:ASS'Y AF3228C",1,null,300000,null,null,0,0,null,0,null,null,"Both",null,0,null,{"$error":"#N/A"}]
[null,"D0146260","COAT BAR:TRANS ROLL MPC60/7500",1,null,300000,null,null,0,0,null,0,null,null,"Both",null,0,null,{"$error":"#N/A"}]
[null,"D0142321","COATING BAR MPC60/7500",1,"K",200000,null,null,0,0,null,0,null,null,"Both",null,0,null,{"$error":"#N/A"}]
[null,"D0142321","COATING BAR MPC60/7500",1,"C",150000,null,null,0,0,null,0,null,null,"Col",null,0,null,{"$error":"#N/A"}]
[null,"D0142321","COATING BAR MPC60/7501",1,"M",150000,null,null,0,0,null,0,null,null,"Col",null,0,null,{"$error":"#N/A"}]
[null,"D0142321","COATING BAR MPC60/7502",1,"Y",150000,null,null,0,0,null,0,null,null,"Col",null,0,null,{"$error":"#N/A"}]
[null,"D0146470","COATING BAR MPC60/7500",1,null,300000,null,null,0,0,null,0,null,null,"Both",null,0,null,{"$error":"#N/A"}]
[null,"D0144090","FUSING BELT MPC60/7500",1,null,600000,null,null,0,0,null,0,null,null,"Both",null,0,null,{"$error":"#N/A"}]
[8,"AE010075","H/ROLL:DIA52(AE010065)MPC6000",1,null,300000,null,null,0,0,null,0,null,null,"Both",null,0,null,{"$error":"#N/A"}]
[null,"AE012032","HEATING ROLLER MPC6/7500",1,null,600000,null,null,0,0,null,0,null,null,"Both",null,0,null,{"$error":"#N/A"}]
[null,"D0816050","I/MED TRANS BELT:ASS(D0146050)",1,null,600000,null,null,0,0,null,0,null,null,"Both",null,0,null,{"$error":"#N/A"}]
[null,"AE040042","OIL SUPPLY ROLLER:PRESS:DIA16",1,null,600000,null,null,0,0,null,0,null,null,"Both",null,0,null,{"$error":"#N/A"}]
[null,"D0149510","OPC DRUM:V-C2 MPC6000/7500",1,"K",450000,null,null,0,0,null,0,null,null,"Both",null,0,null,{"$error":"#N/A"}]
[9,"D0149510","OPC DRUM:V-C2 MPC6000/7500",1,"C",450000,null,null,0,0,null,0,null,null,"Col",null,0,null,{"$error":"#N/A"}]
[10,"D0149510","OPC DRUM:V-C2 MPC6000/7500",1,"M",450000,null,null,0,0,null,0,null,null,"Col",null,0,null,{"$error":"#N/A"}]
[11,"D0149510","OPC DRUM:V-C2 MPC6000/7500",1,"Y",450000,null,null,0,0,null,0,null,null,"Col",null,0,null,{"$error":"#N/A"}]
[null,"D0146280","PAPER TRANS ROLLER MPC60/7500",1,null,300000,null,null,0,0,null,0,null,null,"Both",null,0,null,{"$error":"#N/A"}]
[null,"D0146280","PAPER TRANS ROLLER MPC60/7500",1,null,600000,null,null,"",{"$error":"#VALUE!"},null,{"$error":"#VALUE!"},null,null,"-",null,{"$error":"#VALUE!"},null,{"$error":"#N/A"}]
[null,"AE020165","PRESSURE ROLLER MPC60/7500",1,null,600000,null,null,"",{"$error":"#VALUE!"},null,{"$error":"#VALUE!"},null,null,"-",null,{"$error":"#VALUE!"},null,{"$error":"#N/A"}]
[null,null,null,null,null,null,null,null,"","",null,"",null,null,"-",null,{"$error":"#VALUE!"},null,{"$error":"#N/A"}]
[null,null,null,null,null,null,null,null,"","",null,"",null,null,"-",null,{"$error":"#VALUE!"},null,{"$error":"#N/A"}]
[null,null,null,null,null,null,null,null,"","",null,"",null,null,"-",null,{"$error":"#VALUE!"},null,{"$error":"#N/A"}]
[null,null,null,null,null,null,null,null,"","",null,"",null,null,"-",null,{"$error":"#VALUE!"},null,{"$error":"#N/A"}]
[null,null,null,null,null,null,null,null,"","",null,"",null,null,"-",null,{"$error":"#VALUE!"},null,{"$error":"#N/A"}]
[null,null,null,null,null,null,null,null,"","",null,"",null,null,"-",null,{"$error":"#VALUE!"},null,{"$error":"#N/A"}]
[null,null,null,null,null,null,null,null,"","",null,"",null,null,"-",null,{"$error":"#VALUE!"},null,{"$error":"#N/A"}]
[null,null,null,null,null,null,null,null,"","",null,"",null,null,"-",null,{"$error":"#VALUE!"},null,{"$error":"#N/A"}]
[null,null,null,null,null,null,null,null,"","",null,"",null,null,"-",null,{"$error":"#VALUE!"},null,{"$error":"#N/A"}]
[null,null,null,null,null,null,null,null,"","",null,"",null,null,"-",null,{"$error":"#VALUE!"},null,{"$error":"#N/A"}]
[12,null,null,null,null,null,null,null,"","",null,"",null,null,"-",null,{"$error":"#VALUE!"},null,{"$error":"#N/A"}]
[13,null,null,null,null,null,null,null,"","",null,"",null,null,"-",null,{"$error":"#VALUE!"},null,{"$error":"#N/A"}]
[null,"Additional Notes:",null,null,null,null,null,null,null,null,"Total Parts:    ",{"$f":"SUM(L21:L70)","v":{"$error":"#VALUE!"}},null,null,"-"]
[null,null,null,null,null,null,"Labour ",0,{"$f":"\"@ R\"& Data!C11 &\" p/h\"","v":"@ R200 p/h"},null,"Total Labour:    ",{"$f":"H72*Data!C11","v":0},null,null,"-"]
[null,null,null,null,null,null,null,null,null,null,"Sub Total:    ",{"$f":"L71+L72","v":{"$error":"#VALUE!"}}]
[null,null,null,null,null,null,null,null,null,null,"VAT (15%):    ",{"$f":"L73*0.15","v":{"$error":"#VALUE!"}}]
[null,null,null,null,null,null,null,null,null,null,"TOTAL:    ",{"$f":"L74+L73","v":{"$error":"#VALUE!"}}]
[]
[]
[]
[]
[]
[null,"Quote prepared by:",null,null,null,null,null,"Quote accepted by:"]
[]
[]
[null,"Name:   ",null,null,null,null,null,"Name:   "]
[]
[]
[null,"Signature:",null,null,null,null,null,"Signature:"]
[]
[]
[null,"Date:",null,null,null,null,null,"Date:"]
[null,null,null,null,null,null,null,null,null,null,null,{"$f":"INDEX!H44","v":"(ver 2019.07.03)"}]

{"sheet":"MPC6501 & 7501","index":35,"n_rows":91,"n_cols":19,"rows_kept":91,"cut":false,"hidden":false,"merged":[[18,11,19,11],[71,1,78,2],[13,18,18,19],[18,1,19,1],[18,2,19,2],[18,3,19,3],[18,4,19,4],[18,5,19,5],[18,6,18,7],[18,8,19,8],[18,9,19,9],[18,10,19,10],[13,2,13,5],[2,1,2,2],[5,2,5,11],[6,2,6,11],[8,6,8,11],[9,6,9,11]]}
[null,null,null,null,null,null,null,"Service Manager: ",null,null,{"$f":"Data!C5","v":"Danie Fourie"}]
[null,null,null,null,null,null,null,"Email:",null,null,{"$f":"Data!C7","v":"danief@nashualim.co.za"}]
[null,{"$f":"Data!C3","v":"Nashua Limpopo"},null,null,null,null,null,"Fax:",null,null,{"$f":"Data!C9","v":"015 590 0319"}]
[]
[]
[null,"Date: "]
[null,"Customer: "]
[]
[null,null,"Previous Servicing Franchise:   "]
[null,null,"Attention Technical Manager:    "]
[]
[]
[null,"Model:   ","\"COMPLETE!!!\"",null,null,null,null,null,null,null,"Black Meter:   "]
[null,"Serial Number:   ",null,null,null,null,null,null,null,null,"Colour Meter:   ",null,null,null,null,null,null,null,"Copy FTP pricing into Sheet1. Name area \"Pricing\". Superceded numbers"]
[null,null,null,null,null,null,null,null,null,null,"Accounting Method:   ","Prints"]
[null,"CONSUMABLES:   ","Select from List!"]
[null,null,{"$f":"IF(C13=\"AF3260C / AFC5560\",\"This quote includes the cost for 4 PCU's and their relevent parts\",\"\")","v":""}]
[null,null,null,null,null,null,null,null,null,null,null,null,null,null,"Calc Type"]
[null,"Part Number","Description","Qty","Process","Yield","Last Replacement Date",null,"Prints \nper part","Part usage (% of Yield)","FTP Price\n(Rand)","Pro rate Charge",null,null,"All / Col",null,"% of Meter readings"]
[null,null,null,null,null,null,"Black Meter","Colour Meter"]
[1,"D0149510","OPC Drum",1,"K",450000,null,null,{"$f":"IF($L$15=\"Prints\",IF(O21=\"Both\",($L$13-G21)+($L$14-H21),IF(O21=\"Col\",($L$14-H21),IF(O21=\"-\",\"\",\"Error\"))),\n\nIF($L$15=\"Developments\",IF(O21=\"Both\",$L$13-G21,IF(O21=\"Col\",($L$14-H21)/3,IF(O21=\"-\",\"\",\"Error\"))),\"Dev/Print Error\"))","v":0},{"$f":"IF(B21=\"\",\"\",IF(Q21>=1,1,Q21))","v":0},null,{"$f":"IF(B21=\"\",\"\",$K21*$J21*D21)","v":0},null,null,"Both",null,{"$f":"I21/F21","v":0},{"$f":"IF(L15=\"Prints\",\n                    IF(O21=\"All\",(L13-G21)+(L14-H21),\n\"\"),\n\"\")","v":""},{"$f":"IF(VLOOKUP(B21,Pricing,5,FALSE)=\"\",B21,VLOOKUP(B21,Pricing,5,FALSE))","v":{"$error":"#N/A"}}]
[2,"D0149510","OPC Drum",1,"C",450000,null,null,{"$f":"IF($L$15=\"Prints\",IF(O22=\"Both\",($L$13-G22)+($L$14-H22),IF(O22=\"Col\",($L$14-H22),IF(O22=\"-\",\"\",\"Error\"))),\n\nIF($L$15=\"Developments\",IF(O22=\"Both\",$L$13-G22,IF(O22=\"Col\",($L$14-H22)/3,IF(O22=\"-\",\"\",\"Error\"))),\"Dev/Print Error\"))","v":0},{"$f":"IF(B22=\"\",\"\",IF(Q22>=1,1,Q22))","v":0},null,0,null,null,"Col",null,{"$f":"I22/F22","v":0},null,{"$error":"#N/A"}]
[3,"D0149510","OPC Drum",1,"M",450000,null,null,0,0,null,0,null,null,"Col",null,0,null,{"$error":"#N/A"}]
[4,"D0149510","OPC Drum",1,"Y",450000,null,null,0,0,null,0,null,null,"Col",null,0,null,{"$error":"#N/A"}]
[null,"D0812399","Drum Charge Grid",1,"K",200000,null,null,0,0,null,0,null,null,"Both",null,0,null,{"$error":"#N/A"}]
[5,"D0812441","Charge Roller Unit",1,"C",150000,null,null,0,0,null,0,null,null,"Col",null,0,null,{"$error":"#N/A"}]
[6,"D0812441","Charge Roller Unit",1,"M",150000,null,null,0,0,null,0,null,null,"Col",null,0,null,{"$error":"#N/A"}]
[7,"D0812441","Charge Roller Unit",1,"Y",150000,null,null,0,0,null,0,null,null,"Col",null,0,null,{"$error":"#N/A"}]
[null,"D0142352","Drum Cleaning Blade",1,"K",200000,null,null,0,0,null,0,null,null,"Both",null,0,null,{"$error":"#N/A"}]
[null,"D0142352","Drum Cleaning Blade",1,"C",150000,null,null,0,0,null,0,null,null,"Col",null,0,null,{"$error":"#N/A"}]
[null,"D0142352","Drum Cleaning Blade",1,"M",150000,null,null,0,0,null,0,null,null,"Col",null,0,null,{"$error":"#N/A"}]
[null,"D0142352","Drum Cleaning Blade",1,"Y",150000,null,null,0,0,null,0,null,null,"Col",null,0,null,{"$error":"#N/A"}]
[null,"D0142321","Drum Lubricant Bar",1,"K",200000,null,null,0,0,null,0,null,null,"Both",null,0,null,{"$error":"#N/A"}]
[null,"D0142321","Drum Lubricant Bar",1,"C",150000,null,null,0,0,null,0,null,null,"Col",null,0,null,{"$error":"#N/A"}]
[null,"D0142321","Drum Lubricant Bar",1,"M",150000,null,null,0,0,null,0,null,null,"Col",null,0,null,{"$error":"#N/A"}]
[null,"D0142321","Drum Lubricant Bar",1,"Y",150000,null,null,0,0,null,0,null,null,"Col",null,0,null,{"$error":"#N/A"}]
[null,"D0142368","Lubricant Supply Blade",1,"K",200000,null,null,0,0,null,0,null,null,"Both",null,0,null,{"$error":"#N/A"}]
[null,"D0142368","Lubricant Supply Blade",1,"C",150000,null,null,0,0,null,0,null,null,"Col",null,0,null,{"$error":"#N/A"}]
[null,"D0142368","Lubricant Supply Blade",1,"M",150000,null,null,0,0,null,0,null,null,"Col",null,0,null,{"$error":"#N/A"}]
[null,"D0142368","Lubricant Supply Blade",1,"Y",150000,null,null,0,0,null,0,null,null,"Col",null,0,null,{"$error":"#N/A"}]
[null,"D0142335","Lubricant Appl Roller",1,"K",400000,null,null,0,0,null,0,null,null,"Both",null,0,null,{"$error":"#N/A"}]
[null,"D0142335","Lubricant Appl Roller",1,"C",300000,null,null,0,0,null,0,null,null,"Col",null,0,null,{"$error":"#N/A"}]
[null,"D0142335","Lubricant Appl Roller",1,"M",300000,null,null,0,0,null,0,null,null,"Col",null,0,null,{"$error":"#N/A"}]
[null,"D0142335","Lubricant Appl Roller",1,"Y",300000,null,null,0,0,null,0,null,null,"Col",null,0,null,{"$error":"#N/A"}]
[null,"AE020185","Pressure Roller",1,null,600000,null,null,0,0,null,0,null,null,"Both",null,0,null,{"$error":"#N/A"}]
[null,"AE040015","Oil Supply Roller",1,null,450000,null,null,0,0,null,0,null,null,"Col",null,0,null,{"$error":"#N/A"}]
[null,"D0144090","Fusing Belt",1,null,600000,null,null,0,0,null,0,null,null,"Col",null,0,null,{"$error":"#N/A"}]
[8,"D0816050","Image Transfer Belt",1,null,600000,null,null,0,0,null,0,null,null,"Col",null,0,null,{"$error":"#N/A"}]
[null,"D0146470","ITB Lubricant Bar",1,null,300000,null,null,0,0,null,0,null,null,"Both",null,0,null,{"$error":"#N/A"}]
[null,"D0146507","ITB Lubricant Blade",1,null,300000,null,null,0,0,null,0,null,null,"Both",null,0,null,{"$error":"#N/A"}]
[null,"D0146463","ITB Cleaning Brush",1,null,300000,null,null,0,0,null,0,null,null,"Both",null,0,null,{"$error":"#N/A"}]
[null,"D0146455","ITB Cleaning Blade",1,null,300000,null,null,0,0,null,0,null,null,"Both",null,0,null,{"$error":"#N/A"}]
[9,"D0146260","PTR Lubricant Bar",1,null,300000,null,null,0,0,null,0,null,null,"Both",null,0,null,{"$error":"#N/A"}]
[10,null,null,null,null,null,null,null,"","",null,"",null,null,"-",null,{"$error":"#VALUE!"},null,{"$error":"#N/A"}]
[11,null,null,null,null,null,null,null,"","",null,"",null,null,"-",null,{"$error":"#VALUE!"},null,{"$error":"#N/A"}]
[null,null,null,null,null,null,null,null,"","",null,"",null,null,"-",null,{"$error":"#VALUE!"},null,{"$error":"#N/A"}]
[null,null,null,null,null,null,null,null,"","",null,"",null,null,"-",null,{"$error":"#VALUE!"},null,{"$error":"#N/A"}]
[null,null,null,null,null,null,null,null,"","",null,"",null,null,"-",null,{"$error":"#VALUE!"},null,{"$error":"#N/A"}]
[null,null,null,null,null,null,null,null,"","",null,"",null,null,"-",null,{"$error":"#VALUE!"},null,{"$error":"#N/A"}]
[null,null,null,null,null,null,null,null,"","",null,"",null,null,"-",null,{"$error":"#VALUE!"},null,{"$error":"#N/A"}]
[null,null,null,null,null,null,null,null,"","",null,"",null,null,"-",null,{"$error":"#VALUE!"},null,{"$error":"#N/A"}]
[null,null,null,null,null,null,null,null,"","",null,"",null,null,"-",null,{"$error":"#VALUE!"},null,{"$error":"#N/A"}]
[null,null,null,null,null,null,null,null,"","",null,"",null,null,"-",null,{"$error":"#VALUE!"},null,{"$error":"#N/A"}]
[null,null,null,null,null,null,null,null,"","",null,"",null,null,"-",null,{"$error":"#VALUE!"},null,{"$error":"#N/A"}]
[null,null,null,null,null,null,null,null,"","",null,"",null,null,"-",null,{"$error":"#VALUE!"},null,{"$error":"#N/A"}]
[null,null,null,null,null,null,null,null,"","",null,"",null,null,"-",null,{"$error":"#VALUE!"},null,{"$error":"#N/A"}]
[null,null,null,null,null,null,null,null,"","",null,"",null,null,"-",null,{"$error":"#VALUE!"},null,{"$error":"#N/A"}]
[null,null,null,null,null,null,null,null,"","",null,"",null,null,"-",null,{"$error":"#VALUE!"},null,{"$error":"#N/A"}]
[12,null,null,null,null,null,null,null,"","",null,"",null,null,"-",null,{"$error":"#VALUE!"},null,{"$error":"#N/A"}]
[13,null,null,null,null,null,null,null,"","",null,"",null,null,"-",null,{"$error":"#VALUE!"},null,{"$error":"#N/A"}]
[null,"Additional Notes:",null,null,null,null,null,null,null,null,"Total Parts:    ",{"$f":"SUM(L21:L70)","v":0},null,null,"-"]
[null,null,null,null,null,null,"Labour ",0,{"$f":"\"@ R\"& Data!C11 &\" p/h\"","v":"@ R200 p/h"},null,"Total Labour:    ",{"$f":"H72*Data!C11","v":0},null,null,"-"]
[null,null,null,null,null,null,null,null,null,null,"Sub Total:    ",{"$f":"L71+L72","v":0}]
[null,null,null,null,null,null,null,null,null,null,"VAT (15%):    ",{"$f":"L73*0.15","v":0}]
[null,null,null,null,null,null,null,null,null,null,"TOTAL:    ",{"$f":"L74+L73","v":0}]
[]
[]
[]
[]
[]
[null,"Quote prepared by:",null,null,null,null,null,"Quote accepted by:"]
[]
[]
[null,"Name:   ",null,null,null,null,null,"Name:   "]
[]
[]
[null,"Signature:",null,null,null,null,null,"Signature:"]
[]
[]
[null,"Date:",null,null,null,null,null,"Date:"]
[null,null,null,null,null,null,null,null,null,null,null,{"$f":"INDEX!H44","v":"(ver 2019.07.03)"}]

{"sheet":"ProC651EX","index":36,"n_rows":78,"n_cols":19,"rows_kept":78,"cut":false,"hidden":true,"merged":[[2,1,2,2],[5,2,5,11],[6,2,6,11],[8,6,8,11],[9,6,9,11],[18,11,19,11],[58,1,65,2],[13,18,18,19],[18,1,19,1],[18,2,19,2],[18,3,19,3],[18,4,19,4],[18,5,19,5],[18,6,18,7],[18,8,19,8],[18,9,19,9],[18,10,19,10],[13,2,13,5]]}
[null,null,null,null,null,null,null,"Service Manager: ",null,null,{"$f":"Data!C5","v":"Danie Fourie"}]
[null,null,null,null,null,null,null,"Email:",null,null,{"$f":"Data!C7","v":"danief@nashualim.co.za"}]
[null,{"$f":"Data!C3","v":"Nashua Limpopo"},null,null,null,null,null,"Fax:",null,null,{"$f":"Data!C9","v":"015 590 0319"}]
[]
[]
[null,"Date: "]
[null,"Customer: "]
[]
[null,null,"Previous Servicing Franchise:   "]
[null,null,"Attention Technical Manager:    "]
[]
[]
[null,"Model:   ","\"COMPLETE!!!\"",null,null,null,null,null,null,null,"Black Meter:   "]
[null,"Serial Number:   ",null,null,null,null,null,null,null,null,"Colour Meter:   ",null,null,null,null,null,null,null,"Copy FTP pricing into Sheet1. Name area \"Pricing\". Superceded numbers"]
[null,null,null,null,null,null,null,null,null,null,"Accounting Method:   ","Prints"]
[null,"CONSUMABLES:   ","Select from List!"]
[null,null,{"$f":"IF(C13=\"AF3260C / AFC5560\",\"This quote includes the cost for 4 PCU's and their relevent parts\",\"\")","v":""}]
[null,null,null,null,null,null,null,null,null,null,null,null,null,null,"Calc Type"]
[null,"Part Number","Description","Qty","Process","Yield","Last Replacement Date",null,"Prints \nper part","Part usage (% of Yield)","FTP Price\n(Rand)","Pro rate Charge",null,null,"All / Col",null,"% of Meter readings"]
[null,null,null,null,null,null,"Black Meter","Colour Meter"]
[1,null,null,null,null,null,null,null,{"$f":"IF($L$15=\"Prints\",IF(O21=\"Both\",($L$13-G21)+($L$14-H21),IF(O21=\"Col\",($L$14-H21),IF(O21=\"-\",\"\",\"Error\"))),\n\nIF($L$15=\"Developments\",IF(O21=\"Both\",$L$13-G21,IF(O21=\"Col\",($L$14-H21)/3,IF(O21=\"-\",\"\",\"Error\"))),\"Dev/Print Error\"))","v":""},{"$f":"IF(B21=\"\",\"\",IF(Q21>=1,1,Q21))","v":""},null,{"$f":"IF(B21=\"\",\"\",$K21*$J21*D21)","v":""},null,null,"-",null,{"$f":"I21/F21","v":{"$error":"#VALUE!"}},{"$f":"IF(L15=\"Prints\",\n                    IF(O21=\"All\",(L13-G21)+(L14-H21),\n\"\"),\n\"\")","v":""},{"$f":"IF(VLOOKUP(B21,Pricing,5,FALSE)=\"\",B21,VLOOKUP(B21,Pricing,5,FALSE))","v":{"$error":"#N/A"}}]
[2,null,null,null,null,null,null,null,{"$f":"IF($L$15=\"Prints\",IF(O22=\"Both\",($L$13-G22)+($L$14-H22),IF(O22=\"Col\",($L$14-H22),IF(O22=\"-\",\"\",\"Error\"))),\n\nIF($L$15=\"Developments\",IF(O22=\"Both\",$L$13-G22,IF(O22=\"Col\",($L$14-H22)/3,IF(O22=\"-\",\"\",\"Error\"))),\"Dev/Print Error\"))","v":""},{"$f":"IF(B22=\"\",\"\",IF(Q22>=1,1,Q22))","v":""},null,"",null,null,"-",null,{"$f":"I22/F22","v":{"$error":"#VALUE!"}},null,{"$error":"#N/A"}]
[3,null,null,null,null,null,null,null,"","",null,"",null,null,"-",null,{"$error":"#VALUE!"},null,{"$error":"#N/A"}]
[4,null,null,null,null,null,null,null,"","",null,"",null,null,"-",null,{"$error":"#VALUE!"},null,{"$error":"#N/A"}]
[null,null,null,null,null,null,null,null,"","",null,"",null,null,"-",null,{"$error":"#VALUE!"},null,{"$error":"#N/A"}]
[5,null,null,null,null,null,null,null,"","",null,"",null,null,"-",null,{"$error":"#VALUE!"},null,{"$error":"#N/A"}]
[6,null,null,null,null,null,null,null,"","",null,"",null,null,"-",null,{"$error":"#VALUE!"},null,{"$error":"#N/A"}]
[7,null,null,null,null,null,null,null,"","",null,"",null,null,"-",null,{"$error":"#VALUE!"},null,{"$error":"#N/A"}]
[null,null,null,null,null,null,null,null,"","",null,"",null,null,"-",null,{"$error":"#VALUE!"},null,{"$error":"#N/A"}]
[null,null,null,null,null,null,null,null,"","",null,"",null,null,"-",null,{"$error":"#VALUE!"},null,{"$error":"#N/A"}]
[null,null,null,null,null,null,null,null,"","",null,"",null,null,"-",null,{"$error":"#VALUE!"},null,{"$error":"#N/A"}]
[null,null,null,null,null,null,null,null,"","",null,"",null,null,"-",null,{"$error":"#VALUE!"},null,{"$error":"#N/A"}]
[null,null,null,null,null,null,null,null,"","",null,"",null,null,"-",null,{"$error":"#VALUE!"},null,{"$error":"#N/A"}]
[null,null,null,null,null,null,null,null,"","",null,"",null,null,"-",null,{"$error":"#VALUE!"},null,{"$error":"#N/A"}]
[null,null,null,null,null,null,null,null,"","",null,"",null,null,"-",null,{"$error":"#VALUE!"},null,{"$error":"#N/A"}]
[null,null,null,null,null,null,null,null,"","",null,"",null,null,"-",null,{"$error":"#VALUE!"},null,{"$error":"#N/A"}]
[null,null,null,null,null,null,null,null,"","",null,"",null,null,"-",null,{"$error":"#VALUE!"},null,{"$error":"#N/A"}]
[null,null,null,null,null,null,null,null,"","",null,"",null,null,"-",null,{"$error":"#VALUE!"},null,{"$error":"#N/A"}]
[null,null,null,null,null,null,null,null,"","",null,"",null,null,"-",null,{"$error":"#VALUE!"},null,{"$error":"#N/A"}]
[null,null,null,null,null,null,null,null,"","",null,"",null,null,"-",null,{"$error":"#VALUE!"},null,{"$error":"#N/A"}]
[null,null,null,null,null,null,null,null,"","",null,"",null,null,"-",null,{"$error":"#VALUE!"},null,{"$error":"#N/A"}]
[null,null,null,null,null,null,null,null,"","",null,"",null,null,"-",null,{"$error":"#VALUE!"},null,{"$error":"#N/A"}]
[null,null,null,null,null,null,null,null,"","",null,"",null,null,"-",null,{"$error":"#VALUE!"},null,{"$error":"#N/A"}]
[null,null,null,null,null,null,null,null,"","",null,"",null,null,"-",null,{"$error":"#VALUE!"},null,{"$error":"#N/A"}]
[null,null,null,null,null,null,null,null,"","",null,"",null,null,"-",null,{"$error":"#VALUE!"},null,{"$error":"#N/A"}]
[null,null,null,null,null,null,null,null,"","",null,"",null,null,"-",null,{"$error":"#VALUE!"},null,{"$error":"#N/A"}]
[null,null,null,null,null,null,null,null,"","",null,"",null,null,"-",null,{"$error":"#VALUE!"},null,{"$error":"#N/A"}]
[8,null,null,null,null,null,null,null,"","",null,"",null,null,"-",null,{"$error":"#VALUE!"},null,{"$error":"#N/A"}]
[null,null,null,null,null,null,null,null,"","",null,"",null,null,"-",null,{"$error":"#VALUE!"},null,{"$error":"#N/A"}]
[null,null,null,null,null,null,null,null,"","",null,"",null,null,"-",null,{"$error":"#VALUE!"},null,{"$error":"#N/A"}]
[null,null,null,null,null,null,null,null,"","",null,"",null,null,"-",null,{"$error":"#VALUE!"},null,{"$error":"#N/A"}]
[null,null,null,null,null,null,null,null,"","",null,"",null,null,"-",null,{"$error":"#VALUE!"},null,{"$error":"#N/A"}]
[9,null,null,null,null,null,null,null,"","",null,"",null,null,"-",null,{"$error":"#VALUE!"},null,{"$error":"#N/A"}]
[10,null,null,null,null,null,null,null,"","",null,"",null,null,"-",null,{"$error":"#VALUE!"},null,{"$error":"#N/A"}]
[11,null,null,null,null,null,null,null,"","",null,"",null,null,"-",null,{"$error":"#VALUE!"},null,{"$error":"#N/A"}]
[12,null,null,null,null,null,null,null,"","",null,"",null,null,"-",null,{"$error":"#VALUE!"},null,{"$error":"#N/A"}]
[13,null,null,null,null,null,null,null,"","",null,"",null,null,"-",null,{"$error":"#VALUE!"},null,{"$error":"#N/A"}]
[null,"Additional Notes:",null,null,null,null,null,null,null,null,"Total Parts:    ",{"$f":"SUM(L21:L57)","v":0},null,null,"-"]
[null,null,null,null,null,null,"Labour ",0,{"$f":"\"@ R\"& Data!C11 &\" p/h\"","v":"@ R200 p/h"},null,"Total Labour:    ",{"$f":"H59*Data!C11","v":0},null,null,"-"]
[null,null,null,null,null,null,null,null,null,null,"Sub Total:    ",{"$f":"L58+L59","v":0},null,null,"-"]
[null,null,null,null,null,null,null,null,null,null,"VAT (14%):    ",{"$f":"L60*0.14","v":0},null,null,"-"]
[null,null,null,null,null,null,null,null,null,null,"TOTAL:    ",{"$f":"L61+L60","v":0},null,null,"-"]
[null,null,null,null,null,null,null,null,null,null,null,null,null,null,"-"]
[null,null,null,null,null,null,null,null,null,null,null,null,null,null,"-"]
[null,null,null,null,null,null,null,null,null,null,null,null,null,null,"-"]
[null,null,null,null,null,null,null,null,null,null,null,null,null,null,"-"]
[null,null,null,null,null,null,null,null,null,null,null,null,null,null,"-"]
[null,"Quote prepared by:",null,null,null,null,null,"Quote accepted by:",null,null,null,null,null,null,"-"]
[null,null,null,null,null,null,null,null,null,null,null,null,null,null,"-"]
[]
[null,"Name:   ",null,null,null,null,null,"Name:   "]
[]
[]
[null,"Signature:",null,null,null,null,null,"Signature:"]
[]
[]
[null,"Date:",null,null,null,null,null,"Date:"]
[null,null,null,null,null,null,null,null,null,null,null,{"$f":"INDEX!H44","v":"(ver 2019.07.03)"}]

{"sheet":"MPC6502 & 7502","index":37,"n_rows":91,"n_cols":19,"rows_kept":91,"cut":false,"hidden":false,"merged":[[18,11,19,11],[71,1,78,2],[13,18,18,19],[18,1,19,1],[18,2,19,2],[18,3,19,3],[18,4,19,4],[18,5,19,5],[18,6,18,7],[18,8,19,8],[18,9,19,9],[18,10,19,10],[13,2,13,5],[2,1,2,2],[5,2,5,11],[6,2,6,11],[8,6,8,11],[9,6,9,11]]}
[null,null,null,null,null,null,null,"Service Manager: ",null,null,{"$f":"Data!C5","v":"Danie Fourie"}]
[null,null,null,null,null,null,null,"Email:",null,null,{"$f":"Data!C7","v":"danief@nashualim.co.za"}]
[null,{"$f":"Data!C3","v":"Nashua Limpopo"},null,null,null,null,null,"Fax:",null,null,{"$f":"Data!C9","v":"015 590 0319"}]
[]
[]
[null,"Date: "]
[null,"Customer: "]
[]
[null,null,"Previous Servicing Franchise:   "]
[null,null,"Attention Technical Manager:    "]
[]
[]
[null,"Model:   ","\"COMPLETE!!!\"",null,null,null,null,null,null,null,"Black Meter:   "]
[null,"Serial Number:   ",null,null,null,null,null,null,null,null,"Colour Meter:   ",null,null,null,null,null,null,null,"Copy FTP pricing into Sheet1. Name area \"Pricing\". Superceded numbers"]
[null,null,null,null,null,null,null,null,null,null,"Accounting Method:   ","Prints"]
[null,"CONSUMABLES:   ","Select from List!"]
[null,null,{"$f":"IF(C13=\"AF3260C / AFC5560\",\"This quote includes the cost for 4 PCU's and their relevent parts\",\"\")","v":""}]
[null,null,null,null,null,null,null,null,null,null,null,null,null,null,"Calc Type"]
[null,"Part Number","Description","Qty","Process","Yield","Last Replacement Date",null,"Prints \nper part","Part usage (% of Yield)","FTP Price\n(Rand)","Pro rate Charge",null,null,"All / Col",null,"% of Meter readings"]
[null,null,null,null,null,null,"Black Meter","Colour Meter"]
[1,"D0142335","BRUSH ROLLER:APPLY MPC60/7500",1,"C",300000,null,null,{"$f":"IF($L$15=\"Prints\",IF(O21=\"Both\",($L$13-G21)+($L$14-H21),IF(O21=\"Col\",($L$14-H21),IF(O21=\"-\",\"\",\"Error\"))),\n\nIF($L$15=\"Developments\",IF(O21=\"Both\",$L$13-G21,IF(O21=\"Col\",($L$14-H21)/3,IF(O21=\"-\",\"\",\"Error\"))),\"Dev/Print Error\"))","v":0},{"$f":"IF(B21=\"\",\"\",IF(Q21>=1,1,Q21))","v":0},null,{"$f":"IF(B21=\"\",\"\",$K21*$J21*D21)","v":0},null,null,"Col",null,{"$f":"I21/F21","v":0},{"$f":"IF(L15=\"Prints\",\n                    IF(O21=\"All\",(L13-G21)+(L14-H21),\n\"\"),\n\"\")","v":""},{"$f":"IF(VLOOKUP(B21,Pricing,5,FALSE)=\"\",B21,VLOOKUP(B21,Pricing,5,FALSE))","v":{"$error":"#N/A"}}]
[2,"D0142335","BRUSH ROLLER:APPLY MPC60/7500",1,"M",300000,null,null,{"$f":"IF($L$15=\"Prints\",IF(O22=\"Both\",($L$13-G22)+($L$14-H22),IF(O22=\"Col\",($L$14-H22),IF(O22=\"-\",\"\",\"Error\"))),\n\nIF($L$15=\"Developments\",IF(O22=\"Both\",$L$13-G22,IF(O22=\"Col\",($L$14-H22)/3,IF(O22=\"-\",\"\",\"Error\"))),\"Dev/Print Error\"))","v":0},{"$f":"IF(B22=\"\",\"\",IF(Q22>=1,1,Q22))","v":0},null,0,null,null,"Col",null,{"$f":"I22/F22","v":0},null,{"$error":"#N/A"}]
[3,"D0142335","BRUSH ROLLER:APPLY MPC60/7500",1,"Y",300000,null,null,0,0,null,0,null,null,"Col",null,0,null,{"$error":"#N/A"}]
[4,"D0142335","BRUSH ROLLER:APPLY MPC60/7500",1,"K",400000,null,null,0,0,null,0,null,null,"Both",null,0,null,{"$error":"#N/A"}]
[null,"D0146463","BRUSH:APPLY MPC60/7500",1,null,300000,null,null,0,0,null,0,null,null,"Both",null,0,null,{"$error":"#N/A"}]
[5,"D0812441","CHARGE SECTION:ASS MPC65/7501",1,null,150000,null,null,0,0,null,0,null,null,"Col",null,0,null,{"$error":"#N/A"}]
[6,"D0812441","CHARGE SECTION:ASS MPC65/7501",1,null,150000,null,null,0,0,null,0,null,null,"Col",null,0,null,{"$error":"#N/A"}]
[7,"D0812441","CHARGE SECTION:ASS MPC65/7501",1,null,150000,null,null,0,0,null,0,null,null,"Col",null,0,null,{"$error":"#N/A"}]
[null,"D0146265","CL BLADE:TRANS ROLL MPC60/7500",1,null,300000,null,null,0,0,null,0,null,null,"Both",null,0,null,{"$error":"#N/A"}]
[null,"D0142410","CLEAN:CORONA WIRE:ASS MPC6501",2,null,200000,null,null,0,0,null,0,null,null,"Both",null,0,null,{"$error":"#N/A"}]
[null,"D0142407","CLEANER:GRID:ASS'Y MPC65/7501",1,null,200000,null,null,0,0,null,0,null,null,"Both",null,0,null,{"$error":"#N/A"}]
[null,"D0146507","CLEANING BL:APPLY MPC60/7500",1,null,300000,null,null,0,0,null,0,null,null,"Both",null,0,null,{"$error":"#N/A"}]
[null,"D0142352","CLEANING BLADE MP60/7500",1,"C",150000,null,null,0,0,null,0,null,null,"Col",null,0,null,{"$error":"#N/A"}]
[null,"D0142352","CLEANING BLADE MP60/7500",1,"M",150000,null,null,0,0,null,0,null,null,"Col",null,0,null,{"$error":"#N/A"}]
[null,"D0142352","CLEANING BLADE MP60/7500",1,"Y",150000,null,null,0,0,null,0,null,null,"Col",null,0,null,{"$error":"#N/A"}]
[null,"D0142352","CLEANING BLADE MP60/7500",1,"K",200000,null,null,0,0,null,0,null,null,"Both",null,0,null,{"$error":"#N/A"}]
[null,"D0142368","CLEANING BLADE:ASS MP60/7500",1,"C",150000,null,null,0,0,null,0,null,null,"Col",null,0,null,{"$error":"#N/A"}]
[null,"D0142368","CLEANING BLADE:ASS MP60/7500",1,"M",150000,null,null,0,0,null,0,null,null,"Col",null,0,null,{"$error":"#N/A"}]
[null,"D0142368","CLEANING BLADE:ASS MP60/7500",1,"Y",150000,null,null,0,0,null,0,null,null,"Col",null,0,null,{"$error":"#N/A"}]
[null,"D0142368","CLEANING BLADE:ASS MP60/7500",1,"K",200000,null,null,0,0,null,0,null,null,"Both",null,0,null,{"$error":"#N/A"}]
[null,"D0146455","CLEANING BLADE:BELT MPC60/7500",1,null,300000,null,null,0,0,null,0,null,null,"Both",null,0,null,{"$error":"#N/A"}]
[null,"AE042080","CLEANING ROLLER:ASS'Y AF3228C",1,null,450000,null,null,0,0,null,0,null,null,"Both",null,0,null,{"$error":"#N/A"}]
[null,"D0146260","COAT BAR:TRANS ROLL MPC60/7500",1,null,300000,null,null,0,0,null,0,null,null,"Both",null,0,null,{"$error":"#N/A"}]
[null,"D0142321","COATING BAR MPC60/7500",1,"C",150000,null,null,0,0,null,0,null,null,"Col",null,0,null,{"$error":"#N/A"}]
[null,"D0142321","COATING BAR MPC60/7500",1,"M",150000,null,null,0,0,null,0,null,null,"Col",null,0,null,{"$error":"#N/A"}]
[null,"D0142321","COATING BAR MPC60/7500",1,"Y",150000,null,null,0,0,null,0,null,null,"Col",null,0,null,{"$error":"#N/A"}]
[null,"D0142321","COATING BAR MPC60/7500",1,"K",200000,null,null,0,0,null,0,null,null,"Both",null,0,null,{"$error":"#N/A"}]
[8,"D0146470","COATING BAR MPC60/7500",1,null,300000,null,null,0,0,null,0,null,null,"Both",null,0,null,{"$error":"#N/A"}]
[null,"D0142406","CUSHION:WIRE:T1.5 MPC65/7501",1,"C",200000,null,null,0,0,null,0,null,null,"Col",null,0,null,{"$error":"#N/A"}]
[null,"D0142406","CUSHION:WIRE:T1.5 MPC65/7501",1,"M",200000,null,null,0,0,null,0,null,null,"Col",null,0,null,{"$error":"#N/A"}]
[null,"D0142406","CUSHION:WIRE:T1.5 MPC65/7501",1,"Y",200000,null,null,0,0,null,0,null,null,"Col",null,0,null,{"$error":"#N/A"}]
[null,"D0142406","CUSHION:WIRE:T1.5 MPC65/7501",1,"K",200000,null,null,0,0,null,0,null,null,"Both",null,0,null,{"$error":"#N/A"}]
[9,"D0142434","DRUM C/CORONA WIRE MPC65/7501",2,null,200000,null,null,0,0,null,0,null,null,"Both",null,0,null,{"$error":"#N/A"}]
[10,"D0144090","FUSING BELT MPC60/7500",1,null,600000,null,null,0,0,null,0,null,null,"Both",null,0,null,{"$error":"#N/A"}]
[11,"D0812399","GRID DRUM CHARGE WIRE MPC6501",1,null,200000,null,null,0,0,null,0,null,null,"Both",null,0,null,{"$error":"#N/A"}]
[null,"AE010080","HOT ROLLER MPC65/7501",1,null,450000,null,null,0,0,null,0,null,null,"Both",null,0,null,{"$error":"#N/A"}]
[null,"D0816050","I/MED TRANS BELT:ASS(D0146050)",1,null,600000,null,null,0,0,null,0,null,null,"Both",null,0,null,{"$error":"#N/A"}]
[null,"AE040015","O/SUP ROLL:PRESS:DIA MPC6501",1,null,450000,null,null,0,0,null,0,null,null,"Both",null,0,null,{"$error":"#N/A"}]
[null,"D0149510","OPC DRUM:V-C2 MPC6000/7500",1,"C",450000,null,null,0,0,null,0,null,null,"Both",null,0,null,{"$error":"#N/A"}]
[null,"D0149510","OPC DRUM:V-C2 MPC6000/7500",1,"M",450000,null,null,0,0,null,0,null,null,"Col",null,0,null,{"$error":"#N/A"}]
[null,"D0149510","OPC DRUM:V-C2 MPC6000/7500",1,"Y",450000,null,null,0,0,null,0,null,null,"Col",null,0,null,{"$error":"#N/A"}]
[null,"D0149510","OPC DRUM:V-C2 MPC6000/7500",1,"K",450000,null,null,0,0,null,0,null,null,"Col",null,0,null,{"$error":"#N/A"}]
[null,"B1326268","PAPER DISCHARGE PLATE AFC5560",1,null,300000,null,null,0,0,null,0,null,null,"Both",null,0,null,{"$error":"#N/A"}]
[null,"D0146280","PAPER TRANS ROLLER MPC60/7500",1,null,600000,null,null,0,0,null,0,null,null,"Both",null,0,null,{"$error":"#N/A"}]
[null,"AE020185","PRESSURE ROLLER MPC65/7501",1,null,600000,null,null,0,0,null,0,null,null,"Both",null,0,null,{"$error":"#N/A"}]
[null,null,null,null,null,null,null,null,"","",null,"",null,null,"-",null,{"$error":"#VALUE!"},null,{"$error":"#N/A"}]
[null,null,null,null,null,null,null,null,"","",null,"",null,null,"-",null,{"$error":"#VALUE!"},null,{"$error":"#N/A"}]
[null,null,null,null,null,null,null,null,"","",null,"",null,null,"-",null,{"$error":"#VALUE!"},null,{"$error":"#N/A"}]
[12,null,null,null,null,null,null,null,"","",null,"",null,null,"-",null,{"$error":"#VALUE!"},null,{"$error":"#N/A"}]
[13,null,null,null,null,null,null,null,"","",null,"",null,null,"-",null,{"$error":"#VALUE!"},null,{"$error":"#N/A"}]
[null,"Additional Notes:",null,null,null,null,null,null,null,null,"Total Parts:    ",{"$f":"SUM(L21:L70)","v":0},null,null,"-"]
[null,null,null,null,null,null,"Labour ",0,{"$f":"\"@ R\"& Data!C11 &\" p/h\"","v":"@ R200 p/h"},null,"Total Labour:    ",{"$f":"H72*Data!C11","v":0},null,null,"-"]
[null,null,null,null,null,null,null,null,null,null,"Sub Total:    ",{"$f":"L71+L72","v":0}]
[null,null,null,null,null,null,null,null,null,null,"VAT (15%):    ",{"$f":"L73*0.15","v":0}]
[null,null,null,null,null,null,null,null,null,null,"TOTAL:    ",{"$f":"L74+L73","v":0}]
[]
[]
[]
[]
[]
[null,"Quote prepared by:",null,null,null,null,null,"Quote accepted by:"]
[]
[]
[null,"Name:   ",null,null,null,null,null,"Name:   "]
[]
[]
[null,"Signature:",null,null,null,null,null,"Signature:"]
[]
[]
[null,"Date:",null,null,null,null,null,"Date:"]
[null,null,null,null,null,null,null,null,null,null,null,{"$f":"INDEX!H44","v":"(ver 2019.07.03)"}]

{"sheet":"Pricing Updates","index":38,"n_rows":2,"n_cols":9,"rows_kept":2,"cut":false,"hidden":true,"merged":[]}
["Product","Type","Rank","Description","Superceeded","Yield","Sub Type","Category","FTP Price"]
["AA000239","SC","BZ","DECAL:COLOR:MFP AF3224/32",null,0,"PRT","OBS",72.28]

{"sheet":"TEMPL FINAL","index":39,"n_rows":91,"n_cols":19,"rows_kept":91,"cut":false,"hidden":true,"merged":[[2,1,2,2],[5,2,5,11],[6,2,6,11],[8,6,8,11],[9,6,9,11],[18,11,19,11],[71,1,78,2],[13,18,18,19],[18,1,19,1],[18,2,19,2],[18,3,19,3],[18,4,19,4],[18,5,19,5],[18,6,18,7],[18,8,19,8],[18,9,19,9],[18,10,19,10],[13,2,13,5]]}
[null,null,null,null,null,null,null,"Service Manager: ",null,null,{"$f":"Data!C5","v":"Danie Fourie"}]
[null,null,null,null,null,null,null,"Email:",null,null,{"$f":"Data!C7","v":"danief@nashualim.co.za"}]
[null,{"$f":"Data!C3","v":"Nashua Limpopo"},null,null,null,null,null,"Fax:",null,null,{"$f":"Data!C9","v":"015 590 0319"}]
[]
[]
[null,"Date: "]
[null,"Customer: "]
[]
[null,null,"Previous Servicing Franchise:   "]
[null,null,"Attention Technical Manager:    "]
[]
[]
[null,"Model:   ","\"COMPLETE!!!\"",null,null,null,null,null,null,null,"Black Meter:   "]
[null,"Serial Number:   ",null,null,null,null,null,null,null,null,"Colour Meter:   ",null,null,null,null,null,null,null,"Copy FTP pricing into Sheet1. Name area \"Pricing\". Superceded numbers"]
[null,null,null,null,null,null,null,null,null,null,"Accounting Method:   ","Prints"]
[null,"CONSUMABLES:   ","Select from List!"]
[null,null,{"$f":"IF(C13=\"AF3260C / AFC5560\",\"This quote includes the cost for 4 PCU's and their relevent parts\",\"\")","v":""}]
[null,null,null,null,null,null,null,null,null,null,null,null,null,null,"Calc Type"]
[null,"Part Number","Description","Qty","Process","Yield","Last Replacement Date",null,"Prints \nper part","Part usage (% of Yield)","FTP Price\n(Rand)","Pro rate Charge",null,null,"All / Col",null,"% of Meter readings"]
[null,null,null,null,null,null,"Black Meter","Colour Meter"]
[1,null,null,null,null,null,null,null,{"$f":"IF($L$15=\"Prints\",IF(O21=\"Both\",($L$13-G21)+($L$14-H21),IF(O21=\"Col\",($L$14-H21),IF(O21=\"-\",\"\",\"Error\"))),\n\nIF($L$15=\"Developments\",IF(O21=\"Both\",$L$13-G21,IF(O21=\"Col\",($L$14-H21)/3,IF(O21=\"-\",\"\",\"Error\"))),\"Dev/Print Error\"))","v":""},{"$f":"IF(B21=\"\",\"\",IF(Q21>=1,1,Q21))","v":""},null,{"$f":"IF(B21=\"\",\"\",$K21*$J21*D21)","v":""},null,null,"-",null,{"$f":"I21/F21","v":{"$error":"#VALUE!"}},{"$f":"IF(L15=\"Prints\",\n                    IF(O21=\"All\",(L13-G21)+(L14-H21),\n\"\"),\n\"\")","v":""},{"$f":"IF(VLOOKUP(B21,Pricing,5,FALSE)=\"\",B21,VLOOKUP(B21,Pricing,5,FALSE))","v":{"$error":"#N/A"}}]
[2,null,null,null,null,null,null,null,{"$f":"IF($L$15=\"Prints\",IF(O22=\"Both\",($L$13-G22)+($L$14-H22),IF(O22=\"Col\",($L$14-H22),IF(O22=\"-\",\"\",\"Error\"))),\n\nIF($L$15=\"Developments\",IF(O22=\"Both\",$L$13-G22,IF(O22=\"Col\",($L$14-H22)/3,IF(O22=\"-\",\"\",\"Error\"))),\"Dev/Print Error\"))","v":""},{"$f":"IF(B22=\"\",\"\",IF(Q22>=1,1,Q22))","v":""},null,"",null,null,"-",null,{"$f":"I22/F22","v":{"$error":"#VALUE!"}},null,{"$error":"#N/A"}]
[3,null,null,null,null,null,null,null,"","",null,"",null,null,"-",null,{"$error":"#VALUE!"},null,{"$error":"#N/A"}]
[4,null,null,null,null,null,null,null,"","",null,"",null,null,"-",null,{"$error":"#VALUE!"},null,{"$error":"#N/A"}]
[null,null,null,null,null,null,null,null,"","",null,"",null,null,"-",null,{"$error":"#VALUE!"},null,{"$error":"#N/A"}]
[5,null,null,null,null,null,null,null,"","",null,"",null,null,"-",null,{"$error":"#VALUE!"},null,{"$error":"#N/A"}]
[6,null,null,null,null,null,null,null,"","",null,"",null,null,"-",null,{"$error":"#VALUE!"},null,{"$error":"#N/A"}]
[7,null,null,null,null,null,null,null,"","",null,"",null,null,"-",null,{"$error":"#VALUE!"},null,{"$error":"#N/A"}]
[null,null,null,null,null,null,null,null,"","",null,"",null,null,"-",null,{"$error":"#VALUE!"},null,{"$error":"#N/A"}]
[null,null,null,null,null,null,null,null,"","",null,"",null,null,"-",null,{"$error":"#VALUE!"},null,{"$error":"#N/A"}]
[null,null,null,null,null,null,null,null,"","",null,"",null,null,"-",null,{"$error":"#VALUE!"},null,{"$error":"#N/A"}]
[null,null,null,null,null,null,null,null,"","",null,"",null,null,"-",null,{"$error":"#VALUE!"},null,{"$error":"#N/A"}]
[null,null,null,null,null,null,null,null,"","",null,"",null,null,"-",null,{"$error":"#VALUE!"},null,{"$error":"#N/A"}]
[null,null,null,null,null,null,null,null,"","",null,"",null,null,"-",null,{"$error":"#VALUE!"},null,{"$error":"#N/A"}]
[null,null,null,null,null,null,null,null,"","",null,"",null,null,"-",null,{"$error":"#VALUE!"},null,{"$error":"#N/A"}]
[null,null,null,null,null,null,null,null,"","",null,"",null,null,"-",null,{"$error":"#VALUE!"},null,{"$error":"#N/A"}]
[null,null,null,null,null,null,null,null,"","",null,"",null,null,"-",null,{"$error":"#VALUE!"},null,{"$error":"#N/A"}]
[null,null,null,null,null,null,null,null,"","",null,"",null,null,"-",null,{"$error":"#VALUE!"},null,{"$error":"#N/A"}]
[null,null,null,null,null,null,null,null,"","",null,"",null,null,"-",null,{"$error":"#VALUE!"},null,{"$error":"#N/A"}]
[null,null,null,null,null,null,null,null,"","",null,"",null,null,"-",null,{"$error":"#VALUE!"},null,{"$error":"#N/A"}]
[null,null,null,null,null,null,null,null,"","",null,"",null,null,"-",null,{"$error":"#VALUE!"},null,{"$error":"#N/A"}]
[null,null,null,null,null,null,null,null,"","",null,"",null,null,"-",null,{"$error":"#VALUE!"},null,{"$error":"#N/A"}]
[null,null,null,null,null,null,null,null,"","",null,"",null,null,"-",null,{"$error":"#VALUE!"},null,{"$error":"#N/A"}]
[null,null,null,null,null,null,null,null,"","",null,"",null,null,"-",null,{"$error":"#VALUE!"},null,{"$error":"#N/A"}]
[null,null,null,null,null,null,null,null,"","",null,"",null,null,"-",null,{"$error":"#VALUE!"},null,{"$error":"#N/A"}]
[null,null,null,null,null,null,null,null,"","",null,"",null,null,"-",null,{"$error":"#VALUE!"},null,{"$error":"#N/A"}]
[null,null,null,null,null,null,null,null,"","",null,"",null,null,"-",null,{"$error":"#VALUE!"},null,{"$error":"#N/A"}]
[8,null,null,null,null,null,null,null,"","",null,"",null,null,"-",null,{"$error":"#VALUE!"},null,{"$error":"#N/A"}]
[null,null,null,null,null,null,null,null,"","",null,"",null,null,"-",null,{"$error":"#VALUE!"},null,{"$error":"#N/A"}]
[null,null,null,null,null,null,null,null,"","",null,"",null,null,"-",null,{"$error":"#VALUE!"},null,{"$error":"#N/A"}]
[null,null,null,null,null,null,null,null,"","",null,"",null,null,"-",null,{"$error":"#VALUE!"},null,{"$error":"#N/A"}]
[null,null,null,null,null,null,null,null,"","",null,"",null,null,"-",null,{"$error":"#VALUE!"},null,{"$error":"#N/A"}]
[9,null,null,null,null,null,null,null,"","",null,"",null,null,"-",null,{"$error":"#VALUE!"},null,{"$error":"#N/A"}]
[10,null,null,null,null,null,null,null,"","",null,"",null,null,"-",null,{"$error":"#VALUE!"},null,{"$error":"#N/A"}]
[11,null,null,null,null,null,null,null,"","",null,"",null,null,"-",null,{"$error":"#VALUE!"},null,{"$error":"#N/A"}]
[null,null,null,null,null,null,null,null,"","",null,"",null,null,"-",null,{"$error":"#VALUE!"},null,{"$error":"#N/A"}]
[null,null,null,null,null,null,null,null,"","",null,"",null,null,"-",null,{"$error":"#VALUE!"},null,{"$error":"#N/A"}]
[null,null,null,null,null,null,null,null,"","",null,"",null,null,"-",null,{"$error":"#VALUE!"},null,{"$error":"#N/A"}]
[null,null,null,null,null,null,null,null,"","",null,"",null,null,"-",null,{"$error":"#VALUE!"},null,{"$error":"#N/A"}]
[null,null,null,null,null,null,null,null,"","",null,"",null,null,"-",null,{"$error":"#VALUE!"},null,{"$error":"#N/A"}]
[null,null,null,null,null,null,null,null,"","",null,"",null,null,"-",null,{"$error":"#VALUE!"},null,{"$error":"#N/A"}]
[null,null,null,null,null,null,null,null,"","",null,"",null,null,"-",null,{"$error":"#VALUE!"},null,{"$error":"#N/A"}]
[null,null,null,null,null,null,null,null,"","",null,"",null,null,"-",null,{"$error":"#VALUE!"},null,{"$error":"#N/A"}]
[null,null,null,null,null,null,null,null,"","",null,"",null,null,"-",null,{"$error":"#VALUE!"},null,{"$error":"#N/A"}]
[null,null,null,null,null,null,null,null,"","",null,"",null,null,"-",null,{"$error":"#VALUE!"},null,{"$error":"#N/A"}]
[null,null,null,null,null,null,null,null,"","",null,"",null,null,"-",null,{"$error":"#VALUE!"},null,{"$error":"#N/A"}]
[null,null,null,null,null,null,null,null,"","",null,"",null,null,"-",null,{"$error":"#VALUE!"},null,{"$error":"#N/A"}]
[null,null,null,null,null,null,null,null,"","",null,"",null,null,"-",null,{"$error":"#VALUE!"},null,{"$error":"#N/A"}]
[12,null,null,null,null,null,null,null,"","",null,"",null,null,"-",null,{"$error":"#VALUE!"},null,{"$error":"#N/A"}]
[13,null,null,null,null,null,null,null,"","",null,"",null,null,"-",null,{"$error":"#VALUE!"},null,{"$error":"#N/A"}]
[null,"Additional Notes:",null,null,null,null,null,null,null,null,"Total Parts:    ",{"$f":"SUM(L21:L70)","v":0},null,null,"-"]
[null,null,null,null,null,null,"Labour ",0,{"$f":"\"@ R\"& Data!C11 &\" p/h\"","v":"@ R200 p/h"},null,"Total Labour:    ",{"$f":"H72*Data!C11","v":0},null,null,"-"]
[null,null,null,null,null,null,null,null,null,null,"Sub Total:    ",{"$f":"L71+L72","v":0}]
[null,null,null,null,null,null,null,null,null,null,"VAT (15%):    ",{"$f":"L73*0.15","v":0}]
[null,null,null,null,null,null,null,null,null,null,"TOTAL:    ",{"$f":"L74+L73","v":0}]
[]
[]
[]
[]
[]
[null,"Quote prepared by:",null,null,null,null,null,"Quote accepted by:"]
[]
[]
[null,"Name:   ",null,null,null,null,null,"Name:   "]
[]
[]
[null,"Signature:",null,null,null,null,null,"Signature:"]
[]
[]
[null,"Date:",null,null,null,null,null,"Date:"]
[null,null,null,null,null,null,null,null,null,null,null,{"$f":"INDEX!H44","v":"(ver 2019.07.03)"}]